{"text_format":"1","workbook":"xlsx","n_sheets":31,"sheets":["Start","Checkliste","Bestellung","Produktinfo","Einstellungen","Werte","Grundeinstellungen","Grundwerte","EF1","EF1-1","EF2","EF2-Hnk","EF3","Grundberechnung","Grundberechnung-Hk","BSG Rechtsprechung","Wohnungsbestand","Mietspiegel","Mietgrenze WoGG","schlüssiges Konzept","schlüssiges Konzept SG","BK Kosten","Heizkosten","Zuschlag","F-Druck WiVer","ErgebnisDruck","ErgebnisDruck-Hk","Darstellung","EF Muster 1","EF Muster 2","FF Muster 3"],"not_rendered":{"charts":0,"images":2,"macros":1,"external_links":0,"defined_names":22,"comments":11,"pivot_tables":0},"unopened":[],"bounds":{"document_bytes":16777216,"sheet_cells":100000,"rows_first":2000,"rows_last":500,"rows_between":2000,"halvings":0,"cell_chars":16384,"cell_head_chars":4096},"cells_cut":0,"cells_raw":0,"read":"whole","date_system":"1900"}

{"sheet":"Start","index":0,"n_rows":86,"n_cols":32,"rows_kept":86,"cut":false,"hidden":false,"merged":[[12,27,13,27],[1,3,1,8],[3,3,3,8],[5,3,5,26],[7,7,7,9]]}
[]
[null,null,null,"SoLei-B",null,null,null,null,null,null,"Angemessene Wohnungsmiete"]
[]
[null,null,null,{"$f":"Einstellungen!E3","v":"2024 - 02"},null,null,null,null,null,null,null,null,null,null,null,null,null,null,"nach Produktmethode"]
[]
[null,null,null,"S t a r t s e i t e"]
[]
[null,null,null,null,null,null,"Entwicklungsstand:",{"$f":"Einstellungen!C2","v":"2024-02-01"},null,null,null,null,null,null,null,null,null,null,null,null,null,null,null,null,null,null,"mit nachprüfbarer Ermittlung der angemessenen Kosten"]
[]
[null,null,null,"Berechnung der angemessenen",null,null,null,null,null,null,null,null,null,null,null,null,null,null,null,null,null,null,null,null,null,null,null,{"$f":"Grundeinstellungen!S14","v":" AV-Wohnen ab  01.10.2023"}]
[]
[null,null,null,"Wohnungsmiete (bei Neuanmietung)"]
[null,null,null,null,null,null,null,null,null,null,null,null,null,null,null,null,null,null,null,null,null,null,null,null,null,null,null,{"$f":"IF(Checkliste!E4>0,1,\"\")","v":""}]
["i "]
[]
[]
[]
[]
[]
[]
[]
[]
[]
[]
[]
[]
[]
[]
[]
[]
[]
[null,null,null,null,null,null,null,null,null,null,null,null,null,null,null,null,null,null,null,null,null,null,null,null,null,null,null,null,null,"Wartemeldung",null,"Bitte gedulden Sie sich einen Augenblick  ...  ..."]
[]
[]
[]
[null,null,null,null,null,null,null,null,null,null,null,null,{"$f":"IF(AE32=1,AF32,IF(AE32=2,AJ32,\"\"))","v":""}]
[]
[]
[]
[null,null,null,{"$f":"\"   \"&Grundeinstellungen!D42","v":"   ©  by SoLei-B GbR 2001 - 2024"}]
[]
[]
[]
[null,null,null,null,null,null,null,null,null,null,null,null,null,null,null,null,{"$f":"IF(Werte!BG3=0,\"\",Werte!CCB3)","v":""}]
[]
[]
[]
[]
[]
[]
[]
[]
[null,null,null,"Ausschneiden und Einfügen mit Stg + X, Strg +V in geöffnetem Modul deaktiviert!"]
[]
[]
[null,"Hyperlinks für SoLei-B-Module oben"]
[]
[null,"D58",null,"Bürgergeld-Berechnung"]
[]
[null,"D60",null,"SH-Berechnung"]
[]
[null,"D62",null,"SoLei-Ergänzungen"]
[]
[null,"D64",null,"Wohngeld"]
[]
[null,"D66",null,"Angemessene Miete"]
[]
[null,"D68",null,"Elterngeld"]
[]
[null,"D70",null,"AsylbLG"]
[]
[null,"D72",null,"BAfoeG-Berechnung"]
[]
[null,"D74",null,"BAB-Berechnung"]
[]
[null,"D76",null,"Pfändungsgrenzen"]
[]
[null,"D78",null,"Datenbank"]
[]
[null,"D80",null,"Rechengrößen BAföG/BAB"]
[]
[null,"D82",null,"Web-Verzeichnis"]
[]
[null,"D84",null,"Handbuch"]
[]
[null,"D86",null,"Struktur"]

{"sheet":"Checkliste","index":1,"n_rows":50,"n_cols":8,"rows_kept":50,"cut":false,"hidden":true,"merged":[[1,1,1,7],[3,1,3,3],[3,5,3,6],[48,2,48,3]]}
["Start","Checkliste   (CHL)",null,"Start",null,"Prüfung:  Angemessene Wohnungsmiete"]
[]
[null," Einzelbeträge",null,null,"Werte",null,null,"Werte"]
[null,"Prüfsumme angem. Wohnungkosten",null,null,{"$f":"SUM(E49,H49)","v":0},null,null,""]
[]
[null,"EF 1",null,null,null,"Werte"]
["aWoK","berücksichtigte Personenzahl",null,{"$f":"IF(SUM(E7:E22)>0,1,0)","v":0},{"$f":"IF('EF1'!K8>0,1,0)","v":0},"Heizspiegel geändert",null,{"$f":"IF(Werte!A3=Werte!B3,0,1)","v":0}]
["aWoK","weiterer Raumbedarf",null,null,{"$f":"IF('EF1'!V10>0,1,0)","v":0}]
["aWoK","Nettokaltmiete",null,null,{"$f":"IF('EF1'!K14>0,1,0)","v":0}]
["aWoK","Betriebskosten",null,null,{"$f":"IF('EF1'!K16>0,1,0)","v":0}]
["aWoK","Heizmaterialauswahl",null,null,{"$f":"'EF1'!F65","v":0}]
["aWoK","Gebäudeflächenauswahl",null,"inaktiv",{"$f":"'EF1'!F67","v":0}]
["aWoK","tatsächliche Bruttokaltmiete",null,null,{"$f":"IF('EF1'!K10>0,1,0)","v":0}]
[null,"Heizkosten",null,"gelöscht"]
[null,"Option Abzug Warmwasser",null,null,{"$f":"'EF1'!AE6","v":0}]
[null,"Option Zuschlag 10% sozialer Wohnungsbau",null,null,{"$f":"'EF1'!AE8","v":0}]
[null,"Option Zuschlag 10% Härtefall",null,null,{"$f":"'EF1'!AE10","v":0}]
[null,"Option Zuschlag 10% bei Wohnungslosigkeit",null,null,{"$f":"'EF1'!AE12","v":0}]
[null,"Option Zuschlag 20% bei Wohnungslosigkeit",null,null,{"$f":"'EF1'!AE14","v":0}]
[null,"Option Änderung m²-Preise zulassen",null,null,{"$f":"'EF1'!AE54","v":0}]
[null,"Option Heizkostenüberschreitung zulassen",null,null,{"$f":"'EF1'!AE16","v":0}]
[null,"Option alleinerziehend mit 1 Kind",null,null,{"$f":"'EF1'!AE18","v":0}]
[null,"Option Bestandsschutz 20% wohnungslos",null,null,{"$f":"'EF1'!AE50","v":0}]
[null,"Option Wirtschaftlichkeitsbetrachtung",null,null,{"$f":"'EF1'!AE52","v":0}]
[null,"Option Klimabonus",null,null,{"$f":"'EF1'!AE40","v":0}]
[]
[null,"EF 2",null,null,null,"EF2-Hnk"]
[null,"Gesamtverbrauch in kWh",null,{"$f":"IF(SUM(E28:E35)>0,1,0)","v":0},{"$f":"IF('EF2'!S16>0,1,0)","v":0},"tatsächl. Mengenwert des Brennstoffs",null,{"$f":"IF('EF2-Hnk'!F8>0,'EF2-Hnk'!F8,0)","v":0}]
[null,"Gesamtheizkosten",null,null,{"$f":"IF('EF2'!S18>0,1,0)","v":0},"Umrechnungswert in kWh",null,{"$f":"IF('EF2-Hnk'!F12>0,'EF2-Hnk'!F12,0)","v":0}]
[null,"Nachtspeicherheizung  € / kWh",null,null,{"$f":"IF('EF2'!J24>0,1,0)","v":0},"Kosten des gesamten Brennstoffs",null,{"$f":"IF('EF2-Hnk'!F18>0,'EF2-Hnk'!F18,0)","v":0}]
[null,"Nachtspeicherheizung  Grundpreis",null,null,{"$f":"IF('EF2'!O24>0,1,0)","v":0},"Gesamt- Heiznebenkosten",null,{"$f":"IF('EF2-Hnk'!F22>0,'EF2-Hnk'!F22,0)","v":0}]
[null,"Monate",null,null,{"$f":"'EF2'!X24","v":0}]
[null,"jährliche tatsächliche Heizkosten",null,null,{"$f":"IF('EF2'!S28>0,1,0)","v":0}]
[null,"tatsächliche monatliche Heizkostenvorauszahlung:",null,null,{"$f":"IF('EF2'!T30>0,1,0)","v":0}]
[]
[null,"EF 3"]
[null,null,null,{"$f":"IF(SUM(E37:E48)>0,1,0)","v":0}]
[null,"tatsächliche Heizkosten (wird aus EF1 übernommen)"]
[null,"tatsächliche WW-Kosten",null,null,{"$f":"IF('EF3'!P14>0,1,0)","v":0}]
[null,"Betrachtungseitraum",null,null,{"$f":"'EF3'!AE20","v":0}]
[null,"Doppelmieten",null,null,{"$f":"'EF3'!P26","v":0}]
[null,"Kaution",null,null,{"$f":"'EF3'!P28","v":0}]
[null,"Genossenschaftsanteile",null,null,{"$f":"IF('EF3'!P30>0,1,0)","v":0}]
[null,"Umzugskosten 1",null,null,{"$f":"IF('EF3'!P32>0,1,0)","v":0}]
[null,"Umzugskosten 2",null,null,{"$f":"IF('EF3'!P34>0,1,0)","v":0}]
[null,"Anzahl Umzugshelfer",null,null,{"$f":"IF('EF3'!U32>0,1,0)","v":0}]
[null,"Umzugskosten 3",null,null,{"$f":"IF('EF3'!P36>0,1,0)","v":0}]
[]
[null,null,"Prüfwert 1:",null,{"$f":"SUM(E5:E48)","v":0},null,"Prüfwert 2",{"$f":"SUM(H5:H48)","v":0}]
[null,null,"   wenn Summe der Prüfwerte  =  0,00  - dann alles ok. für neue Berechnung"]

{"sheet":"Bestellung","index":2,"n_rows":54,"n_cols":28,"rows_kept":54,"cut":false,"hidden":false,"merged":[[39,25,39,26],[53,8,53,26],[42,17,42,20],[49,8,49,26],[50,8,50,26],[51,8,51,26],[52,8,52,26],[33,14,33,17],[33,19,33,20],[30,14,30,17],[30,19,30,20],[37,14,37,17],[30,25,30,26],[28,14,28,17],[28,19,28,20],[28,22,28,23],[29,14,29,17],[29,19,29,20],[29,22,29,23],[30,22,30,23],[5,27,6,28],[13,24,13,26],[21,19,21,20],[23,14,23,17],[23,19,23,20]]}
[]
["Start",null,"Bestellung"]
[]
[null,null,null,null,null,null,null,null,null,null,null,null,null,null,"Bestellung"]
[null,null,null,null,null,null,null,null,null,null,null,null,null,null,null,null,null,null,null,null,null,null,null,null,null,null,null,"Bestellung per E-Mail:"]
[null,null,null,null,null,null,null,null,null,null,null,null,null,null,null,null,null,null,null,null,null,null,null,null,null,null,null,"bestellung@solei-b.de"]
[]
[null,null,"SoLei-B GbR"]
[null,null,"Jürgen Kroggel"]
[null,null,"Hakenfelder Str. 9"]
[]
[null,null,"13587 Berlin"]
[]
[null,null,null,null,null,null,null,null,null,null,null,null,null,null,null,null,null,null,null,null,null,null,null,null,{"$f":"NOW()","v":"2024-01-30T18:52:30.260"}]
[]
[]
[]
[]
[]
[null,"Hiermit bestelle ich Solei-B",null,null,null,null,null,null,null,null,null,null,null,null,null,"Einzelpreis",null,null,null,"Anzahl",null,null,null,null,null,null,"Summe"]
[]
[]
[]
[null,"Einzelplatzversion",null,null,null,null,null,null,null,null,null,null,null,null,49,null,null,null,null,{"$f":"IF(T22>0,1,\"\")","v":""},null,null,null,null,null,null,{"$f":"IF(SUM(T24)>0,O24*T24,\"\")","v":""}]
[]
[null,null,null,null,null,null,null,null,null,null,null,null,null,null,null,null,null,null,null,null,null,null,null,"Rabatt zu Einzel-",null,null,null," Bei Bestellung weiterer"]
[null,"weitere Lizenzen (Mehrplatzlizenz):",null,null,null,null,null,null,null,null,null,null,null,null,null,null,null,null,null,null,null,null,null,"platzversion ca.",null,null,null," Lizenzen werden die "]
[null,null,null,null,null,null,null,null,null,null,null,null,null,null,null,null,null,null,null,null,null,null,null,null,null,null,null," schon gekauften"]
[null,"Arbeitsplatz 2 - 5",null,null,null,null,null,null,null,null,null,null,null,null,34,null,null,null,null,{"$f":"IF(T22>1,IF(T22>5,4,T22-1),\"\")","v":""},null,null,0.3,null,null,null,{"$f":"IF(SUM(T29)>0,O29*T29,\"\")","v":""}," berücksichtigt, so dass"]
[null,"Arbeitsplatz  6 - 10",null,null,null,null,null,null,null,null,null,null,null,null,29,null,null,null,null,{"$f":"IF(T22>5,IF(T22>10,5,T22-5),\"\")","v":""},null,null,0.4,null,null,null,{"$f":"IF(SUM(T30)>0,O30*T30,\"\")","v":""}," sich ein entsprechend "]
[null,"ab 11. Arbeitsplatz",null,null,null,null,null,null,null,null,null,null,null,null,25,null,null,null,null,{"$f":"IF(T22>10,T22-10,\"\")","v":""},null,null,0.5,null,null,{"$f":"IF(SUM(T31)>0,O31*T31,\"\")","v":""},null," geringerer Gesamtpreis"]
[null,null,null,null,null,null,null,null,null,null,null,null,null,null,null,null,null,null,null,null,null,null,null,null,null,null,null," ergibt!"]
[]
[null,"Studentenversion",null,null,null,null,null,null,null,null,null,"je",null,null,35,null,null,null,null,null,null,null,null,null,null,null,{"$f":"IF(SUM(T34)>0,O34*T34,\"\")","v":""}]
[null,"(bitte Nachweis per Post oder Fax führen)"]
[]
[]
[null,{"$f":"IF(SUM(T22,T34)>=0,\"Versandkosten\",\"\")","v":"Versandkosten"},null,null,null,null,null,null,null,null,null,null,null,null,5,{"$f":"IF(SUM(T22,T34)>=0,\"2,50 €\",\"\")","v":"2,50 €"},null,null,null,null,null,null,null,null,null,null,{"$f":"IF(SUM(T22,T34)>0,O38,\"\")","v":""}]
[]
[null,"Gesamtkosten:",null,null,null,null,null,null,null,null,null,null,null,null,null,null,null,null,null,null,null,null,null,null,null,{"$f":"IF(SUM(AA23:AA30,Z31,AA32:AA39)>0,SUM(AA23:AA30,Z31,AA32:AA39),\"\")","v":""}]
[null,"(als Kleinunternehmer erheben wir keine Mehrwertsteuer)"]
[]
[]
[]
[null,null,"rechtsverbindliche Unterschrift"]
[]
[]
[]
[null,"Besteller",null,null,null,null,null,null,"(zugleich Liefer- und Rechnungsanschrift)"]
[null,null,"Name:"]
[null,null,"Strasse/Nr.:"]
[null,null,"PLZ/Ort:"]
[null,null,"E-Mail:"]
[null,null,"Telefon:"]

{"sheet":"Produktinfo","index":3,"n_rows":116,"n_cols":30,"rows_kept":116,"cut":false,"hidden":false,"merged":[]}
["<--"]
["Start",null,null,"SoLei-B Produktinformation"]
[]
[">I",null,null,"(Information zu Programminhalten und -funktionen der SoLei-B Vollversion)"]
[]
[null,null,"SoLei-B ist ein Berechnungsprogramm für soziale Leistungsansprüche auf der Basis von MS Excel.",null,null,null,null,null,null,null,null,null,null,null,null,null,null,null,null,null,null,null,null,null,null,null,null,null,null,"\"Angemessene Wohnungsmiete\""]
[null,null,"Sie benötigen also zunächst dieses MS Office Programm, um SoLei-B nutzen zu können. ",null,null,null,null,null,null,null,null,null,null,null,null,null,null,null,null,null,null,null,null,null,null,null,null,null,null,"stellt Ihnen die SoLei-B GbR"]
[null,null,"Wir garantieren die Lauffähigkeit von SoLei-B ab MS Excel 2010.",null,null,null,null,null,null,null,null,null,null,null,null,null,null,null,null,null,null,null,null,null,null,null,null,null,null,"kostenlos zur Verfügung."]
[]
[null,null,"Als Betriebssystem benötigen Sie ein Microsoft Betriebssystem ab Windows 7, also auch ",null,null,null,null,null,null,null,null,null,null,null,null,null,null,null,null,null,null,null,null,null,null,null,null,null,null,"Die Vollversion von SoLei-B"]
[null,null,"Win 8, Win 10 und 11",null,null,null,null,null,null,null,null,null,null,null,null,null,null,null,null,null,null,null,null,null,null,null,null,null,null,"können Sie käuflich erwerben."]
[]
[null,null,"Unser Programm setzt fachliche Kenntnisse, insbesondere des SGB II voraus.",null,null,null,null,null,null,null,null,null,null,null,null,null,null,null,null,null,null,null,null,null,null,null,null,null,null,"Ein Bestellformular finden Sie "]
[null,null,"Zielgruppe sind sozial rechtsberatende Berufe.",null,null,null,null,null,null,null,null,null,null,null,null,null,null,null,null,null,null,null,null,null,null,null,null,null,null,"unter \"SoLei-B Bestellung\"."]
[]
[null,null,"Sie können folgende soziale Leistungsansprüche berechnen:"]
[]
[null,null,"Bürgergeld"]
[null,null,null,"mit folgenden Funktionen nach der Geburtstagseingabe:"]
[null,null,"●","automatische Mehrbedarfsberechnung (der allermeisten Fallgestaltungen), auch bei Änderung eines Mehr-"]
[null,null,null,"bedarfes im Berechnungsmonat durch Geburtstag"]
[null,null,"●","Wechselmöglichkeit des/der Antragstellers/in ohne Änderung der Eingaben"]
[null,null,"●","Berechnung der Hauslasten eines Eigenheimes (Rentabilitätsberechnung)"]
[null,null,"●","Berechnen des Erwerbstätigenfreibetrages bei unselbständiger und bei selbstständiger Arbeit unter   "]
[null,null,null,"Berücksichtigung der \"weiteren Absetzbeträge\""]
[null,null,"●","Errechnen des \"Überschreitungskindergeldes\" bei Kindern, die dieses zur eigenen Bedarfsdeckung "]
[null,null,null,"nicht mehr benötigen"]
[null,null,"●","Vergleichsberechnung bei vorliegenden Aufhebungs- und Erstattungsbescheiden"]
[]
[null,null,"Kinderzuschlag"]
[null,null,null,"Aufgrund Ihrer Bürgergeldberechnung und Ihren weiteren Eingaben berechnet SoLei-B  den  "]
[null,null,null,"Kinderzuschlag (autom. Wechsel der Berechnungsgrundlagen zur Miete gem. Existenzminimumbericht)"]
[]
[null,null,"Wohngeld"]
[null,null,"●","Berechnung normaler Fallgestaltungen von Wohngeld"]
[null,null,null,null,"dabei Berücksichtigung von bürgergeldberechtigten Personen (Mischhaushalte)"]
[null,null,"●","Funktion zur Datenübertragung aus der Bürgergeldberechnung"]
[]
[null,null,"Pfändungsfreigrenzen"]
[null,null,null,"Berechnung des Freibetrages ab 7-2022 unter Berücksichtigung von"]
[null,null,null,"o","Unterhaltspflichten"]
[null,null,null,"o","Urlaubsgeld"]
[null,null,null,"o","Weihnachtsgeld"]
[null,null,null,"Pfändungstabelle"]
[null,null,null,"Berechnung von Verzugszinsen"]
[null,null,null,"Haushaltsplan"]
[null,null,null,"Gläubigerverzeichnis"]
[]
[null,null,"BAföG"]
[]
[null,null,"Ausdrucke für Klienten/innen:"]
[]
[null,null,"Bürgergeld"]
[null,null,null,"Minimal:"]
[null,null,null,null,"Kurzer Ausdruck der notwendigen Berechnungsdaten"]
[null,null,null,"nach Auswahl:"]
[null,null,null,null,"Hier wählen Sie aus, was zusätzlich mit gedruckt werden soll:"]
[null,null,null,null,"●","Vermögensfreigrenzen"]
[null,null,null,null,"●","Alle Einkommensarten (zur Information)"]
[null,null,null,null,"●","Bereinigung Erwerbseinkommen"]
[null,null,null,null,"●","Haushaltsangehörige ohne Leistungsanspruch"]
[null,null,null,null,"●","Aufteilung der Regelleistung (nach Regelsatzverordnung)"]
[null,null,null,"Querberechnung"]
[null,null,null,null,"Kurzansicht aller einzelnen eingetragenen Beträge/Personen auf einem DIN A4 Blatt"]
[null,null,null,"Rentabilitätsberechnung (Hauslasten) eines Eigenheimes "]
[null,null,null,"Tabelle zur Vergleichsberechnung Rückforderung"]
[]
[null,null,"Kinderzuschlag"]
[null,null,null,"Auf einer DIN A4 Seite werden alle Ergebnisse und einzuhaltende Bedingungen angezeigt"]
[null,null,null,"weitere Kontrollausdrucke zur Dateneingabe möglich"]
[]
[null,null,"Wohngeld"]
[null,null,null,"Auf einer DIN A4 Seite werden das Ergebnis und die eingetragenen Ausgangsdaten angezeigt"]
[]
[null,null,"Pfändungsgrenzen"]
[null,null,null,"Das Ergebnis"]
[]
[null,null,"BAföG"]
[null,null,null,"Ergebnis und die eingetragenen Ausgangsdaten"]
[]
[null,null,"Speichermöglichkeit"]
[]
[null,null,null,"Ergebnis Bürgergeld (minimal nach gewähltem Umfang und Querberechnung)"]
[null,null,null,null,"Rentabilitätsberechnung des Eigenheimes"]
[null,null,null,"Ergebnis Kinderzuschlag"]
[null,null,null,"Ergebnis Wohngeld"]
[null,null,null,"Ergebnis BAföG"]
[null,null,null,"Ergebnis Pfändungsgrenze, Haushaltsplan, Forderungsaufstellung"]
[]
[null,null,"Werte ändern:"]
[null,null,null,"Sie können selber, Ihrer Region gemäß, die Rechenwerte von SoLei-B verändern und einstellen"]
[]
[null,null,"Hilfen durch"]
[null,null,"●","Übersicht über die Strukturprinzipien von SoLei-B"]
[null,null,"●","Handbuch"]
[null,null,"●","readme Datei"]
[null,null,"●","aktuelle Kommentare"]
[null,null,"●","Informations- (Unter-)Seiten"]
[null,null,"●","Arbeitshilfen (Schulungsunterlagen)"]
[null,null,"●","Mustereingaben (automatisch auszulösen)"]
[null,null,"●","Web-Verzeichnis (Verknüpfung zu vielen hilfreichen Internetseiten schon auf HTML- Ebene)"]
[null,null,"●","SoLei-Ergänzungen zu folgenden Themen (teilweise Berlin - orientiert, teilweise nicht):"]
[null,null,null,"o","Regelsätze nach SGB XII (analog für SGB II)"]
[null,null,null,"o","Pauschalen, einmalige Leistungen"]
[null,null,null,"o","Kosten der Unterkunft (Grenzen für angemessenen Wohnraum)"]
[null,null,null,"o","Kohlengeld"]
[null,null,null,"o","Bedarf der Grundsicherung"]
[null,null,null,"o","Asylbewerberleistungsgesetz (Grundleistungen)"]
[null,null,null,"o","häusliche Ersparnis"]
[null,null,null,"o","Einkommensgrenzen nach § 85 SGB XII"]
[null,null,null,"o","Vermögensfreigrenzen (nach SGB II und SGB XII)"]
[null,null,null,"o","Taschengeld/ Barbetrag im SGB XII"]
[null,null,null,"o","BAföG / BAB"]
[null,null,null,"o","Zuverdienstgrenzen für Rentner"]
[null,null,null,"o","Selbstbehalte Unterhaltspflichtiger nach BGB"]
[null,null,null,"o","Rangfolge der Unterhaltsverpflichteten"]

{"sheet":"Einstellungen","index":4,"n_rows":94,"n_cols":13,"rows_kept":94,"cut":false,"hidden":true,"merged":[[0,1,0,5]]}
["Start","Einstellungen"]
[null,"Bearbeitungsstand","2024-02-01",null,null,"Jahr:",{"$f":"YEAR(C2)","v":2024}]
[null,null,{"$f":"TODAY()","v":"2024-01-30"},"SoLei-B ","2024 - 02",null,null,null,null,null,"Auflösung ",2,{"$f":"IF(L3=2,\"1024 x 768\",IF(L3=3,\"1280 x 1024\",\"800 x 600\"))","v":"1024 x 768"}]
[null,null,null,null,null,null,null,null,null,null,"Zoomwert ",{"$f":"IF(L3=2,100,IF(L3=3,109,IF(L3=4,135,78)))","v":100},"für Speichertabelle Ergebnis angem. Miete"]
[null,null,null,null,null,null,null,null,null,null,"Zoomwert ",{"$f":"IF(L3=2,150,IF(L3=3,150,IF(L3=4,180,113)))","v":150},"für Speichertabelle Wirtschaftlichkeitsvergleich"]
[]
[null,"1. Angemessene Wohnungsgrößen zur Mietbegrenzung",null,null,null,"Daten aus \"Mietspiegel\""]
[null,"Personen","Zimmer","Wohnfläche in m²"]
[null,1,"1 - 2 Zimmer",{"$f":"Mietspiegel!E24","v":50}]
[null,2,"2 Zimmer",{"$f":"Mietspiegel!E25","v":65}]
[null,3,"3 Zimmer",{"$f":"Mietspiegel!E27","v":80}]
[null,4,"4 Zimmer",{"$f":"Mietspiegel!E28","v":90}]
[null,5,"5 Zimmer",{"$f":"Mietspiegel!E29","v":102}]
[null,"je weitere Person",null,{"$f":"Mietspiegel!E30","v":12}]
[null,null,"für ","Berlin"]
[]
[null,"2. Kaltmiete",null,null,null,"Daten aus \"schlüssiges Konzept\""]
[null,"für Wohnungsgrößen",null,"durchnittliche Kaltmiete / m²"]
[null,"40 m² - einschließlich 60 m²",null,{"$f":"ROUND(SUM('schlüssiges Konzept SG'!I63:K64),2)","v":7}]
[null,"über 60 m² - unter 90 m²",null,{"$f":"ROUND(SUM('schlüssiges Konzept SG'!L63:N64),2)","v":6.56}]
[null,"über 90 m²",null,{"$f":"ROUND(SUM('schlüssiges Konzept SG'!O63:Q64),2)","v":7.03}]
[]
[null,"3. Betriebskosten",null,null,null,"Daten aus \"Betriebskosten\""]
[null,"kalte Betriebskosten pro m²",null,{"$f":"ROUND(SUM('BK Kosten'!D26),2)","v":1.66}]
[null,null,"BBU"]
[]
[null,"4. Heizkosten"]
[null,"Heizenergieträger","Gebäudefläche","monatliche Kosten je m²",null,"Daten aus \"Heizkosten\"",null,null,null,{"$f":"Grundberechnung!E95","v":0},"gewählte Gebäudefläche"]
[null,null,"100 - 250 m²",{"$f":"Heizkosten!G13","v":2025}]
[null,"1 Heizöl","251 - 500 m²",{"$f":"Heizkosten!G14","v":241.66666666666666}]
[null,null,"501 - 1000 m²",{"$f":"Heizkosten!G15","v":0}]
[null,null,"> 1000 m²",{"$f":"Heizkosten!G16","v":391.66666666666669}]
[null,null,"100 - 250 m²",{"$f":"Heizkosten!G18","v":625}]
[null,"2 Erdgas","251 - 500 m²",{"$f":"Heizkosten!G19","v":708.33333333333337}]
[null,null,"501 - 1000 m²",{"$f":"Heizkosten!G20","v":800}]
[null,null,"> 1000 m²",{"$f":"Heizkosten!G21","v":91.666666666666671}]
[null,null,"100 - 250 m²",{"$f":"Heizkosten!G23","v":0}]
[null,"3 Fernwärme","251 - 500 m²",{"$f":"Heizkosten!G24","v":0}]
[null,null,"501 - 1000 m²",{"$f":"Heizkosten!G25","v":100}]
[null,null,"> 1000 m²",{"$f":"Heizkosten!G26","v":130}]
[null,null,"100 - 250 m²",{"$f":"Heizkosten!G28","v":180}]
[null,"4 Wärmepumpe","251 - 500 m²",{"$f":"Heizkosten!G29","v":204}]
[null,null,"501 - 1000 m²",{"$f":"Heizkosten!G30","v":24}]
[null,null,"> 1000 m²",{"$f":"Heizkosten!G31","v":0}]
[null,null,"100 - 250 m²",{"$f":"MAX(D29,D33,D37,D41)","v":2025},null,null,null,null,null,{"$f":"IF(J$28=1,D45,0)","v":0}]
[null,"6 Andere Heizart","251 - 500 m²",{"$f":"MAX(D30,D34,D38,D42)","v":708.33333333333337},null,null,null,null,null,{"$f":"IF(J$28=2,D46,0)","v":0}]
[null,"maxwert","501 - 1000 m²",800,null,null,null,null,null,{"$f":"IF(J$28=3,D47,0)","v":0}]
[null,null,"> 1000 m²",391.66666666666669,null,null,null,null,null,{"$f":"IF(J$28=4,D48,0)","v":0}]
[null,null,"maxwert nach ausgewählter Gebäudefläche:",{"$f":"J49","v":0},"maxwert",null,null,null,null,{"$f":"SUM(J45:J48)","v":0}]
[]
[null,"5. Nachtspeicher-Heizkosten",null,"Grenzbeträge",{"$f":"'EF1'!F65","v":0},null,null,null,null,"Nachtspeicherheizung",null,"für Druckdarstellung zur Info"]
[null,"Personen",null,"monatlich",null,null,null,null,null,{"$f":"IF(E51=5,ErgebnisDruck!G19,0)","v":0},{"$f":"K63","v":0},{"$f":"ErgebnisDruck!G19","v":0}]
[null,1,null,{"$f":"Werte!AT3","v":105},null,null,null,null,null,{"$f":"IF(J$52=B53,D53,0)","v":0},null,{"$f":"IF(L$52=B53,D53,0)","v":0}]
[null,2,"mit  1 Kind",{"$f":"Werte!AV3","v":130},null,null,null,null,null,{"$f":"IF(AND(K$52=1,J$52=B54),D54,0)","v":0},"alleinerziehend",{"$f":"IF(AND(K$52=1,L$52=B54),D54,0)","v":0},"alleinerziehend"]
[null,2,null,{"$f":"Werte!AU3","v":130},null,null,null,null,null,{"$f":"IF(AND(K$52=0,J$52=B55),D55,0)","v":0},null,{"$f":"IF(AND(K$52=0,L$52=B55),D55,0)","v":0}]
[null,3,null,{"$f":"Werte!AW3","v":160},null,null,null,null,null,{"$f":"IF(J$52=B56,D56,0)","v":0},null,{"$f":"IF(L$52=B56,D56,0)","v":0}]
[null,4,null,{"$f":"Werte!AX3","v":180},null,null,null,null,null,{"$f":"IF(J$52=B57,D57,0)","v":0},null,{"$f":"IF(L$52=B57,D57,0)","v":0}]
[null,5,null,{"$f":"Werte!AY3","v":204},null,null,null,null,null,{"$f":"IF(J$52>=B58,D58,0)","v":0},null,{"$f":"IF(L$52>=B58,D58,0)","v":0}]
[null,"je weitere Person",null,{"$f":"Werte!AZ3","v":24},null,null,null,null,null,{"$f":"IF(J$52>5,(J$52-5)*D59,0)","v":0},null,{"$f":"IF(L$52>5,(L$52-5)*D59,0)","v":0}]
[]
[]
[null,"6. Abschlag für dezentr. Warmwasser",null,{"$f":"'EF1'!AE20","v":"Heizmaterial?"},{"$f":"'EF1'!F65","v":0},null,null,null,null,"Zuschlag WW","alleinerziehend"]
[null,"Personen","Zuschlag","monatlich",null,null,null,null,null,{"$f":"IF('EF1'!AE6=1,ErgebnisDruck!G19,0)","v":0},{"$f":"'EF1'!AE18","v":0}]
[null,1,null,{"$f":"IF(E62=4,Zuschlag!G12,Zuschlag!E12)","v":7},null,null,null,null,null,{"$f":"IF(J$63=B64,D64,0)","v":0}]
[null,2,null,{"$f":"IF(E62=4,Zuschlag!G13,Zuschlag!E13)","v":9},null,null,null,null,null,{"$f":"IF(AND(K$63=0,J$63=B65),D65,0)","v":0}]
[null,2,"mit  1 Kind",{"$f":"IF(E62=4,Zuschlag!G14,Zuschlag!E14)","v":9},null,null,null,null,null,{"$f":"IF(AND(K$63=1,J$63=B66),D66,0)","v":0},"alleinerziehend"]
[null,3,null,{"$f":"IF(E62=4,Zuschlag!G15,Zuschlag!E15)","v":11},null,null,null,null,null,{"$f":"IF(J$63=B67,D67,0)","v":0}]
[null,4,null,{"$f":"IF(E62=4,Zuschlag!G16,Zuschlag!E16)","v":12},null,null,null,null,null,{"$f":"IF(J$63=B68,D68,0)","v":0}]
[null,5,null,{"$f":"IF(E62=4,Zuschlag!G17,Zuschlag!E17)","v":14},null,null,null,null,null,{"$f":"IF(J$63>=B69,D69,0)","v":0}]
[null,"je weitere Person",null,{"$f":"IF(E62=4,Zuschlag!G18,Zuschlag!E18)","v":2},null,null,null,null,null,{"$f":"IF(J63>5,(J63-5)*D70,0)","v":0}]
[null,null,null,null,null,null,null,null,null,{"$f":"SUM(J64:J70)","v":0}]
[]
[null,"7. Klimabonus",null,"für Personen:",{"$f":"Grundberechnung!D6","v":0},null,null,null,null,"Klimabonus","alleinerziehend"]
[null,"Personen",null,"monatlich",null,null,null,null,null,{"$f":"E73","v":0},{"$f":"K52","v":0}]
[null,1,null,{"$f":"Werte!S3","v":25},null,null,null,null,null,{"$f":"IF(J$74=B75,D75,0)","v":0}]
[null,2,null,{"$f":"Werte!T3","v":32.5},null,null,null,null,null,{"$f":"IF(AND(K$74=0,J$74=B76),D76,0)","v":0}]
[null,2,"mit  1 Kind",{"$f":"Werte!U3","v":32.5},null,null,null,null,null,{"$f":"IF(AND(K$74=1,J$74=B77),D77,0)","v":0},"alleinerziehend"]
[null,3,null,{"$f":"Werte!V3","v":40},null,null,null,null,null,{"$f":"IF(J$74=B78,D78,0)","v":0}]
[null,4,null,{"$f":"Werte!W3","v":45},null,null,null,null,null,{"$f":"IF(J$74=B79,D79,0)","v":0}]
[null,5,null,{"$f":"Werte!X3","v":51},null,null,null,null,null,{"$f":"IF(J$74>=B80,D80,0)","v":0}]
[null,"je weitere Person",null,{"$f":"Werte!Y3","v":6},null,null,null,null,null,{"$f":"IF(J$74>5,(J$74-5)*D81,0)","v":0}]
[null,null,null,null,null,null,null,null,null,{"$f":"SUM(J75:J81)","v":0}]
[]
[null,"8. Mietgrenzen nach WoGG","Sonderregelung"]
[null,"Mietniveaustufe für Berlin",null,{"$f":"Werte!GW3","v":4}]
[]
[]
[]
[]
[]
[]
[]
[]
[null,null,null,null,null,null,null,null,null,{"$f":"SUM(J53:J59)","v":0},null,{"$f":"SUM(L53:L59)","v":0}]

{"sheet":"Werte","index":5,"n_rows":46,"n_cols":205,"rows_kept":46,"cut":false,"hidden":true,"merged":[]}
["Start","Werte","nach: Mietspiegel",null,null,null,null,null,null,null,null,null,null,null,null,null,null,null,null,null,null,null,null,null,null,null,null,null,null,null,null,null,null,null,null,null,null,null,null,null,null,null,null,null,null,null,null,null,null,null,null,null,null,null,null,null,null,null,null,null,null,null,null,null,null,null,null,null,null,null,null,null,null,null,null,null,null,null,null,null,null,null,null,null,null,null,null,null,null,null,null,null,null,null,null,null,null,null,null,null,null,null,null,null,null,null,null,null,null,null,null,null,null,null,null,null,null,null,null,null,null,null,null,null,null,null,null,null,null,null,null,"bei Angemessenheit",null,null,null,null,null,null,null,null,null,null,null,null,null,null,null,null,null,null,null,null,null,null,null,null,null,null,null,null,null,null,null,null,null,null,null,null,null,null,null,null,null,null,null,null,null,null,null,null,null,null,null,null,"https://www.berlin.de/sen/soziales/service/berliner-sozialrecht/kategorie/sonstige/brennstoffe-601787.php"]
[null,"Standard",null,null,null,null,null,null,{"$f":"IF(SUM(AC3:BD3)=0,\"kein gültiger Heizkostenspiegel ausgewählt !\",\"\")","v":""},null,null,null,null,null,null,null,null,null,null,null,null,null,null,null,null,null,null,null,null,null,null,null,null,null,null,null,null,null,null,null,null,null,null,null,null,null,null,null,null,null,null,null,null,null,null,null,null,null,null,null,null,null,null,null,null,null,null,null,null,null,null,null,null,null,null,null,null,null,null,null,null,null,null,null,null,null,null,null,null,null,null,null,null,null,null,null,null,null,null,null,null,null,null,null,null,null,null,null,null,null,null,null,null,null,null,null,null,null,null,null,null,null,null,null,null,null,null,null,null,null,null,"nach Wohngeldtabelle",null,"aktuell für angemessene Mietberechnung nicht relevant",null,null,null,null,null,null,"aktuell für angemessene Mietberechnung nicht relevant",null,null,null,null,null,null,null,null,null,null,null,null,null,"jährlich/ m²",null,null,null,null,null,null,"jährlich/ m²",null,null,null,null,null,null,null,"jährlich/ m²",null,null,null,null,null,null,"jährlich/ m²",null,null,null,null,null,null,null,"jährlich/ m²"]
[10,10,{"$f":"IF(G10>0,\"< ggf. Standard anpassen\",\"\")","v":"< ggf. Standard anpassen"},null,{"$f":"INDEX(E8:E21,$A3)","v":"2022-12-13"},{"$f":"INDEX(F8:F21,$A3)","v":"2023-09-04"},"2023-10-01",null,{"$f":"INDEX(I8:I21,$A3)","v":0},7.21,7.21,6.59,7.09,2023,null,{"$f":"INDEX(P8:P21,$A3)","v":1.77},0,null,{"$f":"INDEX(S8:S21,$A3)","v":25},32.5,32.5,40,45,51,6,null,"",null,{"$f":"INDEX(AC8:AC21,$A3)","v":18.100000000000001},17.600000000000001,17.100000000000001,16.7,17,15.8,14.7,14,22.6,21,19.7,18.8,22.5,21.6,20.8,20.3,null,{"$f":"INDEX(AT8:AT21,$A3)","v":105},{"$f":"INDEX(AU8:AU21,$A3)","v":130},{"$f":"INDEX(AV8:AV21,$A3)","v":130},160,180,204,24,null,{"$f":"INDEX(BB8:BB21,$A3)","v":0},0,1.6,2.1,null,{"$f":"INDEX(BG8:BG21,$A3)","v":0},null,null,null,null,null,null,{"$f":"INDEX(BN8:BN21,$A3)","v":7},9,9,11,12,14,{"$f":"INDEX(BT8:BT21,$A3)","v":2},9,11,11,14,16,18,2,null,{"$f":"INDEX(CC8:CC21,$A3)","v":50},65,65,80,90,102,12,null,{"$f":"INDEX(CK8:CK21,$A3)","v":338},381,426,478,525,575,633,409,461,516,579,636,697,767,487,549,614,689,757,830,912,568,641,716,803,884,968,1065,649,732,818,918,1010,1106,1217,77,88,99,111,121,139,153,null,{"$f":"INDEX(EB8:EB21,$A3)","v":10},null,{"$f":"INDEX(ED8:ED21,$A3)","v":14.4},18.600000000000001,22.2,25.8,29.4,3.6,null,96,124,148,172,196,24,null,19.2,24.8,29.6,34.4,39.200000000000003,4.8,null,{"$f":"INDEX(EY8:EY21,$A3)","v":238},11900,15500,19000,21400,24300,2900,24,1200,1560,1920,2160,2448,288,null,{"$f":"INDEX(FN8:FN21,$A3)","v":94},4700,6100,7500,8500,9600,1100,9.6,480,624,768,864,979,115,null,{"$f":"INDEX(GC8:GC21,$A3)","v":120},6000,7800,9600,10800,12240,1440,null,{"$f":"INDEX(GK8:GK21,$A3)","v":0.33},0.33,0.33,0.33,0.33,0.33,null,{"$f":"INDEX(GR8:GR21,$A3)","v":10},{"$f":"INDEX(GS8:GS21,$A3)","v":20},{"$f":"INDEX(GT8:GT21,$A3)","v":10},{"$f":"INDEX(GU8:GU21,$A3)","v":15},null,{"$f":"INDEX(GW8:GW21,$A3)","v":4}]
[null,null,null,null,null,null,null,null,"€","€","€","€","€","€",null,"€","€",null,"€","€","€","€","€","€","€",null,"Jahr",null,"€","€","€","€","€","€","€","€","€","€","€","€","€","€","€","€",null,"€","€","€","€","€","€","€",null,"Jahr","Jahr","€","€",null,null,null,null,null,null,null,null,"€","€","€","€","€","€","€","€","€","€","€","€","€","€",null,"m²","m²","m²","m²","m²","m²","m²",null,"€","€","€","€","€","€","€","€","€","€","€","€","€","€","€","€","€","€","€","€","€","€","€","€","€","€","€","€","€","€","€","€","€","€","€","€","€","€","€","€","€","€",null,"%",null,"€","€","€","€","€","€",null,"€","€","€","€","€","€",null,"€","€","€","€","€","€",null,"kWh","kWh","kWh","kWh","kWh","kWh","kWh","kWh","kWh","kWh","kWh","kWh","kWh","kWh",null,"kWh","kWh","kWh","kWh","kWh","kWh","kWh","kWh","kWh","kWh","kWh","kWh","kWh","kWh",null,"kWh","kWh","kWh","kWh","kWh","kWh","kWh",null,"€","€","€","€","€","€",null,"%","%","%","%",null,"%"]
["HzK",null,null,null,"1. Änderungsdatum",null,null,null,"2. Angemessene Netto-Kaltmiete zur Mietbegrenzung",null,null,null,null,null,null,"3. Angemessene Betriebskosten",null,null,"Klimabonus",null,"AV-Wohnen 3.3.4 (Anlage 1)",null,null,null,null,null,"4. Angemessene Heizkosten zur Mietbegrenzung",null,null,null,null,null,null,null,null,null,null,null,null,null,null,null,null,null,null,null,null,"bis 31.12.2021",null,null,null,null,null,null,null,"Pauschale","Wärmepumpe",null,"Kommentar zum Heizspiegel auf Startseite",null,null,null,null,null,null,"5. Warmwasserpauschalen",null,null,"bis 31.12.2021",null,null,null,null,null,"bis 31.12.2021",null,null,null,null,null,"6. Mietwohnungsgröße",null,null,null,null,null,null,null,"7. Mietobergrenzen",null,"§12 Abs. 1 WoGG",null,null,null,null,null,null,null,null,null,null,null,null,null,null,null,null,null,null,null,null,null,null,null,null,null,null,null,null,null,null,null,null,null,null,null,null,null,null,null,null,"Mietgrenze",null,"8a. Heizkostenenlastung    § 12 (6)",null,null," gültig  ab 1.1.2023",null,null,null,"8b. Heizkostenkomponente    § 12 (6)",null,null," gültig bis 31.12.2010 und ab 1.1.2021",null,null,null,"8c. Heizkosten-Klimakomponente    § 12 (7)",null,null,null,null," gültig ab 1.1.2023",null,"9. Heizkostengrenzwerte nach kWh",null,null,null,null,null,null,null,null,null,null,null,null,null,null,null,null,null,null,null,null,null,null,null,null,null,null,null,null,null,null,null,null,null,null,null,null,null,null,null,null,null,null,null,null,"10. Zuschläge",null,null,null,null,"11. WoGG"]
[null,null,null,null,"AV-Wohnen",null,null,null,"Netto-Kaltmiete je m²",null,null,null,null,"nach",null,"Bk / m²","BBU-Wert",null," + Zuschlag auf Betriebskosten",null,null,null,null,null,null,null,"Heizspiegel",null,"Heizöl-Heizkosten für Produktmethode in m²",null,null,null,"Erdgas-Heizkosten für Produktmethode in m²",null,null,null,"Fernwärme-Heizkosten für Produktmethode in m²",null,null,null,"Wärmepumpe-Heizkosten für Produktmethode in m²",null,null,null,null,"Nachtspeicher-Heizkosten für Produktmethode",null,null,null,null,"alle Räume Nachtspeicherheizung",null,null,"Heizkostenspiegel",null,"Warmwasser","Warmwasser",null,null,null,null,null,null,null,null,"Pauschaler Abzug bei dezentraler Warmwasserversorgung",null,null,null,null,null,null,"Pauschaler Abzug bei dezentraler Warmwasserversorgung Wärmepumpe",null,null,null,null,null,null,null,null,null,"2 Personen",null,null,null,null,null,"1 Person im Haushalt",null,null,null,null,null,null,"2 Personen im Haushalt",null,null,null,null,null,null,"3 Personen im Haushalt",null,null,null,null,null,null,"4 Personen im Haushalt",null,null,null,null,null,null,"5 Personen im Haushalt",null,null,null,null,null,null,"je weitere Person im Haushalt",null,null,null,null,null,null,null,"Zuschlag",null,"1 Pers.","2 Pers.","3 Pers.","4 Pers.","5 Pers.","je weitere P.",null,"1 Pers.","2 Pers.","3 Pers.","4 Pers.","5 Pers.","je weitere P.",null,"1 Pers.","2 Pers.","3 Pers.","4 Pers.","5 Pers.","je weitere P.",null,"a) fossile Brennstoffe",null,null,null,"Anlage 2 AV-Wohnen ",null,null,"Abschlag für dezentrale Warmwasserversorgung in kWh pro Jahr",null,null,null,null,null,"Erdgas, Heizöl, Fernwärme",null,"b) Wärmepumpe",null,null,null,"Anlage 2 AV-Wohnen ",null,null,"Abschlag für dezentrale Warmwasserversorgung in kWh pro Jahr",null,null,null,null,null,"Erdgas, Heizöl, Fernwärme",null,"c) Nachtspeicherheizung",null,"Verbrauch pro Jahr",null,null,null,null,"Kosten pro kWh",null,null,null,null,null,null,null,"Sozialer WB","wohnungslos","Härtefall","Umzugs-",null,"Mietniveau-"]
[null,null,null,{"$f":"G7","v":"gültig ab"},"vom","geändert","gültig ab",null,"bis < 40 m²","40 bis < 60 m²","60 m²","> 60 bis 90 m²","> 90 m²","Mietspiegel",null,null,null,null,"1 Person BG","2 Personen BG","2 P. alleinerz. BG","3 Personen BG","4 Personen BG","5 Personen BG","je weitere Pers.",null,"Jahr","Geb.-fläche:","100 - 250","251 - 500","501 - 1000","> 1000","100 - 250","251 - 500","501 - 1000","> 1000","100 - 250","251 - 500","501 - 1000","> 1000","100 - 250","251 - 500","501 - 1000","> 1000",null,"1 Person BG","2 Personen BG","2 P. alleinerz. BG","3 Personen BG","4 Personen BG","5 Personen BG","je weitere Pers.",null,"Jahr","Werte aus","€/m²/Jahr","€/m²/Jahr",null,null,null,null,null,null,null,null,"1. Person","2 Personen","alleinerz.,1 Kd.","3 Personen","4 Personen","5 Personen","je weitere P.","1. Person","2 Personen","alleinerz.,1 Kd.","3 Personen","4 Personen","5 Personen","je weitere P.",null,"1. Person","2 Personen","alleinerz., 1 Kd.","3 Personen","4 Personen","5 Personen","je weitere P.",null,"Mietstufe 1","Mietstufe 2","Mietstufe 3","Mietstufe 4","Mietstufe 5","Mietstufe 6","Mietstufe 7","Mietstufe 1","Mietstufe 2","Mietstufe 3","Mietstufe 4","Mietstufe 5","Mietstufe 6","Mietstufe 7","Mietstufe 1","Mietstufe 2","Mietstufe 3","Mietstufe 4","Mietstufe 5","Mietstufe 6","Mietstufe 7","Mietstufe 1","Mietstufe 2","Mietstufe 3","Mietstufe 4","Mietstufe 5","Mietstufe 6","Mietstufe 7","Mietstufe 1","Mietstufe 2","Mietstufe 3","Mietstufe 4","Mietstufe 5","Mietstufe 6","Mietstufe 7","Mietstufe 1","Mietstufe 2","Mietstufe 3","Mietstufe 4","Mietstufe 5","Mietstufe 6","Mietstufe 7",null,"in %",null,null,null,null,null,null,null,null,null,null,null,null,null,null,null,null,null,null,null,null,null,null,"max. Grenzwert","1. Person","2 Personen","3 Personen","4 Personen","5 Personen","je weitere P.","max. Grenzwert","1. Person","2 Personen","3 Personen","4 Personen","5 Personen","je weitere P.",null,"max. Grenzwert","1. Person","2 Personen","3 Personen","4 Personen","5 Personen","je weitere P.","max. Grenzwert","1. Person","2 Personen","3 Personen","4 Personen","5 Personen","je weitere P.",null,"max. Grenzwert","1. Person","2 Personen","3 Personen","4 Personen","5 Personen","je weitere P.","max. Grenzwert","1. Person","2 Personen","3 Personen","4 Personen","5 Personen","je weitere P.",null,null,"Bestandsschutz",null,"vermeidung",null,"stufe Berlin"]
[null,1,{"$f":"IF(B$3=B8,\"Standard\",\"\")","v":""},{"$f":"G8","v":"2015-12-01"},"2015-11-24",null,"2015-12-01",null,null,5.71,null,5.33,5.43,2015,null,1.58,1.67,null,null,null,null,null,null,null,null,null,2015,null,19.7,19,18.399999999999999,18,18.899999999999999,17.899999999999999,17.100000000000001,16.600000000000001,22.3,21.4,20.7,20.100000000000001,null,null,null,null,null,null,null,null,null,null,null,null,null,2015,2014,1.9,null,null,null,null,null,null,null,null,null,8,11,null,13,15,17,2,null,null,null,null,null,null,null,null,50,60,null,75,85,97,12]
[null,2,"",{"$f":"IF(G9>G8,G9,\"\")","v":"2017-01-01"},"2015-11-24","2016-12-06","2017-01-01",null,null,5.71,null,5.33,5.43,2015,null,1.58,1.67,null,null,null,null,null,null,null,null,null,2016,null,16.3,15.6,15,14.6,19.2,18.2,17.3,16.8,23,21.8,20.8,20.100000000000001,null,null,null,null,null,null,null,null,null,null,null,null,null,2016,2015,1.75,null,null,null,null,null,null,null,null,null,7,9,null,11,12,14,2,null,null,null,null,null,null,null,null,50,60,null,75,85,97,12]
[null,3,"",{"$f":"IF(G10>G9,G10,\"\")","v":"2018-01-01"},"2017-12-27","2017-12-06","2018-01-01",null,null,6.46,6.25,5.94,6.18,2017,null,1.62,null,null,null,null,null,null,null,null,null,null,2017,null,16.3,13.7,13.2,12.9,18.8,17.7,16.8,16.2,22.5,21.2,20.2,19.399999999999999,null,null,null,null,null,null,null,null,null,null,null,null,null,2017,2016,1.45,null,null,null,null,null,null,null,null,null,6,7,8,10,11,12,1,null,null,null,null,null,null,null,null,50,60,65,80,90,102,12]
[null,4,"",{"$f":"IF(G11>G10,G11,\"\")","v":"2019-01-01"},"2017-12-27","2018-12-07","2019-01-01",null,null,6.77,6.59,6.18,6.66,2019,null,1.66,{"$f":"Q10","v":0},null,null,null,null,null,null,null,null,null,2018,null,16.2,15.5,14.9,14.5,17.899999999999999,16.8,15.9,15.3,22,20.8,19.7,19,null,null,null,null,null,null,null,null,null,null,null,null,null,2018,2017,1.5,null,null,null,null,null,null,null,null,null,{"$f":"BN10","v":6},8,{"$f":"BP10","v":8},{"$f":"BQ10","v":10},11,13,2,null,null,null,null,null,null,null,null,{"$f":"CC10","v":50},60,65,80,90,102,{"$f":"CI10","v":12},null,null,null,null,null,null,null,null,null,null,null,null,null,null,null,null,null,null,null,null,null,null,null,null,null,null,null,null,null,null,null,null,null,null,null,null,null,null,null,null,null,null,null,null,null,null,null,null,null,null,null,null,null,null,null,null,null,null,null,null,null,null,null,null,null,null,null,null,null,null,null,null,null,null,null,null,null,null,null,null,null,null,null,null,null,null,null,null,null,null,null,null,null,null,null,null,null,null,null,null,null,null,null,null,null,null,null,null,null,null,null,null,10,20,10,10,null,4]
[null,5,"","2019-12-01","2019-09-27","2019-11-29","2019-12-01",null,null,6.77,6.59,6.18,6.66,2019,null,1.66,0,null,31,38,41,50,56,64,8,null,2019,null,18.2,17.399999999999999,16.8,16.3,16.399999999999999,15.1,14,13.3,21.3,20.100000000000001,19.100000000000001,18.399999999999999,21.1,20.2,19.399999999999999,18.899999999999999,null,105,120,130,160,180,204,24,null,2019,2018,1.55,2.0499999999999998,null,null,null,null,null,null,null,null,6,8,8,10,12,{"$f":"BS11","v":13},{"$f":"BT11","v":2},9,10,11,14,15,17,2,null,{"$f":"CC11","v":50},{"$f":"CD11","v":60},{"$f":"CE11","v":65},{"$f":"CF11","v":80},{"$f":"CG11","v":90},{"$f":"CH11","v":102},12,null,null,null,null,null,null,null,null,null,null,null,null,null,null,null,null,null,null,null,null,null,null,null,null,null,null,null,null,null,null,null,null,null,null,null,null,null,null,null,null,null,null,null,null,null,null,null,null,null,null,null,null,null,null,null,null,null,null,null,null,null,null,null,null,null,null,null,null,null,null,null,null,null,null,null,null,null,null,null,null,null,null,null,null,null,null,null,null,null,null,null,null,null,null,null,null,null,null,null,null,null,null,null,null,null,null,null,null,null,null,null,null,{"$f":"GR11","v":10},{"$f":"GS11","v":20},10,10,null,{"$f":"GW11","v":4}]
[null,6,"","2021-03-01","2019-09-27","2019-11-29","2021-03-01",null,null,6.77,6.59,6.18,6.66,2019,null,1.66,0,null,31,38,41,50,56,64,8,null,2020,null,18.100000000000001,17.600000000000001,17.100000000000001,16.7,17,15.8,14.7,14,22.6,21,19.7,18.8,22.5,21.6,20.8,20.3,null,{"$f":"AT12","v":105},{"$f":"AU12","v":120},{"$f":"AV12","v":130},{"$f":"AW12","v":160},{"$f":"AX12","v":180},{"$f":"AY12","v":204},{"$f":"AZ12","v":24},null,2020,2019,1.6,2.1,null,"Der Heizspiegel 2020 wurde erst ab 01.03.2021 in die AV-Wohnen übernommen.",null,null,null,null,null,null,7,8,9,11,{"$f":"BR12","v":12},14,2,{"$f":"BU12","v":9},11,{"$f":"BW12","v":11},14,16,18,{"$f":"CA12","v":2},null,50,60,65,80,90,102,12,null,null,null,null,null,null,null,null,null,null,null,null,null,null,null,null,null,null,null,null,null,null,null,null,null,null,null,null,null,null,null,null,null,null,null,null,null,null,null,null,null,null,null,null,null,null,null,null,null,null,null,null,null,null,null,null,null,null,null,null,null,null,null,null,null,null,null,null,null,null,null,null,null,null,null,null,null,null,null,null,null,null,null,null,null,null,null,null,null,null,null,null,null,null,null,null,null,null,null,null,null,null,null,null,null,null,null,null,null,null,null,null,10,20,10,10,null,4]
[null,7,"","2021-07-01","2019-09-27","2021-06-09","2021-07-01",null,null,6.84,6.66,6.25,6.73,2021,null,1.68,0,null,25,30,32.5,40,45,51,6,null,2020,null,18.100000000000001,17.600000000000001,17.100000000000001,16.7,17,15.8,14.7,14,22.6,21,19.7,18.8,22.5,21.6,20.8,20.3,null,105,120,130,160,180,204,24,null,2020,2019,{"$f":"BD13","v":1.6},{"$f":"BE13","v":2.1},null,null,null,null,null,null,null,null,{"$f":"BN13","v":7},8,{"$f":"BP13","v":9},{"$f":"BQ13","v":11},12,{"$f":"BS13","v":14},2,{"$f":"BU13","v":9},{"$f":"BV13","v":11},11,14,{"$f":"BY13","v":16},18,2,null,50,60,65,80,90,102,12,null,null,null,null,null,null,null,null,null,null,null,null,null,null,null,null,null,null,null,null,null,null,null,null,null,null,null,null,null,null,null,null,null,null,null,null,null,null,null,null,null,null,null,null,null,null,null,null,null,null,null,null,"ab 1.1.2021",14.4,18.600000000000001,22.2,25.8,29.4,3.6,null,null,null,null,null,null,null,null,null,null,null,null,null,null,null,null,null,null,null,null,null,null,null,null,null,null,null,null,null,null,null,null,null,null,null,null,null,null,null,null,null,null,null,null,null,null,null,null,null,null,null,null,null,10,20,10,10,null,4]
[null,8,"","2022-01-01","2021-12-14","2021-12-14","2022-01-01",null,null,6.84,6.25,6.25,6.73,2021,null,1.68,0,null,{"$f":"S14","v":25},32.5,{"$f":"U14","v":32.5},{"$f":"V14","v":40},{"$f":"W14","v":45},{"$f":"X14","v":51},{"$f":"Y14","v":6},null,2021,null,{"$f":"AC14","v":18.100000000000001},{"$f":"AD14","v":17.600000000000001},{"$f":"AE14","v":17.100000000000001},{"$f":"AF14","v":16.7},{"$f":"AG14","v":17},{"$f":"AH14","v":15.8},{"$f":"AI14","v":14.7},{"$f":"AJ14","v":14},{"$f":"AK14","v":22.6},{"$f":"AL14","v":21},{"$f":"AM14","v":19.7},{"$f":"AN14","v":18.8},{"$f":"AO14","v":22.5},{"$f":"AP14","v":21.6},{"$f":"AQ14","v":20.8},{"$f":"AR14","v":20.3},null,105,130,{"$f":"AU15","v":130},160,180,204,24,null,2021,2019,1.6,2.1,null,"Bestandsschutz: Anwendung Heizspiegel 2020",null,null,null,null,null,null,7,9,{"$f":"BO15","v":9},11,12,14,2,9,11,{"$f":"BV15","v":11},{"$f":"BX14","v":14},{"$f":"BY14","v":16},{"$f":"BZ14","v":18},{"$f":"CA14","v":2},null,50,65,{"$f":"CE14","v":65},{"$f":"CF14","v":80},{"$f":"CG14","v":90},{"$f":"CH14","v":102},12,null,347,392,438,491,540,591,651,420,474,530,595,654,716,788,501,564,631,708,778,853,937,584,659,736,825,909,995,1095,667,752,841,944,1038,1137,1251,79,90,102,114,124,143,157,null,10,null,null,null,null,null,null,null,null,{"$f":"EK14","v":14.4},18.600000000000001,22.2,25.8,29.4,3.6,null,null,null,null,null,null,null,null,null,null,null,null,null,null,null,null,null,null,null,null,null,null,null,null,null,null,null,null,null,null,null,null,null,null,null,null,null,null,null,null,null,null,null,null,null,null,null,null,null,null,null,null,null,10,20,10,10,null,4]
[null,9,"","2023-01-01","2022-12-13","2022-12-13","2023-01-01",null,null,6.84,6.25,6.25,6.73,2021,null,1.68,0,null,{"$f":"S15","v":25},{"$f":"T15","v":32.5},32.5,40,45,51,6,null,"",null,18.100000000000001,17.600000000000001,17.100000000000001,16.7,17,15.8,14.7,14,22.6,21,19.7,18.8,22.5,21.6,20.8,20.3,null,105,130,{"$f":"AU16","v":130},160,180,204,24,null,null,null,1.6,2.1,null,null,null,null,null,null,null,null,7,9,{"$f":"BO16","v":9},11,12,14,2,9,11,{"$f":"BV16","v":11},14,16,18,2,null,{"$f":"CC15","v":50},{"$f":"CD15","v":65},{"$f":"CE15","v":65},{"$f":"CF15","v":80},{"$f":"CG15","v":90},{"$f":"CH15","v":102},12,null,338,381,426,478,525,575,633,409,461,516,579,636,697,767,487,549,614,689,757,830,912,568,641,716,803,884,968,1065,649,732,818,918,1010,1106,1217,77,88,99,111,121,139,153,null,{"$f":"EB15","v":10},null,14.4,18.600000000000001,22.2,25.8,29.4,3.6,null,96,124,148,172,196,24,null,19.2,24.8,29.6,34.4,39.200000000000003,4.8,null,238,11900,15500,19000,21400,24300,2900,24,1200,1560,1920,2160,2448,288,null,94,4700,6100,7500,8500,9600,1100,9.6,480,624,768,864,979,115,null,120,6000,7800,9600,10800,12240,1440,null,0.33,0.33,0.33,0.33,0.33,0.33,null,10,{"$f":"GS15","v":20},10,15,null,4]
[null,10,"Standard","2023-10-01",{"$f":"E16","v":"2022-12-13"},"2023-09-04","2023-10-01",null,null,7.21,7.21,6.59,7.09,2023,null,1.77,0,null,25,32.5,32.5,40,45,51,6,null,"",null,18.100000000000001,17.600000000000001,17.100000000000001,16.7,17,15.8,14.7,14,22.6,21,19.7,18.8,22.5,21.6,20.8,20.3,null,105,130,130,160,180,204,24,null,null,null,1.6,2.1,null,null,null,null,null,null,null,null,7,9,9,11,12,14,2,9,11,11,14,16,18,2,null,50,65,65,80,90,102,12,null,{"$f":"CK16","v":338},{"$f":"CL16","v":381},{"$f":"CM16","v":426},{"$f":"CN16","v":478},{"$f":"CO16","v":525},{"$f":"CP16","v":575},{"$f":"CQ16","v":633},{"$f":"CR16","v":409},{"$f":"CS16","v":461},{"$f":"CT16","v":516},{"$f":"CU16","v":579},{"$f":"CV16","v":636},{"$f":"CW16","v":697},{"$f":"CX16","v":767},{"$f":"CY16","v":487},{"$f":"CZ16","v":549},{"$f":"DA16","v":614},{"$f":"DB16","v":689},{"$f":"DC16","v":757},{"$f":"DD16","v":830},{"$f":"DE16","v":912},{"$f":"DF16","v":568},{"$f":"DG16","v":641},{"$f":"DH16","v":716},{"$f":"DI16","v":803},{"$f":"DJ16","v":884},{"$f":"DK16","v":968},{"$f":"DL16","v":1065},{"$f":"DM16","v":649},{"$f":"DN16","v":732},{"$f":"DO16","v":818},{"$f":"DP16","v":918},{"$f":"DQ16","v":1010},{"$f":"DR16","v":1106},{"$f":"DS16","v":1217},{"$f":"DT16","v":77},{"$f":"DU16","v":88},{"$f":"DV16","v":99},{"$f":"DW16","v":111},{"$f":"DX16","v":121},{"$f":"DY16","v":139},{"$f":"DZ16","v":153},null,{"$f":"EB16","v":10},null,{"$f":"ED16","v":14.4},18.600000000000001,22.2,25.8,29.4,3.6,null,96,124,148,172,196,24,null,{"$f":"ER16","v":19.2},24.8,29.6,34.4,39.200000000000003,4.8,null,{"$f":"EY16","v":238},11900,15500,19000,21400,24300,2900,24,1200,1560,1920,2160,2448,{"$f":"FL16","v":288},null,94,4700,6100,7500,8500,9600,{"$f":"FT16","v":1100},9.6,480,624,768,864,979,{"$f":"GA16","v":115},null,120,6000,7800,9600,10800,12240,1440,null,{"$f":"GK16","v":0.33},0.33,0.33,0.33,0.33,{"$f":"GP16","v":0.33},null,{"$f":"GR16","v":10},20,10,{"$f":"GU16","v":15},null,4]
[null,11,"",null,{"$f":"E17","v":"2022-12-13"},{"$f":"F17","v":"2023-09-04"},null,null,null,{"$f":"J17","v":7.21},{"$f":"K17","v":7.21},{"$f":"L17","v":6.59},{"$f":"M17","v":7.09},{"$f":"N17","v":2023},null,{"$f":"P17","v":1.77},0,null,25,32.5,32.5,40,45,51,6,null,"",null,18.100000000000001,17.600000000000001,17.100000000000001,16.7,17,15.8,14.7,14,22.6,21,19.7,18.8,22.5,21.6,20.8,20.3,null,105,130,130,160,180,204,24,null,null,null,1.6,2.1,null,null,null,null,null,null,null,null,7,9,9,11,12,14,2,9,11,11,14,16,18,2,null,50,65,65,80,90,102,12,null,338,381,426,478,525,575,633,409,461,516,579,636,697,767,487,549,614,689,757,830,912,568,641,716,803,884,968,1065,649,732,818,918,1010,1106,1217,77,88,99,111,121,139,153,null,10,null,14.4,18.600000000000001,22.2,25.8,29.4,3.6,null,96,124,148,172,196,24,null,19.2,24.8,29.6,34.4,39.200000000000003,4.8,null,238,11900,15500,19000,21400,24300,2900,24,1200,1560,1920,2160,2448,288,null,94,4700,6100,7500,8500,9600,1100,9.6,480,624,768,864,979,115,null,120,6000,7800,9600,10800,12240,1440,null,0.33,0.33,0.33,0.33,0.33,0.33,null,10,20,10,{"$f":"GU17","v":15},null,4]
[null,12,null,null,"2022-12-13","2023-09-04",null,null,null,{"$f":"J18","v":7.21},7.21,6.59,7.09,2023,null,1.77,0,null,25,32.5,32.5,40,45,51,6,null,"",null,18.100000000000001,17.600000000000001,17.100000000000001,16.7,17,15.8,14.7,14,22.6,21,19.7,18.8,22.5,21.6,20.8,20.3,null,105,130,130,160,180,204,24,null,null,null,1.6,2.1,null,null,null,null,null,null,null,null,7,9,9,11,12,14,2,9,11,11,14,16,18,2,null,50,65,65,80,90,102,12,null,338,381,426,478,525,575,633,409,461,516,579,636,697,767,487,549,614,689,757,830,912,568,641,716,803,884,968,1065,649,732,818,918,1010,1106,1217,77,88,99,111,121,139,153,null,10,null,14.4,18.600000000000001,22.2,25.8,29.4,3.6,null,96,124,148,172,196,24,null,19.2,24.8,29.6,34.4,39.200000000000003,4.8,null,238,11900,15500,19000,21400,24300,2900,24,1200,1560,1920,2160,2448,288,null,94,4700,6100,7500,8500,9600,1100,9.6,480,624,768,864,979,115,null,120,6000,7800,9600,10800,12240,1440,null,0.33,0.33,0.33,0.33,0.33,0.33,null,10,20,10,{"$f":"GU18","v":15},null,4]
[null,13,null,null,"2022-12-13","2023-09-04",null,null,null,7.21,7.21,6.59,7.09,2023,null,1.77,0,null,25,32.5,32.5,40,45,51,6,null,"",null,18.100000000000001,17.600000000000001,17.100000000000001,16.7,17,15.8,14.7,14,22.6,21,19.7,18.8,22.5,21.6,20.8,20.3,null,105,130,130,160,180,204,24,null,null,null,1.6,2.1,null,null,null,null,null,null,null,null,7,9,9,11,12,14,2,9,11,11,14,16,18,2,null,50,65,65,80,90,102,12,null,338,381,426,478,525,575,633,409,461,516,579,636,697,767,487,549,614,689,757,830,912,568,641,716,803,884,968,1065,649,732,818,918,1010,1106,1217,77,88,99,111,121,139,153,null,10,null,14.4,18.600000000000001,22.2,25.8,29.4,3.6,null,96,124,148,172,196,24,null,19.2,24.8,29.6,34.4,39.200000000000003,4.8,null,238,11900,15500,19000,21400,24300,2900,24,1200,1560,1920,2160,2448,288,null,94,4700,6100,7500,8500,9600,1100,9.6,480,624,768,864,979,115,null,120,6000,7800,9600,10800,12240,1440,null,0.33,0.33,0.33,0.33,0.33,0.33,null,10,20,10,{"$f":"GU19","v":15},null,4]
[null,14,null,null,"2022-12-13","2023-09-04",null,null,null,7.21,7.21,6.59,7.09,2023,null,1.77,0,null,25,32.5,32.5,40,45,51,6,null,"",null,18.100000000000001,17.600000000000001,17.100000000000001,16.7,17,15.8,14.7,14,22.6,21,19.7,18.8,22.5,21.6,20.8,20.3,null,105,130,130,160,180,204,24,null,null,null,1.6,2.1,null,null,null,null,null,null,null,null,7,9,9,11,12,14,2,9,11,11,14,16,18,2,null,50,65,65,80,90,102,12,null,338,381,426,478,525,575,633,409,461,516,579,636,697,767,487,549,614,689,757,830,912,568,641,716,803,884,968,1065,649,732,818,918,1010,1106,1217,77,88,99,111,121,139,153,null,10,null,14.4,18.600000000000001,22.2,25.8,29.4,3.6,null,96,124,148,172,196,24,null,19.2,24.8,29.6,34.4,39.200000000000003,4.8,null,238,11900,15500,19000,21400,24300,2900,24,1200,1560,1920,2160,2448,288,null,94,4700,6100,7500,8500,9600,1100,9.6,480,624,768,864,979,115,null,120,6000,7800,9600,10800,12240,1440,null,0.33,0.33,0.33,0.33,0.33,0.33,null,10,20,10,{"$f":"GU20","v":15},null,4]
[]
[0,"Standardwerte"]
[1,"Änderungsdatum"]
[2,"Netto-Kaltmiete"]
[3,"Betriebskosten/ Klimabonus"]
[4,"Angemessene Heizkosten"]
[null,"Heizkostenspiegel"]
[null,"Kommentar zum Heizkostenspiegel"]
[5,"Warmwasserpauschale (Abzug)"]
[6,"Wohnungsgrößen"]
[7,"Mietobergrenzen nach WoGG"]
[null,"Zuschlag"]
[]
["8a","Heizkostenentlastung ab 2023"]
["8b","Heizkostenkomponente ab 2021/ 2023"]
["8c","Klimakomponente ab 2023"]
[9,"Heizkostengrenzwerte kWh"]
["a)","fossile Brennstoffe"]
[null,"WW-Abschlag"]
["b)","Wärmepumpe"]
[null,"WW-Abschlag"]
["c)","Nachtspeicherheizung"]
[null,"Kosten pro kWh"]
[10,"Pauschale Zuschläge"]
[11,"Mietniveaustufe Berlin nach WoGG"]

{"sheet":"Grundeinstellungen","index":6,"n_rows":42,"n_cols":33,"rows_kept":42,"cut":false,"hidden":false,"merged":[]}
[]
["Start",null,"Grundeinstellungen für Angemessene Wohnungsmiete ändern"]
[]
[null,null,"info ",null,null,null,null,null,null,null,null,null,null,null,null,null,null,null,null,null,null,null,null,null,null,null,null,null,null,null,{"$f":"IF(Grundwerte!D12>0,1,0)","v":0},"Netzwerkeintrag"]
[]
[null,null,"i ",null,null,null,null,null,null,null,null,null,null,null,null,null,null,null,null,null,null,null,null,null,null,null,null,null,null,null,1,{"$f":"IF(SUM(AE6)=0,1,AE6)","v":1},{"$f":"IF(AE6=1,\"Windows 7/ 8/ 10\",IF(AE6=2,\"Netzwerkpfad\",IF(AE6=3,\"nicht belegt\",IF(AE6=4,\"nicht belegt\"))))","v":"Windows 7/ 8/ 10"}]
[]
[]
[]
[null,null,null,null,null,null,null,null,null,null,null,null,null,null,null,null,null,null,null,null,null,null,null,null,null,null,null,null,null,null,true,{"$f":"IF(AE10=TRUE,1,0)","v":1},{"$f":"IF(AF10=1,\" Rundung nach AV-Wohnen\",\" keine Rundung der Bruttowarmmiete\")","v":" Rundung nach AV-Wohnen"}]
[]
[]
[]
[null,null,"i ",null,null,null,null,null,null,null,null,null,null,null,null,null,null,null,{"$f":"\" AV-Wohnen ab \"&IF(SUM(Werte!G3)=0,\" ?\",TEXT(Werte!G3,\" TT.MM.JJJJ\"))","v":" AV-Wohnen ab  01.10.2023"}]
[]
[]
[]
[]
[]
[null,null,null,"Bildschirmbereich ändern"]
[]
[null,null,"i ","Sie können 'Pfändungsgrenzen' an die Bildschirmauflösung"]
[]
[null,null,null,"Ihres Computers anpassen, um eine optimale Darstellung zu erreichen:"]
[]
[null,null,null,null,"Anzeige anpassen",null,null,null,null,null,null,null,null,null,null,null,null,null,null,{"$f":"IF(AF34=1,\"Neue Einstellungen werden bei 'Beenden' übernommen\",\"\")","v":""}]
[]
[null,null,null,1,null,null,null,null,2,null,null,null,null,3]
[]
[null,null,null,null,null,null,null,null,null,null,null,null,null,null,null,null,null,null,null,null,null,null,null,null,null,null,null,null,null,null,{"$f":"Einstellungen!L3","v":2},"Auflösung"]
[]
[null,null,null,4,null,null,null,null,null,null,null,null,null,null,null,null,null,null,null,null,null,null,null,null,null,null,{"$f":"IF(Checkliste!E4>0,\"(empfohlen)\",\"\")","v":""}]
[]
[null,null,null,null,null,null,null,null,null,null,null,null,null,null,null,null,null,null,null,null,null,null,null,null,null,null,null,null,null,null,null,{"$f":"IF(AE34=TRUE,1,0)","v":0},{"$f":"IF(AF34=1,\" Einstellungen übernehmen erst bei Beenden\",\" Einstellungen sofort übernehmen\")","v":" Einstellungen sofort übernehmen"}]
[]
[]
[]
[]
[]
[]
[]
[null,null,null,{"$f":"\"©  by SoLei-B GbR 2001 - \"&Einstellungen!G2","v":"©  by SoLei-B GbR 2001 - 2024"}]

{"sheet":"Grundwerte","index":7,"n_rows":42,"n_cols":33,"rows_kept":42,"cut":false,"hidden":false,"merged":[[11,3,11,23],[25,8,25,27]]}
[]
["Start",null,"Spezielle Grundeinstellungen"]
[]
[null,null,null,"Spezielle Werte für Grundeinstellungen / Pfadangaben",null,null,null,null,null,null,null,null,null,null,null,null,null,null,null,null,null,null,null,null,null,null,null,{"$f":"IF(D12>0,\"Neue Einstellung übernehmen in 'Grundeinstellungen'\",\"\")","v":""}]
[]
[]
[]
[null,null,null,null,null,null,null,null,null,null,null,null,"Pfadangaben bei üblicher Computerinstallation",null,null,null,null,null,null,null,null,null,null,null,null,null,null,null,null,"Win98",{"$f":"IF(D$12=AF8,1,0)","v":0},"C:\\Windows\\Calc.exe"]
[]
[null,"i ","Pfad zum Windows-Rechner",null,null,null,null,null,null,null,null,null,null,null,null,null,null,null,null,null,null,null,null,null,null,null,null,null,null,"WinNT",{"$f":"IF(D$12=AF10,1,0)","v":0},"C:\\WINNT40\\System32\\Calc.exe"]
[]
[null,null,null,null,null,null,null,null,null,null,null,null,null,null,null,null,null,null,null,null,null,null,null,null,null,null,null,null,null,"Win2000",{"$f":"IF(D$12=AF12,1,0)","v":0},"C:\\WinNT\\system32\\Calc.exe"]
[]
[null,null,null,null,null,null,null,null,null,null,null,null,null,null,null,null,null,null,null,null,null,null,null,null,null,null,null,null,null,"WinXP",{"$f":"IF(D$12=AF14,1,0)","v":0},"C:\\Windows\\system32\\Calc.exe"]
[]
[null,null,null,null,null,null,null,null,null,null,null,null,null,null,null,null,null,null,null,null,null,null,null,"Pfad aus ALG II-Berechnung"]
[]
[]
[]
[null,"i ","Individuelle Speicherpfade"]
[]
[null,null,null,null,null,null,null,null,null,null,null,null,null,null,null,null,null,null,null,null,null,null,null,null,null,null,null,null,null,null,null,{"$f":"IF(AE22=TRUE,1,0)","v":0},"[1 = individuellen Speicherpfad anwenden]"]
[]
[null,null,null,null,null,null,null,null,null,null,null,null,null,null,null,null,null,null,null,null,null,null,null,null,null,null,null,null,null,null,"Einträge prüfen"]
[]
[null,null,"Angemessene Miete",null,null,null,null,null,null,null,null,null,null,null,null,null,null,null,null,null,null,null,null,null,null,null,null,null,null,null,{"$f":"IF(I26=\"\",0,1)","v":0}]
[]
[]
[]
[]
[]
[]
[]
[]
[]
[null,null,null,null,null,null,null,null,null,null,null,null,null,null,null,null,null,null,null,{"$f":"IF(AF40=1,\"Neue Einstellungen werden bei 'Beenden' übernommen\",\"\")","v":""},null,null,null,null,null,null,null,null,null,null,{"$f":"SUM(AE26:AE34)","v":0}]
[]
[]
[]
[null,null,null,null,null,null,null,null,null,null,null,null,null,null,null,null,null,null,null,null,null,null,null,null,null,null,null,null,null,null,null,{"$f":"Grundeinstellungen!AF34","v":0},{"$f":"Grundeinstellungen!AG34","v":" Einstellungen sofort übernehmen"}]
[]
[null,null,null,null,null,null,null,null,null,null,null,null,null,null,null,null,null,null,null,null,null,null,null,null,null,null,{"$f":"IF(Checkliste!E4>0,\"(empfohlen)\",\"\")","v":""}]

{"sheet":"EF1","index":8,"n_rows":69,"n_cols":35,"rows_kept":69,"cut":false,"hidden":false,"merged":[[43,10,43,12],[25,1,25,2],[29,1,29,2],[41,6,41,8],[41,10,41,12],[27,1,27,2],[31,1,31,2],[19,1,19,2],[9,1,9,2],[11,1,11,2],[13,1,13,2],[43,6,43,8],[61,10,61,12],[0,3,1,14],[0,19,1,22],[3,1,3,2],[7,1,7,2],[5,1,5,2],[7,21,7,22],[7,10,7,11],[9,21,9,22],[11,21,11,22],[15,10,15,11],[13,10,13,11],[9,10,9,12],[15,1,15,2],[17,1,17,2],[21,1,21,2]]}
[null,null,null,"Kosten der Unterkunft",null,null,null,null,null,null,null,null,null,null,null,null,null,null,null,"Eingabefeld 1"]
["Start"]
[]
[1,"Personen",null,null,"angemessene Miete",null,null,null,null,null,null,null,null,null,null,null,null,null,null,null,null,null,null,null,null,null,null,null,null,null,1,"Aufrufen-Prüffeld"]
[]
[2,"HeizKost",null,null,{"$f":"IF(AE48=1,\"Wohnungsangebot prüfen:\",\"\")","v":""},null,null,null,null,null,null,null,null,null,null,null,null,null,null,null,null,null,null,null,null,null,null,null,null,null,{"$f":"IF(AD6=TRUE,1,0)","v":0},"[1]  Abzug bei dezentraler Warmwasserersorgung anwenden"]
[]
[3,"WirtschV",null,null,null,null,null,null,null,"berücksichtigte Personenzahl:",null,null,null,null,null,null,null,null,null,"angemessene Wohnfläche:",null,{"$f":"IF(ErgebnisDruck!G20>0,ErgebnisDruck!G20,\"\")","v":""},null,{"$f":"IF(SUM(V8)>0,\"m²\",\"\")","v":""},null,null,null,null,null,null,{"$f":"IF(AD8=TRUE,1,0)","v":0},"[1]  + 10% bei Wohnung im Sozialen Wohnungsbau"]
[]
[4,"BSG RS",null,"i ","Bruttokaltmiete",null,null,null,null,"tatsächl.:",null,null,null,{"$f":"IF(AND(K10=0,K8>0,AE48=1),\" < ?\",\"\")","v":""},null,null,null,null,null,"Karenzzeit/ weitere m²:","i ",null,null,"m²",{"$f":"IF(K8>0,\"(z.B. durch Behinderung/ Umgangsrecht)\",\"\")","v":""},null,null,null,null,null,{"$f":"IF(AD10=TRUE,1,0)","v":0},"[1]  + 10% Härtefall"]
[]
[5,"MietS Bln",null,null,null,null,null,{"$f":"IF(AND(AE54=1,SUM(K14,K16)>0),\"Abweichung von AV-Wohnen (€/ m²)\",\"\")","v":""},null,null,null,null,null,null,null,null,null,null,null,"zu berücksichtigende Gesamtwohnfläche:",null,{"$f":"IF(SUM(K8)>0,V8+V10,\"\")","v":""},null,{"$f":"IF(SUM(V12)>0,\"m²\",\"\")","v":""},null,null,null,null,null,null,{"$f":"IF(AD12=TRUE,1,0)","v":0},"[1]  + 10% zur Umzugsvermeidung"]
[]
[6,"WhgBest",null,"i ","Nettokaltmiete",null,null,null,null,{"$f":"IF(SUM(K8)>0,\"/ m²\",\"\")","v":""},null,null,null,{"$f":"IF('Grundberechnung-Hk'!C40>0,FIXED('Grundberechnung-Hk'!C40)&\" € / m²\",\"\")","v":""},null,null,{"$f":"IF(SUM(AB14)>0,\"x\",\"\")","v":""},{"$f":"IF(SUM(AB16)>0,'Grundberechnung-Hk'!E40&\" \"&X$8,\"\")","v":""},null,null,null,null,null,null,null,null,"angemessene Nettokaltmiete: ",{"$f":"'Grundberechnung-Hk'!G40","v":0},null,null,{"$f":"IF(AD14=TRUE,1,0)","v":0},"[1]  + 20% bei Wohnungslosigkeit zur Vermeidung teurer Unterbringung"]
[]
[7,"Konzept",null,"i ","Betriebskosten",null,null,null,null,{"$f":"IF(SUM(K8)>0,\"/ m²\",\"\")","v":""},null,null,null,{"$f":"IF('Grundberechnung-Hk'!C49>0,FIXED('Grundberechnung-Hk'!C49,2)&\" € / m²\",\"\")","v":""},null,null,{"$f":"IF(SUM(AB16)>0,\"x\",\"\")","v":""},{"$f":"IF(SUM(AB16)>0,'Grundberechnung-Hk'!E49&\" \"&X$8,\"\")","v":""},null,null,null,null,null,null,null,null,"angemessene Betriebskosten: ",{"$f":"'Grundberechnung-Hk'!G49","v":0},null,null,{"$f":"IF(AD16=TRUE,1,0)","v":0},"[1]  Überschreitung des Heizkostengrenzwertes zulassen"]
[]
[8,"BetriebsK",null,"i ",null,null,null,null,null,null,null,null,null,"i ",null,null,null,null,null,null,null,null,null,null,null,null,"angem. Bruttokaltmiete: ",{"$f":"IF(SUM(AB14,AB16)>0,'Grundberechnung-Hk'!G53,0)","v":0},{"$f":"IF(AND(SUM(AB24)=0,K$8>0),\"ç\",\"\")","v":""},null,{"$f":"IF(AD18=TRUE,1,0)","v":0},"[1]  alleinerziehend mit 1 Kind",null,null,"entfällt ab 1.1.2022"]
[]
[9,"HeizK",null,null,null,null,null,null,{"$f":"IF(SUM(AE8:AE14)>0,IF(SUM($AE$10:$AE$14)>1,\">>>\",\"> >\"),\"\")","v":""},null,null,null,{"$f":"IF(SUM(AE8:AE14)>0,IF(SUM($AE$10:$AE$14)>1,\"<<<\",\"\"),\"\")","v":""},"i ",null,null,null,null,{"$f":"IF(AND($AE$12=1,$AE$14=1,$AE$50=0),\"? >\",\"    i \")","v":"    i "},null,null,null,null,null,null,null,{"$f":"IF(SUM(AB20)>0,\"Soz WoB: \",\"\")","v":""},{"$f":"IF(AE8=1,'Grundberechnung-Hk'!G57,\"\")","v":""},{"$f":"IF(AND(AE8>0,SUM(AB20)>0),\"Zuschlag\",\"\")","v":""},null,{"$f":"IF(F65=1,\"Heizöl\",IF(F65=2,\"Heizgas\",IF(F65=3,\"Fernwärme\",IF(F65=4,\"Wärmepumpe\",IF(F65=5,\"Nachtstrom\",\"Heizmaterial?\")))))","v":"Heizmaterial?"},"Gebäudefläche"]
[]
[10,"WarmwA",null,"i ",null,null,null,null,null,null,null,{"$f":"IF(AND('EF1-1'!AE44=1,'EF1-1'!AE48=1,'EF1-1'!AE62=0),\"á\",\"\")","v":""},null,"i ",null,null,null,null,{"$f":"IF(AND($AE$12=1,$AE$14=1,$AE$50=0),\"? >\",\"    i \")","v":"    i "},null,null,null,null,null,null,null,null,{"$f":"IF(SUM(AE10:AE14,AE40)>0,SUM('Grundberechnung-Hk'!G61,'Grundberechnung-Hk'!G69,'Grundberechnung-Hk'!G65),\"\")","v":""},{"$f":"IF(AD22>0,IF(AD22=1,\"Zuschlag\",\"Zuschläge\"),\"\")","v":""},{"$f":"SUM(AE10,AE14,AE40)","v":0},{"$f":"IF(F65=1,Einstellungen!D29,IF(F65=2,Einstellungen!D33,IF(F65=3,Einstellungen!D37,IF(F65=4,Einstellungen!D41,IF(F65=6,Einstellungen!D45,0)))))","v":0},"100 m² - 250 m²"]
[]
[null,null,null,{"$f":"IF(AE46=1,\"? >\",\"i \")","v":"i "},null,null,null,null,null,null,{"$f":"IF(AND(AE16=0,SUM(AB28)>SUM(AB30)),\"< ?\",\"\")","v":""},null,null,null,null,null,null,null,null,null,null,null,null,null,null,null,{"$f":"IF(SUM(AB24)>0,\"max. Brutto-Kalt: \",\"\")","v":""},{"$f":"IF(SUM(AB20,AB22)>0,SUM('Grundberechnung-Hk'!G76),\"\")","v":""},{"$f":"IF(SUM(AB24)>0,\"ç\",\"\")","v":""},null,{"$f":"IF(F65=1,Einstellungen!D30,IF(F65=2,Einstellungen!D34,IF(F65=3,Einstellungen!D38,IF(F65=4,Einstellungen!D42,IF(F65=6,Einstellungen!D46,0)))))","v":0},"251 m² - 500 m²"]
[]
[11,"Ergebnis",null,null,{"$f":"IF(AND(AE12=1,AE14=1,AE50=0),\"Zum Bestandsschutz siehe >> Info Zuschläge <<\",\"\")","v":""},null,null,null,null,null,null,null,null,null,null,null,null,null,null,null,null,null,null,null,null,null,{"$f":"IF(SUM(AB26)>0,\"angemessene Heizkosten: \",\"\")","v":""},{"$f":"IF('Grundberechnung-Hk'!C142>0,'Grundberechnung-Hk'!C142,\"\")","v":""},{"$f":"IF(AND(AE16=0,SUM(AB28)>SUM(AD34)),\"Begrenzung auf Heizk.-grenzwert\"&IF(AE6=1,\" - WW Pau.\",\"\")&\" \",\"\")","v":""},null,{"$f":"IF(F65=1,Einstellungen!D31,IF(F65=2,Einstellungen!D35,IF(F65=3,Einstellungen!D39,IF(F65=4,Einstellungen!D43,IF(F65=6,Einstellungen!D47,0)))))","v":0},"501 m² - 1000 m²",null,"Infotext zur Gebäudefläche"]
[]
["D","Druck aM",null,null,null,null,null,null,null,null,null,null,null,null,null,null,{"$f":"IF(AND(AE6=1,F65=5),\"Kein Abzug der WW-Pauschale bei Nachtspeicherheizung\",\"\")","v":""},{"$f":"IF(AND(K8>0,K62>0,AE16=0),IF(K42>=K44,\"\",\"? >\"),\"i \")","v":"i "},null,null,null,null,null,null,null,null,{"$f":"IF(SUM(AB28)>0,\"tats. Heizkosten: \",\"\")","v":""},{"$f":"IF('Grundberechnung-Hk'!D147>0,'Grundberechnung-Hk'!C144,\"\")","v":""},{"$f":"IF(OR(SUM(AB28<=AB30),AB30<AB34),\"ç\",\"\")","v":""},null,{"$f":"IF(F65=1,Einstellungen!D32,IF(F65=2,Einstellungen!D36,IF(F65=3,Einstellungen!D40,IF(F65=4,Einstellungen!D44,IF(F65=6,Einstellungen!D48,0)))))","v":0},"über 1000 m²",null,{"$f":"AF20&\": \"&IF(F67=1,AF22,IF(F67=2,AF24,IF(F67=3,AF26,IF(F67=4,AF28,\"?\"))))","v":"Gebäudefläche: ?"}]
[]
["D","Wi-Vergl",null,null,null,null,null,null,null,null,null,null,null,null,null,null,null,null,null,null,null,null,null,null,null,null,{"$f":"IF(AND(AD32=1,AE16=1),\"individuell anerkannter max. Heiz-Grenzwert: \",\"max. Heiz-Grenzwert: \")","v":"max. Heiz-Grenzwert: "},{"$f":"IF('Grundberechnung-Hk'!C146>0,'Grundberechnung-Hk'!G149,0)","v":0},{"$f":"IF(AND(SUM(AB28)>SUM(AB30),AB34<=AB30),\"ç\",\"\")","v":""},null,{"$f":"IF(F67=1,AE22,IF(F67=2,AE24,IF(F67=3,AE26,IF(F67=4,AE28,IF(AND(F67=0,F65=4),AE28,0)))))","v":0},"Gebäudeflächen_Auswahl"]
[]
["T","Tabelle",null,{"$f":"IF(AG62=1,\"? >\",\"i \")","v":"i "},"Sonderregelung",null,null,null,null,null,null,null,null,null,null,null,null,null,null,null,null,null,null,null,null,null,null,null,null,{"$f":"IF(SUM(AB30)>SUM(AB26),1,0)","v":0},"[1] Grenzwertüberschreitung",null,null,"Texte für Druckblatt"]
[]
[null,null,null,{"$f":"IF(AND(AE60=1,AE58=0),\"? >\",\"\")","v":""},null,null,null,null,null,null,null,null,null,null,null,null,null,null,null,null,null,null,null,null,null,null,{"$f":"IF(AB34>0,\"anerkannte max. \",\"\")&\"angemessene \"&IF(K62>0,\"tatsächl. \",\"\")&\"Heizkosten: \"","v":"angemessene Heizkosten: "},{"$f":"'Grundberechnung-Hk'!G149","v":0},{"$f":"IF(AND(SUM(AB30)>0,K$8>0),\"ç\",\"\")","v":""},null,null,null,null,"Heizart"]
[]
[null,null,null,{"$f":"IF(AND(AE60=0,AE58=1),\"? >\",\"\")","v":""},null,null,null,null,null,null,null,null,null,null,null,null,null,null,null,null,null,null,null,null,null,null,{"$f":"\"angem. Gesamtmiete\"&IF(AE6=1,\" (incl. Abzug WW-Pauschale)\",\"\")&\": \"","v":"angem. Gesamtmiete: "},{"$f":"IF(AND(K8>0,SUM(AB30)>0),'Grundberechnung-Hk'!G162,0)","v":0},null,"angem. Heizkostengrenze",null,null,null,"Heizöl"]
[]
[null,null,null,null,{"$f":"IF(AND(K8>0,F65=0),\"Heizenergieträger auf EF2 auswählen!\",\"\")","v":""},null,null,null,null,null,null,null,null,null,{"$f":"IF(AND(AE12=1,SUM(AB40)>AB38),\"siehe Tabelle! \",\"\")","v":""},null,null,null,null,null,null,null,null,null,null,null,{"$f":"IF(SUM(AB38)>0,\"Prüfgrenze für Kostensenkungsverfahren:\",\"\")","v":""},{"$f":"IF(AE12=1,ROUND('Grundberechnung-Hk'!G176,0),\"\")","v":""},{"$f":"IF(SUM(AB38)>0,\"gerundet\",\"\")","v":""},null,null,null,null,"Erdgas"]
[]
[null,null,null,null,null,null,null,{"$f":"IF(SUM(G42,G44,AE48)>0,\"Bruttokaltmiete\"&IF(AND(K10=0,K8>0,AE48=1),\" ?\",\"\"),\"\")","v":""},null,null,null,{"$f":"IF(SUM(K42,K44,AE48)>0,\"Heizkosten\"&IF(AND(K62=0,K8>0,AE48=1),\" ?\",\"\"),\"\")","v":""},null,null,null,null,null,{"$f":"IF(AND(AE12=1,SUM(AB40)>AB38),\"Die Miete ist zu senken!\",\"\")","v":""},null,null,null,null,null,null,null,null,{"$f":"IF(SUM(AB40)>0,\"tatsächliche Gesamtmiete:\",\"\")","v":""},{"$f":"IF(AND(K10>0,SUM(AE12,AE48)>0,SUM(AB38)>0),SUM(Grundberechnung!C109,Grundberechnung!C140),\"\")","v":""},null,null,{"$f":"IF(AD40=TRUE,1,0)","v":0},"[1]  Klimabonus",null,"Fernwärme"]
[]
[null,null,null,null,null,{"$f":"IF(SUM(G42,K42)>0,\"angemessen: \",\"\")","v":""},{"$f":"IF(AND(K10>0,SUM(AB18)>0),IF(SUM(AB24)>0,AB24,AB18),\"\")","v":""},null,null,{"$f":"IF(SUM(G42,K42)>0,\"●\",\"\")","v":""},{"$f":"IF(AND(K62>0,'Grundberechnung-Hk'!C142>0),'Grundberechnung-Hk'!C142,\"\")","v":""},null,null,null,null,null,null,null,null,null,null,null,null,null,null,null,null,null,null,null,null,null,null,"Wärmepumpe"]
[]
[null,null,null,null,null,{"$f":"IF(SUM(G44,K44)>0,\"tatsächlich: \",\"\")","v":""},{"$f":"IF(SUM(K10)>0,K10,\"\")","v":""},null,null,null,{"$f":"IF(SUM(K62)>0,K62,\"\")","v":""},null,null,null,null,null,null,null,null,null,null,null,null,null,null,null,null,null,null,null,null,null,null,"Nachtstrom"]
[]
[null,null,null,null,null,null,null,{"$f":"IF(AND(SUM(G42)>0,SUM(G44)>0),IF(AND(K8>0,K10>0),IF(G42>=G44,\"passt\",\"zu teuer\"),\"\"),\"\")","v":""},null,null,null,{"$f":"IF(AND(SUM(K42)>0,SUM(K44)>0),IF(AND(K8>0,K62>0),IF(K42>=K44,\"passt\",\"zu teuer\"),\"\"),\"\")","v":""},null,null,null,null,null,null,null,null,null,null,null,null,null,null,null,{"$f":"IF(AND(AE12=1,AE14=1,AE50=0),\"Bestandsschutz +20% ?\",\"\")","v":""},null,null,{"$f":"IF(AND(AE12=1,AE14=1,AE50=0),1,0)","v":0},"[1] Warnhinweis Bestand",null,"andere Heizart"]
[]
[null,null,null,null,null,null,null,null,null,null,null,null,{"$f":"IF(AND(SUM(AB26)<SUM(AB28),AE16=1),\"Hk-Überschreitung ist zugelassen!\",\"\")","v":""},null,null,null,{"$f":"IF(AND(AE12=1,SUM(AB40)>AB38),\"à\",\"\")","v":""},null,null,null,null,null,null,null,null,null,null,null,null,null,{"$f":"IF(AD48=TRUE,1,0)","v":0},"[1] Woh.-Angebotsprüfung",null,{"$f":"AH34&\": \"&IF(F65=1,AH36,IF(F65=2,AH38,IF(F65=3,AH40,IF(F65=4,AH42,IF(F65=5,AH44,IF(F65=6,AH46,\"?\"))))))","v":"Heizart: ?"}]
[]
[null,null,null,null,null,null,null,null,null,null,null,null,{"$f":"IF(AND(K8>0,K62>0,AE16=0),IF(K42>=K44,\"\",\"Heizkosten-Überschreitung ggf. zulassen (s.o.)\"),\"\")","v":""},null,null,null,null,null,null,null,null,null,null,null,null,null,{"$f":"IF(AE12=1,\"Umzugsvermeidungszuschlag:\",\"\")","v":""},{"$f":"IF(AE12=1,'Grundberechnung-Hk'!G158,\"\")","v":""},{"$f":"IF(AND(SUM(AB50)>0,K$8>0),\"ç\",\"\")","v":""},null,{"$f":"IF(AD50=TRUE,1,0)","v":0},"[1] Bestandsschutz für 20% wegen Wohnungslosigkeit"]
[]
[null,null,null,null,null,null,null,null,null,null,null,null,null,null,null,null,null,null,null,null,null,null,null,null,null,null,null,null,null,null,{"$f":"IF(AD52=TRUE,1,0)","v":0},"[1] mit Wirtschaftlichkeitsbetrachtung bei Wohnungswechsel"]
[]
[null,null,null,null,null,null,null,null,null,null,null,null,null,null,null,null,null,null,null,null,null,null,null,null,null,null,null,null,null,null,{"$f":"IF(AD54=TRUE,1,0)","v":0},"[1]  Änderung der m²-Preise für Kaltmiete zulassen"]
[]
[null,null,null,null,null,null,null,null,null,null,null,null,null,null,null,null,null,null,null,null,null,null,null,null,null,null,null,null,null,null,{"$f":"IF(AD56=TRUE,1,0)","v":0},"[1]  Änderung der m²-Preise für Heizkosten zulassen"]
[]
[null,null,null,null,null,null,null,null,null,null,null,null,null,null,null,null,null,null,null,null,null,null,null,null,null,null,null,null,null,null,{"$f":"IF(AD58=TRUE,1,0)","v":0},"[1] Sonderregelung nach WoGG"]
[]
[null,null,null,null,null,null,null,null,null,null,null,null,null,null,null,null,null,null,null,null,null,null,null,null,null,null,null,null,null,null,{"$f":"IF(AD60=TRUE,1,0)","v":0},"[1] 10% Zuschlag zur Mietgrenze nach WoGG"]
[]
[null,null,null,null,"tatsächliche Heizkosten",null,null,null,null,null,{"$f":"'EF2'!T30","v":0}]
[]
[]
[null,null,null,null,null,null,"Heizmaterial-Auswahl"]
[]
[null,null,null,null,null,null,"Gebäudeflächen-Auswahl"]
[]
[null,null,null,null,null,{"$f":"SUM(IF(F65>0,1,0),IF(F67>0,1,0))","v":0},{"$f":"IF(F69=1,\"Heizkostenaspekt berücksichtigt\",\"Heizkostenaspekte berücksichtigt\")","v":"Heizkostenaspekte berücksichtigt"}]

{"sheet":"EF1-1","index":9,"n_rows":72,"n_cols":32,"rows_kept":72,"cut":false,"hidden":false,"merged":[]}
[]
["Start",null,null,"Zuschläge zur angemessenen Miete"]
[]
[null,null,null,"Zuschläge auf die Bruttokaltmiete zur Anhebung der Angemessenheitsgrenze"]
[]
[null,null,null,null,null,null,null,null,null,null,null,null,null,null,null,null,null,null,null,null,null,null,null,null,null,{"$f":"'EF1'!$AA$18","v":"angem. Bruttokaltmiete: "},null,{"$f":"'EF1'!$AB$18","v":0},null,null,{"$f":"'EF1'!AE52","v":0},{"$f":"'EF1'!AF52","v":"[1] mit Wirtschaftlichkeitsbetrachtung bei Wohnungswechsel"}]
[]
[null,null,null,"Sozialer Wohnungsbau / 3.2 (3)"]
[]
[null,null,null,null,null,null,"für Wohnungen, die im Sozialen Wohnungsbau errichtet wurden (1. Förderweg)",null,null,null,null,null,null,null,null,null,null,null,null,null,null,null,null,null,null,null,null,{"$f":"SUM('EF1'!AB20)","v":0},null,null,{"$f":"'EF1'!$AE$8","v":0},{"$f":"'EF1'!$AF$8","v":"[1]  + 10% bei Wohnung im Sozialen Wohnungsbau"}]
[]
[null,null,null,"weiterer Zuschlag in Härtefällen / 3.5.1 / bei",null,null,null,null,null,null,null,null,null,null,null,null,null,null,null,null,null,null,null,null,null,null,null,{"$f":"Grundberechnung!C58","v":0}]
[]
[null,null,null,null,null,null,"a) Alleinerziehenden,",null,null,null,null,null,null,null,null,null,null,null,null,null,null,null,null,null,null,null,null,{"$f":"Grundberechnung!G69","v":0},null,null,{"$f":"'EF1'!$AE$10","v":0},{"$f":"'EF1'!$AF$10","v":"[1]  + 10% Härtefall"}]
[]
[null,null,null,null,null,null,"b) Längerer Wohndauer (mindestens 10 Jahre),",null,null,null,null,null,null,null,null,null,null,null,null,null,null,null,null,null,null,null,null,null,null,null,{"$f":"IF(SUM(AE44,AE48)>0,1,0)","v":0},"[1] Zuschlag bei Neuvermietung ausgewählt"]
[]
[null,null,null,null,null,null,"c) wesentlichen sozialen Bezügen (z.B. Schulweg von  Kindern,",null,null,null,null,null,null,null,null,null,null,null,null,null,null,null,null,null,null,null,null,null,null,null,null,"für Prüfung der Zuschlagsbegrenzung"]
[]
[null,null,null,null,null,null,"    Betreuungseinrichtungen, Kindertagesstätten,"]
[]
[null,null,null,null,null,null,"    Schulen mit eigenständigem Profil und besonderer inhaltlicher Ausrichtung des Unterrichts,"]
[]
[null,null,null,null,null,null,"    Pflege insbesondere naher Angehöriger),"]
[]
[null,null,null,null,null,null,"d) über 60-jährigen leistungsberechtigten Personen,"]
[]
[null,null,null,null,null,null,"e) Schwangeren,"]
[]
[null,null,null,null,null,null,"f) Personen, die in absehbarer Zeit kostendeckende Einkünfte haben."]
[]
[null,null,null,null,null,null,"g) eigener Pflegebedürftigkeit, Erkrankung oder Behinderung"]
[]
[null,null,null,null,null,null,"h) Modernisierungszuschlägen"]
[]
[null,null,null,null,null,null,"i) Personen, die eine eigene Wohnung benötigen, um eine Unterbringung im Rahmen der "]
[]
[null,null,null,null,null,null,"   Kinder- und Jugendhilfe zu beenden od. wenn d. Anmietung im Rahmen einer Entscheidung  "]
[]
[null,null,{"$f":"IF(SUM(AE$44,AE$48)>1,IF(AE62=0,\"nicht zugleich\",\"\"),\"\")","v":""},null,null,null,"   über eine Hilfe zur Erziehung eine bedarfsgerechte, weniger intensive Hilfe ermöglicht."]
[]
[null,null,{"$f":"IF(SUM(AE$44,AE$48)>1,IF(AE62=0,\"anwendbar mit 20%\",\"\"),\"\")","v":""},null,null,null,"Auch in besonders begründeten Einzelfällen sind Richtwertüberschreitungen von bis zu 10% möglich."]
[]
[null,null,{"$f":"IF(SUM(AE$44,AE$48)>1,IF(AE62=0,\"? >\",\"\"),\"\")","v":""},null,null,null,"- Sicherheitszuschlag zur Umzugsvermeidung  / 6.1.1",null,null,null,null,null,null,null,null,null,null,null,null,null,null,null,null,null,null,null,null,{"$f":"Grundberechnung!C80","v":0},null,null,{"$f":"'EF1'!$AE$12","v":0},{"$f":"'EF1'!$AF$12","v":"[1]  + 10% zur Umzugsvermeidung"}]
[]
[null,null,null,"Zuschlag zur Neuanmietung bei Wohnungslosigkeit / 3.4"]
[]
[null,null,{"$f":"IF(OR(SUM(AE$48)>1,(SUM(AE$44,AE$48)>1)),IF(AE62=0,\"? >\",\"\"),\"\")","v":""},null,null,null,"- bei Neuanmietung von Wohnraum durch Wohnungslose oder von Wohnungslosigkeit",null,null,null,null,null,null,null,null,null,null,null,null,null,null,null,null,null,null,null,null,{"$f":"Grundberechnung!G61","v":0},null,null,{"$f":"'EF1'!$AE$14","v":0},{"$f":"'EF1'!$AF$14","v":"[1]  + 20% bei Wohnungslosigkeit zur Vermeidung teurer Unterbringung"}]
[]
[null,null,{"$f":"IF(OR(SUM(AE$48)>1,(SUM(AE$44,AE$48)>1)),IF(AE62=0,\"nicht zugleich\",\"\"),\"\")","v":""},null,null,null,"  bedrohte Menschen, wenn nur so eine Unterbringung in kostenintensiveren gewerb-"]
[]
[null,null,{"$f":"IF(OR(SUM(AE$48)>1,(SUM(AE$44,AE$48)>1)),IF(AE62=0,\"anwendbar\",\"\"),\"\")","v":""},null,null,null,"  lichen oder kommunalen Einrichtungen beendet oder verhindert werden kann. "]
[]
[null,null,null,null,null,null,"  (auch bei Anmietung von Wohnungen aus dem geschützten Marktsegment)"]
[]
[null,null,null,null,null,null,"- von häuslicher Gewalt betroffene Frauen gelten als von Wohnungslosigkeit bedroht."]
[]
[null,null,null,null,null,null,"- Flüchtlinge in Gemeinschaftsunterkünften gelten als Wohnungslose."]
[]
[null,null,null,null,null,"i ","Bestandsschutz:",null,null,null,null,"Bei Bewilligung dieses Zuschlages wirkt dieser dauerhaft"]
[]
[null,null,null,null,null,{"$f":"IF(AND(AE44=1,AE48=1,AE62=0),\"? >\",\"\")","v":""},null,null,null,null,null,"Deshalb den Bewilligungsbescheid mit diesem Zuschlag aufheben!",null,null,null,null,null,null,null,null,null,null,null,null,null,null,null,null,null,null,{"$f":"'EF1'!AE50","v":0},{"$f":"'EF1'!AF50","v":"[1] Bestandsschutz für 20% wegen Wohnungslosigkeit"}]
[]
[null,null,null,null,null,null,null,null,null,null,null,null,null,null,null,null,null,null,null,null,null,null,null,null,null,{"$f":"Grundberechnung!B76","v":"angemessene Gesamt-Bruttokaltmiete "},null,{"$f":"Grundberechnung!G76","v":0}]
[]
[null,null,null,null,null,null,{"$f":"IF(SUM(AE14,AE44,AE48)>0,\"Zuschläge sind 'kann'-Regelungen, bitte individuell die Angemessenheit zu prüfen\",\"\")","v":""}]
[]
[null,null,null,"behindertengerechter Wohnraum, insbes. für Rollstuhlfahrer/innen, ist individuell, unabhängig von "]
[]
[null,null,null,null,null,null,"den Richtwerten nach Nummer 3.2 zu bestimmen / 3.5.2 (3)"]
[]
[null,null,null,"analog",null,null,"für chronisch Kranke (z.B. AIDS-Kranke), erhöhter Raumbedarf i.d.R. + 1 Pers. zur BG / 3.5.2 (4)"]

{"sheet":"EF2","index":10,"n_rows":57,"n_cols":32,"rows_kept":57,"cut":false,"hidden":false,"merged":[[54,6,54,8],[23,9,23,10],[23,14,23,15],[27,18,27,20],[29,19,29,20],[33,16,33,17],[39,20,39,22],[54,10,54,12],[9,1,9,2],[7,10,7,11],[9,10,9,11],[15,18,15,20],[17,18,17,20],[11,1,11,2],[13,1,13,2],[15,1,15,2],[17,1,17,2],[0,3,1,14],[0,19,1,22],[3,1,3,2],[5,1,5,2],[7,1,7,2],[19,1,19,2],[21,1,21,2],[23,1,23,2],[25,1,25,2],[27,1,27,2],[29,1,29,2],[31,1,31,2],[45,6,45,8],[45,10,45,12],[47,6,47,8],[47,10,47,12]]}
[null,null,null,"Kosten der Unterkunft",null,null,null,null,null,null,null,null,null,null,null,null,null,null,null,"Eingabefeld 2"]
["Start"]
[]
[1,"Personen",null,null,"angemessene Heizkosten",null,null,null,null,null,null,null,null,null,null,null,null,null,null,null,null,null,null,null,null,null,null,null,null,null,1,"Aufrufen EF2"]
[]
[2,"HeizKost",null,null,null,null,null,null,null,null,null,null,null,null,null,null,null,null,null,null,null,null,null,null,null,null,"angemessene Nettokaltmiete: ",{"$f":"'Grundberechnung-Hk'!G40","v":0}]
[]
[3,"WirtschV",null,null,null,null,null,null,null,"berücksichtigte Personenzahl:",{"$f":"'EF1'!K8","v":0},null,null,null,null,null,null,null,null,null,null,null,null,null,null,null,"angemessene Betriebskosten: ",{"$f":"'Grundberechnung-Hk'!G49","v":0},null,null,{"$f":"Checkliste!D28","v":0},"Daten in EF 2 eingetragen"]
[]
[4,"BSG RS",null,null,null,null,null,null,null,"angemessene Wohnfläche:",{"$f":"'EF1'!V12","v":""},null,{"$f":"IF(SUM(K10)>0,\"m²\",\"\")","v":""},null,"i ",{"$f":"IF(AE10=1,\"> \",\"\")","v":""},null,null,null,null,null,null,null,null,null,null,{"$f":"IF(SUM(AB10)>0,\"Zuschläge: \",\"\")","v":""},null,null,null,{"$f":"IF('EF2-Hnk'!AF24>0,1,0)","v":0},"[1] Daten in EF2-Hnk eingetragen"]
[]
[5,"MietS Bln",null,"info","Heizkosten - Angemessenheitsprüfung",null,null,null,null,null,null,null,null," lt. jährlicher Heizkostenabrechnung",null,null,null,null,null,null,null,null,null,null,null,null,"angem. Bruttokaltmiete: ",{"$f":"IF(SUM(AB6,AB8)>0,'Grundberechnung-Hk'!G53,0)","v":0},null,"Bedingungen"]
[]
[6,"WhgBest",null,"I ","jährliche kWh / m² x Wohnfläche:",null,null,null,null,null,null,null,{"$f":"'EF1'!Q28","v":""},null,null,null,null,null,null,null,null,null,null,null,null,null,{"$f":"IF(SUM(AB14)>0,\"angemessene kWh/ Jahr: \",\"\")","v":""},{"$f":"IF('Grundberechnung-Hk'!G99>0,'Grundberechnung-Hk'!G99,\"\")","v":""},{"$f":"IF(SUM(AB14)>0,\"kWh\",\"\")","v":""},"für Monate"]
[]
[7,"Konzept",null,"I ","kWh-Gesamtverbrauch d. abzurechnenden Wirtschaftseinheit",null,null,null,null,null,null,null,null,null,null,null,null,null,null,null,null," kWh / Jahr",null,null,null,null,{"$f":"IF(AE18=1,\"WW-Abzug: \",\"\")","v":""},{"$f":"IF(AE18=1,'Grundberechnung-Hk'!H99,\"\")","v":""},{"$f":"IF(AE18=1,\"kWh\",\"\")","v":""},{"$f":"'Grundberechnung-Hk'!C106","v":0}]
[]
[8,"BetriebsK",null,"I ","Gesamtheizkosten der beheizten Fläche",null,null,null,null,null,null,null,null,null,null,null,null,{"$f":"'Grundberechnung-Hk'!H129","v":""},null,null,null," € / Jahr",null,null,null,null,null,null,null,{"$f":"'Grundberechnung-Hk'!C115","v":0},{"$f":"'EF1'!AE6","v":0},{"$f":"'EF1'!AF6","v":"[1]  Abzug bei dezentraler Warmwasserersorgung anwenden"}]
[]
[9,"HeizK",null,"i ",{"$f":"IF(OR(AND(SUM('EF1'!K8)>0,'EF1'!F65=0),AND('EF1'!F65=0,'EF1'!F67>0),AND('EF1'!K22>0,'EF1'!F65=0)),\"? \",\"\")","v":""},null,null,null,null,null,null,null,null,null,null,null,null,null,null,null,null,null,null,null,null,null,{"$f":"IF(SUM(AB20)>0,\"angemesse HK: \",\"\")","v":""},{"$f":"IF('Grundberechnung-Hk'!C136>0,'Grundberechnung-Hk'!C125,\"\")","v":""},null,null,{"$f":"'EF1'!F65","v":0},"ausgewählter Heizenergieträger"]
[]
[10,"WarmwA",null,null,null,null,null,null,null,null,null,null,null,null,null,null,null,null,null,null,null,null,null,null,null,null,{"$f":"IF(AE22=1,\"abzgl. Klimabonus: \",\"\")","v":""},{"$f":"IF('Grundberechnung-Hk'!C126>0,'Grundberechnung-Hk'!C126,\"\")","v":""},{"$f":"IF(SUM(AB22)>0,\" Abzug\",\"\")","v":""},null,{"$f":"'EF1'!AE40","v":0},{"$f":"'EF1'!AF40","v":"[1]  Klimabonus"}]
[]
[null,null,null,"i ",null,null,null,null,"Nachtspeicherheizung:",null,null," € / kWh",null,null,null,null," € / monatl. Grundpreis",null,null,null,null,null,"i ",null,"Monate",null,{"$f":"IF(AE18=1,\"WW: \",\"\")","v":""},{"$f":"IF(AE18=1,'Grundberechnung-Hk'!C135,\"\")","v":""},{"$f":"IF(SUM(AB24)>0,\" Abzug\",\"\")","v":""}]
[]
[11,"Ergebnis",null,"I ",{"$f":"'Grundberechnung-Hk'!B134","v":"0 kWh x 0 m² = 0 kWh / Jahr  x  0,00 €"},null,null,null,null,null,null,null,null,null,null,null,null,null,null,null,null,{"$f":"IF('Grundberechnung-Hk'!C130>Werte!GK3,\"Gesamtpreis 1 kWh n. AV-Wohnen: \"&FIXED(Werte!GK3,2)&\" €\",\"\")","v":""},null,null,null,null,{"$f":"IF(SUM(AB26)>0,\"angemessene HK: \",\"\")","v":""},{"$f":"IF('Grundberechnung-Hk'!C142>0,'Grundberechnung-Hk'!C142,\"\")","v":""},{"$f":"IF(AND(SUM(AB26<AB28),AE34=0),\"ç\",\"\")","v":""}]
[]
["D","Druck aM",null,null,"tatsächliche jährliche Heizkosten der eigenen Unterkunft:",null,null,null,null,null,null,null,null,null,null,null,null,"i ",null,null,null," € / Jahr",null,null,null,null,{"$f":"IF(SUM(AB28)>0,\"tatsächliche HK: \",\"\")","v":""},{"$f":"IF(AND('Grundberechnung-Hk'!C138>0,'Grundberechnung-Hk'!C145>0),'Grundberechnung-Hk'!C145,\"\")","v":""},{"$f":"IF(AND(SUM(AB26<AB28),AE34=1),\"ç\",\"\")","v":""}]
[]
["D","Wi-Vergl",null,null,"tatsächliche monatliche Heizkostenvorauszahlung:",null,null,null,null,null,null,null,null,null,null,null,null,{"$f":"IF(AND(T30=0,OR(AE34=1,AE48=1)),\"? > \",\"\")","v":""},"i ",null,null," € / Monat"]
[]
["T","Tabelle",null,null,null,null,null,null,null,null,null,null,null,null,null,null,null,null,null,null,null,null,null,null,null,null,{"$f":"IF(SUM(AB32)>0,\"Überschreitung zwischen angemessenen Heizkosten und tatsächlichen Heizkosten: \",\"\")","v":""},{"$f":"IF('Grundberechnung-Hk'!C148>0,'Grundberechnung-Hk'!C148,\"\")","v":""},null,null,{"$f":"'EF1'!AD32","v":0},{"$f":"'EF1'!AE32","v":"[1] Grenzwertüberschreitung"}]
[]
[null,null,null,null,"angemessene monatliche Heizkosten:",null,null,null,null,null,null,null,null,null,null,null,{"$f":"'Grundberechnung-Hk'!G149","v":0},null,"€  I  ",null,null,null,null,null,null,null,null,null,{"$f":"IF(AND(SUM(AB26<AB28),AE34=0),\"< ?\",\"\")","v":""},null,{"$f":"'EF1'!AE16","v":0},{"$f":"'EF1'!AF16","v":"[1]  Überschreitung des Heizkostengrenzwertes zulassen"}]
[]
[null,null,null,"I ",null,null,null,null,null,null,null,null,null,null,null,null,null,null,null,null,null,null,null,null,null,null,{"$f":"'EF1'!AA34","v":"angemessene Heizkosten: "},{"$f":"'Grundberechnung-Hk'!G149","v":0}]
[]
[null,null,null,null,{"$f":"IF(AE32=1,\"Die tatsächlichen Heizkosten können trotz Überschreitung des Heizkosten-\",\"\")","v":""},null,null,null,null,null,null,null,null,null,null,null,null,null,null,null,null,null,null,null,null,null,"Gesamtmiete anerkannt: ",{"$f":"'Grundberechnung-Hk'!G162","v":0}]
[]
[null,null,null,null,{"$f":"IF(AE32=1,\"grenzwertes angemessen sein, ggf. 'Überschreitung zulassen' (und begründen).\",\"\")","v":""}]
[]
[]
[]
[null,null,null,null,null,null,null,{"$f":"'EF1'!H40","v":""},null,null,null,{"$f":"'EF1'!L40","v":""}]
[]
[null,null,null,null,null,{"$f":"'EF1'!F42","v":""},{"$f":"'EF1'!G42:I42","v":""},null,null,{"$f":"'EF1'!J42","v":""},{"$f":"'EF1'!K42:M42","v":""}]
[]
[null,null,null,null,null,{"$f":"'EF1'!F44","v":""},{"$f":"'EF1'!G44:I44","v":""},null,null,null,{"$f":"'EF1'!K44:M44","v":""},null,null,{"$f":"'EF1'!M48","v":""},null,null,null,null,null,null,null,null,null,null,{"$f":"'EF1'!M50","v":""},null,null,null,null,null,{"$f":"'EF1'!AE48","v":0},{"$f":"'EF1'!AF48","v":"[1] Woh.-Angebotsprüfung"}]
[]
[null,null,null,null,null,null,null,{"$f":"'EF1'!H46","v":""},null,null,null,{"$f":"'EF1'!L46","v":""}]
[]
[]
[]
[null,null,null,null,null,null,null,null,{"$f":"'EF1'!E10","v":"Bruttokaltmiete"}]
[null,null,null,null,"tatsächl.",null,{"$f":"'EF1'!K10","v":0},null,null,null,{"$f":"T30","v":0}]
[]
[null,null,null,null,null,null,null,null,null,null,{"$f":"'EF1'!J8","v":"berücksichtigte Personenzahl:"},{"$f":"'EF1'!K8","v":0}]

{"sheet":"EF2-Hnk","index":11,"n_rows":38,"n_cols":33,"rows_kept":38,"cut":false,"hidden":false,"merged":[[35,5,35,8],[27,5,27,8],[13,16,13,20],[7,5,7,8],[11,5,11,8],[17,5,17,8],[21,5,21,8],[23,12,23,17]]}
["<--"]
["Start",null,null,"Umrechnungsfeld Brennstoffe"]
[]
[null,null,null,"Berechnung der Brennstoffkosten und Heiznebenkosten",null,null,null,null,null,null,null,null,null,null,null,null,null,null,"zur Berechnung der Heizkosten pro kWh"]
[]
[]
[]
[null,null,null,null,null,null,null,null,null,null,null,"i ","tatsächliche Mengenwert des Brennstoffs (Liter, kg od. m³) der Wirtschaftseinheit",null,null,null,null,null,null,null,null,null,null,null,null,null,null,null,null,null,{"$f":"'EF1'!$K$8","v":0},"Personen"]
[]
[null,{"$f":"IF(AE30=1,\"Eingabe in EF2\",\"\")","v":""},null,null,null,{"$f":"IF(AE30=1,\"keine Umrechnung erforderlich\",\"\")","v":""},null,null,null,null,null,null,"(aus der Heizkostenabrechnung)",null,null,null,null,null,null,null,null,null,null,null,null,null,null,null,null,null,{"$f":"IF(F8>0,1,0)","v":0}]
[]
[null,{"$f":"IF('EF2'!S16>0,FIXED('EF2'!S16,0)&\" kwh\",IF(F8>0,\"berechnen >\",\"\"))","v":""},null,null,{"$f":"IF(AND(F8>0,F12=0),\"? >\",\"\")","v":""},null,null,null,null," kWh",null,"i ","Umrechnungswert in kWh",null,null,null,null,null,null,"(in kWh umgerechnete Brennstoffkosten/ Jahr)",null,null,null,null,null,null,null,null,null,null,{"$f":"IF(F12>0,1,0)","v":0}]
[]
[null,null,null,null,null,null,null,null,null,null,null,null,"z.B. über diesen",null,null,null," Umrechnungsrechner",null,null,null,null," im Internet"]
[]
[null,"Zusammenfassung der jährlichen Heizkostenanteile"]
[]
[null,null,null,"1.",{"$f":"IF(AND(F18=0,F22>0),\"? >\",\"\")","v":""},null,null,null,null," €",null,"i ","Kosten des gesamten Brennstoffs in Euro incl. des Warmwassers",null,null,null,null,null,null,null,null,null,null,null,null,null,null,null,null,null,{"$f":"IF(F18>0,1,0)","v":0}]
[]
[null,null,null,null,null,{"$f":"IF(AE32=1,\"keine Zusammenrechnung erforderlich, da Eintrag in EF2\",\"\")","v":""}]
[]
[null,null,null,"2.",{"$f":"IF(AND(F18>0,F22=0),\"? >\",\"\")","v":""},null,null,null,null," €",null,"i  ","Gesamt- Heiznebenkosten nach aktueller Heizkosten-Verordnung",null,null,null,null,null,null,null,null,null,null,null,null,null,null,null,null,null,{"$f":"IF(F22>0,1,0)","v":0}]
[]
[null,null,null,null,null,null,null,null,null,null,null,null,"Heizkosten-Verordnung",null,null,null,null,null,null,null,null,null,null,null,null,null,null,null,null,null,{"$f":"SUM(AE18:AE22)","v":0},{"$f":"SUM(AE10:AE22)","v":0},"Prüffeld"]
[]
[]
[]
[null,null,null,"gesamt:",null,{"$f":"IF(AE24=2,'Grundberechnung-Hk'!C112,\"?\")","v":"?"},null,null,null,null,null,"i "," Gesamt -Heizkosten Übertragsbetrag",null,null,null,null,null,null,null,null,null,{"$f":"IF(AE24>0,\"vorrangige Anwendung\",\"\")","v":""}]
[]
[null,null,null,null,null,null,null,null,null,null,null,null,{"$f":"IF('EF2'!S18>0,\"(ersetzt alternativ: 'Gesamtheizkosten der beheizten Fläche' in EF2\"&IF('EF2'!S18>0,\": \"&FIXED('EF2'!S18,2)&\" € / Jahr)\",\")\"),\"\")","v":""},null,null,null,null,null,null,null,null,null,null,null,null,null,null,null,null,null,{"$f":"IF('EF2'!S16>0,1,0)","v":0},"[1] Heizkosten in EF2 eingetragen, hier keine Berechnung nötig"]
[]
[null,null,null,null,null,{"$f":"IF(AE24=2,\"dieser Wert wird in der Heizkostenberechnung berücksichtigt\",IF(AE24=1,\"noch keine Anrechnung der Heizkostenanteile!\",\"\"))","v":""},null,null,null,null,null,null,null,null,null,null,null,null,null,null,null,null,null,null,null,null,null,null,null,null,{"$f":"IF('EF2'!S18>0,1,0)","v":0},"[1] Gesamtkeizkosten incl. Heiznebenkosten bereits in EF2 eingetragen"]
[]
[]
[]
[null,null,null,null,{"$f":"IF(SUM(F28)>0,\"\",\"jetzt angewendet: \")","v":"jetzt angewendet: "},{"$f":"'Grundberechnung-Hk'!C115","v":0},null,null,null,null,{"$f":"IF('EF2'!S18=0,\"in EF2 sind keine tatächlichen jährlichen Heizkosten eingetragen\",IF(AE24<2,\"in EF2 eingetragene jährliche Heizkosten\",\"\"))","v":"in EF2 sind keine tatächlichen jährlichen Heizkosten eingetragen"}]
[]
[null,null,null,null,"Heizkosten/ pro kWh: ",null,{"$f":"FIXED('Grundberechnung-Hk'!C116,2)&\" €\"","v":"0,00 €"},null,null,null,{"$f":"'Grundberechnung-Hk'!I119","v":"0,00 € / 0 kWh = 0,00 €/kWh (gerundet)"}]

{"sheet":"EF3","index":12,"n_rows":48,"n_cols":32,"rows_kept":48,"cut":false,"hidden":false,"merged":[[13,15,13,17],[35,15,35,17],[13,1,13,2],[15,1,15,2],[17,1,17,2],[19,1,19,2],[21,1,21,2],[23,1,23,2],[27,1,27,2],[29,4,29,10],[29,1,29,2],[25,1,25,2],[31,1,31,2],[0,19,1,22],[3,1,3,2],[5,1,5,2],[11,1,11,2],[7,1,7,2],[9,1,9,2],[0,3,1,14],[9,15,9,17],[11,15,11,17],[39,20,39,22],[25,15,25,16],[27,15,27,16],[25,20,25,22],[27,20,27,22],[31,20,31,21],[29,15,29,17],[37,20,37,22],[31,15,31,17],[33,15,33,17]]}
[null,null,null,"Kosten der Unterkunft",null,null,null,null,null,null,null,null,null,null,null,null,null,null,null,"Eingabefeld 3"]
["Start",null,null,null,null,null,null,null,null,null,null,null,null,null,null,null,null,null,null,null,null,null,null,null,null,null,{"$f":"IF(AE8=1,\"> zu angemessene\",\"\")","v":""}]
[]
[1,"Personen",null,{"$f":"IF(AND('EF1'!K8=0,'EF3'!P10>0),\"< ?\",\"\")","v":""},"Wirtschaftlichkeitsvergleich",null,null,null,null,null,null,null,null,null,null,null,null,null,null,null,null,null,null,null,null,null,{"$f":"IF(AE8=1,\"Unterkunftskosten\",\"\")","v":""},null,null,null,{"$f":"IF(SUM(AE6:AE8)>0,1,0)","v":0},"Aufrufen-Prüffeld"]
[]
[2,"HeizKost",null,null,null,null,null,null,null,null,null,null,null,null,null,null,null,null,null,null,null,null,null,null,null,null,null,{"$f":"IF(P10>0,'Grundberechnung-Hk'!C192,\"\")","v":""},null,null,{"$f":"'EF1'!AE52","v":0},"Option Wirtschaftlichkeitsbetrachtung"]
[]
[3,"WirtschV",null,"i ","Prüfung, nach welchem Zeitraum auf die angemessene Miete begrenzt wird",null,null,null,null,null,null,null,null,null,null,null,null,null,null,null,null,null,null,null,null,null,null,null,null,null,{"$f":"Checkliste!D37","v":0},"Daten in EF 3 eingetragen"]
[]
[4,"BSG RS",null,"i ","tatsächliche Bruttokaltmiete",null,null,null,null,null,null,null,null,null,null,{"$f":"'EF1'!K10","v":0},null,null,null,{"$f":"IF(AND(OR(SUM(AB12)>0,AE20>0),SUM(P10)=0),\"Kaltmiete in EF 1 ?\",\"\")","v":""},null,null,null,null,null,null,null,{"$f":"IF('Grundberechnung-Hk'!G185>0,'Grundberechnung-Hk'!G185,0)","v":0}]
[]
[5,"MietS Bln",null,"i ","tatsächliche Heizkosten",null,null,null,null,null,{"$f":"IF(SUM(P12)>0,'Grundberechnung-Hk'!C100,\"\")","v":""},null,null,null,null,{"$f":"'Grundberechnung-Hk'!C186","v":0},null,null,null,{"$f":"IF(AND(OR(AE8>0,AE20>0),SUM(P12)=0),\"Heizkosten in EF 2 ?\",\"\")","v":""},null,null,null,null,null,null,null,{"$f":"IF('Grundberechnung-Hk'!G186>0,'Grundberechnung-Hk'!G186,0)","v":0}]
[]
[6,"WhgBest",null,"i ","tatsächliche Warmwasserkosten",null,null,null,null,null,null,null,null,null,null,null,null,null,null,null,null,null,null,null,null,null,null,{"$f":"IF('Grundberechnung-Hk'!G187>0,'Grundberechnung-Hk'!G187,\"\")","v":""}]
[]
[7,"Konzept",null,null,null,null,null,null,null,null,null,null,null,null,null,null,null,null,null,null,null,null,null,null,null,null,"Gesamtmiete für die tatsächlich genutzte Wohnung:",{"$f":"IF(AND(SUM(P10)>0,'Grundberechnung-Hk'!G189>0),'Grundberechnung-Hk'!G189,0)","v":0},{"$f":"IF(SUM(U6,AB18)>0,AB18-AB16,\"\")","v":""}]
[]
[8,"BetriebsK",null,null,null,null,null,null,null,null,null,null,null,null,null,null,null,null,null,null,null,null,null,null,null,{"$f":"IF(SUM(AB18)>0,\"Prüfgrenze für tatsächliche Miete:\",\"\")","v":""},{"$f":"IF(AND(AB16>0,SUM(AB18)>0),\"á\",\"\")","v":""},{"$f":"IF('Grundberechnung-Hk'!G176>0,ROUND('Grundberechnung-Hk'!G176,0),\"\")","v":""},null,null,"Betrachtungszeitraum"]
[]
[9,"HeizK",null,"i ",null,null,null,null,null,null,null,null,{"$f":"IF(AND(P10>0,P20=0,AB38>0),\"< ?\",\"\")","v":""},null,null,{"$f":"'Grundberechnung-Hk'!E202","v":0}," Monate",null,null,null,null,null,null,null,null,null,{"$f":"IF(SUM(AB20)>0,\"Kosten für aktuelle Wohnung:\",\"\")","v":""},{"$f":"IF('Grundberechnung-Hk'!G204>0,'Grundberechnung-Hk'!G204,\"\")","v":""},{"$f":"IF(AE20=1,\"(12 Mo.)\",IF(AE20=2,\"(36 Mo.)\",\"\"))","v":""},null,null,"[1] = 36 Monate, [2] = 12 Monate"]
[]
[10,"WarmwA",null,null,{"$f":"IF(AE20=1,\"bei Prognose: Leistungsbezug endet in naher Zukunft\",IF(AE20=2,\"Leistungsbezug endet nicht in naher Zukunft\",\"\"))","v":""},null,null,null,null,null,null,null,null,null,null,null,null,null,null,null,null,null,null,null,null,null,{"$f":"IF(SUM(AB22)>0,\"Kostengrenze für angemessene Miete:\",\"\")","v":""},{"$f":"IF('Grundberechnung-Hk'!G206>0,'Grundberechnung-Hk'!G206,\"\")","v":""}]
[]
[null,null,null,null,"Kosten durch Umzug (Prognose)",null,null,null,null,null,null,null,null,null,null,null,null,null,null,null,{"$f":"IF(SUM(V26)>0,\"Quadratmeterpreis\",\"\")","v":""}]
[]
[11,"Ergebnis",null,"i ","Doppelmieten",null,null,null,null,null,null,null,null,null,"für ",null,null,{"$f":"IF(P26=1,\" Monat\",\" Monate\")","v":" Monate"},null,"x",{"$f":"'Grundberechnung-Hk'!C213","v":0},null,null,"(aktuelle Miete)",null,null,null,{"$f":"IF('Grundberechnung-Hk'!G213>0,'Grundberechnung-Hk'!G213,\"\")","v":""}]
[]
["D","Druck aM",null,"i ","Mietkaution",null,null,null,null,null,null,null,null,null,"Anzahl der Nettokaltmieten: ",null,null,null,null,"x",{"$f":"'Grundberechnung-Hk'!C214","v":0},null,null,"(angemessene M.)",null,null,null,{"$f":"IF(Grundberechnung!G209>0,Grundberechnung!G209,\"\")","v":""}]
[]
["D","Wi-Vergl",null,"i ","Genossenschaftsanteile",null,null,null,null,null,null,null,null,null,null,null,null,null,{"$f":"IF(E30=\"Genossenschaftsanteile\",\" (Orientierung: 3 x Bruttowarm)\",\"\")","v":" (Orientierung: 3 x Bruttowarm)"},null,null,null,null,null,null,null,null,{"$f":"IF('Grundberechnung-Hk'!G215>0,'Grundberechnung-Hk'!G215,\"\")","v":""},null,null,"Helferpauschale"]
[]
["T","Tabelle",null,"i ","Umzugskosten 1",null,null,null," (Pausch. je mithelfende Pers.)",null,null,null,null,null,null,null,null,null,null,"x",null,null," Personen (max. 4)",null,null,null,null,{"$f":"IF('Grundberechnung-Hk'!G216>0,'Grundberechnung-Hk'!G216,\"\")","v":""},null,null,30,"€"]
[]
[null,null,null,"i ","Umzugskosten 2",null,null,null," (Renovierung/ Materialkosten)",null,null,null,null,null,null,null,null,null,null,null,null,null,null,null,null,null,null,{"$f":"IF('Grundberechnung-Hk'!G217>0,'Grundberechnung-Hk'!G217,\"\")","v":""}]
[]
[null,null,null,"i ","Umzugskosten 3",null,null,null," (Mietwagen/ ggf. Umzugsfirma)",null,null,null,null,null,null,null,null,null,null,null,null,null,null,null,null,null,null,{"$f":"IF('Grundberechnung-Hk'!G218>0,'Grundberechnung-Hk'!G218,\"\")","v":""}]
[]
[null,null,null,null,{"$f":"\"Vergleich \"&IF(AE20=1,\"für 12 Monate\",IF(AE20=2,\"für 36 Monate\",\"\"))","v":"Vergleich "},null,null,null,null,null,null,null,null,null,null,null,null,null,null,"Kosten alte Wohnung:",{"$f":"'Grundberechnung-Hk'!G228","v":0},null,null,null,null,null,"Summe:",{"$f":"IF(Grundberechnung!G214>0,Grundberechnung!G214,0)","v":0}]
[]
[null,null,null,null,null,null,null,null,null,null,null,null,null,null,null,null,null,null,null,"Kosten bei angem. Miete + Umzugskosten",{"$f":"'Grundberechnung-Hk'!G232","v":0}]
[]
[]
[]
[]
[]
[null,null,null,null,{"$f":"IF(SUM(AB38)>0,'Grundberechnung-Hk'!B235,\"\")","v":""}]
[]
[null,null,null,null,{"$f":"IF(P10>0,'Grundberechnung-Hk'!C195,\"\")","v":""}]

{"sheet":"Grundberechnung","index":13,"n_rows":233,"n_cols":17,"rows_kept":233,"cut":false,"hidden":true,"merged":[[217,3,217,5],[215,3,215,5],[216,3,216,5]]}
["Start","Angemessene Miete (Tabelle)",null,null,null,null,"Druck WiVer","Druck","AV-Wohnen"]
[null,null,null,null,null,"Stand:",{"$f":"Einstellungen!C2","v":"2024-02-01"},"neue Heizkosten"]
["EF1",null,null,null,null,null,null,null,"Bisher alles ohne Übergangsregelung für bereits abgesenkte Mieten"]
[null,"Angemessene Wohnungsmiete",null,null,null,null,"Tabelle"]
[]
[null,"berücksichtigte Personenzahl / BG",null,{"$f":"'EF1'!K8","v":0}]
[]
[null,{"$f":"Grundeinstellungen!AG10&\" [1]\"","v":" Rundung nach AV-Wohnen [1]"},null,{"$f":"Grundeinstellungen!AF10","v":1}," nur für Gesamtaufwendungen gem. Anlage 3"]
[null,null,null,null,null,null,null,null,null,null,"angemessene","ergibt",null,"zugehörige","ergibt"]
[null,"Abzug bei dezentraler Warmwassererwärmung",null,null,null,null,null,"Warmwasser",null,null,"Wohnungsgrößen","Wohnungsgröße",null,"m² - Preise","m² - Preis"]
[null,null,"Personen",null,null,null,null,"Abzug monatlich","Abzug WW",null,"in m²"]
[null,null,1,null,null,null,null,{"$f":"Einstellungen!D64","v":7},{"$f":"IF(D$6=C12,H12,0)","v":0},null,{"$f":"Werte!CC3","v":50},{"$f":"IF(D$6=C12,K12,0)","v":0},{"$f":"Werte!J7&\" :\"","v":"40 bis < 60 m² :"},{"$f":"Werte!J3","v":7.21},{"$f":"IF($D$6=C12,N12,0)","v":0}]
[null,null,2,null,null,null,null,{"$f":"Einstellungen!D65","v":9},{"$f":"IF(AND(D$6=C13,D14=0),H13,0)","v":0},null,{"$f":"Werte!CD3","v":65},{"$f":"IF(AND(D$6=C13,D14=0),K13,0)","v":0},{"$f":"Werte!K7&\" :\"","v":"60 m² :"},{"$f":"Werte!K3","v":7.21},{"$f":"IF(AND($D$6=C13,D26=0),N13,0)","v":0}]
[null,"Alleinerziehend mit 1 Kind ",2,{"$f":"'EF1'!AE18","v":0},"Kd.",null,null,{"$f":"Einstellungen!D66","v":9},{"$f":"IF(AND(D$6=C14,D14=1),H14,0)","v":0},null,{"$f":"Werte!CE3","v":65},{"$f":"IF(AND(D$6=C14,D14=1),K14,0)","v":0},{"$f":"Werte!L7&\" :\"","v":"> 60 bis 90 m² :"},{"$f":"Werte!L3","v":6.59},{"$f":"IF(AND($D$6=C14,D26=1),N14,0)","v":0}]
[null,null,3,null,null,null,null,{"$f":"Einstellungen!D67","v":11},{"$f":"IF(D$6=C15,H15,0)","v":0},null,{"$f":"Werte!CF3","v":80},{"$f":"IF(D$6=C15,K15,0)","v":0},{"$f":"Werte!L7&\" :\"","v":"> 60 bis 90 m² :"},{"$f":"Werte!L3","v":6.59},{"$f":"IF($D$6=C15,N15,0)","v":0}]
[null,null,4,null,null,null,null,{"$f":"Einstellungen!D68","v":12},{"$f":"IF(D$6=C16,H16,0)","v":0},null,{"$f":"Werte!CG3","v":90},{"$f":"IF(D$6=C16,K16,0)","v":0},{"$f":"Werte!L7&\" :\"","v":"> 60 bis 90 m² :"},{"$f":"Werte!L3","v":6.59},{"$f":"IF($D$6=C16,N16,0)","v":0}]
[null,null,5,null,null,null,null,{"$f":"Einstellungen!D69","v":14},{"$f":"IF(D$6>=C17,H17,0)","v":0},null,{"$f":"Werte!CH3","v":102},{"$f":"IF(D$6>=C17,K17,0)","v":0},{"$f":"Werte!M7&\" :\"","v":"> 90 m² :"},{"$f":"Werte!M3","v":7.09},{"$f":"IF($D$6=C17,N17,0)","v":0}]
[null,null,"je weitere Person",null,null,null,null,{"$f":"Einstellungen!D70","v":2},{"$f":"IF(D6>5,(D6-5)*H18,0)","v":0},null,{"$f":"Werte!CI3","v":12},{"$f":"IF(D6>5,(D6-5)*K18,0)","v":0}]
[null,null,null,null,null,null,null,null,{"$f":"SUM(I12:I18)","v":0},null,null,{"$f":"SUM(L12:L18)","v":0},{"$f":"Werte!M7&\" :\"","v":"> 90 m² :"},{"$f":"Werte!M3","v":7.09},{"$f":"IF($D$6>C17,N19,0)","v":0}]
[null,null,null,"Abzug bei dezentraler Warmwassererwärmung [1]:",null,{"$f":"'EF1'!AE6","v":0},null,null,{"$f":"IF(F20=1,I19,0)","v":0},null,null,null,null,null,{"$f":"SUM(O12:O19)","v":0}]
[null,null,null,null,null,null,null,null,"="]
[null,null,null,null,null,null,null,null,{"$f":"Einstellungen!J71","v":0},"Vergleichswert WW-Abzug aus Einstellungen "]
[null,"Angemessene Kosten der Unterkunft"]
[]
["EF1","Angemessene Nettokaltmiete"]
[null,null,{"$f":"IF(D26=0,\"nicht alleinerziehend mit 1 Kind\",\"*\")","v":"nicht alleinerziehend mit 1 Kind"},{"$f":"D14","v":0},{"$f":"IF(D26=1,\"(alleinerziehend mit 1 Kind)\",\"\")","v":""}]
[null,"Personen der Bedarfsgemeinschaft:",null,{"$f":"D6","v":0},{"$f":"IF(D27=1,\"Person\",\"Personen\")","v":"Personen"}]
[null,"ergibt max. Wohnfläche",{"$f":"L19","v":0}]
[null,"weiterer Raumbedarf",{"$f":"'EF1'!V10","v":0}]
[null,"max. anerkannter Raumbedarf",{"$f":"SUM(C28:C29)","v":0},"m²"]
[]
[null,"Nettokaltmiete für Wohnungsgrößen"]
[null,null,"Ø Kaltmiete/m²"]
[null,"individuell festgelegte m²-Netto-Kaltmiete",{"$f":"IF(D34=1,'EF1'!K14,0)","v":0},{"$f":"'EF1'!AE54","v":0},"[1] zulassen"]
[null,"40 m² - unter 60 m²",{"$f":"ROUND(Werte!J3,2)","v":7.21},40,"- unter",60]
[null,"60 m²",{"$f":"ROUND(Werte!K3,2)","v":7.21},{"$f":"F35","v":60},null,"nicht alleinerziehend"]
[null,"über 60 m² - einschließlich 90 m²",{"$f":"ROUND(Werte!L3,2)","v":6.59},{"$f":"F35","v":60},"bis",90]
[null,"über 90 m²",{"$f":"ROUND(Werte!M3,2)","v":7.09},null,"über",{"$f":"F37","v":90}]
[]
[null,"Mietpreisgrenze nettokalt",{"$f":"IF(C28>0,IF(C34>0,C34,O20),0)","v":0},"x",{"$f":"C30","v":0},"=",{"$f":"C40*E40","v":0}]
[]
[]
[null,"Angemessene Betriebskosten"]
[]
[null,"individuell festgelegte kalte Betriebskosten pro m²",{"$f":"IF(D45=1,'EF1'!K16,0)","v":0},{"$f":"'EF1'!AE54","v":0},"[1] zulassen"]
[null,"kalte Betriebskosten pro m²",{"$f":"ROUND(SUM(Werte!P3),2)","v":1.77}]
[null,"BBU",{"$f":"ROUND(Werte!Q3,2)","v":0}]
[]
[null,"Kalte Betriebskosten",{"$f":"IF(C28>0,IF(C45>0,C45,C46),0)","v":0},"x",{"$f":"C30","v":0},"=",{"$f":"C49*E49","v":0}]
[]
[null,null,null,null,null,null,null,null,"Vergleichsberechnung, wenn gleichzeitig 10% Zuschlag im soz. Wohnungsbau"]
[null,"Angemessene Bruttokaltmiete",null,null,null,null,null,null,"ohne sozialen Wohnungsbau"]
["1.","Bruttokaltmiete (Richtwert)",null,null,null,null,{"$f":"SUM(G40,G49)","v":0},null,null,{"$f":"G53","v":0}]
[]
[]
["2.","10% Zuschlag im soz. Wohnungsbau (1. Förderweg)",{"$f":"G53","v":0},{"$f":"Werte!GR3","v":10},"%"]
[null,null,{"$f":"C56/100*D56","v":0},{"$f":"'EF1'!AE8","v":0},"[1] Zuschlag",null,{"$f":"IF(D57=1,C57,0)","v":0}]
[null,{"$f":"IF(D57=1,\"im sozialen Wohnungsbau: \",\"kein sozialer Wohnungsbau \")","v":"kein sozialer Wohnungsbau "},{"$f":"SUM(G53,G57)","v":0},null,null,"aus Richtwert"]
[]
["3.","20% Zuschlag zur Vermeidung von Wohnungslosigkeit",{"$f":"G53","v":0},{"$f":"Werte!GS3","v":20},"%",{"$f":"IF(D61=1,D60,0)","v":0}]
[null,"  (wenn nur so teurer Unterbringung zu vermeiden ist)",{"$f":"C60/100*D60","v":0},{"$f":"'EF1'!AE14","v":0},null,null,{"$f":"IF(OR(D61=1,D63=1),C61,0)","v":0},{"$f":"IF(D63=1,\"< zugleich zul.\",\"< nicht zugleich\")","v":"< nicht zugleich"},null,{"$f":"G61","v":0}]
[null,"mit Zuschlag wohnungslos",{"$f":"SUM(C58,G61)","v":0},null,null,"aus Richtwert"]
[null,null,{"$f":"'EF1'!AF50","v":"[1] Bestandsschutz für 20% wegen Wohnungslosigkeit"},{"$f":"'EF1'!AE50","v":0},null,null,null,"Bestandsschutz"]
[null,null,null,null,null,null,null,"bewirkt:"]
["4.","Klimabonus",{"$f":"Einstellungen!J82","v":0},{"$f":"'EF1'!AE40","v":0},null,null,{"$f":"IF(D65=1,ROUND(C65,0),0)","v":0},"10% Zuschlag",null,{"$f":"G65","v":0}]
[null,null,{"$f":"SUM(C62,G65)","v":0},null,null,"Pauschalbetrag",null,"Umzugsvermei-"]
[null,null,null,null,null,null,null,"dung zulässig"]
["5.","10% Zuschlag bei Härtefall (von Brutto-Kaltmiete)",{"$f":"SUM(G53,G57,G61,G65)","v":0},{"$f":"Werte!GT3","v":10},"%",{"$f":"IF(D69=1,D68,0)","v":0},null,null,{"$f":"SUM(G53,G61,G65)","v":0}]
[null,"  (alleinerziehend, längere Wohndauer u.a.)",{"$f":"C$68/100*D68","v":0},{"$f":"'EF1'!AE10","v":0},"[1] Zuschlag",null,{"$f":"IF(D69=1,C69,0)","v":0},null,{"$f":"I68/100*D68","v":0},{"$f":"IF(D69=1,I69,0)","v":0}]
[null,"mit Härtefallzuschlag: ",{"$f":"SUM(C68,G69)","v":0},null,null,"aus 1. - 4."]
[]
[]
[]
[]
[null,null,null,null,null,null,null,null,"kein sozialer"]
[null,"angemessene Gesamt-Bruttokaltmiete ","(incl. Klimabonus)",null,null,null,{"$f":"SUM(G53,G57,G61,G69,G65)","v":0},null,"Wohnungsbau:",{"$f":"SUM(J53:J69)","v":0},"Bruttokaltmiete"]
[]
["6.","10 % Zuschlag zur Umzugsvermeidung  / 6.1.1 AV-Wohnen",null,{"$f":"Werte!GU3","v":15},"%",{"$f":"IF(F79=1,D78,0)","v":0}]
[null,"  (Umzugsvermeidungszuschlag)",{"$f":"C$58/100*D78","v":0},{"$f":"'EF1'!AE12","v":0},null,{"$f":"IF(D61=1,IF(D63=1,D79,0),D79)","v":0}]
[null,"anzuwendender Umzugsvermeidungszuschlag",{"$f":"IF(F79=1,C79,0)","v":0},null,null,null,null,{"$f":"IF(D63=1,\"< zugleich zul.\",\"< nicht zugleich\")","v":"< nicht zugleich"},{"$f":"J53/100*D78","v":0},{"$f":"IF(F79=1,I80,0)","v":0}]
[null,"mit Umzugsvermeidungszuschlag: ",{"$f":"SUM(G76,C80)","v":0}]
[null,null,null,null,null,null,null,null,null,{"$f":"IF(J80>0,SUM(J76,J80),0)","v":0}]
[]
[]
["EF2","Angemessene Heizkosten",null,null,null,null,null,null,null,null,"Heizkosten"]
[null,null,null,null,null,null,null,null,null,null,"Jahresbeträge"]
[null,null,"Heizmaterial-Auswahl",null,{"$f":"'EF1'!F65","v":0},null,null,null,null,null,{"$f":"C88","v":"Heizöl"},{"$f":"C89","v":"Erdgas"},{"$f":"C90","v":"Fernwärme"},{"$f":"C91","v":"Wärmepumpe"},{"$f":"C92","v":"Nachtstrom"}]
[null,null,"Heizöl",1,null,null,null,null,{"$f":"C96","v":"100 m² - 250 m²"},null,{"$f":"Werte!AC3","v":18.100000000000001},{"$f":"Werte!AG3","v":17},{"$f":"Werte!AK3","v":22.6},{"$f":"Werte!AO3","v":22.5}]
[null,null,"Erdgas",2,null,null,null,null,{"$f":"C97","v":"251 m² - 500 m²"},null,{"$f":"Werte!AD3","v":17.600000000000001},{"$f":"Werte!AH3","v":15.8},{"$f":"Werte!AL3","v":21},{"$f":"Werte!AP3","v":21.6}]
[null,null,"Fernwärme",3,null,null,null,null,{"$f":"C98","v":"501 m² - 1000 m²"},null,{"$f":"Werte!AE3","v":17.100000000000001},{"$f":"Werte!AI3","v":14.7},{"$f":"Werte!AM3","v":19.7},{"$f":"Werte!AQ3","v":20.8}]
[null,null,"Wärmepumpe",4,null,null,null,null,{"$f":"C99","v":"über 1000 m²"},null,{"$f":"Werte!AF3","v":16.7},{"$f":"Werte!AJ3","v":14},{"$f":"Werte!AN3","v":18.8},{"$f":"Werte!AR3","v":20.3}]
[null,null,"Nachtstrom",5]
[null,null,"andere HeizArt",6]
[null,{"$f":"C87&\": \"&IF(E87=1,C88,IF(E87=2,C89,IF(E87=3,C90,IF(E87=4,C93,\"?\"))))","v":"Heizmaterial-Auswahl: ?"},null,null,null,null,null,null,null,null,null,null,null,null,null,null,"Auswahl"]
[null,null,"Gebäudeflächen-Auswahl",null,{"$f":"'EF1'!F67","v":0},null,null,null,null,null,"Monatsbeträge",null,null,null,null,null,"Heizmaterial"]
[null,null,"100 m² - 250 m²",1,null,null,null,null,null,null,{"$f":"C88","v":"Heizöl"},{"$f":"C89","v":"Erdgas"},{"$f":"C90","v":"Fernwärme"},{"$f":"C91","v":"Wärmepumpe"},{"$f":"C92","v":"Nachtstrom"},{"$f":"C93","v":"andere HeizArt"},{"$f":"IF(K97>0,K96,IF(L97>0,L96,IF(M97>0,M96,IF(P97>0,P96,\"keine Auswahl\"))))","v":"keine Auswahl"}]
[null,null,"251 m² - 500 m²",2,null,null,null,null,null,null,{"$f":"IF($E87=$D88,$D88,0)","v":0},{"$f":"IF($E87=$D89,$D89,0)","v":0},{"$f":"IF($E87=$D90,$D90,0)","v":0},{"$f":"IF($E87=$D91,$D91,0)","v":0},{"$f":"IF($E87=$D92,$D92,0)","v":0},{"$f":"IF($E87=$D93,$D93,0)","v":0}]
[null,null,"501 m² - 1000 m²",3,null,null,null,null,{"$f":"C96","v":"100 m² - 250 m²"},{"$f":"IF(E95=D96,D96,0)","v":0},{"$f":"ROUND(K88/12,2)","v":1.51},1.42,1.88,1.88,0,{"$f":"MAX(K98:M98)","v":1.88},{"$f":"IF(J98>0,IF(K$97>0,K98,IF(L$97>0,L98,IF(M$97>0,M98,IF(N$97>0,N98,IF(O$97>0,O98,IF(P$97>0,P98)))))),0)","v":0}]
[null,null,"über 1000 m²",4,null,null,null,null,{"$f":"C97","v":"251 m² - 500 m²"},{"$f":"IF(E95=D97,D97,0)","v":0},1.47,1.32,1.75,1.8,0,{"$f":"MAX(K99:M99)","v":1.75},{"$f":"IF(J99>0,IF(K$97>0,K99,IF(L$97>0,L99,IF(M$97>0,M99,IF(N$97>0,N99,IF(O$97>0,O99,IF(P$97>0,P99)))))),0)","v":0}]
[null,{"$f":"C95&\": \"&IF(E95=1,C96,IF(E95=2,C97,IF(E95=3,C98,IF(E95=4,C99,\"?\"))))","v":"Gebäudeflächen-Auswahl: ?"},null,null,null,null,null,null,{"$f":"C98","v":"501 m² - 1000 m²"},{"$f":"IF(E95=D98,D98,0)","v":0},1.43,1.23,1.64,1.73,0,{"$f":"MAX(K100:M100)","v":1.64},0]
[null,null,null,null,null,null,null,null,{"$f":"C99","v":"über 1000 m²"},{"$f":"IF(E95=D99,D99,0)","v":0},1.39,1.17,1.57,1.69,0,{"$f":"MAX(K101:M101)","v":1.57},{"$f":"IF(J101>0,IF(K$97>0,K101,IF(L$97>0,L101,IF(M$97>0,M101,IF(N$97>0,N101,IF(O$97>0,O101,IF(P$97>0,P101)))))),0)","v":0}]
[null,"individuell festgelegte max. Heizkosten/ m²",null,{"$f":"'EF1'!AE56","v":0},"[1] zulassen",null,null,{"$f":"IF(AND(C102>0,D102>0),\"individuell festgelegte max. Heizkosten/ m²\",\"\")","v":""},null,null,null,null,null,null,null,"ausgewählte Heizkosten/m²:",{"$f":"SUM(Q98:Q101)","v":0}]
[null,"Grenzwert für angemessene Heizkosten je m²",{"$f":"IF(C102>0,C102,Q102)","v":0},"x",{"$f":"C30","v":0}]
[null,"Heizkostengrenzwert für Nachtspeicherheizung",{"$f":"Einstellungen!J94","v":0},{"$f":"IF(E87=D92,1,0)","v":0}]
["7.","Grenzwert für angemessene Heizkosten",{"$f":"IF(C30>0,IF(D104=1,C104,C103*E103),0)","v":0},null,null,null,{"$f":"C105","v":0}]
[null,{"$f":"\"nach Auswahl (\"&'EF1'!AH48&IF('EF1'!F65<4,\", \"&'EF1'!AH28,\"\")&\")\"","v":"nach Auswahl (Heizart: ?, Gebäudefläche: ?)"}]
[null,"In Anspruch genommener Klimabonus"]
[null,{"$f":"B76","v":"angemessene Gesamt-Bruttokaltmiete "},{"$f":"G76","v":0}]
[null,"tatsächlliche Bruttokaltmiete",{"$f":"'EF1'!K10","v":0}]
[null,"Klimabonus",{"$f":"G65","v":0},{"$f":"D65","v":0}]
[null,"nicht in Anspruch genommener Klimabonus",{"$f":"IF(AND(D110=1,C108>C109),C108-C109,0)","v":0}]
["8.","in Anspruch genommener Klimabonus",{"$f":"IF(C110-C111<0,0,C110-C111)","v":0},null,null,null,{"$f":"C112","v":0}]
[]
[]
[null,"Abzug b. dezentraler Warmwassererwärmung (pauschal)",null,null,null,null,{"$f":"I20*-1","v":0}]
["9.","angemessene Heizkosten:",{"$f":"SUM(G105,G115)-G112","v":0}]
[]
[]
[]
[]
[]
[]
[]
[]
[]
[]
[]
[]
[]
[]
[]
[]
[]
[]
[]
[]
[]
[]
[]
["EF2","tatsächliche Heizkosten:",{"$f":"'EF1'!K62","v":0}]
[]
["10.","individuell angemessene Heizkosten:",{"$f":"IF(AND(C140>0,C140<C116),C140,C116)","v":0}]
[null,"Überschreitung des Heizkostengrenzwertes zulassen",null,{"$f":"'EF1'!AE16","v":0}]
[]
[145,"anerkannte Heizkosten:",null,null,null,null,{"$f":"IF(AND(D143=1,C140>C142),C140,C142)","v":0},null,null,{"$f":"G145","v":0}]
[]
[]
[null,null,null,null,null,{"$f":"IF(D8=1,\"(\"&FIXED(SUM(G76,G145),2)&\" € wird gem. AV-Wohnen nicht aufgerundet)\",\"\")","v":"(0,00 € wird gem. AV-Wohnen nicht aufgerundet)"}]
[null,"angemessene (Gesamt-) Miete mit Heizkosten",null,null,null,null,{"$f":"SUM(G76,G145)","v":0}]
[null,"angemessene (Gesamt-) Miete mit Heizkosten",null,null,null,"wenn kein soz. Wohnungbau",{"$f":"J150","v":0},null,null,{"$f":"SUM(J76,J145)","v":0},"kein sozialer Wohnungsbau (1. Förderweg)"]
[]
[null,"Prüfung mit Umzugsvermeidungszuschlag"]
[null,{"$f":"B149","v":"angemessene (Gesamt-) Miete mit Heizkosten"},null,null,null,null,{"$f":"IF(SUM(F79)=1,SUM(G76,G145),0)","v":0}]
[null,{"$f":"B80","v":"anzuwendender Umzugsvermeidungszuschlag"},null,null,null,null,{"$f":"C80","v":0}]
[null,{"$f":"B153","v":"angemessene (Gesamt-) Miete mit Heizkosten"},null,null,null,null,{"$f":"SUM(G153:G154)","v":0}]
[null,{"$f":"B150","v":"angemessene (Gesamt-) Miete mit Heizkosten"},null,null,null,{"$f":"F150","v":"wenn kein soz. Wohnungbau"},{"$f":"IF(SUM(F79)=1,J156,0)","v":0},null,null,{"$f":"IF(SUM(F79)=1,SUM(J82,J145),0)","v":0},{"$f":"K150","v":"kein sozialer Wohnungsbau (1. Förderweg)"}]
[]
[null,{"$f":"B153","v":"angemessene (Gesamt-) Miete mit Heizkosten"},"(Anzeigebetrag gesamt)",null,null,null,{"$f":"SUM(G76,G145)","v":0}]
[]
[null,"Wirtschaftlichkeitsvergleich der Gesamtaufwendungen ",null,null,"6.1.1"]
[]
[null,"Summe der Richtwerte f. Unterkunft und Heizung","(Grenzwert)",null,"6.1.1 (2)",null,null,"Grenzwert nach"]
[]
[null,{"$f":"B53","v":"Bruttokaltmiete (Richtwert)"},null,null,null,null,{"$f":"G53","v":0},"Anlage 3 AV-Wohnen",null,{"$f":"J53","v":0}]
[null,{"$f":"B56","v":"10% Zuschlag im soz. Wohnungsbau (1. Förderweg)"},"+ 10%",null,null,null,{"$f":"G57","v":0}]
[null,{"$f":"B60","v":"20% Zuschlag zur Vermeidung von Wohnungslosigkeit"},null,null,null,null,{"$f":"G61","v":0},null,null,{"$f":"J61","v":0}]
[null,{"$f":"B65","v":"Klimabonus"},null,null,null,null,{"$f":"G65","v":0},null,null,{"$f":"J65","v":0}]
[null,{"$f":"B68","v":"10% Zuschlag bei Härtefall (von Brutto-Kaltmiete)"},"+ 10%",null,null,null,{"$f":"G69","v":0},null,null,{"$f":"J69","v":0}]
[null,{"$f":"B78","v":"10 % Zuschlag zur Umzugsvermeidung  / 6.1.1 AV-Wohnen"},null,null,null,null,{"$f":"C80","v":0},null,null,{"$f":"J80","v":0}]
[null,{"$f":"B105","v":"Grenzwert für angemessene Heizkosten"},{"$f":"IF(D143=1,C140,0)","v":0},null,null,null,{"$f":"IF(D143=1,C170,C116)","v":0},"< ggf. abzüglich WW-Pauschale",null,{"$f":"C116","v":0}]
[null,"maximal zulässige Gesamtaufwendungen der Wohnung",null,null,null,"(gerundet)",{"$f":"IF(D8=1,ROUND(SUM(G164:G170),0),SUM(G164:G170))","v":0},"max.\"angem. Gesamtwarmmiete\"",null,{"$f":"ROUND(SUM(J164:J170),0)","v":0}]
[null,null,null,null,null,{"$f":"IF(D8=1,\"(\"&FIXED(SUM(G164:G170),2)&\" € gem. AV-Wohnen Anlage 3 gerundet)\",\"\")","v":"(0,00 € gem. AV-Wohnen Anlage 3 gerundet)"},null,"(fiktive angemessene Warmmiete)"]
[null,"liegt die Miete unter diesem Prüfwert, wird kein Kostensenkungsverfahren eingeleitet"]
[null,"erfolgt eine Kostensenkung, entfällt  dabei der Umzugsvermeidungszuschlag "]
[null,"anerkannte Heizkosten",null,null,null,null,{"$f":"G145","v":0}]
[null,"maximale Gesamtaufwendungen für Wohnung bei Kostensenkung",null,null,null,null,{"$f":"ROUND(SUM(G164:G169,G175),0)","v":0}]
[]
["EF2","Gesamtaufwendungen f. Unterkunft und Heizung","(Miete)","für bereits genutzen Wohnraum"]
[]
[null,"tatsächliche Bruttokaltmiete",{"$f":"'EF3'!P10","v":0},null,null,null,{"$f":"C180","v":0}]
[null,"tatsächliche Heizkosten",{"$f":"C140","v":0},null,null,null,{"$f":"C181","v":0}]
[null,"tatsächliche zu zahlende Warmwasserkosten",{"$f":"'EF3'!P14","v":0},null,null,null,{"$f":"C182","v":0}]
[null,"    (wenn nicht bereits in den tatsächlichen Heizkosten enthalten)"]
[null,"tatsächliche Gesamtaufwendungen für die bereits genutzte Wohnung",null,null,null,null,{"$f":"SUM(G180:G182)","v":0},{"$f":"IF(G184>I184,\">\",IF(G184<I184,\"<\",\"=\"))","v":"="},{"$f":"G171","v":0},"Grenzwert der Gesamtaufwendungen zum Vergleich"]
[null,"    (= aktuelle Gesamtwarmmiete)"]
[null,"Marker \"Kostensenkung\":",{"$f":"IF(AND(G149>0,G184>0),IF(G171<G184,1,0),0)","v":0},"[1] = Kostensenkung einzuleiten"]
[null,null,{"$f":"IF(AND(G158>0,G184>0),IF(G171<G184,\"Kostensenkungsmaßnahmen sind einzuleiten\",\"Kostensenkungsmaßnahmen sind nicht einzuleiten\"),\"\")","v":""}]
[null,"Textinfo für Tabelle: ",{"$f":"IF(AND(G149>0,G184>0),IF(G171<G184,\"\",\"keine Kürzung\"),\"\")","v":""}]
[null,"Textinfo für Tabelle: ",{"$f":"IF(AND(G149>0,G184>0),IF(G171<G184,\"Kürzung auf\",\"\"),\"\")","v":""}]
[null,"Textinfo für Tabelle: ",{"$f":"IF(AND(G158>0,G184>0,G171<G184),\"Das Kostensenkungsverfahren beginnt neu, wenn sich die Größe der BG ändert (8.6 AV-Wohnen)\",\"\")","v":""}]
[]
[null,"Wirtschaftlichkeit bei Wohnungswechsel"]
["EF2","Kosten im Betrachtungszeitraum"]
[null,"6.1.2 (3) AV-Wohnen","Option:",{"$f":"'EF3'!AE20","v":0}]
[null,"Eintrag [2] für 12 Monate","12 Monate",{"$f":"IF(D194=1,D194,0)","v":0},{"$f":"IF(D195=1,12,0)","v":0}]
[null,"Eintrag [1] für 36 Monate","36 Monate",{"$f":"IF(D194=1,0,D194)","v":0},{"$f":"IF(D196=2,36,0)","v":0},null,null,"< wenn voraussichtlich keine Beendigung des Leistungsbezuges innerhalb 1 Jahres"]
[null,null,null,null,{"$f":"SUM(E195:E196)","v":0}]
[]
[null,"tatsächliche Miete der bewohnten Wohnung",{"$f":"G184","v":0},"x",{"$f":"E197","v":0},"=",{"$f":"C199*E199","v":0}]
[]
[null,"angemessene Miete (nach Produktmethode)",{"$f":"G149","v":0},"x",{"$f":"E197","v":0},"=",{"$f":"C201*E201","v":0}]
[]
[null,{"$f":"IF(G199>G201,\"Mietkosteneinsparung zu erwarten\",\"keine Mietkosteneinsparung zu erwarten\")","v":"keine Mietkosteneinsparung zu erwarten"},null,null,null,"Differenz:",{"$f":"G199-G201","v":0}]
[]
[]
["EF2","Kosten durch Umzug"]
[null,null,null,null,"für Monate"]
[null,"Doppelmieten",{"$f":"C199","v":0},"x",{"$f":"'EF3'!P26","v":0},"=",{"$f":"C208*E208","v":0}]
[null,"Mietkaution (3 Nettokaltmieten)",{"$f":"G40","v":0},"x",{"$f":"'EF3'!P28","v":0},"=",{"$f":"C209*E209","v":0}]
[null,{"$f":"'EF3'!E30&IF('EF3'!E30=\"Genossenschaftsanteile\",\" (Orientierung: 3 x bruttowarm)\",\"\")","v":"Genossenschaftsanteile (Orientierung: 3 x bruttowarm)"},{"$f":"'EF3'!P30","v":0},null,null,null,{"$f":"C210","v":0}]
[null,"Umzugskosten 1 (je mithelfende Person)",{"$f":"'EF3'!P32","v":0},"x",{"$f":"'EF3'!U32","v":0},"=",{"$f":"C211*E211","v":0}]
[null,"Umzugskosten 2  nach m² (Renovierung)",{"$f":"'EF3'!P34","v":0},null,null,null,{"$f":"C212","v":0}]
[null,"Umzugskosten 3 (Transporter/ Umzugsfirma)",{"$f":"'EF3'!P36","v":0},null,null,null,{"$f":"C213","v":0}]
[null,"Umzugsaufwand",null,null,null,null,{"$f":"SUM(G208:G213)","v":0}]
[]
[null,null,{"$f":"B203","v":"keine Mietkosteneinsparung zu erwarten"},{"$f":"G203","v":0}]
[null,null,{"$f":"\"- \"&B214","v":"- Umzugsaufwand"},{"$f":"G214","v":0}]
[null,null,null,{"$f":"D216-D217","v":0}]
[]
[]
[]
[null,"Vergleich der alten Miete mit der [angemessenen neuen Miete + Umzugskosten]",null,null,null,null,null,"im gleichen Zeitraum"]
[null,"I. Unterkunftskosten in alter Wohnung",{"$f":"G199","v":0},null,null,null,{"$f":"C223","v":0}]
[]
[null,"II. neue (abstrakt angemessene) Mietkosten",{"$f":"G201","v":0},"€"]
[null," + Umzugskosten",{"$f":"G214","v":0},"€"]
[null,null,{"$f":"SUM(C225:C226)","v":0},"€",null,null,{"$f":"C227","v":0}]
[null,null,null,null,null,"Differenz:",{"$f":"G223-G227","v":0},{"$f":"IF(G228>0,\"Einsparung \"&FIXED(G228,2)&\" € in \"&E197&\" Monaten\",\"\")","v":""}]
[]
[null,{"$f":"IF(AND(C186=1,G223>0,G227>0),IF(G228>0,\"Ein Umzug ist unter Berücksichtigung der Umzugskosten wirtschaftlich, Kostensenkung nach 6 Monaten\",IF(G227>G223,\"Ein Umzug ist unwirtschaftlich, Verlängerung der Kostensenkungsfrist von 6 auf max. 12 Monate\")),\"\")","v":""}]
[]
[null,"Ab Aufforderung zur Kostensenkung wird die alte Miete noch längstens 6 Monate in voller Höhe gezahlt."]
[null,"In besonders begründeten Einzelfällen kann dieser Zeitraum um 6 Mo. erweitert werden (auf max. 12 Monate)."]

{"sheet":"Grundberechnung-Hk","index":14,"n_rows":238,"n_cols":22,"rows_kept":238,"cut":false,"hidden":true,"merged":[[220,3,220,5],[221,3,221,5],[222,3,222,5]]}
["Start","Angemessene Miete (Tabelle)",null,null,null,null,"Druck WiVer","Druck","AV-Wohnen"]
[null,null,null,null,null,"Stand:",{"$f":"Einstellungen!C2","v":"2024-02-01"},"neue Heizkosten"]
["EF1",null,null,null,null,null,null,null,"Bisher alles ohne Übergangsregelung für bereits abgesenkte Mieten"]
[null,"Angemessene Wohnungsmiete",null,null,null,null,"Tabelle"]
[]
[null,"berücksichtigte Personenzahl / BG",null,{"$f":"'EF1'!K8","v":0}]
[]
[null,{"$f":"Grundeinstellungen!AG10&\" [1]\"","v":" Rundung nach AV-Wohnen [1]"},null,{"$f":"Grundeinstellungen!AF10","v":1}," nur für Gesamtaufwendungen gem. Anlage 3"]
[null,null,null,null,null,null,null,null,null,null,"angemessene","ergibt",null,"zugehörige","ergibt"]
[null,"Abzug bei dezentraler Warmwassererwärmung",null,null,null,null,null,null,null,null,"Wohnungsgrößen","Wohnungsgröße",null,"m² - Preise","m² - Preis"]
[null,null,"Personen",null,null,null,null,null,null,null,"in m²"]
[null,null,1,null,null,null,null,null,null,null,{"$f":"Werte!CC3","v":50},{"$f":"IF(D$6=C12,K12,0)","v":0},{"$f":"Werte!J7&\" :\"","v":"40 bis < 60 m² :"},{"$f":"Werte!J3","v":7.21},{"$f":"IF($D$6=C12,N12,0)","v":0}]
[null,null,2,null,null,null,null,null,null,null,{"$f":"Werte!CD3","v":65},{"$f":"IF(AND(D$6=C13,D14=0),K13,0)","v":0},{"$f":"Werte!L7&\" :\"","v":"> 60 bis 90 m² :"},{"$f":"Werte!L3","v":6.59},{"$f":"IF(AND($D$6=C13,D26=0),N13,0)","v":0}]
[null,null,null,null,null,null,null,null,null,null,{"$f":"Werte!CE3","v":65},{"$f":"IF(AND(D$6=C14,D14=1),K14,0)","v":0},{"$f":"Werte!L7&\" :\"","v":"> 60 bis 90 m² :"},{"$f":"Werte!L3","v":6.59},{"$f":"IF(AND($D$6=C14,D26=1),N14,0)","v":0}]
[null,null,3,null,null,null,null,null,null,null,{"$f":"Werte!CF3","v":80},{"$f":"IF(D$6=C15,K15,0)","v":0},{"$f":"Werte!L7&\" :\"","v":"> 60 bis 90 m² :"},{"$f":"Werte!L3","v":6.59},{"$f":"IF($D$6=C15,N15,0)","v":0}]
[null,null,4,null,null,null,null,null,null,null,{"$f":"Werte!CG3","v":90},{"$f":"IF(D$6=C16,K16,0)","v":0},{"$f":"Werte!L7&\" :\"","v":"> 60 bis 90 m² :"},{"$f":"Werte!L3","v":6.59},{"$f":"IF($D$6=C16,N16,0)","v":0}]
[null,null,5,null,null,null,null,null,null,null,{"$f":"Werte!CH3","v":102},{"$f":"IF(D$6>=C17,K17,0)","v":0},{"$f":"Werte!M7&\" :\"","v":"> 90 m² :"},{"$f":"Werte!M3","v":7.09},{"$f":"IF($D$6=C17,N17,0)","v":0}]
[null,null,"je weitere Person",null,null,null,null,null,null,null,{"$f":"Werte!CI3","v":12},{"$f":"IF(D6>5,(D6-5)*K18,0)","v":0}]
[null,null,null,null,null,null,null,null,null,null,null,{"$f":"SUM(L12:L18)","v":0},{"$f":"Werte!M7&\" :\"","v":"> 90 m² :"},{"$f":"Werte!M3","v":7.09},{"$f":"IF($D$6>C17,N19,0)","v":0}]
[null,null,null,null,null,null,null,null,null,null,null,null,null,null,{"$f":"SUM(O12:O19)","v":0}]
[]
[]
[null,"Angemessene Kosten der Unterkunft"]
[]
["EF1","Angemessene Nettokaltmiete"]
[null,null,{"$f":"IF(D26=0,\"nicht alleinerziehend mit 1 Kind\",\"*\")","v":"nicht alleinerziehend mit 1 Kind"},{"$f":"D14","v":0},{"$f":"IF(D26=1,\"(alleinerziehend mit 1 Kind)\",\"\")","v":""}]
[null,"Personen der Bedarfsgemeinschaft:",null,{"$f":"D6","v":0},{"$f":"IF(D27=1,\"Person\",\"Personen\")","v":"Personen"}]
[null,"ergibt max. Wohnfläche",{"$f":"L19","v":0}]
[null,"weiterer Raumbedarf",{"$f":"'EF1'!V10","v":0}]
[null,"max. anerkannter Raumbedarf",{"$f":"SUM(C28:C29)","v":0},"m²"]
[]
[null,"Nettokaltmiete für Wohnungsgrößen"]
[null,null,"Ø Kaltmiete/m²"]
[null,"individuell festgelegte m²-Netto-Kaltmiete",{"$f":"IF(D34=1,'EF1'!K14,0)","v":0},{"$f":"'EF1'!AE54","v":0},"[1] zulassen"]
[null,"40 m² - unter 60 m²",{"$f":"ROUND(Werte!J3,2)","v":7.21},40,"- unter",60]
[null,"60 m²",{"$f":"ROUND(Werte!K3,2)","v":7.21},{"$f":"F35","v":60},null,"nicht alleinerziehend"]
[null,"über 60 m² - einschließlich 90 m²",{"$f":"ROUND(Werte!L3,2)","v":6.59},{"$f":"F35","v":60},"bis",90]
[null,"über 90 m²",{"$f":"ROUND(Werte!M3,2)","v":7.09},null,"über",{"$f":"F37","v":90}]
[]
[null,"Mietpreisgrenze nettokalt",{"$f":"IF(C28>0,IF(C34>0,C34,O20),0)","v":0},"x",{"$f":"C30","v":0},"=",{"$f":"C40*E40","v":0}]
[]
[]
[null,"Angemessene Betriebskosten"]
[]
[null,"individuell festgelegte kalte Betriebskosten pro m²",{"$f":"IF(D45=1,'EF1'!K16,0)","v":0},{"$f":"'EF1'!AE54","v":0},"[1] zulassen"]
[null,"kalte Betriebskosten pro m²",{"$f":"ROUND(SUM(Werte!P3),2)","v":1.77}]
[null,"BBU",{"$f":"ROUND(Werte!Q3,2)","v":0}]
[]
[null,"Kalte Betriebskosten",{"$f":"IF(C28>0,IF(C45>0,C45,C46),0)","v":0},"x",{"$f":"C30","v":0},"=",{"$f":"C49*E49","v":0}]
[]
[null,null,null,null,null,null,null,null,"Vergleichsberechnung, wenn gleichzeitig 10% Zuschlag im soz. Wohnungsbau"]
[null,"Angemessene Bruttokaltmiete",null,null,null,null,null,null,"ohne sozialen Wohnungsbau"]
["1.","Bruttokaltmiete (Richtwert)",null,null,null,null,{"$f":"SUM(G40,G49)","v":0},null,null,{"$f":"G53","v":0}]
[]
[]
["2.","10% Zuschlag im soz. Wohnungsbau (1. Förderweg)",{"$f":"G53","v":0},{"$f":"Werte!GR3","v":10},"%"]
[null,null,{"$f":"C56/100*D56","v":0},{"$f":"'EF1'!AE8","v":0},"[1] Zuschlag",null,{"$f":"IF(D57=1,C57,0)","v":0}]
[null,{"$f":"IF(D57=1,\"im sozialen Wohnungsbau: \",\"kein sozialer Wohnungsbau \")","v":"kein sozialer Wohnungsbau "},{"$f":"SUM(G53,G57)","v":0},null,null,"aus Richtwert"]
[]
["3.","20% Zuschlag zur Vermeidung von Wohnungslosigkeit",{"$f":"G53","v":0},{"$f":"Werte!GS3","v":20},"%",{"$f":"IF(D61=1,D60,0)","v":0}]
[null,"  (wenn nur so teurer Unterbringung zu vermeiden ist)",{"$f":"C60/100*D60","v":0},{"$f":"'EF1'!AE14","v":0},null,null,{"$f":"IF(OR(D61=1,D63=1),C61,0)","v":0},{"$f":"IF(D63=1,\"< zugleich zul.\",\"< nicht zugleich\")","v":"< nicht zugleich"},null,{"$f":"G61","v":0}]
[null,"mit Zuschlag wohnungslos",{"$f":"SUM(C58,G61)","v":0},null,null,"aus Richtwert"]
[null,null,{"$f":"'EF1'!AF50","v":"[1] Bestandsschutz für 20% wegen Wohnungslosigkeit"},{"$f":"'EF1'!AE50","v":0},null,null,null,"Bestandsschutz"]
[null,null,null,null,null,null,null,"bewirkt:"]
["4.","Klimabonus",{"$f":"Einstellungen!J82","v":0},{"$f":"'EF1'!AE40","v":0},null,null,{"$f":"IF(D65=1,ROUND(C65,0),0)","v":0},"10% Zuschlag",null,{"$f":"G65","v":0}]
[null,null,{"$f":"SUM(C62,G65)","v":0},null,null,"Pauschalbetrag",null,"Umzugsvermei-"]
[null,null,null,null,null,null,null,"dung zulässig"]
["5.","10% Zuschlag bei Härtefall (von Brutto-Kaltmiete)",{"$f":"SUM(G53,G57,G61,G65)","v":0},{"$f":"Werte!GT3","v":10},"%",{"$f":"IF(D69=1,D68,0)","v":0},null,null,{"$f":"SUM(G53,G61,G65)","v":0}]
[null,"  (alleinerziehend, längere Wohndauer u.a.)",{"$f":"C$68/100*D68","v":0},{"$f":"'EF1'!AE10","v":0},"[1] Zuschlag",null,{"$f":"IF(D69=1,C69,0)","v":0},null,{"$f":"I68/100*D68","v":0},{"$f":"IF(D69=1,I69,0)","v":0}]
[null,"mit Härtefallzuschlag: ",{"$f":"SUM(C68,G69)","v":0},null,null,"aus 1. - 4."]
[]
[]
[]
[]
[null,null,null,null,null,null,null,null,"kein sozialer"]
[null,"angemessene Gesamt-Bruttokaltmiete ","(incl. Klimabonus)",null,null,null,{"$f":"SUM(G53,G57,G61,G69,G65)","v":0},null,"Wohnungsbau:",{"$f":"SUM(J53:J69)","v":0},"Bruttokaltmiete"]
[]
["6.",{"$f":"D78&\" % Zuschlag zur Umzugsvermeidung  / 6.1.1 AV-Wohnen\"","v":"15 % Zuschlag zur Umzugsvermeidung  / 6.1.1 AV-Wohnen"},null,{"$f":"Werte!GU3","v":15},"%",{"$f":"IF(F79=1,D78,0)","v":0}]
[null,"  (Umzugsvermeidungszuschlag)",{"$f":"C$58/100*D78","v":0},{"$f":"'EF1'!AE12","v":0},null,{"$f":"IF(D61=1,IF(D63=1,D79,0),D79)","v":0}]
[null,"anzuwendender Umzugsvermeidungszuschlag",{"$f":"IF(F79=1,C79,0)","v":0},null,null,null,null,{"$f":"IF(D63=1,\"< zugleich zul.\",\"< nicht zugleich\")","v":"< nicht zugleich"},{"$f":"J53/100*D78","v":0},{"$f":"IF(F79=1,I80,0)","v":0}]
[null,"mit Umzugsvermeidungszuschlag: ",{"$f":"SUM(G76,C80)","v":0}]
[null,null,null,null,null,null,null,null,null,{"$f":"IF(J80>0,SUM(J76,J80),0)","v":0}]
[]
[]
[null,"Angemessene Heizkosten","neu"]
[null,"Übernahme von:"]
[null,"berücksichtigte Personenanzahl der Bedarfsgemeinschaft",null,null,null,null,null,null,null,null,"Heizkostenbrennwert nachkWh",null,null,"Anzeige bei Auswahl","Heizkostenbrennwert nachkWh",null,null,"Anzeige bei Auswahl","Heizkostenbrennwert nachkWh"]
[null,"als angemessen anerkannte Wohnfläche",null,null,null,null,null,null,null,null,"a) fosile Brennstoffe",null,"Abschlag WW",{"$f":"D92","v":0},"b) Wärmepumpe",null,"Abschlag WW",{"$f":"'EF1'!$AE$6","v":0},"c) Nachtspeicherheizung",null,"Kosten pro kWh in €"]
[null,"angemessene Netto-Kaltmiete",null,null,null,null,null,null,null,{"$f":"D6","v":0},"berücksichtigte Haushaltsmitglieder"]
[null,"angemessene Betriebskosten (kalt)",null,null,null,null,null,null,null,1,{"$f":"Werte!EZ3","v":11900},{"$f":"IF($J$89=1,K90,0)","v":0},{"$f":"Werte!FG3","v":1200},{"$f":"IF(N88=1,IF($J$89=1,M90,0),0)","v":0},{"$f":"Werte!FO3","v":4700},{"$f":"IF($J$89=1,O90,0)","v":0},{"$f":"Werte!FV3","v":480},{"$f":"IF(R88=1,IF($J$89=1,Q90,0),0)","v":0},{"$f":"Werte!GD3","v":6000},{"$f":"IF($J$89=1,S90,0)","v":0},{"$f":"Werte!GK3","v":0.33},{"$f":"IF($J$89=1,U90,0)","v":0}]
[null,null,"Heizmaterialart-Auswahl",{"$f":"'EF1'!F65","v":0},null,null,"ohne Nachtstrom",null,null,2,{"$f":"Werte!FA3","v":15500},{"$f":"IF($J$89=2,K91,0)","v":0},{"$f":"Werte!FH3","v":1560},{"$f":"IF(N88=1,IF($J$89=2,M91,0),0)","v":0},{"$f":"Werte!FP3","v":6100},{"$f":"IF($J$89=2,O91,0)","v":0},{"$f":"Werte!FW3","v":624},{"$f":"IF(R88=1,IF($J$89=2,Q91,0),0)","v":0},{"$f":"Werte!GE3","v":7800},{"$f":"IF($J$89=2,S91,0)","v":0},{"$f":"Werte!GL3","v":0.33},{"$f":"IF($J$89=2,U91,0)","v":0}]
[null,{"$f":"IF(AND(D92=1,D91=5),\"nicht bei Nachtstrom!  \",\"\")","v":""},{"$f":"IF(N88=1,\"abzl. Abschlag WW\",\"\")","v":""},{"$f":"'EF1'!$AE$6","v":0},null,null,"ohne WW-Abzug","WW-Abzug",null,3,{"$f":"Werte!FB3","v":19000},{"$f":"IF($J$89=3,K92,0)","v":0},{"$f":"Werte!FI3","v":1920},{"$f":"IF(N88=1,IF($J$89=3,M92,0),0)","v":0},{"$f":"Werte!FQ3","v":7500},{"$f":"IF($J$89=3,O92,0)","v":0},{"$f":"Werte!FX3","v":768},{"$f":"IF(R88=1,IF($J$89=3,Q92,0),0)","v":0},{"$f":"Werte!GF3","v":9600},{"$f":"IF($J$89=3,S92,0)","v":0},{"$f":"Werte!GM3","v":0.33},{"$f":"IF($J$89=3,U92,0)","v":0}]
[null,"Heizöl",{"$f":"IF(D91=D93,L96-N96,0)","v":0},1,"Fossil",null,{"$f":"IF(D91=D93,L96,0)","v":0},{"$f":"IF(D91=D93,N96,0)","v":0},null,4,{"$f":"Werte!FC3","v":21400},{"$f":"IF($J$89=4,K93,0)","v":0},{"$f":"Werte!FJ3","v":2160},{"$f":"IF(N88=1,IF($J$89=4,M93,0),0)","v":0},{"$f":"Werte!FR3","v":8500},{"$f":"IF($J$89=4,O93,0)","v":0},{"$f":"Werte!FY3","v":864},{"$f":"IF(R88=1,IF($J$89=4,Q93,0),0)","v":0},{"$f":"Werte!GG3","v":10800},{"$f":"IF($J$89=4,S93,0)","v":0},{"$f":"Werte!GN3","v":0.33},{"$f":"IF($J$89=4,U93,0)","v":0}]
[null,"Erdgas",{"$f":"IF(D91=D94,L96-N96,0)","v":0},2,"Fossil",null,{"$f":"IF(D91=D94,L96,0)","v":0},{"$f":"IF(D91=D94,N96,0)","v":0},null,5,{"$f":"Werte!FD3","v":24300},{"$f":"IF($J$89>=5,K94,0)","v":0},{"$f":"Werte!FK3","v":2448},{"$f":"IF(N88=1,IF($J$89>=5,M94,0),0)","v":0},{"$f":"Werte!FS3","v":9600},{"$f":"IF($J$89>=5,O94,0)","v":0},{"$f":"Werte!FZ3","v":979},{"$f":"IF(R88=1,IF($J$89>=5,Q94,0),0)","v":0},{"$f":"Werte!GH3","v":12240},{"$f":"IF($J$89>=5,S94,0)","v":0},{"$f":"Werte!GO3","v":0.33},{"$f":"IF($J$89>=5,U94,0)","v":0}]
[null,"Fernwärme",{"$f":"IF(D91=D95,L96-N96,0)","v":0},3,"Fossil",null,{"$f":"IF(D91=D95,L96,0)","v":0},{"$f":"IF(D91=D95,N96,0)","v":0},null,"je weitere Person",{"$f":"Werte!FE3","v":2900},{"$f":"IF($J$89>5,($J$89-5)*K95,0)","v":0},{"$f":"Werte!FL3","v":288},{"$f":"IF(N88=1,IF($J$89>5,($J$89-5)*M95,0),0)","v":0},{"$f":"Werte!FT3","v":1100},{"$f":"IF($J$89>5,($J$89-5)*O95,0)","v":0},{"$f":"Werte!GA3","v":115},{"$f":"IF(R88=1,IF($J$89>5,($J$89-5)*Q95,0),0)","v":0},{"$f":"Werte!GI3","v":1440},{"$f":"IF($J$89>5,($J$89-5)*S95,0)","v":0},{"$f":"Werte!GP3","v":0.33},{"$f":"IF($J$89>5,($J$89-5)*U95,0)","v":0}]
[null,"Wärmepumpe",{"$f":"IF(D91=D96,P96-R96,0)","v":0},4,null,null,{"$f":"IF(D91=D96,P96,0)","v":0},{"$f":"IF(D91=D96,R96,0)","v":0},null,null,"Heizkostenbrennwert:",{"$f":"SUM(L90:L95)","v":0},{"$f":"M88&\":\"","v":"Abschlag WW:"},{"$f":"SUM(N90:N95)","v":0},"HK-brennwert:",{"$f":"SUM(P90:P95)","v":0},{"$f":"Q88&\":\"","v":"Abschlag WW:"},{"$f":"SUM(R90:R95)","v":0},"HK-brennwert:",{"$f":"SUM(T90:T95)","v":0},"Kosten/kWh:",{"$f":"SUM(V90:V95)","v":0}]
[null,"Nachtstrom",{"$f":"IF(D91=D97,T96,0)","v":0},5,null,null,null,null,null,null,"jährlicher max. Grenzwert je m²:",{"$f":"IF($J$89>0,Werte!EY3,0)","v":0},"Grundwert:",{"$f":"IF($J$89>0,Werte!FF3,0)","v":0},"Grundwert:",{"$f":"Werte!FN3","v":94},"Grundwert:",{"$f":"Werte!FU3","v":9.6},"Grundwert:",{"$f":"Werte!GC3","v":120}]
[null,"andere HeizArt",{"$f":"IF(D91=D98,MAX(L98,P98),0)","v":0},6,"max. HK Wert",null,{"$f":"IF(D91=D98,MAX(L96,P96),0)","v":0},{"$f":"IF(D91=D98,MAX(N96,R96),0)","v":0},null,null,"für Andere Heizart abzl. Abschlag WW:",{"$f":"L96-N96","v":0},null,null,null,{"$f":"P96-R96","v":0},null,null,null,{"$f":"T96","v":0}]
[null,"Auswahl:",{"$f":"SUM(C93:C98)","v":0},"kWh",null,"Auswahl",{"$f":"SUM(G93:G98)","v":0},{"$f":"SUM(H93:H98)","v":0}]
[null,{"$f":"C91&\": \"&IF(D91=1,B93,IF(D91=2,B94,IF(D91=3,B95,IF(D91=4,B96,IF(D91=5,B97,IF(D91=6,B98,\"?\"))))))","v":"Heizmaterialart-Auswahl: ?"},{"$f":"IF(D91=1,B93,IF(D91=2,B94,IF(D91=3,B95,IF(D91=4,B96,IF(D91=5,B97,IF(D91=6,B98,\"?\"))))))","v":"?"}]
[null,"kWh-Gesamtverbrauch der abzurechnenden ",{"$f":"IF(SUM('EF2'!S16)>0,'EF2'!S16,0)","v":0},"kWh / Jahr"]
[null,"Wirtschaftseinheit"]
[null,"Umrechnungswert in kWh",{"$f":"IF(SUM('EF2-Hnk'!F12)>0,'EF2-Hnk'!F12,0)","v":0},"kWh / Jahr"]
[null,"(in kWh umgerechnete Brennstoffkosten)"]
[null,"berücksichtigter kWh-Gesamtverbrauch der "]
[null,"abzurechnenden  Wirtschaftseinheit",{"$f":"IF(C103>0,C103,C101)","v":0},"kWh / Jahr"]
[]
[null,"Berechnung der Brennstoffkosten und Heiznebenkosten"]
[null,"Brennstoffkosten incl. WW",{"$f":"IF(SUM('EF2-Hnk'!F18)>0,'EF2-Hnk'!F18,0)","v":0},"€"]
[null," Heiznebenkosten",{"$f":"IF(SUM('EF2-Hnk'!F22)>0,'EF2-Hnk'!F22,0)","v":0},"€"]
[null,"Summe",{"$f":"C109+C110","v":0}]
[null,"Gesamtkosten Brennstoffs + Nebenkosten incl. WW",{"$f":"IF(AND(C109>0,C110>0),C111,\"?\")","v":"?"},"€ / Jahr",null,null,null,"Auswahl",null,null,"Vergleichsberechnung max. Grenzwert"]
[null,{"$f":"'EF2'!E18","v":"Gesamtheizkosten der beheizten Fläche"},{"$f":"IF(SUM('EF2'!S18)>0,'EF2'!S18,0)","v":0},"€ / Jahr",null,null,null,"max.-Grenzwert","Abschl.-WW"]
[null,"anzurechnende Gesamtheiz-/brennstoffkosten",{"$f":"IF(SUM(C112)>0,SUM(C112),C113)","v":0},"€ / Jahr",null,null,null,{"$f":"SUM(L114,P114,T114)","v":0},{"$f":"SUM(N114,R114)","v":0},null,{"$f":"K97","v":"jährlicher max. Grenzwert je m²:"},{"$f":"IF(D91=5,0,IF(D91>0,L97,0))","v":0},"kwH",{"$f":"IF(D91=5,0,IF(D91>0,N97,0))","v":0},"kwH",{"$f":"IF(D91=4,P97,0)","v":0},"kwH",{"$f":"IF(D91=4,R97,0)","v":0},"kwH",{"$f":"IF(D91=5,T97,0)","v":0},"kwH"]
[null,"berücksichtigte Gesamtheizkosten ",{"$f":"IF(AND(C109>0,C110>0),C111,C114)","v":0},null,null,null,null,null,null,null,{"$f":"B30&\":\"","v":"max. anerkannter Raumbedarf:"},{"$f":"$C30","v":0},"m²",{"$f":"$C30","v":0},"m²",{"$f":"$C30","v":0},"m²",{"$f":"$C30","v":0},"m²",{"$f":"$C30","v":0},"m²"]
[null,"Kosten einer 1 kWh",{"$f":"IF(C106>0,C115/C106,0)","v":0},"€",null,null,null,null,null,null,"Wohnungsgröße in m² x Grundwert",{"$f":"ROUND(L114*L115,-2)","v":0},"kWh",{"$f":"ROUND(N114*N115,-2)","v":0},"kWh",{"$f":"ROUND(P114*P115,-2)","v":0},"kWh",{"$f":"R114*R115","v":0},"kWh",{"$f":"ROUND(T114*T115,-2)","v":0},"kWh","< gerundet auf volle 100er, außer Warmwasser (WW)"]
[null,"angemessene kWh der anerkannten Heizfläche/ Jahr",{"$f":"SUM(L117,P117,T117)","v":0},"kWh",null,null,null,null,null,null,"anzuwendender Grundwert Heizkosten in kWh:",{"$f":"IF(AND(D91>0,D91<>4),IF(L116>L96,L116,L96),0)","v":0},"kWh",{"$f":"IF(AND(D91>0,D91<>4),IF(N116>N96,N116,N96),0)","v":0},"kWh",{"$f":"IF(D91=4,IF(P116>P96,P116,P96),0)","v":0},"kWh",{"$f":"IF(D91=4,IF(R116>R96,R116,R96),0)","v":0},"kWh",{"$f":"IF(D91=5,IF(T116>T96,T116,T96),0)","v":0},"kWh"]
[null,"Nachtspeicherheizung",{"$f":"C97/12*C122","v":0},"kWh"]
[null,"Preis / kWh",{"$f":"IF(SUM('EF2'!J24)>0,'EF2'!J24,0)","v":0},"€",null,null,null,null,{"$f":"FIXED(C115,2)&\" € / \"&FIXED(C106,0)&\" kWh = \"&FIXED(C116,2)&\" €/kWh (gerundet)\"","v":"0,00 € / 0 kWh = 0,00 €/kWh (gerundet)"}]
[null,"Basispreis",{"$f":"IF(AND(SUM('EF2'!O24)>0,D91=5),'EF2'!O24,0)","v":0},"€"]
[null,"x Monate (individueller Abrechnungszeitraum)",{"$f":"IF(SUM('EF2'!X24)>0,'EF2'!X24,0)","v":0},"Mo."]
[null,"Standard = 11 / 12 Mo. Abrechnungszeitraum",{"$f":"IF(C121>0,C121,IF(D91=5,11,12))","v":12},"Mo."]
[null,"angemessene Heizkosten Nachtspeicherheizung:",{"$f":"IF(D91=5,(C118*C119)+(C120*C122),0)","v":0},"€"]
[null,{"$f":"\"angemessene Heizkosten/ \"&IF(C122<>12,\"Abrechnungszeitraum\",\"Jahr\")&\":\"","v":"angemessene Heizkosten/ Jahr:"},{"$f":"IF(C116>0,G99/12*C122*C116,0)","v":0},"€"]
[null,{"$f":"\"anzuerkendende angem. Heizkosten/ \"&IF(C122<>12,\"Abrechnungszeitraum\",\"Monat\")&\":\"","v":"anzuerkendende angem. Heizkosten/ Monat:"},{"$f":"IF(D91=5,C123,(SUM(C124)/C122))","v":0},"€"]
["8.","abzgl. des gewährten Klimabonus",{"$f":"IF(C124>0,G65,0)","v":0},"€",{"$f":"D65","v":0}]
[null,"kWh Abzug/ Jahr für dezentrale Warmwasserversorgung"]
[null,null,{"$f":"SUM(N117,R117)","v":0},"kWh"]
[null,"1 kWh-Preis (alle ohne Nachtstrom)",{"$f":"C116","v":0},null,null,null,null,{"$f":"IF(AND(D91<>5,D91>0,C129=0),\"Verbrauch / Kosten ? \",\"\")","v":""}]
[null,"1 kWh-Preis (bei Nachtspeicherheizung)",{"$f":"IF(C118>0,ROUND(IF(C120>0,(C120*C122/C118),0)+C119,2),0)","v":0}]
[null,"anzuwendender 1 kWh-Preis (für verkettete Formel)",{"$f":"IF(D91=5,C130,C129)","v":0},"€/ kWh incl. Basispreis"]
[null,{"$f":"H114&\" kWh x \"&C30&\" m² = \"&C117&\" kWh / Jahr\"&IF(D92=1,\", abzgl. \"&C128&\" kWh für WW = \"&C99&\" kWh / Jahr\",\"\")&\"  x  \"&FIXED(C131,2)&\" €\"","v":"0 kWh x 0 m² = 0 kWh / Jahr  x  0,00 €"},null,null,null,null,null,"< alle außer Nachtstrom"]
[null,{"$f":"C99&\" kWh / Jahr  x  \"&FIXED(C131,2)&\" €\"&IF(C120>0,\" (incl. anteiliger Basispreis)\",\"\")","v":"0 kWh / Jahr  x  0,00 €"},null,null,null,null,null,"< Nachtstrom"]
[null,{"$f":"IF(D91=5,B133,B132)","v":"0 kWh x 0 m² = 0 kWh / Jahr  x  0,00 €"},null,null,null,null,null,"< Textauswahl nach Heizungsart"]
["9.","Abzug Pauschale für Warmwasser",{"$f":"IF(D92>0,ROUND(IF(D91=5,0,C128*C116/C122),2),0)","v":0},null,null,null,null,"Abzug Warmwasser"]
[null,"Summe angemessene monatliche Heizkosten:",{"$f":"C125-SUM(C126,C135)","v":0},"€",{"$f":"IF(C126>0,\"abzgl. Klimabonus\",\"\")","v":""}]
[null,"tatsächliche jährliche Heizkosten der eigenen ",null,null,{"$f":"IF(C135>0,\"abzgl. WW-Pauschale\",\"\")","v":""}]
[null,"Unterkunft:",{"$f":"IF(SUM('EF2'!S28)>0,'EF2'!S28,0)","v":0},"€"]
[]
[null,"Überschreitung der Angemessenheitsgrenze",{"$f":"IF((C138/C122)>C136,(C138/C122)-C136,C145-C146)","v":0},"€",{"$f":"IF(C122<>12,\"Abrechnungszeitraum\",\"pro Jahr (Betriebskostenabrechnung)\")","v":"pro Jahr (Betriebskostenabrechnung)"}]
["7.","angemessene Heizkosten / Vorauszahlungen "]
[null,"der eigenen Unterkunft pro Monat:",{"$f":"IF(D91=5,(C123/C122),C125-SUM(C126,C135))","v":0},"€"]
[]
["EF2","tatsächliche Heizkosten:",{"$f":"'EF1'!K62","v":0},"(Vorauszahlung)"]
[null,null,{"$f":"IF(AND(C138>0,C144>0),C144,C138/C122)","v":0}]
["10.","individuell angemessene Heizkosten:",{"$f":"IF(C125>0,IF(AND(C144>0,C144<C142),C144,C142),0)","v":0}]
[null,"Überschreitung des Heizkostengrenzwertes zulassen",null,{"$f":"'EF1'!AE16","v":0}]
[null,null,{"$f":"IF(C142<C145,C145-C142,0)","v":0},null,{"$f":"IF(C144>0,\"pro Jahr (mit Berücksichtigung der Heizkostenvorauszahlung)\",E140)","v":"pro Jahr (Betriebskostenabrechnung)"}]
[145,"anerkannte Heizkosten:",null,null,null,null,{"$f":"IF(AND(D147=1,C145>C146),C145,C146)","v":0},null,null,{"$f":"G149","v":0}]
[]
[]
[null,null,null,null,null,{"$f":"IF(D8=1,\"(\"&FIXED(SUM(G76,G149),2)&\" € wird gem. AV-Wohnen nicht aufgerundet)\",\"\")","v":"(0,00 € wird gem. AV-Wohnen nicht aufgerundet)"}]
[null,"angemessene (Gesamt-) Miete mit Heizkosten",null,null,null,null,{"$f":"SUM(G76,G149)","v":0}]
[null,"angemessene (Gesamt-) Miete mit Heizkosten",null,null,null,"wenn kein soz. Wohnungbau",{"$f":"J154","v":0},null,null,{"$f":"SUM(J76,J149)","v":0},"kein sozialer Wohnungsbau (1. Förderweg)"]
[]
[null,"Prüfung mit Umzugsvermeidungszuschlag"]
[null,{"$f":"B153","v":"angemessene (Gesamt-) Miete mit Heizkosten"},null,null,null,null,{"$f":"IF(SUM(F79)=1,SUM(G76,G149),0)","v":0}]
[null,{"$f":"B80","v":"anzuwendender Umzugsvermeidungszuschlag"},null,null,null,null,{"$f":"C80","v":0}]
[null,{"$f":"B157","v":"angemessene (Gesamt-) Miete mit Heizkosten"},null,null,null,null,{"$f":"SUM(G157:G158)","v":0}]
[null,{"$f":"B154","v":"angemessene (Gesamt-) Miete mit Heizkosten"},null,null,null,{"$f":"F154","v":"wenn kein soz. Wohnungbau"},{"$f":"IF(SUM(F79)=1,J160,0)","v":0},null,null,{"$f":"IF(SUM(F79)=1,SUM(J82,J149),0)","v":0},{"$f":"K154","v":"kein sozialer Wohnungsbau (1. Förderweg)"}]
[]
[null,{"$f":"B157","v":"angemessene (Gesamt-) Miete mit Heizkosten"},"(Anzeigebetrag gesamt)",null,null,null,{"$f":"SUM(G76,G149)","v":0}]
[]
[null,"Wirtschaftlichkeitsvergleich der Gesamtaufwendungen ",null,null,"6.1.1"]
[]
[null,"Summe der Richtwerte f. Unterkunft und Heizung","(Grenzwert)",null,"6.1.1 (2)",null,null,"Grenzwert nach"]
[]
[null,{"$f":"B53","v":"Bruttokaltmiete (Richtwert)"},null,null,null,null,{"$f":"G53","v":0},"Anlage 3 AV-Wohnen",null,{"$f":"J53","v":0}]
[null,{"$f":"B56","v":"10% Zuschlag im soz. Wohnungsbau (1. Förderweg)"},"+ 10%",null,null,null,{"$f":"G57","v":0}]
[null,{"$f":"B60","v":"20% Zuschlag zur Vermeidung von Wohnungslosigkeit"},null,null,null,null,{"$f":"G61","v":0},null,null,{"$f":"J61","v":0}]
[null,{"$f":"B65","v":"Klimabonus"},null,null,null,null,{"$f":"G65","v":0},null,null,{"$f":"J65","v":0}]
[null,{"$f":"B68","v":"10% Zuschlag bei Härtefall (von Brutto-Kaltmiete)"},"+ 10%",null,null,null,{"$f":"G69","v":0},null,null,{"$f":"J69","v":0}]
[null,{"$f":"B78","v":"15 % Zuschlag zur Umzugsvermeidung  / 6.1.1 AV-Wohnen"},null,null,null,null,{"$f":"C80","v":0},null,null,{"$f":"J80","v":0}]
[null,{"$f":"B105","v":"berücksichtigter kWh-Gesamtverbrauch der "}]
[null,{"$f":"B106","v":"abzurechnenden  Wirtschaftseinheit"},{"$f":"IF(D147=1,C144,0)","v":0},null,null,null,{"$f":"IF(D147=1,C175,C142)","v":0},"< ggf. abzüglich WW-Pauschale",null,{"$f":"IF(D147=1,C175,C142)","v":0}]
[null,"maximal zulässige Gesamtaufwendungen der Wohnung",null,null,null,"(gerundet)",{"$f":"IF(D8=1,ROUND(SUM(G168:G175),0),SUM(G168:G175))","v":0},"max.\"angem. Gesamtwarmmiete\"",null,{"$f":"ROUND(SUM(J168:J175),0)","v":0}]
[null,null,null,null,null,{"$f":"IF(D8=1,\"(\"&FIXED(SUM(G168:G175),2)&\" € gem. AV-Wohnen Anlage 3 gerundet)\",\"\")","v":"(0,00 € gem. AV-Wohnen Anlage 3 gerundet)"},null,"(fiktive angemessene Warmmiete)"]
[null,"liegt die Miete unter diesem Prüfwert, wird kein Kostensenkungsverfahren eingeleitet"]
[null,"erfolgt eine Kostensenkung, entfällt  dabei der Umzugsvermeidungszuschlag "]
[null,"anerkannte Heizkosten",null,null,null,null,{"$f":"G149","v":0}]
[null,"maximale Gesamtaufwendungen für Wohnung bei Kostensenkung",null,null,null,null,{"$f":"ROUND(SUM(G168:G173,G180),0)","v":0}]
[]
["EF2","Gesamtaufwendungen f. Unterkunft und Heizung","(Miete)","für bereits genutzen Wohnraum"]
[]
[null,"tatsächliche Bruttokaltmiete",{"$f":"'EF3'!P10","v":0},null,null,null,{"$f":"C185","v":0}]
[null,"tatsächliche Heizkosten",{"$f":"C144","v":0},null,null,null,{"$f":"C186","v":0}]
[null,"tatsächliche zu zahlende Warmwasserkosten",{"$f":"'EF3'!P14","v":0},null,null,null,{"$f":"C187","v":0}]
[null,"    (wenn nicht bereits in den tatsächlichen Heizkosten enthalten)"]
[null,"tatsächliche Gesamtaufwendungen für die bereits genutzte Wohnung",null,null,null,null,{"$f":"SUM(G185:G187)","v":0},{"$f":"IF(G189>I189,\">\",IF(G189<I189,\"<\",\"=\"))","v":"="},{"$f":"G176","v":0},"Grenzwert der Gesamtaufwendungen zum Vergleich"]
[null,"    (= aktuelle Gesamtwarmmiete)"]
[null,"Marker \"Kostensenkung\":",{"$f":"IF(AND(G153>0,G189>0),IF(G176<G189,1,0),0)","v":0},"[1] = Kostensenkung einzuleiten"]
[null,null,{"$f":"IF(AND(G162>0,G189>0),IF(G176<G189,\"Kostensenkungsmaßnahmen sind einzuleiten\",\"Kostensenkungsmaßnahmen sind nicht einzuleiten\"),\"\")","v":""}]
[null,"Textinfo für Tabelle: ",{"$f":"IF(AND(G153>0,G189>0),IF(G176<G189,\"\",\"keine Kürzung\"),\"\")","v":""}]
[null,"Textinfo für Tabelle: ",{"$f":"IF(AND(G153>0,G189>0),IF(G176<G189,\"Kürzung auf\",\"\"),\"\")","v":""}]
[null,"Textinfo für Tabelle: ",{"$f":"IF(AND(G162>0,G189>0,G176<G189),\"Das Kostensenkungsverfahren beginnt neu, wenn sich die Größe der BG ändert (8.6 AV-Wohnen)\",\"\")","v":""}]
[]
[null,"Wirtschaftlichkeit bei Wohnungswechsel"]
["EF2","Kosten im Betrachtungszeitraum"]
[null,"6.1.2 (3) AV-Wohnen","Option:",{"$f":"'EF3'!AE20","v":0}]
[null,"Eintrag [2] für 12 Monate","12 Monate",{"$f":"IF(D199=1,D199,0)","v":0},{"$f":"IF(D200=1,12,0)","v":0}]
[null,"Eintrag [1] für 36 Monate","36 Monate",{"$f":"IF(D199=1,0,D199)","v":0},{"$f":"IF(D201=2,36,0)","v":0},null,null,"< wenn voraussichtlich keine Beendigung des Leistungsbezuges innerhalb 1 Jahres"]
[null,null,null,null,{"$f":"SUM(E200:E201)","v":0}]
[]
[null,"tatsächliche Miete der bewohnten Wohnung",{"$f":"G189","v":0},"x",{"$f":"E202","v":0},"=",{"$f":"C204*E204","v":0}]
[]
[null,"angemessene Miete (nach Produktmethode)",{"$f":"G153","v":0},"x",{"$f":"E202","v":0},"=",{"$f":"C206*E206","v":0}]
[]
[null,{"$f":"IF(G204>G206,\"Mietkosteneinsparung zu erwarten\",\"keine Mietkosteneinsparung zu erwarten\")","v":"keine Mietkosteneinsparung zu erwarten"},null,null,null,"Differenz:",{"$f":"G204-G206","v":0}]
[]
[]
["EF2","Kosten durch Umzug"]
[null,null,null,null,"für Monate"]
[null,"Doppelmieten",{"$f":"C204","v":0},"x",{"$f":"'EF3'!P26","v":0},"=",{"$f":"C213*E213","v":0}]
[null,"Mietkaution (3 Nettokaltmieten)",{"$f":"G40","v":0},"x",{"$f":"'EF3'!P28","v":0},"=",{"$f":"C214*E214","v":0}]
[null,{"$f":"'EF3'!E30&IF('EF3'!E30=\"Genossenschaftsanteile\",\" (Orientierung: 3 x bruttowarm)\",\"\")","v":"Genossenschaftsanteile (Orientierung: 3 x bruttowarm)"},{"$f":"'EF3'!P30","v":0},null,null,null,{"$f":"C215","v":0}]
[null,"Umzugskosten 1 (je mithelfende Person)",{"$f":"'EF3'!P32","v":0},"x",{"$f":"'EF3'!U32","v":0},"=",{"$f":"C216*E216","v":0}]
[null,"Umzugskosten 2  nach m² (Renovierung)",{"$f":"'EF3'!P34","v":0},null,null,null,{"$f":"C217","v":0}]
[null,"Umzugskosten 3 (Transporter/ Umzugsfirma)",{"$f":"'EF3'!P36","v":0},null,null,null,{"$f":"C218","v":0}]
[null,"Umzugsaufwand",null,null,null,null,{"$f":"SUM(G213:G218)","v":0}]
[]
[null,null,{"$f":"B208","v":"keine Mietkosteneinsparung zu erwarten"},{"$f":"G208","v":0}]
[null,null,{"$f":"\"- \"&B219","v":"- Umzugsaufwand"},{"$f":"G219","v":0}]
[null,null,null,{"$f":"D221-D222","v":0}]
[]
[]
[]
[null,"Vergleich der alten Miete mit der [angemessenen neuen Miete + Umzugskosten]",null,null,null,null,null,"im gleichen Zeitraum"]
[null,"I. Unterkunftskosten in alter Wohnung",{"$f":"G204","v":0},null,null,null,{"$f":"C228","v":0}]
[]
[null,"II. neue (abstrakt angemessene) Mietkosten",{"$f":"G206","v":0},"€"]
[null," + Umzugskosten",{"$f":"G219","v":0},"€"]
[null,null,{"$f":"SUM(C230:C231)","v":0},"€",null,null,{"$f":"C232","v":0}]
[null,null,null,null,null,"Differenz:",{"$f":"G228-G232","v":0},{"$f":"IF(G233>0,\"Einsparung \"&FIXED(G233,2)&\" € in \"&E202&\" Monaten\",\"\")","v":""}]
[]
[null,{"$f":"IF(AND(C191=1,G228>0,G232>0),IF(G233>0,\"Ein Umzug ist unter Berücksichtigung der Umzugskosten wirtschaftlich, Kostensenkung nach 6 Monaten\",IF(G232>G228,\"Ein Umzug ist unwirtschaftlich, Verlängerung der Kostensenkungsfrist von 6 auf max. 12 Monate\")),\"\")","v":""}]
[]
[null,"Ab Aufforderung zur Kostensenkung wird die alte Miete noch längstens 6 Monate in voller Höhe gezahlt."]
[null,"In besonders begründeten Einzelfällen kann dieser Zeitraum um 6 Mo. erweitert werden (auf max. 12 Monate)."]

{"sheet":"BSG Rechtsprechung","index":15,"n_rows":105,"n_cols":7,"rows_kept":105,"cut":false,"hidden":false,"merged":[]}
[]
["Start","Aussagen der gefestigten BSG Rechtsprechung zur Produktmethode, zuletzt in seinen Urteilen zum Land Berlin"]
[]
[]
[null,null,"letzte Urteile zur Berechnung der angemessenen Miete, nur alleine Berlin betreffend:"]
[null,null,null," vom 19.10.2010 - B14 AS 50/10R",null,null,"Jobcenter Tempelhof Schöneberg"]
[null,null,null," vom 19.10.2010 - B14 AS 32/09 R"]
[null,null,null," vom 19.10.2010 - B14 AS 65/09 R",null,null,"Jobcenter Spandau"]
[null,null,null," vom 19.10.2010 - B14 AS 85/09 R"]
[null,null,null," vom 19.10.2010 - B14 AS 2/10 R",null,null,"Jobcenter Tempelhof Schöneberg"]
[]
[null,null,"KdU werden in Höhe der tatsächlichen Aufwendungen erbracht, soweit sie angemessen sind (§ 22 Abs. 1 Satz 1 SGB II). "]
[]
[null,null,"Die Angemessenheit der KdU ist (getrennt von den Kosten der Heizung, vgl. insoweit BSGE 104, 41 = SozR 4-4200 § 22 Nr 23) "]
[null,null,"unter Zugrundelegung der sogenannten Produkttheorie in einem mehrstufigen Verfahren zu konkretisieren:"]
[]
[null,"1."," Zunächst ist die angemessene Wohnungsgröße zu ermitteln (Punkt A).  "]
[]
[null,"2.","Dann ist festzustellen, ob die angemietete Wohnung dem Produkt aus angemessener Wohnfläche und Standard entspricht, der sich in der Wohnungsmiete niederschlägt. "]
[]
[null,"3.","Vergleichsmaßstab sind insoweit die räumlichen Gegebenheiten am Wohnort des Hilfebedürftigen (Punkt B), "]
[]
[null,"4.","wobei die örtlichen Gegebenheiten auf dem Wohnungsmarkt zu ermitteln und zu berücksichtigen sind (Punkt C)."]
[]
[null,"5.","Neben der Nettokaltmiete sind auch die angemessenen Betriebskosten i.S. des § 556 BGB - mit Ausnahme der Heizkosten - abstrakt zu bestimmen und als Faktor in das Produkt mit einzubeziehen. "]
[null,null,"Schon der Wortlaut des § 22 Abs. 1 SGB II zeigt, dass diese Kosten zu den KdU für einen Hilfebedürftigen gehören und nicht - wie die Heizkosten - getrennt erfasst werden sollen. "]
[]
[null,null,"Der Begriff der \"Angemessenheit\" unterliegt als unbestimmter Rechtsbegriff der uneingeschränkten richterlichen Kontrolle. "]
[null,null,"Im Streitfall ist das der Bestimmung der Kosten zugrunde liegende Konzept somit von den Gerichten in vollem Umfang zu überprüfen und ggf. ein solches Konzept durch eigene Ermittlungen zu ergänzen. "]
[]
[null,"A","Bestimmung der Wohnfläche in Berlin"]
[null,null,"Bei der Bestimmung der angem. Wohnfläche ist auf d. anerkannte Wohnraumgröße f. Wohnberechtigte im sozialen Mietwohnungsbau abzustellen (stRspr seit BSGE 97, 254 = SozR 4-4200 § 22 Nr. 3, jeweils RdNr 19). "]
[null,null,"Hinsichtlich der Überlassung von gefördertem Mietwohnungsraum gilt § 27 Abs. 1 bis 5 WoFG, i.V.m. § 5 des Gesetzes zur Sicherstellung der Zweckbestimmung von Sozialwohnungen (WoBindG)"]
[null,null,"in der geltenden Fassung. Wegen der maßgeblichen Wohnungsgröße verweist § 27 Abs. 4 WoFG (als Nachfolgeregelung zu § 5 Abs. 2 WoBindG in der bis zum 31.12.2001 geltenden Fassung) auf die nach § 10 WoFG"]
[null,null,"von den Ländern festgelegten Wohnungsgrößen. Das Land Berlin hat allerdings zu § 10 WoFG keine Ausführungsvorschriften erlassen."]
[null,null,"Zu § 5 WoBindG und § 27 WoFG liegen nur (unveröffentlichte) Arbeitshinweise der Senatsverwaltung für Stadtentwicklung vom 15.12.2004 vor, die wegen der maßgeblichen Wohnungsgröße an die "]
[null,null,"zuvor ergangenen Bekanntmachungen anknüpfen."]
[null,null,"Danach darf entsprechend der Bekanntmachung der Senatsverwaltung für Bau- und Wohnungswesen vom 20.10.1995 (Amtsblatt für Berlin 1995, 4462) an eine Einzelperson Wohnraum von bis zu 50 m² und an Zwei-"]
[null,null,"Personen-Haushalte Wohnraum von bis zu 60 m² überlassen werden. An diese Regelungen auf Grundlage des § 5 Abs. 2 WoBindG aF, die auch nach Inkrafttreten von § 27 WoFG und § 5 WoBindG n.f "]
[null,null,"Grundlage für die Belegung von gefördertem Wohnraum sind, ist auch für die Bestimmung der Angemessenheitsgrenze nach § 22 Abs. 1 SGB II anzuknüpfen (BSG SozR 4-4200 § 22 Nr. 26 RdNr 14 <Zweibrücken>)."]
[]
[null,null,"Weitergehenden Differenzierungen nach der Raumzahl sind für die Auslegung des § 22 Abs. 1 SGB II unbeachtlich. "]
[null,null,"Dies haben die für die Grundsicherung zuständigen Senate bereits für andere Bundesländer entschieden. Es sind keine Gründe ersichtlich, weshalb für das Land Berlin anderes gelten sollte."]
[null,null,"Auch auf die (unterschiedlichen) Wohnungsgrößen in den (zum 31.12.1999 außer Kraft getretenen) Richtlinien der Senatsverwaltung für Bau- und Wohnungswesen für die Förderung der Neuschaffung von "]
[null,null,"Wohnraum im sozialen Wohnungsbau (Wohnungsbauförderungsbestimmungen 1990 vom 16.7.1990 in der Fassung der Änderungsvorschriften vom 13.12.1992) und den Richtlinien über die "]
[null,null,"Förderung von eigengenutztem Wohneigentum (Eigentumsförderungssätze 1999 vom 25.5.1999) kommt es nicht an. "]
[]
[null,null,"Sozialraum, der nicht verlassen werden muss"]
[null,"B","Bei der Bestimmung der angemessenen KdU ist als maßgeblicher Vergleichsraum das gesamte Stadtgebiet von Berlin heranzuziehen, dass diesen bildet."]
[null,null,"Ausgangspunkt für die Bestimmung des Vergleichsraumes ist zunächst der Wohnort des Hilfebedürftigen. Nach der Rechtsprechung des BSG muss es sich bei dem Vergleichsraum um einen"]
[null,null,"ausreichend großen Raum der Wohnbebauung handeln, der aufgrund seiner räumlichen Nähe, seiner Infrastruktur und insbesondere seiner verkehrstechnischen Verbundenheit einen insgesamt"]
[null,null,"betrachtet homogenen Lebens- und Wohnbereich bildet. "]
[null,null,"Die einen Vergleichsraum prägenden Merkmale liegen aber - trotz der Größe - auch bezogen auf das Stadtgebiet von Berlin vor. "]
[null,null,"Der öffentliche Nahverkehr ist auf die Erreichbarkeit des Stadtkerns von allen Stadtteilen her ausgerichtet. Von den Randlagen aus ergeben sich in die innerstädt. Bezirke insoweit lediglich Fahrzeiten,"]
[null,null,"wie sie auch erwerbstätigen Pendlern zugemutet werden (vgl. § 121 Abs. 4 Satz 2 SGB III). Eine Beschränkung auf bestimmte Bezirke (oder Ortsteile) mit besonders verdichteter Bebauung und damit vorwiegend "]
[null,null,"günstigem Wohnraum birgt zudem das Risiko einer Ghettoisierung. Außerdem zeigt die Wohnlagenkarte als Anlage zu dem Berliner Mietspiegel, dass ohnehin in allen Bezirken auch einfache Wohnlagen, "]
[null,null,"an deren Mietniveau sich die Referenzmieten orientieren, vorhanden sind, sodass auch von daher die Bildung eines engeren Vergleichsraums nicht erforderlich erscheint. "]
[null,null,"Es steht nicht zu befürchten, dass mit einem ggf. zur Kostensenkung erforderlichen Umzug regelmäßig das nähere soziale Umfeld verlassen werden muss. "]
[]
[null,"C","angemessener Mietpreis"]
[null,null,"Zu Grunde zu legen ist ein einfacher, im unteren Marktsegment liegender Standard (BSGE 97, 231 = SozR 4-4200 § 22 Nr. 2, jeweils RdNr 24); die Wohnung muss hinsichtlich ihrer Ausstattung, Lage und Bausubstanz "]
[null,null,"einfachen und grundlegenden Bedürfnissen genügen (BSGE 97, 254 = SozR 4-4200 § 22 Nr. 3, jeweils RdNr 20). Die festgestellte angemessene Referenzmiete oder die Mietobergrenze muss mithin so gewählt werden,"]
[null,null,"dass es dem Hilfebedürftigen möglich ist, im konkreten Vergleichsraum eine \"angemessene\" Wohnung anzumieten. "]
[null,null,"Die Mietobergrenze ist nach der Rechtsprechung des BSG auf Grundlage eines diese Vorgaben beachtenden schlüssigen Konzepts zu ermitteln (vgl. BSG Urteil vom 18.6.2008 - B 14/7b AS 44/06 R)."]
[null,null,"Die angemessene Referenzmiete ist anhand des Berliner Mietspiegels zu bestimmen, bei dem es sich um einen qualifizierten Mietspiegel i.S. des § 558d BGB handelt."]
[null,null,"Qualifizierte Mietspiegel können Grundlage der Bestimmung der Referenzmiete nach § 22 Abs. 1 SGB II sein."]
[null,null,"Sollen aus Daten eines qualifizierten Mietspiegels grundsicherungsrelevante Schlüsse abgeleitet werden, ist eine Beschränkung auf Daten bestimmter Bauklassen grundsätzlich nicht zulässig."]
[null,null,"Speziell der Berliner Mietspiegel weist allerdings in den Spalten 1 und 3 innerhalb der Bauklassen bis 1918 und bis 1949 Wohnungen mit besonders niedrigem Ausstattungsgrad auf."]
[null,null,"Dabei handelt es sich einerseits um Wohnungen mit \"Ofenheizung\", andererseits um Wohnungen ohne Bad (mit Innen-WC), in denen sich die Bewohner nur mit fließendem Wasser am Waschbecken "]
[null,null,"waschen können; es fehlt also an einer Dusche. "]
[null,null,"Die Werte für diese Wohnungen sind zur Bildung eines grundsicherungsrelevanten Mietwertes nicht mit heranzuziehen, denn auf Wohnungen mit diesem untersten Ausstattungsgrad können"]
[null,null,"Hilfebedürftige bei der Wohnungssuche grundsätzlich von vornherein nicht verwiesen werden."]
[null,null,"Sie dürfen deshalb in die Auswertung des qualifizierten Mietspiegels grundsätzlich nicht einfließen, unabhängig davon, ob sich in diesem Mietsegment (noch) eine nennenswerte Zahl an Wohnungen findet."]
[null,null,"Es ist in erster Linie der kommunale Träger für solche notwendig erscheinenden Auswertungen im Rahmen der Mitwirkungspflichten heranzuziehen (vgl. grundlegend dazu BSG SozR 4-4200 § 22 Nr. 26). "]
[null,null,"Dies gilt erst recht dann, wenn die vom Grundsicherungsträger bei seiner Entscheidung herangezogenen Daten als Entscheidungsgrundlage ungeeignet sind, wie dies in Berlin mit der AV-Wohnen der Fall ist."]
[null,null,"Es könnten sich im Ergebnis weitergehender Auswertungen durch den Träger der Grundsicherung durchaus Anhaltspunkte ergeben, dass eine bestimmte Baualtersklasse statistisch nachvollziehbar "]
[null,null,"über alle Bezirke hinweg so häufig vorhanden ist und zugleich den einfachen Standard nachvollziehbar abbildet, dass allein auf diesen Wert (ggf. um einen Aufschlag erhöht) zurückzugreifen ist. "]
[null,null,"Lassen sich solche weitergehenden Schlüsse aus vorhandenem Datenmaterial nicht ziehen, bietet es sich an, einen gewichteten arithmetischen Mittelwert nach Verteilung der in der Grundgesamtheit "]
[null,null,"abgebildeten Wohnungen in den jeweiligen Bauklassen zu bilden (dazu Schifferdecker/Irgang/Silbermann, Archiv für Wissenschaft u. Praxis d. sozialen Arbeit 2010, 28; SG Berlin Urteil v. 30.6.2010 - S 174 AS 21949/07 -juris RdNr 46). "]
[null,null,"Ein solcher Mittelwert böte immerhin die Gewähr, dass ein einzelner Wert für eine bestimmte Baualtersklasse entsprechend seiner tatsächlichen Häufigkeit auf dem Markt in einen grundsicherungsrelevanten"]
[null,null,"Mittelwert einfließt. "]
[]
[null,null,"Betriebskostenfeststellung"]
[null,null,"Wegen der abstrakt angemessenen Kosten i.S. des § 22 Abs. 1 SGB II sind die dort genannten Betriebskosten maßgebend. Auch insoweit erscheint es zulässig, zur Erstellung eines "]
[null,null,"Konzepts auf bereits vorliegende Daten aus Betriebskostenübersichten zurückzugreifen, im Ausgangspunkt allerdings auf örtliche Übersichten und insoweit auf die sich daraus "]
[null,null,"ergebenden Durchschnittswerte. Insbesondere bei Ver- und Entsorgungsdienstleistungen ergeben sich regional deutliche Unterschiede, auf die Rücksicht genommen werden muss. "]
[null,null,"Eine weitergehende Gewichtung scheint dagegen nicht notwendig, da nicht erkennbar ist, welche zuverlässigen (weitergehenden) Aussagen sich hieraus ableiten lassen sollten. Neben den (nichtamtlichen) "]
[null,null,"Übersichten in Mietspiegeln kommen auch Übersichten der örtlichen Interessenverbände in Betracht, die an der Anerkennung des Mietspiegels beteiligt waren. Solche Werte müssen möglichst aktuell sein,  "]
[null,null,"um sichere Rückschlüsse auf das Preisniveau im jeweiligen Vergleichsraum zu geben. Soweit die örtlich erfassten Werte nicht aktuell sind, liegt es nahe, vom Träger der Grundsicherung entsprechende "]
[null,null,"Rückfragen bei den örtlichen Interessenverbänden durchführen zu lassen bzw. die Werte an die allgemeine Preisentwicklung anzupassen. "]
[null,null,"Nur wenn sich konkret Anhaltspunkte dafür ergeben, dass vom Deutschen Mieterbund für das gesamte Bundesgebiet aufgestellte Übersichten gerade das örtliche Niveau besser abbilden, kann "]
[null,null,"auf diese zurückgegriffen werden. Solche Gründe, weshalb die Werte des Deutschen Mieterbundes ein realistischeres Bild des örtlichen Preisniveaus von Berlin abgeben sollten, sind bislang nicht ersichtlich."]
[]
[null,null,"Heizkosten"]
[null,null,"Die Angemessenheit der Heizkosten ist getrennt von den übrigen Unterkunftskosten zu prüfen. "]
[null,null,"Die tatsächlichen (bereinigten) Kosten für Heizung sind solange als angemessen von dem Beklagten zu übernehmen, wie der nach der Rechtsprechung des Senats "]
[null,null,"maßgebliche Grenzwert nicht überschritten wird (vgl. BSG SozR 4-4200 § 22 Nr. 25)."]
[null,null,"Urteil LSG Bln. Brbg vom 15.02.2010 - L 25 AS 35/10 B ER :"]
[null,null,"Zur Bestimmung eines solchen Grenzwertes ist es für den Regelfall einer mit Öl, Erdgas oder Fernwärme beheizten Wohnung möglich, die kommunalen Heizspiegel, hilfsweise den \"Bundesweiten Heizspiegel\" "]
[null,null,"heranzuziehen.  Aus dem \"Bundesweiten Heizspiegel\" ergeben sich Vergleichswerte für öl-, erdgas- und fernwärmebeheizte Wohnungen gestaffelt nach der von der jeweiligen Heizungsanlage zu"]
[null,null,"beheizenden Wohnfläche, die hinsichtlich des Heizungsenergieverbrauchs zwischen vier Kategorien unterscheiden."]
[null,null,"Der maßgebliche Grenzwert ist das Produkt aus dem Wert, der bezogen auf den jeweiligen Energieträger und die Größe der Wohnanlage die höchsten Heizkosten enthält (rechte Spalte),"]
[null,null,"und dem Wert, der sich für den Haushalt des Hilfebedürftigen als abstrakt angem. Wohnfläche nach den Ausführungsbestimmungen der Länder zu § 10 Abs. 1 WoFG bzw. § 5 Abs. 2 Wo-BindG ergibt."]
[null,null,"Soweit die konkret anfallenden Heizkosten den auf dieser Datengrundlage zu ermittelnden Grenzwert überschreiten, besteht Anlass für die Annahme, dass diese Kosten unangemessen hoch "]
[null,null,"im Sinne des § 22 Abs. 1 Satz 1 SGB II sind, da die gewählte Grenze bereits unwirtschaftliches und tendenziell unökologisches Heizverhalten berücksichtigt."]

{"sheet":"Wohnungsbestand","index":16,"n_rows":45,"n_cols":21,"rows_kept":45,"cut":false,"hidden":false,"merged":[[10,1,12,1],[36,1,38,1],[19,1,21,1],[22,1,22,2],[13,1,15,1],[27,1,29,1],[16,1,18,1],[30,1,32,1],[33,1,35,1],[7,1,7,3],[3,7,3,9],[3,10,3,11],[4,1,6,3],[3,1,3,3],[3,4,3,6]]}
[]
["Start","Tabelle 1   Fortschreibung der Grundgesamtheit zum Berliner Mietspiegel 2019"]
[]
[null,"Bezugsfertigkeit",null,null,"bis 1918",null,null,"1919 bis 1949",null,null,"1950 bis 1964",null,"1956 bis 1964","1965 bis 1972","1973 bis 1990  West","1973 bis\n1990  Ost","1991  bis 2002","2003  bis 2017","Summe"]
[null,"Ausstattung",null,null,"-SH","+SH oder","-SH","-SH","+SH oder","-SH","+SH oder","-SH","-SH","-SH","-SH","-SH","-SH","-SH",null,null,"Gesamt-       bestand"]
[null,null,null,null,"-BD","+BD","-BD","-BD","+BD","-BD","+BD","-BD","-BD","-BD","-BD","-BD","-BD","-BD",null,null,"Wohnungen"]
[null,null,null,null,"+IWC","*IWC","+IWC","+IWC","*IWC","+IWC","*IWC","+IWC","+IWC","+IWC","+IWC","+IWC","+IWC","+IWC",null,null,"in Berlin"]
[null,null,null,null,null,null,1,null,null,2,null,3,null,4,5,null,6,7]
[null,"Wohnfläche","Wohnlage"]
[]
[null,"unter 40 m²","einfach","A",100,1200,18600,"<50",400,3700,300,10400,null,9900,3700,9200,1200,500,{"$f":"E11+F11+G11+I11+K11+J11+L11+N11+O11+P11+Q11+R11","v":59200},null,{"$f":"SUM(E11+F11+G11+I11+J11+K11+L11+N11+O11+P11+Q11+R11)","v":59200}]
[null,null,"mittel","B",100,900,16200,"<50",400,5900,400,16700,null,9100,2600,22300,2700,1400,{"$f":"E12+F12+G12+I12+K12+J12+L12+N12+O12+P12+Q12+R12","v":78700},null,{"$f":"SUM(E12+F12+G12+I12+J12+K12+L12+N12+O12+P12+Q12+R12)","v":78700}]
[null,null,"gut","C","<50",400,8500,"<50",100,2100,100,9100,null,4400,1800,1400,600,600,{"$f":"F13+G13+I13+J13+K13+L13+N13+O13+P13+Q13+R13","v":29100},null,{"$f":"F13+G13+I13+J13+K13+L13+N13+O13+P13+Q13+R13","v":29100}]
[null," 40 m² bis \nunter 60 m²","einfach","D",100,2400,43300,"<50",1600,25000,600,32200,null,15400,5800,14000,4000,1500,{"$f":"E14+F14+I14+K14+G14+J14+L14+N14+O14+P14+Q14+R14","v":145900},null,{"$f":"E14+F14+G14+I14+J14+K14+L14+N14+O14+P14+Q14+R14","v":145900}]
[null,null,"mittel","E",100,2100,43100,"<50",1700,48600,1100,63700,null,19700,5900,38200,12900,3800,{"$f":"E15+F15+I15+K15+G15+J15+L15+N15+O15+P15+Q15+R15","v":240900},null,{"$f":"E15+F15+G15+I15+J15+K15+L15+N15+O15+P15+Q15+R15","v":240900}]
[null,null,"gut","F","<50",900,27100,"<50",300,14200,300,20900,null,6200,3400,2000,3000,1700,{"$f":"F16+G16+I16+J16+K16+L16+N16+O16+P16+Q16+R16","v":80000},null,{"$f":"F16+G16+I16+J16+K16+L16+N16+O16+P16+Q16+R16","v":80000}]
[null," 60 m² bis \nunter 90 m²","einfach","G",100,2300,50900,"<50",800,20400,300,26400,null,36500,9500,27700,9000,1800,{"$f":"E17+F17+K17+G17+I17+J17+L17+N17+O17+P17+Q17+R17","v":185700},null,{"$f":"E17+F17+G17+I17+J17+K17+L17+O17+N17+P17+Q17+R17","v":185700}]
[null,null,"mittel","H",100,2100,54400,"<50",1100,40500,500,48100,null,31700,8500,71000,28700,5000,{"$f":"E18+F18+I18+K18+G18+J18+L18+N18+O18+P18+Q18+R18","v":291700},null,{"$f":"E18+F18+G18+I18+J18+K18+L18+N18+O18+P18+Q18+R18","v":291700}]
[null,null,"gut","I","<50",1100,37000,"<50",200,17400,100,19500,null,8100,5700,4200,6300,2500,{"$f":"F19+G19+I19+J19+K19+L19+N19+O19+P19+Q19+R19","v":102100},null,{"$f":"F19+G19+I19+J19+K19+L19+N19+O19+P19+Q19+R19","v":102100}]
[null,"90 m² und mehr","einfach","J","<50",1000,25900,"<50",100,3700,"<50",2000,null,5200,2700,3400,2400,1000,{"$f":"F20+I20+G20+J20+L20+N20+O20+P20+Q20+R20","v":47400},null,{"$f":"F20+G20+I20+J20+L20+N20+O20+P20+Q20+R20","v":47400}]
[null,null,"mittel","K","<50",1000,35100,"<50",100,8400,100,3500,null,3800,3900,8100,8700,4200,{"$f":"F21+I21+K21+G21+J21+L21+N21+O21+P21+Q21+R21","v":76900},null,{"$f":"F21+G21+I21+J21+K21+L21+N21+O21+P21+Q21+R21","v":76900}]
[null,null,"gut","L","<50",700,35500,"<50","<50",8000,"<50",2700,null,1800,3300,700,2800,2700,{"$f":"F22+G22+J22+L22+N22+O22+P22+Q22+R22","v":58200},null,{"$f":"F22+G22+J22+L22+N22+O22+P22+Q22+R22","v":58200}]
[null,"Summe",null,null,{"$f":"SUM(E11:E22)","v":600},{"$f":"SUM(F11:F22)","v":16100},{"$f":"SUM(G11:G22)","v":395600},"<50",{"$f":"SUM(I11:I22)","v":6800},197900,3800,255200,null,151800,56800,202200,82300,26700,1395800,null,{"$f":"SUM(U11:U22)","v":1395800}]
[]
[]
[]
[null,"Prozentualer Anteil der Wohnungen einer Baualtersklasse zum  Gesamtbestand aller vergleichbaren Wohnlagen und gleicher Wohngrößen"]
[null,"unter 40 m²","einfach","A",null,null,{"$f":"SUM(G11+F11+E11)/U11","v":0.33614864864864863},null,null,{"$f":"SUM(J11+I11)/U11","v":6.9256756756756757E-2},null,{"$f":"SUM(L11+K11)/U11","v":0.18074324324324326},{"$f":"SUM(M11/S11)","v":0},{"$f":"SUM(N11/U11)","v":0.16722972972972974},{"$f":"SUM(O11/U11)","v":6.25E-2},{"$f":"SUM(P11/U11)","v":0.1554054054054054},{"$f":"SUM(Q11/U11)","v":2.0270270270270271E-2},{"$f":"SUM(R11/U11)","v":8.4459459459459464E-3}]
[null,null,"mittel","B",null,null,{"$f":"SUM(G12+F12+E12)/U12","v":0.21855146124523506},null,null,8.0050825921219829E-2,null,0.21728081321473952,{"$f":"SUM(M12/S12)","v":0},0.1156289707750953,3.303684879288437E-2,0.28335451080050827,3.4307496823379927E-2,1.7789072426937738E-2]
[null,null,"gut","C",null,null,{"$f":"SUM(G13+F13)/U13","v":0.30584192439862545},null,null,7.560137457044673E-2,null,0.31615120274914088,0,0.15120274914089346,6.1855670103092786E-2,4.8109965635738834E-2,2.0618556701030927E-2,2.0618556701030927E-2]
[null," 40 m² bis \nunter 60 m²","einfach","D",null,null,{"$f":"SUM(G14+F14+E14)/U14","v":0.31391363947909529},null,null,0.18231665524331733,null,0.22481151473612063,0,0.10555174777244689,3.9753255654557916E-2,9.5956134338588073E-2,2.7416038382453736E-2,1.028101439342015E-2]
[null," 40 m² bis unter 60 m²","mittel","E",null,null,{"$f":"SUM(G15+F15+E15)/U15","v":0.18804483188044832},null,null,0.20880033208800333,null,0.26899128268991285,0,8.1776670817766711E-2,2.4491490244914902E-2,0.1585720215857202,5.3549190535491904E-2,1.5774180157741801E-2]
[null,null,"gut","F",null,null,{"$f":"SUM(G16+F16)/U16","v":0.35},null,null,0.18124999999999999,null,0.26500000000000001,0,7.7499999999999999E-2,4.2500000000000003E-2,2.5000000000000001E-2,3.7499999999999999E-2,2.1250000000000002E-2]
[null," 60 m² bis \nunter 90 m²","einfach","G",null,null,{"$f":"SUM(G17+F17+E17)/U17","v":0.28702207862143242},null,null,0.11416262789445342,null,0.14378029079159935,0,0.19655358104469575,5.1157781367797521E-2,0.14916532040926225,4.8465266558966075E-2,9.6930533117932146E-3]
[null,null,"mittel","H",null,null,{"$f":"SUM(G18+F18+E18)/U18","v":0.19403496743229345},null,null,0.14261227288309908,null,0.16660953033938977,0,0.10867329448063079,2.9139526911210148E-2,0.24340075419952006,9.8388755570791908E-2,1.7140898183064794E-2]
[null,null,"gut","I",null,null,{"$f":"SUM(G19+F19)/U19","v":0.37316356513222332},null,null,0.17238001958863858,null,0.19196865817825662,0,7.933398628795299E-2,5.5827619980411358E-2,4.1136141038197842E-2,6.1704211557296766E-2,2.4485798237022526E-2]
[null,"90 m² und mehr","einfach","J",null,null,{"$f":"SUM(G20+F20)/U20","v":0.5675105485232067},null,null,8.0168776371308023E-2,null,{"$f":"SUM(L20/U20)","v":4.2194092827004218E-2},{"$f":"SUM(M20/S20)","v":0},0.10970464135021098,5.6962025316455694E-2,7.1729957805907171E-2,5.0632911392405063E-2,2.1097046413502109E-2]
[null,null,"mittel","K",null,null,{"$f":"SUM(G21+F21)/U21","v":0.46944083224967492},null,null,0.11053315994798439,null,{"$f":"SUM(L21+K21)/U21","v":4.6814044213263982E-2},0,4.94148244473342E-2,5.071521456436931E-2,0.10533159947984395,0.11313394018205461,5.4616384915474644E-2]
[null,null,"gut","L",null,null,{"$f":"SUM(G22+F22)/U22","v":0.62199312714776633},null,null,{"$f":"SUM(J22/U22)","v":0.13745704467353953},null,{"$f":"SUM(L22/U22)","v":4.6391752577319589E-2},0,3.0927835051546393E-2,5.6701030927835051E-2,1.2027491408934709E-2,4.8109965635738834E-2,4.6391752577319589E-2]
[]
[null,"Die obere Tabelle ist dem Endbericht des Berliner Mietspiegels 2019 entnommen, der durch die Firma GEWOS Institut für Stadt-, Regional- und Wohnforschung GmbH erstellt wurde und"]
[null,"bei denen auch die dazugehörenden Rechte des copyrights des Berichtes liegen (GEWOS GmbH, Maurienstraße 5, 22305 Hamburg, Telefon 040/ Telefon +49 (0)40 69 71 2-0, Telefax +49 (0)40 -69 71 22 20"]
[null,"Internet: www.f-und-b.de  E-Mail: service@f-und-b.de)."]
[null,"Das Bundessozialgericht hat die Einbeziehung bestimmter Wohnungen mit allereinfachstem Wohnstandard für die Erstellung des schlüssigen Konzeptes für unzulässig gehalten."]
[null,"Diese Daten sind im schlüssigen Konzept 2019 nicht  enthalten."]

{"sheet":"Mietspiegel","index":17,"n_rows":46,"n_cols":14,"rows_kept":46,"cut":false,"hidden":false,"merged":[]}
[]
["Start","Berliner Mietspiegel 2023"]
[]
[]
[null,null,null,null,null,null,null,null,null,null,null,null,null,"gewichteter"]
[null,"einfache Wohnlagen",null,"Spalte 1",null,"Spalte 2",null,"Spalte 3","Spalte 4","Spalte 5","Spalte 6","Spalte 7","Spalte 8","Mietpreis"]
[null,null,"bis 1918 ","bis 1918","1919 - 1945","1919 - 1949","1950 - 1955","1950 - 1964","1965 - 1972","1973 - 1990","1973 - 1990","1991 - 2002","2003 - 2017","Kaltmiete"]
[null,null,"m. SH od. Bad, IWC","m. SH, Bad, IWC",null,null,null,null,null,"West","Ost m. Wendw.","o. Wendew.","o. Wendew.","pro m²"]
[null,"Wohnungen bis unter 40 m²",null,8.42,null,8.32,null,6.85,7.24,8.06,7.61]
[null,"Wohnungen bis unter 40 m² mittel",null,8.98,null,8.16,null,7.3,7,8.24,7.39]
[null,"Wohnungen 40 bis unter 60 m²",null,7.19,null,6.82,null,6.4,6.26,7.95,6.41,8.91,12.37,{"$f":"Werte!J3","v":7.21}]
[null,"Wohnungen 40 bis unter 60 m² mittel",null,7.92,null,7.18,null,6.51,6.38,8.24,6.35,8.7200000000000006,10.5]
[null,"Wohnungen 60 - 90 m² ",null,6.75,null,6.25,null,5.94,5.81,7.75,5.62,8.2200000000000006,13.73,{"$f":"Werte!L3","v":6.59}]
[null,"Wohnungen 60 - 90 m² mittel",null,7.21,null,6.65,null,6.4,6.08,8.5299999999999994,5.62,8.42,10.75]
[null,"Wohnungen über 90 m² ",null,6.64,null,6.53,null,null,5.83,7.66,5.58,8.48,12.73,{"$f":"Werte!M3","v":7.09}]
[null,"Wohnungen über 90 m² mittel",null,7.21,null,6.41,null,7.21,5.75,8.14,5.6,8.73,10.74]
[]
[]
[null,"Durchschnitt"]
[]
[]
[]
[null,"Personen","Mietwohnungsgröße"]
[null,1,"1 - 1 1/2 Zimmer",null,{"$f":"Werte!CC3","v":50},"m²",null,null,"Für diese Werte keine verlässliche Anzahl von Mietwerten vor (weniger als 10), "]
[null,2,"2 Zimmer bis",null,{"$f":"Werte!CD3","v":65},"m²",null,null,"sie sind nicht in der Mietspiegeltabelle enthalten"]
[null,"alleinerziehend mit 1 Kind",null,null,{"$f":"Werte!CE3","v":65},"m²",null,null,"bedingte Aussagekraft (10- 14 Mietwerte)",null,null,null,"im Mietspiegel 23 nicht benannt"]
[null,3,"3 Zimmer bis",null,{"$f":"Werte!CF3","v":80},"m²"]
[null,4,"4 Zimmer bis",null,{"$f":"Werte!CG3","v":90},"m²"]
[null,5,"5 Zimmer bis",null,{"$f":"Werte!CH3","v":102},"m²"]
[null,6,"jedes weitere Zimmer",null,{"$f":"Werte!CI3","v":12},"m²"]
[]
[null,"Werte der angem. Wohnungsgrößen nach BSG Rechtsprechung (z.B. Urteil vom 19.10.2010, B 14 AS 65/09 R):"]
[null,"(Bestimmung der abstrakt angemessenen Wohnfläche)"]
[]
[null,"Bei der Bestimmung der angemessenen Wohnfläche ist auf die anerkannte Wohnraumgröße f. Wohnberechtigte im sozialen Mietwohnungsbau abzustellen (stRspr seit BSGE 97, 254 = SozR 4-4200 "]
[null,"§ 22 Nr. 3, jeweils RdNr 19)."]
[null,"Hinsichtlich der Überlassung von gefördertem Mietwohnungsraum gilt § 27 Abs 1 und 5 WoFG vom 13.9.2001 (BGBl I 2376) i.V.m. § 5 des Gesetzes zur Sicherstellung der Zweckbestimmung von "]
[null,"Sozialwohnungen (WoBindG) in der im streitigen Zeitraum geltenden Fassung (nF) der Bekanntmachung vom 13.9.2001 (BGBl I 2404)."]
[null,"Wegen der maßgeblichen Wohnungsgröße verweist § 27 Abs. 4 WoFG (als Nachfolgeregelung zu § 5 Abs. 2 WoBindG in der bis zum 31.12.2001 geltenden Fassung) auf die nach § 10 WoFG von den "]
[null,"Ländern festgelegten  Wohnungsgrößen. Das Land Berlin hat allerdings zu § 10 WoFG keine Ausführungsvorschriften erlassen. Zu § 5 WoBindG nf. und § 27 WoFG liegen nur (unveröffentlichte) "]
[null,"Arbeitshinweise der Senatsverwaltung für Stadtentwicklung vom 15.12.2004 vor, die wegen der maßgeblichen Wohnungsgröße an die zuvor ergangenen Bekanntmachungen anknüpfen (vgl. Hinweis 8). "]
[null,"Danach darf entsprechend der Bekanntmachung der Senatsverwaltung für Bau- und Wohnungswesen vom 20.10.1995 (Amtsblatt für Berlin 1995, 4462) an eine Einzelperson Wohnraum von bis zu "]
[null,"50 m² und für 2 Personenhaushalte 60 m² überlassen werden. "]
[null,"An diese Regelungen auf Grundlage des § 5 Abs. 2 WoBindG nf., die auch nach Inkrafttreten von § 27 WoFG und § 5 WoBindG nf. Grundlage für die Belegung von gefördertem Wohnraum sind, ist "]
[null,"auch für die Bestimmung der Angemessenheitsgrenze nach § 22 Abs. 1 SGB II anzuknüpfen (vgl. BSG SozR 4-4200 § 22 Nr. 26 RdNr 14 <Zweibrücken>)."]
[null,"\n\n"]

{"sheet":"Mietgrenze WoGG","index":18,"n_rows":109,"n_cols":30,"rows_kept":109,"cut":false,"hidden":false,"merged":[[0,6,0,8],[4,1,10,1],[4,2,9,2],[4,9,10,9],[4,10,10,10],[10,3,10,6],[10,12,10,15],[46,1,51,1],[46,9,51,9],[4,12,4,15],[5,3,5,4],[5,12,5,13],[6,3,9,3],[6,4,9,4],[6,12,9,12],[6,13,9,13],[4,11,10,11]]}
["Start","Berechnung  der Mietgrenze / § 12(1) :",null,null,null,null,{"$f":"SUM(Q103)","v":0},null,null,null,null,"abzüglich Anteil:",{"$f":"SUM(Q106)","v":0},"ergibt ",{"$f":"SUM(AD107)","v":0},"mit Heizkostenentlastung & "]
["EF1"]
[{"$f":"\"   ©   1999 - \"&Einstellungen!E2&\"  G. Leupold und J. Kroggel\"","v":"   ©   1999 -   G. Leupold und J. Kroggel"}]
[null,null,4,{"$f":"IF($C4=1,1,\"\")","v":""},{"$f":"IF($C4=2,1,\"\")","v":""},{"$f":"IF($C4=3,1,\"\")","v":""},{"$f":"IF($C4=4,1,\"\")","v":1},null,null,null,null,null,{"$f":"IF(D4=1,1,\"\")","v":""},{"$f":"IF(E4=1,1,\"\")","v":""},{"$f":"IF(F4=1,1,\"\")","v":""},{"$f":"IF(G4=1,1,\"\")","v":1}]
[null,"Personen im Haushalt","Miet-niveau-stufe",null,null,null,null,null,null,"Personen im Haushalt","Miet-niveau-stufe","interne Prüfung \nder Personen (1)"]
[null,null,null,null,null,"Zuschlag:",null,"%",null,null,null,null,null,null,null,"ab"]
[{"$f":"ErgebnisDruck!G19","v":0},null,null,"Mietober-grenze ab 2009",null,"Mietober-","Mietober-",null,null,null,null,null,null,null,null,"1992-01-01"]
[null,null,null,null,null,"grenze ab","grenze ab",null,null,null,null,null,null,null,null,null,"Miete"]
[null,null,null,null,null,"2016-01-01","2016-01-01",null,null,null,null,null,null,null,null,null,"§ 12 (1)"]
[null,null,null,null,null,null,{"$f":"\"(+ \"&G6&\"%)\"","v":"(+ %)"}]
[null,null,{"$f":"Einstellungen!D85","v":4},"Euro",null,null,null,null,null,null,null,null,"Euro",null,null,null,{"$f":"Q103","v":0},"= zuschussfähiger Miethöchstbetrag (für alle Pers.)"]
[null,null,1,null,null,{"$f":"Werte!CK$3","v":338},{"$f":"ROUND(F12+(F12/100*G$6),0)","v":338},null,null,null,1,{"$f":"IF(AND(A$14=1,C$11=C12),1,\"\")","v":""},{"$f":"IF(AND($L12=1,M$4=1),D12,\"\")","v":""},"","",{"$f":"IF(AND($L12=1,P$4=1),G12,\"\")","v":""},{"$f":"SUM(M12:P12)","v":0}]
[null,null,2,null,null,{"$f":"Werte!CL$3","v":381},{"$f":"ROUND(F13+(F13/100*G$6),0)","v":381},null,null,null,2,"","","","","",0]
[{"$f":"IF(A$7=B14,1,\"\")","v":""},1,3,null,null,{"$f":"Werte!CM$3","v":426},426,null,null,1,3,"","","","","",0]
[null,null,4,null,null,{"$f":"Werte!CN$3","v":478},478,null,null,null,4,"","","","","",0]
[null,null,5,null,null,{"$f":"Werte!CO$3","v":525},525,null,null,null,5,"","","","","",0]
[null,null,6,null,null,{"$f":"Werte!CP$3","v":575},575,null,null,null,6,"","","","","",0]
[null,null,7,null,null,{"$f":"Werte!CQ$3","v":633},633,null,null,null,7,"","","","","",0]
[null,null,1,null,null,{"$f":"Werte!CR$3","v":409},409,null,null,null,1,{"$f":"IF(AND(A$21=1,C$11=C19),1,\"\")","v":""},"","","","",0]
[null,null,2,null,null,{"$f":"Werte!CS$3","v":461},461,null,null,null,2,"","","","","",0]
[{"$f":"IF(A$7=B21,1,\"\")","v":""},2,3,null,null,{"$f":"Werte!CT$3","v":516},516,null,null,2,3,"","","","","",0]
[null,null,4,null,null,{"$f":"Werte!CU$3","v":579},579,null,null,null,4,"","","","","",0]
[null,null,5,null,null,{"$f":"Werte!CV$3","v":636},636,null,null,null,5,"","","","","",0]
[null,null,6,null,null,{"$f":"Werte!CW$3","v":697},697,null,null,null,6,"","","","","",0]
[null,null,7,null,null,{"$f":"Werte!CX$3","v":767},767,null,null,null,7,"","","","","",0]
[null,null,1,null,null,{"$f":"Werte!CY$3","v":487},487,null,null,null,1,{"$f":"IF(AND(A$28=1,C$11=C26),1,\"\")","v":""},"","","","",0]
[null,null,2,null,null,{"$f":"Werte!CZ$3","v":549},549,null,null,null,2,"","","","","",0]
[{"$f":"IF(A$7=B28,1,\"\")","v":""},3,3,null,null,{"$f":"Werte!DA$3","v":614},614,null,null,3,3,"","","","","",0]
[null,null,4,null,null,{"$f":"Werte!DB$3","v":689},689,null,null,null,4,"","","","","",0]
[null,null,5,null,null,{"$f":"Werte!DC$3","v":757},757,null,null,null,5,"","","","","",0]
[null,null,6,null,null,{"$f":"Werte!DD$3","v":830},830,null,null,null,6,"","","","","",0]
[null,null,7,null,null,{"$f":"Werte!DE$3","v":912},912,null,null,null,7,"","","","","",0]
[null,null,1,null,null,{"$f":"Werte!DF$3","v":568},568,null,null,null,1,{"$f":"IF(AND(A$35=1,C$11=C33),1,\"\")","v":""},"","","","",0]
[null,null,2,null,null,{"$f":"Werte!DG$3","v":641},641,null,null,null,2,"","","","","",0]
[{"$f":"IF(A$7=B35,1,\"\")","v":""},4,3,null,null,{"$f":"Werte!DH$3","v":716},716,null,null,4,3,"","","","","",0]
[null,null,4,null,null,{"$f":"Werte!DI$3","v":803},803,null,null,null,4,"","","","","",0]
[null,null,5,null,null,{"$f":"Werte!DJ$3","v":884},884,null,null,null,5,"","","","","",0]
[null,null,6,null,null,{"$f":"Werte!DK$3","v":968},968,null,null,null,6,"","","","","",0]
[null,null,7,null,null,{"$f":"Werte!DL$3","v":1065},1065,null,null,null,7,"","","","","",0]
[null,null,1,null,null,{"$f":"Werte!DM$3","v":649},649,null,null,null,1,{"$f":"IF(AND(A$42=1,C$11=C40),1,\"\")","v":""},"","","","",0]
[null,null,2,null,null,{"$f":"Werte!DN$3","v":732},732,null,null,null,2,"","","","","",0]
[{"$f":"IF(A$7=B42,1,\"\")","v":""},5,3,null,null,{"$f":"Werte!DO$3","v":818},818,null,null,5,3,"","","","","",0]
[null,null,4,null,null,{"$f":"Werte!DP$3","v":918},918,null,null,null,4,"","","","","",0]
[null,null,5,null,null,{"$f":"Werte!DQ$3","v":1010},1010,null,null,null,5,"","","","","",0]
[null,null,6,null,null,{"$f":"Werte!DR$3","v":1106},1106,null,null,null,6,"","","","","",0]
[null,null,7,null,null,{"$f":"Werte!DS$3","v":1217},1217,null,null,null,7,"","","","","",0]
[null,"Mehrbe-trag für jedes weitere Familien-mitglied",1,null,null,{"$f":"Werte!DT$3","v":77},77,null,null,"Mehrbe-trag für jedes weitere Familien-mitglied",1]
[null,null,2,null,null,{"$f":"Werte!DU$3","v":88},88,null,null,null,2]
[null,null,3,null,null,{"$f":"Werte!DV$3","v":99},99,null,null,null,3]
[null,null,4,null,null,{"$f":"Werte!DW$3","v":111},111,null,null,null,4]
[null,null,5,null,null,{"$f":"Werte!DX$3","v":121},121,null,null,null,5]
[null,null,6,null,null,{"$f":"Werte!DY$3","v":139},139,null,null,null,6]
[null,null,7,null,null,{"$f":"Werte!DZ$3","v":153},153,null,null,null,7]
[null,null,1,null,null,{"$f":"F40+F47","v":726},726,null,null,null,1,{"$f":"IF(AND(A$56=1,C$11=C54),1,\"\")","v":""},{"$f":"IF(AND($L54=1,M$4=1),D54,\"\")","v":""},"","","",{"$f":"SUM(M54:P54)","v":0}]
[null,null,2,null,null,{"$f":"F41+F48","v":820},820,null,null,null,2,"","","","","",0]
[{"$f":"IF(A$7=B56,1,\"\")","v":""},6,3,null,null,917,917,null,null,6,3,"","","","","",0]
[null,null,4,null,null,1029,1029,null,null,null,4,"","","","","",0]
[null,null,5,null,null,1131,1131,null,null,null,5,"","","","","",0]
[null,null,6,null,null,1245,1245,null,null,null,6,"","","","","",0]
[null,null,7,null,null,1370,1370,null,null,null,7,"","","","","",0]
[null,null,1,null,null,{"$f":"F54+F47","v":803},803,null,null,null,1,{"$f":"IF(AND(A$63=1,C$11=C61),1,\"\")","v":""},"","","","",0]
[null,null,2,null,null,{"$f":"F55+F48","v":908},908,null,null,null,2,"","","","","",0]
[{"$f":"IF(A$7=B63,1,\"\")","v":""},7,3,null,null,1016,1016,null,null,7,3,"","","","","",0]
[null,null,4,null,null,1140,1140,null,null,null,4,"","","","","",0]
[null,null,5,null,null,1252,1252,null,null,null,5,"","","","","",0]
[null,null,6,null,null,1384,1384,null,null,null,6,"","","","","",0]
[null,null,7,null,null,1523,1523,null,null,null,7,"","","","","",0]
[null,null,1,null,null,{"$f":"F61+F47","v":880},880,null,null,null,1,{"$f":"IF(AND(A$70=1,C$11=C68),1,\"\")","v":""},"","","","",0]
[null,null,2,null,null,{"$f":"F62+F48","v":996},996,null,null,null,2,"","","","","",0]
[{"$f":"IF(A$7=B70,1,\"\")","v":""},8,3,null,null,1115,1115,null,null,8,3,"","","","","",0]
[null,null,4,null,null,1251,1251,null,null,null,4,"","","","","",0]
[null,null,5,null,null,1373,1373,null,null,null,5,"","","","","",0]
[null,null,6,null,null,1523,1523,null,null,null,6,"","","","","",0]
[null,null,7,null,null,1676,1676,null,null,null,7,"","","","","",0]
[null,null,1,null,null,{"$f":"F68+F47","v":957},957,null,null,null,1,{"$f":"IF(AND(A$77=1,C$11=C75),1,\"\")","v":""},"","","","",0]
[null,null,2,null,null,{"$f":"F69+F48","v":1084},1084,null,null,null,2,"","","","","",0]
[{"$f":"IF(A$7=B77,1,\"\")","v":""},9,3,null,null,1214,1214,null,null,9,3,"","","","","",0,null,null,null,null,null,null,null,"vor Anwendung der Kontrollkästchen Blattschutz ausschalten!"]
[null,null,4,null,null,1362,1362,null,null,null,4,"","","","","",0]
[null,null,5,null,null,1494,1494,null,null,null,5,"","","","","",0,"neu ab 1.1.2009",null,"ab 01.01.2023",null,null,null,"bis 31.12.2010 und ab 01.01.2021",null,null,null,"ab 01.01.2023"]
[null,null,6,null,null,1662,1662,null,null,null,6,"","","","","",0,"Berücksichtigung von Heizkosten (pauschal)"]
[null,null,7,null,null,1829,1829,null,null,null,7,"","","","","",0]
[null,null,1,null,null,{"$f":"F75+F47","v":1034},1034,null,null,null,1,{"$f":"IF(AND(A$84=1,C$11=C82),1,\"\")","v":""},"","","","",0,null,null,"Heizkosten-","Personen",true,null,"Heizkosten-","Personen",true,null,null,"Personen",false]
[null,null,2,null,null,{"$f":"F76+F48","v":1172},1172,null,null,null,2,"","","","","",0,null,"Haushaltsmitglieder","entlastung",{"$f":"A7","v":0},{"$f":"IF(V82=TRUE,1,0)","v":1},null,"komponente",{"$f":"U83","v":0},{"$f":"IF(Z82=TRUE,1,0)","v":1},null,"Klimakomponente",{"$f":"U83","v":0},{"$f":"IF(AD82=TRUE,1,0)","v":0}]
[{"$f":"IF(A$7=B84,1,\"\")","v":""},10,3,null,null,1313,1313,null,null,10,3,"","","","","",0,null,1,{"$f":"Werte!ED$3","v":14.4},{"$f":"IF(S84=U$83,T84,0)","v":0},null,null,{"$f":"Werte!EK$3","v":96},{"$f":"IF(S84=Y$83,X84,0)","v":0},null,null,{"$f":"Werte!ER$3","v":19.2},{"$f":"IF(S84=AC$83,AB84,0)","v":0}]
[null,null,4,null,null,1473,1473,null,null,null,4,"","","","","",0,null,2,{"$f":"Werte!EE$3","v":18.600000000000001},{"$f":"IF(S85=U$83,T85,0)","v":0},null,null,{"$f":"Werte!EL$3","v":124},{"$f":"IF(S85=Y$83,X85,0)","v":0},null,null,{"$f":"Werte!ES$3","v":24.8},{"$f":"IF(S85=AC$83,AB85,0)","v":0}]
[null,null,5,null,null,1615,1615,null,null,null,5,"","","","","",{"$f":"SUM(M86:P86)","v":0},null,3,{"$f":"Werte!EF$3","v":22.2},{"$f":"IF(S86=U$83,T86,0)","v":0},null,null,{"$f":"Werte!EM$3","v":148},{"$f":"IF(S86=Y$83,X86,0)","v":0},null,null,{"$f":"Werte!ET$3","v":29.6},{"$f":"IF(S86=AC$83,AB86,0)","v":0}]
[null,null,6,null,null,1801,1801,null,null,null,6,"","","","","",0,null,4,{"$f":"Werte!EG$3","v":25.8},{"$f":"IF(S87=U$83,T87,0)","v":0},null,null,{"$f":"Werte!EN$3","v":172},{"$f":"IF(S87=Y$83,X87,0)","v":0},null,null,{"$f":"Werte!EU$3","v":34.4},{"$f":"IF(S87=AC$83,AB87,0)","v":0}]
[null,null,7,null,null,1982,1982,null,null,null,7,"","","","","",0,null,5,{"$f":"Werte!EH$3","v":29.4},{"$f":"IF(S88=U$83,T88,0)","v":0},null,null,{"$f":"Werte!EO$3","v":196},{"$f":"IF(S88=Y$83,X88,0)","v":0},null,null,{"$f":"Werte!EV$3","v":39.200000000000003},{"$f":"IF(S88=AC$83,AB88,0)","v":0}]
[null,null,1,null,null,{"$f":"F82+F47","v":1111},{"$f":"ROUND(F89+(F89/100*G$6),0)","v":1111},null,null,null,1,{"$f":"IF(AND(A$91=1,C$11=C89),1,\"\")","v":""},"","","","",0,null,"je weitere Person",{"$f":"Werte!EI$3","v":3.6},null,null,null,{"$f":"Werte!EP$3","v":24},null,null,null,{"$f":"Werte!EW$3","v":4.8}]
[null,null,2,null,null,{"$f":"F83+F48","v":1260},1260,null,null,null,2,"","","","","",0,null,6,{"$f":"SUM(T88,T89)","v":33},{"$f":"IF(S90=U$83,T90,0)","v":0},null,null,{"$f":"SUM(X88,X89)","v":220},{"$f":"IF(S90=Y$83,X90,0)","v":0},null,null,{"$f":"SUM(AB88,AB89)","v":44},{"$f":"IF(S90=AC$83,AB90,0)","v":0}]
[{"$f":"IF(A$7=B91,1,\"\")","v":""},11,3,null,null,1412,1412,null,null,11,3,"","","","","",0,null,7,{"$f":"SUM(T90,T$38)","v":33},0,null,null,{"$f":"SUM(X90,W$38)","v":220},0,null,null,{"$f":"SUM(AB90,Z$38)","v":44},0]
[null,null,4,null,null,1584,1584,null,null,null,4,"","","","","",0,null,8,33,0,null,null,220,0,null,null,44,0]
[null,null,5,null,null,1736,1736,null,null,null,5,"","","","","",0,null,9,33,0,null,null,220,0,null,null,44,0]
[null,null,6,null,null,1940,1940,null,null,null,6,"","","","","",0,null,10,33,0,null,null,220,0,null,null,44,0]
[null,null,7,null,null,2135,2135,null,null,null,7,"","","","","",0,null,11,33,0,null,null,220,0,null,null,44,0]
[null,null,1,null,null,{"$f":"F89+F47","v":1188},1188,null,null,null,1,{"$f":"IF(AND(A$98=1,C$11=C96),1,\"\")","v":""},"","","","",0,null,12,33,0,null,null,220,0,null,null,44,0]
[null,null,2,null,null,{"$f":"F90+F48","v":1348},1348,null,null,null,2,"","","","","",0,null,null,null,{"$f":"IF(V83=1,0,SUM(U84:U96))","v":0},null,null,"Heizkostenpauschale",{"$f":"IF(Z83=1,0,SUM(Y84:Y96))","v":0},null,null,null,{"$f":"IF(AD83=1,0,SUM(AC84:AC96))","v":0}]
[{"$f":"IF(A$7=B98,1,\"\")","v":""},12,3,null,null,1511,1511,null,null,12,3,"","","","","",0,null,null,null,null,null,null,null,null,"(unabhängig von tatsächlichen Heizkosten)"]
[null,null,4,null,null,1695,1695,null,null,null,4,"","","","","",0]
[null,null,5,null,null,1857,1857,null,null,null,5,"","","","","",0,null,null,null,null,null,null,null,null,null,null,null,null,"Miethöchstbetrag "]
[null,null,6,null,null,2079,2079,null,null,null,6,"","","","","",0,null,null,null,null,null,null,null,null,null,null,null,null,"+ Klimapauschale"]
[null,null,7,null,null,2288,2288,null,null,null,7,"","","","","",0]
[null,null,null,null,null,null,null,null,null,"für alle Personen im Haushalt:",null,null,null,null,null,"zuschussfähiger Miethöchstbetrag:",{"$f":"SUM(Q12:Q102)","v":0},"+",null,"Heizkostenentlastung:",{"$f":"U97","v":0},"+",null,"Heizkostenkomponente:",{"$f":"Y97","v":0},"+",null,"Klimapauschale /§ 12 (7):",{"$f":"AC97","v":0},{"$f":"SUM(Q103,U103,Y103,AC103)","v":0}]
[]
[null,null,null,null,null,null,null,null,null,null,null,"Personen im Haushalt ",{"$f":"A7","v":0},null,null,"Betrag je Person:",{"$f":"IF($M105>0,Q103/$M105,Q103)","v":0},"+",null,"Betrag je Person:",{"$f":"IF($M105>0,U103/$M105,U103)","v":0},null,null,"Betrag je Person:",{"$f":"IF($M105>0,Y103/$M105,Y103)","v":0},null,null,"Betrag je Person:",{"$f":"IF($M105>0,AC103/$M105,AC103)","v":0}]
[null,null,null,null,null,null,null,null,null,null,null,"Personen mit Ausschlusstatbestand ",0,null,null,"abzuziehender Anteil:",{"$f":"Q105*$M106","v":0},"+",null,"abzuziehender Anteil:",{"$f":"U105*$M106","v":0},null,null,"abzuziehender Anteil:",{"$f":"Y105*$M106","v":0},null,null,"abzuziehender Anteil:",{"$f":"AC105*$M106","v":0},{"$f":"SUM(Q106,Y106,AC106)","v":0}]
[null,null,null,null,null,null,null,null,null,null,null,null,null,null,null,"zuschussfähiger Miethöchstbetrag:",{"$f":"Q103-Q106","v":0},"+",null,"zuschussfähige Heizkosten",{"$f":"U103-U106","v":0},null,null,"zuschussfähige Heizkosten",{"$f":"Y103-Y106","v":0},null,null,"zuschussfähige Klimapauschale",{"$f":"AC103-AC106","v":0},{"$f":"SUM(Q107,AC107)","v":0}]
[]
[null,null,null,null,null,null,null,null,null,null,null,null,null,null,null,null,595]

{"sheet":"schlüssiges Konzept","index":19,"n_rows":52,"n_cols":18,"rows_kept":52,"cut":false,"hidden":false,"merged":[[31,3,32,3],[33,3,34,3],[40,3,40,4],[48,3,49,3],[50,3,51,3],[41,3,43,3],[41,4,42,4],[44,3,45,3],[46,3,47,3],[23,3,23,4],[24,3,26,3],[24,4,25,4],[27,3,28,3],[29,3,30,3]]}
[]
["Start",null,"schlüssiges Konzept Berlin",null,null,null,{"$f":"\"nach AV-Wohnen \"&YEAR(Werte!G3)","v":"nach AV-Wohnen 2023"}]
[]
[]
[null,null,"Berliner Mittelwerte 2019 für einfache und mittlere Wohnlage",null,null,null,null,null,null,null,null,null,null,null,null,"ausblenden in Endversion"]
[]
[null,null,null,null,null,null,null,null,null,null,null,null,null,{"$f":"Mietspiegel!N5","v":"gewichteter"}]
[null,null,null,{"$f":"Mietspiegel!B6","v":"einfache Wohnlagen"},null,{"$f":"Mietspiegel!D6","v":"Spalte 1"},{"$f":"Mietspiegel!F6","v":"Spalte 2"},{"$f":"Mietspiegel!H6","v":"Spalte 3"},{"$f":"Mietspiegel!I6","v":"Spalte 4"},{"$f":"Mietspiegel!J6","v":"Spalte 5"},{"$f":"Mietspiegel!K6","v":"Spalte 6"},{"$f":"Mietspiegel!L6","v":"Spalte 7"},{"$f":"Mietspiegel!M6","v":"Spalte 8"},{"$f":"Mietspiegel!N6","v":"Mietpreis"}]
[null,null,null,null,null,{"$f":"Mietspiegel!D7","v":"bis 1918"},{"$f":"Mietspiegel!F7","v":"1919 - 1949"},{"$f":"Mietspiegel!H7","v":"1950 - 1964"},{"$f":"Mietspiegel!I7","v":"1965 - 1972"},{"$f":"Mietspiegel!J7","v":"1973 - 1990"},{"$f":"Mietspiegel!K7","v":"1973 - 1990"},{"$f":"Mietspiegel!L7","v":"1991 - 2002"},{"$f":"Mietspiegel!M7","v":"2003 - 2017"},{"$f":"Mietspiegel!N7","v":"Kaltmiete"}]
[null,null,null,null,null,{"$f":"Mietspiegel!D8","v":"m. SH, Bad, IWC"},{"$f":"IF(Mietspiegel!F8=\"\",\"\",Mietspiegel!F8)","v":""},{"$f":"IF(Mietspiegel!H8=\"\",\"\",Mietspiegel!H8)","v":""},{"$f":"IF(Mietspiegel!I8=\"\",\"\",Mietspiegel!I8)","v":""},{"$f":"Mietspiegel!J8","v":"West"},{"$f":"Mietspiegel!K8","v":"Ost m. Wendw."},{"$f":"Mietspiegel!L8","v":"o. Wendew."},{"$f":"Mietspiegel!M8","v":"o. Wendew."},{"$f":"Mietspiegel!N8","v":"pro m²"}]
[null,null,null,{"$f":"Mietspiegel!B9","v":"Wohnungen bis unter 40 m²"},null,{"$f":"Mietspiegel!D9","v":8.42},{"$f":"Mietspiegel!F9","v":8.32},{"$f":"Mietspiegel!H9","v":6.85},{"$f":"Mietspiegel!I9","v":7.24},{"$f":"Mietspiegel!J9","v":8.06},{"$f":"Mietspiegel!K9","v":7.61},{"$f":"Mietspiegel!L9","v":0},{"$f":"Mietspiegel!M9","v":0},{"$f":"Mietspiegel!N9","v":0}]
[null,null,null,{"$f":"Mietspiegel!B10","v":"Wohnungen bis unter 40 m² mittel"},null,{"$f":"Mietspiegel!D10","v":8.98},{"$f":"Mietspiegel!F10","v":8.16},{"$f":"Mietspiegel!H10","v":7.3},{"$f":"Mietspiegel!I10","v":7},{"$f":"Mietspiegel!J10","v":8.24},{"$f":"Mietspiegel!K10","v":7.39},{"$f":"Mietspiegel!L10","v":0},{"$f":"Mietspiegel!M10","v":0},{"$f":"Mietspiegel!N10","v":0}]
[null,null,null,{"$f":"Mietspiegel!B11","v":"Wohnungen 40 bis unter 60 m²"},null,{"$f":"Mietspiegel!D11","v":7.19},{"$f":"Mietspiegel!F11","v":6.82},{"$f":"Mietspiegel!H11","v":6.4},{"$f":"Mietspiegel!I11","v":6.26},{"$f":"Mietspiegel!J11","v":7.95},{"$f":"Mietspiegel!K11","v":6.41},{"$f":"Mietspiegel!L11","v":8.91},{"$f":"Mietspiegel!M11","v":12.37},{"$f":"Mietspiegel!N11","v":7.21}]
[null,null,null,{"$f":"Mietspiegel!B12","v":"Wohnungen 40 bis unter 60 m² mittel"},null,{"$f":"Mietspiegel!D12","v":7.92},{"$f":"Mietspiegel!F12","v":7.18},{"$f":"Mietspiegel!H12","v":6.51},{"$f":"Mietspiegel!I12","v":6.38},{"$f":"Mietspiegel!J12","v":8.24},{"$f":"Mietspiegel!K12","v":6.35},{"$f":"Mietspiegel!L12","v":8.7200000000000006},{"$f":"Mietspiegel!M12","v":10.5},{"$f":"Mietspiegel!N12","v":0}]
[null,null,null,{"$f":"Mietspiegel!B13","v":"Wohnungen 60 - 90 m² "},null,{"$f":"Mietspiegel!D13","v":6.75},{"$f":"Mietspiegel!F13","v":6.25},{"$f":"Mietspiegel!H13","v":5.94},{"$f":"Mietspiegel!I13","v":5.81},{"$f":"Mietspiegel!J13","v":7.75},{"$f":"Mietspiegel!K13","v":5.62},{"$f":"Mietspiegel!L13","v":8.2200000000000006},{"$f":"Mietspiegel!M13","v":13.73},{"$f":"Mietspiegel!N13","v":6.59}]
[null,null,null,{"$f":"Mietspiegel!B14","v":"Wohnungen 60 - 90 m² mittel"},null,{"$f":"Mietspiegel!D14","v":7.21},{"$f":"Mietspiegel!F14","v":6.65},{"$f":"Mietspiegel!H14","v":6.4},{"$f":"Mietspiegel!I14","v":6.08},{"$f":"Mietspiegel!J14","v":8.5299999999999994},{"$f":"Mietspiegel!K14","v":5.62},{"$f":"Mietspiegel!L14","v":8.42},{"$f":"Mietspiegel!M14","v":10.75},{"$f":"Mietspiegel!N14","v":0}]
[null,null,null,{"$f":"Mietspiegel!B15","v":"Wohnungen über 90 m² "},null,{"$f":"Mietspiegel!D15","v":6.64},{"$f":"Mietspiegel!F15","v":6.53},{"$f":"Mietspiegel!H15","v":0},{"$f":"Mietspiegel!I15","v":5.83},{"$f":"Mietspiegel!J15","v":7.66},{"$f":"Mietspiegel!K15","v":5.58},{"$f":"Mietspiegel!L15","v":8.48},{"$f":"Mietspiegel!M15","v":12.73},{"$f":"Mietspiegel!N15","v":7.09}]
[null,null,null,{"$f":"Mietspiegel!B16","v":"Wohnungen über 90 m² mittel"},null,{"$f":"Mietspiegel!D16","v":7.21},{"$f":"Mietspiegel!F16","v":6.41},{"$f":"Mietspiegel!H16","v":7.21},{"$f":"Mietspiegel!I16","v":5.75},{"$f":"Mietspiegel!J16","v":8.14},{"$f":"Mietspiegel!K16","v":5.6},{"$f":"Mietspiegel!L16","v":8.73},{"$f":"Mietspiegel!M16","v":10.74},{"$f":"Mietspiegel!N16","v":0}]
[]
[]
[]
[null,null,"Grundgesamtheit einfache und mittlere Wohnlage (soweit Mittelwert vorhanden)"]
[]
[null,null,null,{"$f":"Wohnungsbestand!B4","v":"Bezugsfertigkeit"},null,{"$f":"Wohnungsbestand!E4","v":"bis 1918"},{"$f":"Wohnungsbestand!H4","v":"1919 bis 1949"},{"$f":"Wohnungsbestand!K4","v":"1950 bis 1964"},{"$f":"Wohnungsbestand!N4","v":"1965 bis 1972"},{"$f":"Wohnungsbestand!O4","v":"1973 bis 1990  West"},{"$f":"Wohnungsbestand!P4","v":"1973 bis\n1990  Ost"},{"$f":"Wohnungsbestand!Q4","v":"1991  bis 2002"},{"$f":"Wohnungsbestand!R4","v":"2003  bis 2017"},{"$f":"Wohnungsbestand!S4","v":"Summe"}]
[null,null,null,"Wohnfläche","Ausstattung"," + SH"," + SH"," + SH"," + SH"," + SH"," + SH"," + SH"," + SH"]
[null,null,null,null,null," + BD"," + BD"," + BD"," + BD"," + BD"," + BD"," + BD"," + BD"]
[null,null,null,null,"Wohnlage"," + IWC"," + IWC"," + IWC"," + IWC"," + IWC"," + IWC"," + IWC"," + IWC","Summe"]
[null,null,null,{"$f":"Wohnungsbestand!B11","v":"unter 40 m²"},{"$f":"Wohnungsbestand!C11","v":"einfach"},{"$f":"Wohnungsbestand!G11+Wohnungsbestand!E11+Wohnungsbestand!F11","v":19900},{"$f":"Wohnungsbestand!J11+Wohnungsbestand!I11","v":4100},{"$f":"Wohnungsbestand!L11+Wohnungsbestand!K11","v":10700},{"$f":"Wohnungsbestand!N11","v":9900},{"$f":"Wohnungsbestand!O11","v":3700},{"$f":"Wohnungsbestand!P11","v":9200},{"$f":"Wohnungsbestand!Q11","v":1200},{"$f":"Wohnungsbestand!R11","v":500},{"$f":"SUM(F28:M28)","v":59200}]
[null,null,null,null,{"$f":"Wohnungsbestand!C12","v":"mittel"},{"$f":"Wohnungsbestand!G12+Wohnungsbestand!E12+Wohnungsbestand!F12","v":17200},{"$f":"Wohnungsbestand!J12+Wohnungsbestand!I12","v":6300},{"$f":"Wohnungsbestand!L12+Wohnungsbestand!K12","v":17100},{"$f":"Wohnungsbestand!N12","v":9100},{"$f":"Wohnungsbestand!O12","v":2600},{"$f":"Wohnungsbestand!P12","v":22300},{"$f":"Wohnungsbestand!Q12","v":2700},{"$f":"Wohnungsbestand!R12","v":1400},{"$f":"SUM(F29:M29)","v":78700}]
[null,null,null,{"$f":"Wohnungsbestand!B14","v":" 40 m² bis \nunter 60 m²"},{"$f":"Wohnungsbestand!C14","v":"einfach"},{"$f":"Wohnungsbestand!G14+Wohnungsbestand!E14+Wohnungsbestand!F14","v":45800},{"$f":"Wohnungsbestand!J14+Wohnungsbestand!I14","v":26600},{"$f":"Wohnungsbestand!L14+Wohnungsbestand!K14","v":32800},{"$f":"Wohnungsbestand!N14","v":15400},{"$f":"Wohnungsbestand!O14","v":5800},{"$f":"Wohnungsbestand!P14","v":14000},{"$f":"Wohnungsbestand!Q14","v":4000},{"$f":"Wohnungsbestand!R14","v":1500},145900]
[null,null,null,null,{"$f":"Wohnungsbestand!C15","v":"mittel"},{"$f":"Wohnungsbestand!G15+Wohnungsbestand!E15+Wohnungsbestand!F15","v":45300},{"$f":"Wohnungsbestand!J15+Wohnungsbestand!I15","v":50300},{"$f":"Wohnungsbestand!L15+Wohnungsbestand!K15","v":64800},{"$f":"Wohnungsbestand!N15","v":19700},{"$f":"Wohnungsbestand!O15","v":5900},{"$f":"Wohnungsbestand!P15","v":38200},{"$f":"Wohnungsbestand!Q15","v":12900},{"$f":"Wohnungsbestand!R15","v":3800},240900]
[null,null,null,{"$f":"Wohnungsbestand!B17","v":" 60 m² bis \nunter 90 m²"},{"$f":"Wohnungsbestand!C17","v":"einfach"},{"$f":"Wohnungsbestand!G17+Wohnungsbestand!E17+Wohnungsbestand!F17","v":53300},{"$f":"Wohnungsbestand!J17+Wohnungsbestand!I17","v":21200},{"$f":"Wohnungsbestand!L17+Wohnungsbestand!K17","v":26700},{"$f":"Wohnungsbestand!N17","v":36500},{"$f":"Wohnungsbestand!O17","v":9500},{"$f":"Wohnungsbestand!P17","v":27700},{"$f":"Wohnungsbestand!Q17","v":9000},{"$f":"Wohnungsbestand!R17","v":1800},185700]
[null,null,null,null,{"$f":"Wohnungsbestand!C18","v":"mittel"},{"$f":"Wohnungsbestand!E18+Wohnungsbestand!F18+Wohnungsbestand!G18","v":56600},{"$f":"Wohnungsbestand!J18+Wohnungsbestand!I18","v":41600},{"$f":"Wohnungsbestand!L18+Wohnungsbestand!K18","v":48600},{"$f":"Wohnungsbestand!N18","v":31700},{"$f":"Wohnungsbestand!O18","v":8500},{"$f":"Wohnungsbestand!P18","v":71000},{"$f":"Wohnungsbestand!Q18","v":28700},{"$f":"Wohnungsbestand!R18","v":5000},291700]
[null,null,null,{"$f":"Wohnungsbestand!B20","v":"90 m² und mehr"},{"$f":"Wohnungsbestand!C20","v":"einfach"},{"$f":"Wohnungsbestand!G20+Wohnungsbestand!F20","v":26900},{"$f":"Wohnungsbestand!J20+Wohnungsbestand!I20","v":3800},{"$f":"Wohnungsbestand!L20","v":2000},{"$f":"Wohnungsbestand!N20","v":5200},{"$f":"Wohnungsbestand!O20","v":2700},{"$f":"Wohnungsbestand!P20","v":3400},{"$f":"Wohnungsbestand!Q20","v":2400},{"$f":"Wohnungsbestand!R20","v":1000},47400]
[null,null,null,null,{"$f":"Wohnungsbestand!C21","v":"mittel"},{"$f":"Wohnungsbestand!G21+Wohnungsbestand!F21","v":36100},{"$f":"Wohnungsbestand!J21+Wohnungsbestand!I21","v":8500},{"$f":"Wohnungsbestand!L21+Wohnungsbestand!K21","v":3600},{"$f":"Wohnungsbestand!N21","v":3800},{"$f":"Wohnungsbestand!O21","v":3900},{"$f":"Wohnungsbestand!P21","v":8100},{"$f":"Wohnungsbestand!Q21","v":8700},{"$f":"Wohnungsbestand!R21","v":4200},76900]
[]
[]
[]
[null,null,"Berechnung der Durchschittswerte für die einfache und mittlere Wohnlage (gewichtete Mittelwerte mit der Grundgesamtheit) "]
[]
[null,null,null,"Bezugsfertigkeit",null,"bis 1918","1919 bis 1949","1950 bis 1964","1965 bis 1972","1973 bis 1990 West","1973 bis\n1990\nOst","1991  bis 2002","2003  bis 2015","Summe",null,"Durch-schnitt\nin €/m² mtl.",null,"einfache Wohnlage"]
[null,null,null,{"$f":"D25","v":"Wohnfläche"},{"$f":"E25","v":"Ausstattung"}," + SH"," + SH"," + SH"," + SH"," + SH"," + SH"," + SH"," + SH",null,null,"einfache ",null,"einfache "]
[null,null,null,null,null," + BD"," + BD"," + BD"," + BD"," + BD"," + BD"," + BD"," + BD",null,null,"und mittlere",null,"Wohnlage"]
[null,null,null,null,{"$f":"E27","v":"Wohnlage"}," + IWC"," + IWC"," + IWC"," + IWC"," + IWC"," + IWC"," + IWC"," + IWC","Summe",null,"Wohnlage"]
[null,null,null,"unter 40 m²","einfach",{"$f":"F28*F11","v":167558},{"$f":"G11*G28","v":34112},73295,71676,29822.000000000004,70012,0,0,{"$f":"SUM(F45:M45)","v":446475},null,{"$f":"ROUND(((N45+N46)/(N28+N29)),2)","v":7.45},null,{"$f":"ROUND(((N45)/(N28)),2)","v":7.54}]
[null,null,null,null,"mittel",154456,51408,124830,63700,21424,164797,0,0,{"$f":"SUM(F46:M46)","v":580615}]
[null,null,null," 40 m² bis \nunter 60 m²","einfach",329302,181412,209920,96404,46110,89740,35640,18555,1007083,null,{"$f":"ROUND(((N47+N48)/(N30+N31)),2)","v":7.03},"40 qm - 60 qm",{"$f":"ROUND(((N47)/(N30)),2)","v":6.9}]
[null,null,null,null,"mittel",358776,361154,421848,125686,48616,242570,112488.00000000001,39900,1711038,null,{"$f":"ROUND(((N45+N46+N47+N48)/(N28+N29+N30+N31)),2)","v":7.14},"0 qm - 60qm",{"$f":"ROUND(((N45+N47)/(N28+N30)),2)","v":7.09}]
[null,null,null," 60 m² bis \nunter 90 m²","einfach",359775,132500,158598,212065,73625,155674,73980,24714,1190931,null,{"$f":"ROUND(((N49+N50)/(N32+N33)),2)","v":6.59},null,{"$f":"ROUND(((N49)/(N32)),2)","v":6.41}]
[null,null,null,null,"mittel",408086,276640,311040,192736,72505,399020,241654,53750,1955431]
[null,null,null,"90 m² und mehr","einfach",178616,24814,0,30316,20682,18972,20352,12730,306482,null,{"$f":"ROUND(((N51+N52)/(N34+N35)),2)","v":6.98},null,{"$f":"ROUND(((N51)/(N34)),2)","v":6.47}]
[null,null,null,null,"mittel",260281,54485,25956,21850,31746.000000000004,45360,75951,45108,560737]

{"sheet":"schlüssiges Konzept SG","index":20,"n_rows":97,"n_cols":24,"rows_kept":97,"cut":false,"hidden":false,"merged":[[62,8,63,10],[62,11,63,13],[57,5,57,7],[57,8,57,10],[57,11,57,13],[59,5,59,7],[59,8,59,10],[59,11,59,13],[56,14,56,16],[56,11,56,13],[62,14,63,16],[60,5,60,7],[60,8,60,10],[60,14,60,16],[60,11,60,13],[61,14,61,16],[61,5,61,7],[61,8,61,10],[61,11,61,13],[62,5,63,7],[59,14,59,16],[57,14,57,16],[58,6,58,7],[58,9,58,10],[56,8,56,10],[54,11,54,13],[54,14,54,16],[55,15,55,16],[55,12,55,13],[51,14,51,16],[52,12,52,13],[52,15,52,16],[51,11,51,13],[53,14,53,16],[36,11,36,13],[36,8,36,10],[37,9,37,10],[32,8,32,10],[35,11,35,13],[40,9,40,10],[40,12,40,13],[37,12,37,13],[32,14,32,16],[36,14,36,16],[38,14,38,16],[35,14,35,16],[33,11,33,13],[33,14,33,16],[38,11,38,13],[37,15,37,16],[39,14,39,16],[40,15,40,16],[20,5,20,7],[26,5,26,7],[29,5,29,7],[24,8,24,10],[26,8,26,10],[24,5,24,7],[20,8,20,10],[25,9,25,10],[22,6,22,7],[22,9,22,10],[27,8,27,10],[29,8,29,10],[21,5,21,7],[21,8,21,10],[19,12,19,13],[25,12,25,13],[20,11,20,13],[19,15,19,16],[24,11,24,13],[22,12,22,13],[26,11,26,13],[22,15,22,16],[24,14,24,16],[25,15,25,16],[21,11,21,13],[21,14,21,16],[23,14,23,16],[26,14,26,16],[44,2,44,3],[45,5,45,7],[46,6,46,7],[47,5,47,7],[35,8,35,10],[34,6,34,7],[34,9,34,10],[53,5,53,7],[53,8,53,10],[50,5,50,7],[51,5,51,7],[48,5,48,7],[48,8,48,10],[49,9,49,10],[47,8,47,10],[50,8,50,10],[38,8,38,10],[52,6,52,7],[52,9,52,10],[51,8,51,10],[43,6,43,7],[41,2,41,3],[41,5,41,7],[41,8,41,10],[16,12,16,13],[16,15,16,16],[17,11,17,13],[13,12,13,13],[15,5,15,7],[15,8,15,10],[16,6,16,7],[16,9,16,10],[17,5,17,7],[17,8,17,10],[12,14,12,16],[18,11,18,13],[18,14,18,16],[15,11,15,13],[15,14,15,16],[62,2,63,4],[11,14,11,16],[19,6,19,7],[19,9,19,10],[12,5,12,7],[12,8,12,10],[12,11,12,13],[8,4,11,4],[11,5,11,7],[17,14,17,16],[11,8,11,10],[14,8,14,10],[14,5,14,7],[13,9,13,10],[13,6,13,7],[13,15,13,16],[14,14,14,16],[14,11,14,13],[11,11,11,13],[18,5,18,7],[18,8,18,10],[20,14,20,16],[65,14,65,16],[65,2,65,4],[65,5,65,7],[65,8,65,10],[65,11,65,13],[50,2,50,3],[31,6,31,7],[37,6,37,7],[44,5,44,7],[38,5,38,7],[36,5,36,7],[42,5,42,7],[33,5,33,7],[35,5,35,7],[40,6,40,7],[49,6,49,7],[38,2,38,3],[34,15,34,16],[23,5,23,7],[23,8,23,10],[23,11,23,13],[28,12,28,13],[30,14,30,16],[30,5,30,7],[34,12,34,13],[25,6,25,7],[31,9,31,10],[33,8,33,10],[31,15,31,16],[28,15,28,16],[27,14,27,16],[29,14,29,16],[32,5,32,7],[27,5,27,7],[31,12,31,13],[29,11,29,13],[28,9,28,10],[30,11,30,13],[27,11,27,13],[28,6,28,7],[30,8,30,10],[32,11,32,13],[58,12,58,13],[58,15,58,16],[55,6,55,7],[54,5,54,7],[55,9,55,10],[54,8,54,10],[53,11,53,13],[42,11,42,13],[44,14,44,16],[44,11,44,13],[43,12,43,13],[46,9,46,10],[46,12,46,13],[46,15,46,16],[45,8,45,10],[45,11,45,13],[44,8,44,10],[43,9,43,10],[42,8,42,10],[45,14,45,16],[50,14,50,16],[47,14,47,16],[47,11,47,13],[56,5,56,7],[42,14,42,16],[43,15,43,16],[50,11,50,13],[48,11,48,13],[49,15,49,16],[41,11,41,13],[41,14,41,16],[39,5,39,7],[39,8,39,10],[39,11,39,13],[49,12,49,13],[48,14,48,16]]}
[]
["Start",null,"angem. Nettokaltmietenberechnung aufgrund des Berliner Mietspiegels 2019",null,null,null,null,null,null,null,null,null,null,null,null,null,null,null,null,"ausblenden in Endversion"]
[]
[null,null,"nach Sozialgericht Berlin"]
[null,null,"Methode zur Berechnung eines schlüssigen Konzeptes nach der vom BSG für richtig gehaltenen Rechenmethode"]
[null,null,"entwickelt von Richtern am SG Berlin unter Leitung von Stefan Schifferdecker, Britta Irgang, Eva Silbermann"]
[null,null,"Artikel in Archiv für Wissenschaft und Praxis der sozialen Arbeit 1/2010 (Dt. Verein)"]
[null,null,"Dies haben wir erweitert um die Wohnungen des Mittelwertes unter Verwertung aller Wohnungsmengen"]
[null,null,null,null,"Nr. der Miet- spiegel-spalte","Je Wohnungsgröße: Kaltmietwert Mietspiegel je m² / Anzahl der Wohnungen"]
[null,null,null,null,null,"(prozentualer Anteil) / Nettokaltmiete je qm im Verhältnis des Anteils am ",null,null,null,null,null,null,null,null,null,null,null,null,null,null,"Kontrollberechnung  mit den Daten: Rundung 2 Stellen hinter dem Komma"]
[null,null,null,null,null,"berücksichtigten Bestand (je Wohnungsgröße)"]
[null,null,"bezugsfertig",null,null,"bis < 40 m²",null,null,"40 bis < 60 m²",null,null,"60 bis < 90 m²",null,null,"90 m² und >",null,null,null,null,null,"bis < 40 m²","40 bis < 60 m²","60 bis < 90 m²","90 m² und >"]
[null,null,null,null,null,{"$f":"Mietspiegel!D9","v":8.42},null,null,{"$f":"Mietspiegel!D11","v":7.19},null,null,{"$f":"Mietspiegel!D13","v":6.75},null,null,{"$f":"Mietspiegel!D15","v":6.64}]
[null,null,{"$f":"Mietspiegel!D7","v":"bis 1918"},null,1,{"$f":"'schlüssiges Konzept'!F28","v":19900},{"$f":"IF(Wohnungsbestand!G28>0,Wohnungsbestand!G28,\"\")","v":0.33614864864864863},null,{"$f":"'schlüssiges Konzept'!F30","v":45800},{"$f":"IF(Wohnungsbestand!G31>0,Wohnungsbestand!G31,\"\")","v":0.31391363947909529},null,{"$f":"Wohnungsbestand!G17","v":50900},{"$f":"IF(Wohnungsbestand!G34>0,Wohnungsbestand!G34,\"\")","v":0.28702207862143242},null,{"$f":"Wohnungsbestand!G20","v":25900},{"$f":"IF(Wohnungsbestand!G37>0,Wohnungsbestand!G37,\"\")","v":0.5675105485232067}]
[null,null,null,null,null,{"$f":"SUM(F13*G14)","v":2.8303716216216213},null,null,{"$f":"SUM(I13*J14)","v":2.2570390678546954},null,null,{"$f":"SUM(L13*M14)","v":1.9373990306946689},null,null,{"$f":"SUM(O13*P14)","v":3.7682700421940925},null,null,null,null,null,2.6555743243243244,2.1189170664838932,1.8168497576736673,3.535590717299578]
[null,null,null,null,null,{"$f":"Mietspiegel!D10","v":8.98},null,null,{"$f":"Mietspiegel!D12","v":7.92},null,null,{"$f":"Mietspiegel!D14","v":7.21},null,null,{"$f":"Mietspiegel!D16","v":7.21}]
[null,null,{"$f":"Mietspiegel!D7","v":"bis 1918"},null,1,{"$f":"'schlüssiges Konzept'!F29","v":17200},{"$f":"IF(Wohnungsbestand!G29>0,Wohnungsbestand!G29,\"\")","v":0.21855146124523506},null,{"$f":"'schlüssiges Konzept'!F31","v":45300},{"$f":"IF(Wohnungsbestand!G32>0,Wohnungsbestand!G32,\"\")","v":0.18804483188044832},null,{"$f":"Wohnungsbestand!G18","v":54400},{"$f":"IF(Wohnungsbestand!G35>0,Wohnungsbestand!G35,\"\")","v":0.19403496743229345},null,{"$f":"Wohnungsbestand!G21","v":35100},{"$f":"IF(Wohnungsbestand!G38>0,Wohnungsbestand!G38,\"\")","v":0.46944083224967492}]
[null,null,"mittel",null,null,{"$f":"SUM(F16*G17)","v":1.9625921219822109},null,null,{"$f":"SUM(I16*J17)","v":1.4893150684931507},null,null,{"$f":"SUM(L16*M17)","v":1.3989921151868359},null,null,{"$f":"SUM(O16*P17)","v":3.3846684005201562},null,null,null,null,null,1.8423888182973314,1.397173100871731,1.3136167295166266,3.1781144343302992]
[null,null,null,null,null,{"$f":"Mietspiegel!F9","v":8.32},null,null,{"$f":"Mietspiegel!F11","v":6.82},null,null,{"$f":"Mietspiegel!F13","v":6.25},null,null,{"$f":"Mietspiegel!F15","v":6.53}]
[null,null,{"$f":"Mietspiegel!F7","v":"1919 - 1949"},null,2,{"$f":"'schlüssiges Konzept'!G28","v":4100},{"$f":"IF(Wohnungsbestand!J28>0,Wohnungsbestand!J28,\"\")","v":6.9256756756756757E-2},null,{"$f":"'schlüssiges Konzept'!G30","v":26600},{"$f":"IF(Wohnungsbestand!J31>0,Wohnungsbestand!J31,\"\")","v":0.18231665524331733},null,{"$f":"Wohnungsbestand!J17","v":20400},{"$f":"IF(Wohnungsbestand!J34>0,Wohnungsbestand!J34,\"\")","v":0.11416262789445342},null,{"$f":"Wohnungsbestand!J20","v":3700},{"$f":"IF(Wohnungsbestand!J37>0,Wohnungsbestand!J37,\"\")","v":8.0168776371308023E-2}]
[null,null,null,null,null,{"$f":"SUM(F19*G20)","v":0.57621621621621621},null,null,{"$f":"SUM(I19*J20)","v":1.2433995887594242},null,null,{"$f":"SUM(L19*M20)","v":0.7135164243403338},null,null,{"$f":"SUM(O19*P20)","v":0.52350210970464139},null,null,null,null,null,0.54020270270270265,1.1668265935572311,0.67013462574044158,0.49143459915611815]
[null,null,null,null,null,{"$f":"Mietspiegel!F10","v":8.16},null,null,{"$f":"Mietspiegel!F12","v":7.18},null,null,{"$f":"Mietspiegel!F14","v":6.65},null,null,{"$f":"Mietspiegel!F16","v":6.41}]
[null,null,{"$f":"Mietspiegel!F7","v":"1919 - 1949"},null,2,{"$f":"'schlüssiges Konzept'!G29","v":6300},{"$f":"IF(Wohnungsbestand!J29>0,Wohnungsbestand!J29,\"\")","v":8.0050825921219829E-2},null,{"$f":"'schlüssiges Konzept'!G31","v":50300},{"$f":"IF(Wohnungsbestand!J32>0,Wohnungsbestand!J32,\"\")","v":0.20880033208800333},null,{"$f":"Wohnungsbestand!J18","v":40500},{"$f":"IF(Wohnungsbestand!J35>0,Wohnungsbestand!J35,\"\")","v":0.14261227288309908},null,{"$f":"Wohnungsbestand!J21","v":8400},{"$f":"IF(Wohnungsbestand!J38>0,Wohnungsbestand!J38,\"\")","v":0.11053315994798439}]
[null,null,"mittel",null,null,{"$f":"SUM(F22*G23)","v":0.65321473951715381},null,null,{"$f":"SUM(I22*J23)","v":1.4991863843918638},null,null,{"$f":"SUM(L22*M23)","v":0.94837161467260889},null,null,{"$f":"SUM(O22*P23)","v":0.70851755526658},null,null,null,null,null,0.6131893265565439,1.4073142382731425,0.8899005827905383,0.66430429128738622]
[null,null,null,null,null,{"$f":"Mietspiegel!H9","v":6.85},null,null,{"$f":"Mietspiegel!H11","v":6.4},null,null,{"$f":"Mietspiegel!H13","v":5.94},null,null,{"$f":"Mietspiegel!H15","v":0}]
[null,null,{"$f":"Mietspiegel!H7","v":"1950 - 1964"},null,3,{"$f":"'schlüssiges Konzept'!H28","v":10700},{"$f":"IF(Wohnungsbestand!L28>0,Wohnungsbestand!L28,\"\")","v":0.18074324324324326},null,{"$f":"'schlüssiges Konzept'!H30","v":32800},{"$f":"IF(Wohnungsbestand!L31>0,Wohnungsbestand!L31,\"\")","v":0.22481151473612063},null,{"$f":"Wohnungsbestand!L17","v":26400},{"$f":"IF(Wohnungsbestand!L34>0,Wohnungsbestand!L34,\"\")","v":0.14378029079159935},null,{"$f":"Wohnungsbestand!L20","v":2000},{"$f":"IF(Wohnungsbestand!L37>0,Wohnungsbestand!L37,\"\")","v":4.2194092827004218E-2}]
[null,null,null,null,null,{"$f":"SUM(F25*G26)","v":1.2380912162162163},null,null,{"$f":"SUM(I25*J26)","v":1.4387936943111721},null,null,{"$f":"SUM(L25*M26)","v":0.8540549273021002},null,null,{"$f":"IF(SUM(O25)=0,\"k.A.\",SUM(O25*P26))","v":"k.A."},null,null,null,null,null,1.1621790540540542,1.3488690884167238,0.80229402261712435]
[null,null,null,null,null,{"$f":"Mietspiegel!H10","v":7.3},null,null,{"$f":"Mietspiegel!H12","v":6.51},null,null,{"$f":"Mietspiegel!H14","v":6.4},null,null,{"$f":"Mietspiegel!H16","v":7.21}]
[null,null,{"$f":"Mietspiegel!H7","v":"1950 - 1964"},null,3,{"$f":"'schlüssiges Konzept'!H29","v":17100},{"$f":"IF(Wohnungsbestand!L29>0,Wohnungsbestand!L29,\"\")","v":0.21728081321473952},null,{"$f":"'schlüssiges Konzept'!H31","v":64800},{"$f":"IF(Wohnungsbestand!L32>0,Wohnungsbestand!L32,\"\")","v":0.26899128268991285},null,{"$f":"Wohnungsbestand!L18","v":48100},{"$f":"IF(Wohnungsbestand!L35>0,Wohnungsbestand!L35,\"\")","v":0.16660953033938977},null,{"$f":"Wohnungsbestand!L21","v":3500},{"$f":"IF(Wohnungsbestand!L38>0,Wohnungsbestand!L38,\"\")","v":4.6814044213263982E-2}]
[null,null,"mittel",null,null,{"$f":"SUM(F28*G29)","v":1.5861499364675984},null,null,{"$f":"SUM(I28*J29)","v":1.7511332503113326},null,null,{"$f":"SUM(L28*M29)","v":1.0663009941720947},null,null,{"$f":"SUM(O28*P29)","v":0.33752925877763329},null,null,null,null,null,1.4883735705209657,1.6435367372353675,0.99965718203633869,0.31693107932379716]
[null,null,null,null,null,{"$f":"Mietspiegel!I9","v":7.24},null,null,{"$f":"Mietspiegel!I11","v":6.26},null,null,{"$f":"Mietspiegel!I13","v":5.81},null,null,{"$f":"Mietspiegel!I15","v":5.83}]
[null,null,{"$f":"Mietspiegel!I7","v":"1965 - 1972"},null,4,{"$f":"Wohnungsbestand!N11","v":9900},{"$f":"IF(Wohnungsbestand!N28>0,Wohnungsbestand!N28,\"\")","v":0.16722972972972974},null,{"$f":"Wohnungsbestand!N14","v":15400},{"$f":"IF(Wohnungsbestand!N31>0,Wohnungsbestand!N31,\"\")","v":0.10555174777244689},null,{"$f":"Wohnungsbestand!N17","v":36500},{"$f":"IF(Wohnungsbestand!N34>0,Wohnungsbestand!N34,\"\")","v":0.19655358104469575},null,{"$f":"Wohnungsbestand!N20","v":5200},{"$f":"IF(Wohnungsbestand!N37>0,Wohnungsbestand!N37,\"\")","v":0.10970464135021098}]
[null,null,null,null,null,{"$f":"SUM(F31*G32)","v":1.2107432432432434},null,null,{"$f":"SUM(I31*J32)","v":0.66075394105551744},null,null,{"$f":"SUM(L31*M32)","v":1.1419763058696824},null,null,{"$f":"SUM(O31*P32)","v":0.63957805907173004},null,null,null,null,null,1.1371621621621621,0.62064427690198765,1.0712170166935919,0.60008438818565402]
[null,null,null,null,null,{"$f":"Mietspiegel!I10","v":7},null,null,{"$f":"Mietspiegel!I12","v":6.38},null,null,{"$f":"Mietspiegel!I14","v":6.08},null,null,{"$f":"Mietspiegel!I16","v":5.75}]
[null,null,{"$f":"C32","v":"1965 - 1972"},null,4,{"$f":"Wohnungsbestand!N12","v":9100},{"$f":"IF(Wohnungsbestand!N29>0,Wohnungsbestand!N29,\"\")","v":0.1156289707750953},null,{"$f":"Wohnungsbestand!N15","v":19700},{"$f":"IF(Wohnungsbestand!N32>0,Wohnungsbestand!N32,\"\")","v":8.1776670817766711E-2},null,{"$f":"Wohnungsbestand!N18","v":31700},{"$f":"IF(Wohnungsbestand!N35>0,Wohnungsbestand!N35,\"\")","v":0.10867329448063079},null,{"$f":"Wohnungsbestand!N21","v":3800},{"$f":"IF(Wohnungsbestand!N38>0,Wohnungsbestand!N38,\"\")","v":4.94148244473342E-2}]
[null,null,"mittel",null,null,{"$f":"SUM(F34*G35)","v":0.80940279542566718},null,null,{"$f":"SUM(I34*J35)","v":0.52173515981735163},null,null,{"$f":"SUM(L34*M35)","v":0.66073363044223521},null,null,{"$f":"SUM(O34*P35)","v":0.28413524057217165},null,null,null,null,null,0.75968233799237617,0.48902449149024496,0.6205245114844018,0.26684005201560468]
[null,null,null,null,null,{"$f":"Mietspiegel!J9","v":8.06},null,null,{"$f":"Mietspiegel!J11","v":7.95},null,null,{"$f":"Mietspiegel!J13","v":7.75},null,null,{"$f":"Mietspiegel!J15","v":7.66}]
[null,null,{"$f":"Mietspiegel!J7","v":"1973 - 1990"},null,5,{"$f":"Wohnungsbestand!O11","v":3700},{"$f":"IF(Wohnungsbestand!O28>0,Wohnungsbestand!O28,\"\")","v":6.25E-2},null,{"$f":"Wohnungsbestand!O14","v":5800},{"$f":"IF(Wohnungsbestand!O31>0,Wohnungsbestand!O31,\"\")","v":3.9753255654557916E-2},null,{"$f":"Wohnungsbestand!O17","v":9500},{"$f":"IF(Wohnungsbestand!O34>0,Wohnungsbestand!O34,\"\")","v":5.1157781367797521E-2},null,{"$f":"Wohnungsbestand!O20","v":2700},{"$f":"IF(Wohnungsbestand!O37>0,Wohnungsbestand!O37,\"\")","v":5.6962025316455694E-2}]
[null,null,{"$f":"Mietspiegel!J8","v":"West"},null,null,{"$f":"IF(SUM(F37)=0,\"k.A.\",SUM(F37*G38))","v":0.50375000000000003},null,null,{"$f":"IF(SUM(I37)=0,\"k.A.\",SUM(I37*J38))","v":0.31603838245373544},null,null,{"$f":"SUM(L37*M38)","v":0.3964728056004308},null,null,{"$f":"IF(SUM(O37)=0,\"k.A.\",SUM(O37*P38))","v":0.4363291139240506},null,null,null,null,null,0.47312500000000002,0.29655928718300206,0.37191707054388795,0.40955696202531644]
[null,null,"mittel",null,null,{"$f":"Mietspiegel!J10","v":8.24},null,null,{"$f":"Mietspiegel!J12","v":8.24},null,null,{"$f":"Mietspiegel!J14","v":8.5299999999999994},null,null,{"$f":"Mietspiegel!J16","v":8.14}]
[null,null,{"$f":"C38","v":"1973 - 1990"},null,5,{"$f":"Wohnungsbestand!O12","v":2600},{"$f":"IF(Wohnungsbestand!O29>0,Wohnungsbestand!O29,\"\")","v":3.303684879288437E-2},null,{"$f":"Wohnungsbestand!O15","v":5900},{"$f":"IF(Wohnungsbestand!O32>0,Wohnungsbestand!O32,\"\")","v":2.4491490244914902E-2},null,{"$f":"Wohnungsbestand!O18","v":8500},{"$f":"IF(Wohnungsbestand!O35>0,Wohnungsbestand!O35,\"\")","v":2.9139526911210148E-2},null,{"$f":"Wohnungsbestand!O21","v":3900},{"$f":"IF(Wohnungsbestand!O38>0,Wohnungsbestand!O38,\"\")","v":5.071521456436931E-2}]
[null,null,"West",null,null,{"$f":"SUM(F40*G41)","v":0.27222363405336719},null,null,{"$f":"SUM(I40*J41)","v":0.20180987961809879},null,null,{"$f":"SUM(L40*M41)","v":0.24856016455262253},null,null,{"$f":"O40*P41","v":0.4128218465539662},null,null,null,null,null,0.25537484116899617,0.1893192195931922,0.23311621528968118,0.38746423927178153]
[null,null,null,null,null,{"$f":"Mietspiegel!K9","v":7.61},null,null,{"$f":"Mietspiegel!K11","v":6.41},null,null,{"$f":"Mietspiegel!K13","v":5.62},null,null,{"$f":"Mietspiegel!K15","v":5.58}]
[null,null,{"$f":"Mietspiegel!K7","v":"1973 - 1990"},null,6,{"$f":"Wohnungsbestand!P11","v":9200},{"$f":"IF(Wohnungsbestand!P28>0,Wohnungsbestand!P28,\"\")","v":0.1554054054054054},null,{"$f":"Wohnungsbestand!P14","v":14000},{"$f":"IF(Wohnungsbestand!P31>0,Wohnungsbestand!P31,\"\")","v":9.5956134338588073E-2},null,{"$f":"Wohnungsbestand!P17","v":27700},{"$f":"IF(Wohnungsbestand!P34>0,Wohnungsbestand!P34,\"\")","v":0.14916532040926225},null,{"$f":"Wohnungsbestand!P20","v":3400},{"$f":"IF(Wohnungsbestand!P37>0,Wohnungsbestand!P37,\"\")","v":7.1729957805907171E-2}]
[null,null,{"$f":"Mietspiegel!K8","v":"Ost m. Wendw."},null,null,{"$f":"IF(SUM(F43)=0,\"k.A.\",SUM(F43*G44))","v":1.1826351351351352},null,null,{"$f":"IF(SUM(I43)=0,\"k.A.\",SUM(I43*J44))","v":0.61507882111034951},null,null,{"$f":"SUM(L43*M44)","v":0.83830910070005393},null,null,{"$f":"IF(SUM(O43)=0,\"k.A.\",SUM(O43*P44))","v":0.40025316455696203},null,null,null,null,null,1.1095945945945944,0.57669636737491425,0.78610123855681202,0.37514767932489451]
[null,null,"mittel",null,null,{"$f":"Mietspiegel!K10","v":7.39},null,null,{"$f":"Mietspiegel!K12","v":6.35},null,null,{"$f":"Mietspiegel!K14","v":5.62},null,null,{"$f":"Mietspiegel!K16","v":5.6}]
[null,null,{"$f":"C44","v":"1973 - 1990"},null,6,{"$f":"Wohnungsbestand!P12","v":22300},{"$f":"IF(Wohnungsbestand!P29>0,Wohnungsbestand!P29,\"\")","v":0.28335451080050827},null,{"$f":"Wohnungsbestand!P15","v":38200},{"$f":"IF(Wohnungsbestand!P32>0,Wohnungsbestand!P32,\"\")","v":0.1585720215857202},null,{"$f":"Wohnungsbestand!P18","v":71000},{"$f":"IF(Wohnungsbestand!P35>0,Wohnungsbestand!P35,\"\")","v":0.24340075419952006},null,{"$f":"Wohnungsbestand!P21","v":8100},{"$f":"IF(Wohnungsbestand!P38>0,Wohnungsbestand!P38,\"\")","v":0.10533159947984395}]
[null,null,{"$f":"C45","v":"Ost m. Wendw."},null,null,{"$f":"SUM(F46*G47)","v":2.0939898348157562},null,null,{"$f":"I46*J47","v":1.0069323370693233},null,null,{"$f":"L46*M47","v":1.3679122386013027},null,null,{"$f":"SUM(O46*P47)","v":0.58985695708712615},null,null,null,null,null,1.9636467598475222,0.94350352843503527,1.2827219746314706,0.55299089726918071]
[null,null,null,null,null,{"$f":"Mietspiegel!L9","v":0},null,null,{"$f":"Mietspiegel!L11","v":8.91},null,null,{"$f":"Mietspiegel!L13","v":8.2200000000000006},null,null,{"$f":"Mietspiegel!L15","v":8.48}]
[null,null,{"$f":"Mietspiegel!L7","v":"1991 - 2002"},null,7,{"$f":"Wohnungsbestand!Q11","v":1200},{"$f":"IF(Wohnungsbestand!Q28>0,Wohnungsbestand!Q28,\"\")","v":2.0270270270270271E-2},null,{"$f":"Wohnungsbestand!Q14","v":4000},{"$f":"IF(Wohnungsbestand!Q31>0,Wohnungsbestand!Q31,\"\")","v":2.7416038382453736E-2},null,{"$f":"Wohnungsbestand!Q17","v":9000},{"$f":"IF(Wohnungsbestand!Q34>0,Wohnungsbestand!Q34,\"\")","v":4.8465266558966075E-2},null,{"$f":"Wohnungsbestand!Q20","v":2400},{"$f":"IF(Wohnungsbestand!Q37>0,Wohnungsbestand!Q37,\"\")","v":5.0632911392405063E-2}]
[null,null,{"$f":"Mietspiegel!L8","v":"o. Wendew."},null,null,{"$f":"IF(SUM(F49)=0,\"k.A.\",SUM(F49*G50))","v":"k.A."},null,null,{"$f":"SUM(I49*J50)","v":0.24427690198766278},null,null,{"$f":"SUM(L49*M50)","v":0.39838449111470114},null,null,{"$f":"SUM(O49*P50)","v":0.42936708860759493},null,null,null,null,null,null,0.22919808087731322,0.37415185783521809,0.4030379746835443]
[null,null,"mittel",null,null,{"$f":"Mietspiegel!L10","v":0},null,null,{"$f":"Mietspiegel!L12","v":8.7200000000000006},null,null,{"$f":"Mietspiegel!L14","v":8.42},null,null,{"$f":"Mietspiegel!L16","v":8.73}]
[null,null,{"$f":"C50","v":"1991 - 2002"},null,7,{"$f":"Wohnungsbestand!Q12","v":2700},{"$f":"IF(Wohnungsbestand!Q29>0,Wohnungsbestand!Q29,\"\")","v":3.4307496823379927E-2},null,{"$f":"Wohnungsbestand!Q15","v":12900},{"$f":"IF(Wohnungsbestand!Q32>0,Wohnungsbestand!Q32,\"\")","v":5.3549190535491904E-2},null,{"$f":"Wohnungsbestand!Q18","v":28700},{"$f":"IF(Wohnungsbestand!Q35>0,Wohnungsbestand!Q35,\"\")","v":9.8388755570791908E-2},null,{"$f":"Wohnungsbestand!Q21","v":8700},{"$f":"IF(Wohnungsbestand!Q38>0,Wohnungsbestand!Q38,\"\")","v":0.11313394018205461}]
[null,null,{"$f":"C51","v":"o. Wendew."},null,null,{"$f":"IF(SUM(F52)=0,\"k.A.\",SUM(F52*G53))","v":"k.A."},null,null,{"$f":"I52*J53","v":0.46694894146948945},null,null,{"$f":"SUM(L52*M53)","v":0.82843332190606789},null,null,{"$f":"SUM(O52*P53)","v":0.98765929778933681},null,null,null,null,null,null,0.43803237858032379,0.77727116900925608,0.92656697009102718]
[null,null,null,null,null,{"$f":"Mietspiegel!M9","v":0},null,null,{"$f":"Mietspiegel!M11","v":12.37},null,null,{"$f":"Mietspiegel!M13","v":13.73},null,null,{"$f":"Mietspiegel!M15","v":12.73}]
[null,null,{"$f":"Mietspiegel!M7","v":"2003 - 2017"},null,8,{"$f":"Wohnungsbestand!R11","v":500},{"$f":"IF(Wohnungsbestand!R28>0,Wohnungsbestand!R28,\"\")","v":8.4459459459459464E-3},null,{"$f":"Wohnungsbestand!R14","v":1500},{"$f":"IF(Wohnungsbestand!R31>0,Wohnungsbestand!R31,\"\")","v":1.028101439342015E-2},null,{"$f":"Wohnungsbestand!R17","v":1800},{"$f":"IF(Wohnungsbestand!R34>0,Wohnungsbestand!R34,\"\")","v":9.6930533117932146E-3},null,{"$f":"Wohnungsbestand!R20","v":1000},{"$f":"IF(Wohnungsbestand!R37>0,Wohnungsbestand!R37,\"\")","v":2.1097046413502109E-2}]
[null,null,{"$f":"Mietspiegel!M8","v":"o. Wendew."},null,null,{"$f":"IF(SUM(F55)=0,\"k.A.\",SUM(F55*G56))","v":"k.A."},null,null,{"$f":"IF(SUM(I55)=0,\"k.A.\",SUM(I55*J56))","v":0.12717614804660726},null,null,{"$f":"SUM(L55*M56)","v":0.13308562197092083},null,null,{"$f":"SUM(O55*P56)","v":0.26856540084388186},null,null,null,null,null,null,0.11936257710760793,0.12494345718901455,0.25210970464135019]
[null,null,null,null,null,{"$f":"Mietspiegel!M10","v":0},null,null,{"$f":"Mietspiegel!M12","v":10.5},null,null,{"$f":"Mietspiegel!M14","v":10.75},null,null,{"$f":"Mietspiegel!M16","v":10.74}]
[null,null,{"$f":"C56","v":"2003 - 2017"},null,8,{"$f":"Wohnungsbestand!R12","v":1400},{"$f":"IF(Wohnungsbestand!R29>0,Wohnungsbestand!R29,\"\")","v":1.7789072426937738E-2},null,{"$f":"Wohnungsbestand!R15","v":3800},{"$f":"IF(Wohnungsbestand!R32>0,Wohnungsbestand!R32,\"\")","v":1.5774180157741801E-2},null,{"$f":"Wohnungsbestand!R18","v":5000},{"$f":"IF(Wohnungsbestand!R35>0,Wohnungsbestand!R35,\"\")","v":1.7140898183064794E-2},null,{"$f":"Wohnungsbestand!R21","v":4200},{"$f":"IF(Wohnungsbestand!R38>0,Wohnungsbestand!R38,\"\")","v":5.4616384915474644E-2}]
[null,null,{"$f":"C57","v":"o. Wendew."},null,null,{"$f":"SUM(F58*G59)","v":0},null,null,{"$f":"SUM(I58*J59)","v":0.16562889165628891},null,null,{"$f":"SUM(L58*M59)","v":0.18426465546794654},null,null,{"$f":"SUM(O58*P59)","v":0.58657997399219775},null,null,null,null,null,null,0.15537567455375673,0.17295166266712378,0.55053315994798446]
[null,null,"erfasste Wohnungen v.",null,null,"2 x 100 = 200 %",null,null,"2 x 100 = 200 %",null,null,"2 x 100 = 200 %",null,null,"2 x 100 = 200 %",null,null,null,"Summe:",null,{"$f":"SUM(U15:U60)","v":14.000493492221574},{"$f":"SUM(V15:V60)","v":13.14035270693547},{"$f":"SUM(W15:W60)","v":12.307369074275195},{"$f":"SUM(X15:X60)","v":12.910707148853518}]
[null,null,"W.Bestand Baualterkl.:",null,null,{"$f":"SUM(G14,G17,G23,G29,G35,G41,G38,G20,G44,G26,G32,G47)","v":1.9191872145334661},null,null,{"$f":"SUM(J14,J17,J20,J23,J26,J29,J32,J35,J38,J41,J44,J47,J50,J53,J56,J59)","v":2},null,null,{"$f":"SUM(M14,M17,M23,M29,M35,M47,M53,M50,M41,M38,M56,M59,M20,M44,M26,M32)","v":1.9999999999999996},null,null,{"$f":"SUM(P14,P50,P41,P38,P17,P23,P29,P35,P47,P53,P56,P59,P20,P44,P32)","v":1.9578059071729959},null,null,null,null,null,{"$f":"F62","v":1.9191872145334661},{"$f":"I62","v":2},{"$f":"L62","v":1.9999999999999996},{"$f":"O62","v":1.9578059071729959}]
[null,null,"Summen       ",null,null,{"$f":"IF(F66>0,F66,ROUND(SUM(F15,F18,F21,F24,F27,F30,F33,F36,F39,F42,F45,F48,,)/F62,2))","v":7.77},null,null,{"$f":"IF(I66>0,I66,ROUND(SUM(I15,I18,I21,I24,I27,I30,I33,I36,I39,I42,I45,I48,I51,I54,I57,I60)/I62,2))","v":7},null,null,{"$f":"IF(L66>0,L66,ROUND(SUM(L15,L18,L21,L24,L27,L30,L33,L36,L39,L42,L45,L48,L51,L54,L57,L60)/L62,2))","v":6.56},null,null,{"$f":"IF(O66>0,O66,ROUND(SUM(O15,O18,O21,O24,O30,O33,O36,O39,O42,O45,O48,O51,O54,O57,O60)/O62,2))","v":7.03},null,null,null,"Summe:",null,{"$f":"U61","v":14.000493492221574},{"$f":"V61","v":13.14035270693547},{"$f":"W61","v":12.307369074275195},{"$f":"X61","v":12.910707148853518}]
[null,null,null,null,null,null,null,null,null,null,null,null,null,null,null,null,null,null,null,null,{"$f":"U63/U62","v":7.2950118603332532},{"$f":"V63/V62","v":6.5701763534677351},{"$f":"W63/W62","v":6.1536845371375994},{"$f":"X63/X62","v":6.5944775738756114}]
[null,null,null,null,null,null,null,null,null,null,null,null,null,null,null,null,null,null,null,null,null,null,null,"anal. Senatsverw."]
["Werte:",null,"Nettokalt-direkt"]
[null,null,null,null,null,null,null,null,null,null,null,null,null,null,null,null,null,null,null,null,"Gesamtbestand 4 Werte a 200%",null,8,8]
[null,null,"© beim Richterprojekt d. SG Berlin um die Richter Stefan Schifferdecker, Britta Irgang, Eva Silbermann",null,null,null,null,null,null,null,null,null,null,null,null,null,null,null,null,null,"verwendete Wohnungen prozentual",null,{"$f":"(SUM(F62:Q62))","v":7.8769931217064615},{"$f":"W68+G59+G56+G53+P26","v":7.9797297297297289}]
[null,null,"Veröffentlicht im Archiv für Wissenschaft und Praxis der sozialen Arbeit 2010, 28; ",null,null,null,null,null,null,null,null,null,null,null,null,null,null,null,null,null,"Gesamtmietwerte addiert",null,{"$f":"SUM(U63+V63+W63+X63)","v":52.358922422285758},{"$f":"SUM('schlüssiges Konzept'!P45+'schlüssiges Konzept'!P47+'schlüssiges Konzept'!P49+'schlüssiges Konzept'!P51)*2","v":56.1}]
[null,null,"(auch SG Berlin Urteil vom 30.6.2010 - S 174 AS 21949/07 - juris RdNr 46). ",null,null,null,null,null,null,null,null,null,null,null,null,null,null,null,null,null,"Mietwert / Wohnungsanteil ",null,{"$f":"W69/W68","v":6.6470697147114928},{"$f":"X69/X68","v":7.0303132938187982}]
[null,null,"verändert durch die Daten des Mietspiegels 2017 und leicht der Rechenart durch SoLei-B GbR J. Kroggel, G. Leupold"]
[]
[null,null,"Zitat BSG aus dem Urteil vom 19.10.2010, B 14 AS 65/09 R:"]
[null,null,"\"Lassen sich solche weitergehenden Schlüsse aus vorhandenem Datenmaterial nicht ziehen, bietet es sich an, "]
[null,null,"einen gewichteten arithmetischen Mittelwert nach Verteilung der in der Grundgesamtheit abgebildeten Wohnungen "]
[null,null,"in den jeweiligen Bauklassen zu bilden.\""]
[]
[null,null,"Diesem Rechenprinzip schließt sich das Land Berlin in der AV Wohnen vom 26.09.2019, geändert zum 29.11.2019 an"]
[]
[]
[null,null,"BSG Urteil vom 22.09.2009 - B 4 AS 18/09 R 4 / 6"]
[null,null,"Ein (schlüssiges) Konzept ist ein planmäßiges Vorgehen des Grundsicherungsträgers im Sinne der systema-"]
[null,null,"tischen Ermittlung und Bewertung genereller, wenngleich orts- und zeitbedingter Tatsachen für sämtliche "]
[null,null,"Anwendungsfälle im maßgeblichen Vergleichsraum und nicht nur ein punktuelles Vorgehen von Fall zu Fall."]
[null,null,"Schlüssig ist das Konzept, wenn es mindestens die folgenden Voraussetzungen erfüllt:"]
[]
[null,"l","Die Datenerhebung darf ausschließlich in dem genau eingegrenzten und muss über den gesamten "]
[null,null,"Vergleichsraum erfolgen (keine Ghettobildung)"]
[null,"l","Es bedarf einer nachvollziehbaren Definition d. Gegenstandes der Beobachtung, zB welche Art von Wohnungen"]
[null,null,null,"Differenzierung nach Standard der Wohnungen, Brutto- und Nettomiete (Vergleichbarkeit), "]
[null,null,null,"Differenzierung nach Wohnungsgröße,"]
[null,"l","Angaben über den Beobachtungszeitraum,"]
[null,"l","Festlegung der Art und Weise der Datenerhebung (Erkenntnisquellen, z.B. Mietspiegel),"]
[null,"l","Repräsentativität des Umfangs der eingezogenen Daten,"]
[null,"l","Validität der Datenerhebung,"]
[null,"l","Einhaltung anerkannter mathematisch-statistischer Grundsätze der Datenauswertung und"]
[null,null,"Angaben über die gezogenen Schlüsse (z.B. Spannoberwert oder Kappungsgrenze)."]

{"sheet":"BK Kosten","index":21,"n_rows":39,"n_cols":7,"rows_kept":39,"cut":false,"hidden":false,"merged":[[4,2,4,4],[28,2,28,4]]}
[]
["Start","Betriebskosten, durchschnittlich pro qm"]
[]
[]
[null,"Mietspiegel 2019: Abrechnungsjahr 2017         Werte wurden in 2023 nicht neu ermittelt, sondern fortgeschrieben","Angaben in €/m²"]
[null,"Betriebskostenart","unterer Spannenwert 4/5 Wert","Mittelwert","oberer Spannenwert 4/5 Wert","Grundlagendatenzahlen für Betriebskostenspiegel Berlin"]
[null,"Grundsteuer",0.14000000000000001,0.27,0.46,"(aus Berliner Mietspiegel 2017)"]
[null,"Wasserversorgung",0.13,0.25,0.44]
[null,"Entwässerung",0.13,0.23,0.31,"Datenbasis:"]
[null,"Niederschlagswasser",0.02,0.05,7.0000000000000007E-2,"rd. 3000 Wohneinheiten"]
[null,"Aufzug",7.0000000000000007E-2,0.18,0.33,"auschließlich für 2017 (volles Abrechnungsjahr)"]
[null,"Straßenreinigung",0.01,0.04,7.0000000000000007E-2]
[null,"Müllbeseitigung",0.11,0.16,0.23]
[null,"Hauswart",0.05,0.18,0.38,"Gesamtdurchschnitt aller erfaßten kalten Betriebskosten"]
[null,"Gebäudereinigung und Ungezieferbekämpfung",0.06,0.15,0.26,1.66,"(wird nicht weiter erklärt.)"]
[null,"Schneebeseitigung",0.02,0.05,0.08,"Gesamtdurchschnitt aller erfaßten warmen Betriebskosten"]
[null,"Gartenpflege",0.02,0.1,0.2,0.9]
[null,"Beleuchtung (Allgemeinstrom)",0.02,0.05,0.1]
[null,"Schornsteinreinigung",0.01,7.0000000000000007E-2,0.12]
[null,"Sach- und Haftpflichtversicherung",0.06,0.16,0.24]
[null,"Gemeinschafts-Antennenanlage/Breitbandkabelanschluss",0.06,0.12,0.19]
[null,"Sonstige »kalte« Betriebskosten",0.01,7.0000000000000007E-2,0.15]
[null,"Sonstige »warme« Betriebskosten                                 (z.B. Wartung Heizungsanlage)",0.1,0.19,0.27,"Daten - Download:"]
[null,"Zusammen",{"$f":"SUM(C7:C23)","v":1.0200000000000002},{"$f":"SUM(D7:D23)","v":2.3199999999999998},{"$f":"SUM(E7:E23)","v":3.9},"http://www.stadtentwicklung.berlin.de/wohnen/mietspiegel/de/downloads.shtml"]
[null,"ohne \"warme\" Betriebskosten",{"$f":"SUM(C24-C23)","v":0.92000000000000026},{"$f":"SUM(D24-D23)","v":2.13},{"$f":"SUM(E24-E23)","v":3.63}]
[null,"lt. Mietspiegel aufgrund Datenerfassung von 2200 Wohneinheiten",null,1.66,"neu ab 22/23"]
[null,"Senatsverwaltung",null,1.77,1.77,"Fortschreibung"]
[null,"bundesweiter Betriebskostenspiegel des Deutschen Mieterbundes als Vergleichswert",null,null,null," Dies ergibt sich für die Abrechnungsperiode 2017"]
[null,"Abrechnungsjahr 2018",2.17,null,null," (Datenerfassung 2017) kalte Betriebskosten"]
[]
[]
[null,"Die obere Tabelle ist mit Änderungen dem Endbericht des Berliner Mietspiegels 2019 entnommen, der durch die GEWOS Institut für "]
[null,"Stadt-, Regional- und Wohnforschung GmbH Hamburg erstellt wurde, der an diesem Bericht auch das copyright hat."]
[]
[null,"Ergebnis Mietspiegel 2019:"]
[null,"Für das Abrechnungsjahr 2017 wurden durchschnittliche »kalte« Betriebskosten in Höhe von 1,66 €/m² Monat "]
[null,"und Kosten für Heizung und Warmwasser (»warme« Betriebkosten) in Höhe von 0,90 €/m² monatlich abgerechnet. "]
[null,"Die durchschnittlichen Betriebskosten ergeben sich nicht aus der Summierung der Einzelpositionen in der"]
[null,"abgebildeten Tabelle, weil nicht immer alle Betriebskostenarten anfallen."]

{"sheet":"Heizkosten","index":22,"n_rows":52,"n_cols":14,"rows_kept":52,"cut":false,"hidden":false,"merged":[[45,13,45,14],[46,13,46,14],[47,13,47,14],[48,13,48,14],[42,9,42,10],[42,11,42,12],[42,13,42,14],[43,13,43,14],[44,13,44,14],[37,1,37,2],[37,4,37,5],[37,6,37,8],[42,3,42,4],[42,5,42,6],[42,7,42,8],[30,2,30,3],[30,7,30,8],[31,1,36,1],[31,2,31,3],[31,7,31,8],[32,2,32,3],[32,7,32,8],[33,2,33,3],[33,7,33,8],[34,2,34,3],[34,7,34,8],[35,2,35,3],[35,7,35,8],[36,2,36,3],[36,7,36,8],[24,1,29,1],[24,2,24,3],[24,7,24,8],[25,2,25,3],[25,7,25,8],[26,2,26,3],[26,7,26,8],[27,2,27,3],[27,7,27,8],[28,2,28,3],[28,7,28,8],[29,2,29,3],[29,7,29,8],[21,2,21,3],[21,7,21,8],[22,1,22,8],[23,2,23,3],[23,7,23,8],[7,2,7,3],[7,7,7,8],[8,1,13,1],[8,2,8,3],[8,7,8,8],[9,2,9,3],[9,7,9,8],[10,2,10,3],[10,7,10,8],[11,2,11,3],[11,7,11,8],[12,2,12,3],[12,7,12,8],[13,2,13,3],[13,7,13,8],[4,1,4,8],[5,1,6,1],[5,2,5,3],[5,5,5,8],[6,2,6,3],[6,7,6,8],[14,2,14,3],[14,7,14,8],[15,1,20,1],[15,2,15,3],[15,7,15,8],[16,2,16,3],[16,7,16,8],[17,2,17,3],[17,7,17,8],[18,2,18,3],[18,7,18,8],[19,2,19,3],[19,7,19,8],[20,2,20,3],[20,7,20,8]]}
[]
["Start","angemessene Heizkosten"]
[]
[null,"Anlage 2 AV-Wohnen "]
[null,"Heizkostengrenzwerte individuell per HK - Abrechnung zu ermitteln"]
[null,"fossile Brennstoffe","Personenanzahl ",null,"kWh ","kWh Grenzwert"]
[null,null,"der Bedarfsgemeinschaft",null," qm  / Jahr","pro Jahr","pro Monat","pro Monat"]
[null,null,null,null,null,"m.WW","m.WW","individuell"]
[null,"Heizöl    Gas  Fernwärme","1 Person, 50 m²",">",{"$f":"Werte!EY3","v":238},{"$f":"Werte!EZ$3","v":11900},{"$f":"F9/12","v":991.66666666666663},"zu berechnen"]
[null,null,"2 Personen, 65 m²",">",{"$f":"E$9","v":238},{"$f":"Werte!FA$3","v":15500},{"$f":"F10/12","v":1291.6666666666667},"zu berechnen"]
[null,null,"3 Personen, 80 m²",">",{"$f":"E$9","v":238},{"$f":"Werte!FB$3","v":19000},1583.3333333333333,"zu berechnen"]
[null,null,"4 Personen, 90 m²",">",238,{"$f":"Werte!FC$3","v":21400},1783.3333333333333,"zu berechnen"]
[null,null,"5 Personen, 102 m²",">",238,{"$f":"Werte!FD$3","v":24300},2025,"zu berechnen"]
[null,null,"jede weitere Person 12 m²",">",238,{"$f":"Werte!FE$3","v":2900},241.66666666666666,"zu berechnen"]
[null,null,null,null,null,null,null,"individuell"]
[null,"Wärme-pumpe","1 Person, 50 m²",">",{"$f":"Werte!FN3","v":94},{"$f":"Werte!FO$3","v":4700},{"$f":"F16/12","v":391.66666666666669},"zu berechnen"]
[null,null,"2 Personen, 65 m²",">",{"$f":"$E16","v":94},{"$f":"Werte!FP$3","v":6100},{"$f":"F17/12","v":508.33333333333331},"zu berechnen"]
[null,null,"3 Personen, 80 m²",">",{"$f":"$E17","v":94},{"$f":"Werte!FQ$3","v":7500},625,"zu berechnen"]
[null,null,"4 Personen, 90 m²",">",94,{"$f":"Werte!FR$3","v":8500},708.33333333333337,"zu berechnen"]
[null,null,"5 Personen, 102 m²",">",94,{"$f":"Werte!FS$3","v":9600},800,"zu berechnen"]
[null,null,"jede weitere Person 12 m²",">",{"$f":"$E20","v":94},{"$f":"Werte!FT$3","v":1100},91.666666666666671,"zu berechnen"]
[]
[null,"Abzug für Warmwasser (falls in Heizung enthalten)"]
[null,null,null,null,null,null,null,"individuell"]
[null,"Heizöl    Gas  Fernwärme","1 Person, 50 m²",">",null,{"$f":"Werte!FG$3","v":1200},{"$f":"F25/12","v":100},"zu berechnen"]
[null,null,"2 Personen, 65 m²",">",null,{"$f":"Werte!FH$3","v":1560},{"$f":"F26/12","v":130},"zu berechnen"]
[null,null,"3 Personen, 80 m²",">",null,{"$f":"Werte!FI$3","v":1920},160,"zu berechnen"]
[null,null,"4 Personen, 90 m²",">",null,{"$f":"Werte!FJ$3","v":2160},180,"zu berechnen"]
[null,null,"5 Personen, 102 m²",">",null,{"$f":"Werte!FK$3","v":2448},204,"zu berechnen"]
[null,null,"jede weitere Person 12 m²",">",null,{"$f":"Werte!FL$3","v":288},24,"zu berechnen"]
[null,null,null,null,null,null,null,"individuell"]
[null,"Wärme-pumpe","1 Person, 50 m²",">",null,{"$f":"Werte!FV$3","v":480},{"$f":"F32/12","v":40},"zu berechnen"]
[null,null,"2 Personen, 65 m²",">",null,{"$f":"Werte!FW$3","v":624},{"$f":"F33/12","v":52},"zu berechnen"]
[null,null,"3 Personen, 80 m²",">",null,{"$f":"Werte!FX$3","v":768},64,"zu berechnen"]
[null,null,"4 Personen, 90 m²",">",null,{"$f":"Werte!FY$3","v":864},72,"zu berechnen"]
[null,null,"5 Personen, 102 m²",">",null,{"$f":"Werte!FZ$3","v":979},81.583333333333329,"zu berechnen"]
[null,null,"jede weitere Person m²",">",null,{"$f":"Werte!GA$3","v":115},9.5833333333333339,"zu berechnen"]
[]
[]
[]
[null,"https://www.berlin.de/sen/soziales/service/berliner-sozialrecht/kategorie/sonstige/brennstoffe-601787.php"]
[null,"Nachtspeicherheizung",null,null,null,null,"Höchstwert der Heizkosten"]
[null,null,null,"angem. Wohnfläche",null,"Verbrauch pro Monat",null,"Verbrauch pro Jahr",null,"Kosten m² pro kWh",null,"Kosten pro Monat","Kosten pro Jahr","Kosten pro Jahr "]
[null,"1-Personen-BG",null,{"$f":"Werte!CC3","v":50},"m²",{"$f":"H44/12","v":500},"kWh",{"$f":"Werte!GD3","v":6000},"kWh",{"$f":"Werte!GK$3","v":0.33},null,{"$f":"F44*J44","v":165},null,{"$f":"H44*J44","v":1980}]
[null,"2-Personen-BG",null,{"$f":"Werte!CD3","v":65},"m²",{"$f":"H45/12","v":650},"kWh",{"$f":"Werte!GE3","v":7800},"kWh",{"$f":"Werte!GL$3","v":0.33},null,{"$f":"F45*J45","v":214.5},null,{"$f":"H45*J45","v":2574}]
[null,"3-Personen-BG",null,{"$f":"Werte!CF3","v":80},"m²",{"$f":"H46/12","v":800},"kWh",{"$f":"Werte!GF3","v":9600},"kWh",{"$f":"Werte!GM$3","v":0.33},null,264,null,3168]
[null,"4-Personen-BG",null,{"$f":"Werte!CG3","v":90},"m²",900,"kWh",10800,"kWh",{"$f":"Werte!GN$3","v":0.33},null,297,null,3564]
[null,"5-Personen-BG",null,{"$f":"Werte!CH3","v":102},"m²",1020,"kWh",12240,"kWh",{"$f":"Werte!GO$3","v":0.33},null,336.6,null,4039.2000000000003]
[null,"jede weitere Person",null,{"$f":"Werte!CI3","v":12},"m²",120,"kWh",1440,"kWh",{"$f":"Werte!GP$3","v":0.33},null,39.6,null,475.20000000000005]
[]
[null,{"$f":"\"Die Berliner AV-Wohnen gültig ab \"&TEXT(Werte!G3,\"TT.MM.JJJJ\")&\" bezieht sich in § 3 Abs. 3 auf diese Werte\"","v":"Die Berliner AV-Wohnen gültig ab 01.10.2023 bezieht sich in § 3 Abs. 3 auf diese Werte"}]
[null,"bei der Feststellung des Heizkosten - Grenzwertes"]

{"sheet":"Zuschlag","index":23,"n_rows":18,"n_cols":7,"rows_kept":18,"cut":false,"hidden":false,"merged":[[16,6,16,7],[17,6,17,7],[18,6,18,7],[11,6,11,7],[12,6,12,7],[13,6,13,7],[14,6,14,7],[15,6,15,7],[9,1,10,1],[9,2,10,3],[11,2,11,3],[12,2,12,3],[14,2,14,3],[15,2,15,3],[16,2,16,3],[13,4,13,5],[17,2,17,3],[18,2,18,3],[17,4,17,5],[18,4,18,5],[13,2,13,3],[11,4,11,5],[12,4,12,5],[14,4,14,5],[15,4,15,5],[16,4,16,5]]}
[]
["Start","Abzug bei dezentraler Warmwasserversorgung"]
[]
[]
[null,"Ist das Warmwasser nicht in den Heizkosten enthalten (bei dezentraler Warmwassererwärmung), wird je nach "]
[null,"Personenzahl ein Abschlag vom Heizkostengrenzwert vorgenommen, der diesen dann reduziert."]
[null,"Hintergrund: Im Heizkostengrenzwert ist ein Betrag für Warmwasser mit enthalten."]
[]
[null,null,null,null,null,"nach ",{"$f":"Grundeinstellungen!S14","v":" AV-Wohnen ab  01.10.2023"}]
[null,null,"Personen",null,null,null,"  nur bei"]
[null,null,null,null,null,null,"  Wärmepumpenheizung"]
[null,null,1,null,{"$f":"Werte!BN3","v":7},null,{"$f":"Werte!BU$3","v":9}]
[null,null,2,null,{"$f":"Werte!BO3","v":9},null,{"$f":"Werte!BV$3","v":11}]
[null,"gültig bis 31.12.2021 > ","alleinerziehend mit 1 Kind",null,{"$f":"Werte!BP3","v":9},null,{"$f":"Werte!BW$3","v":11}]
[null,null,3,null,{"$f":"Werte!BQ3","v":11},null,{"$f":"Werte!BX$3","v":14}]
[null,null,4,null,{"$f":"Werte!BR3","v":12},null,{"$f":"Werte!BY$3","v":16}]
[null,null,5,null,{"$f":"Werte!BS3","v":14},null,{"$f":"Werte!BZ$3","v":18}]
[null,null,"jede weitere",null,{"$f":"Werte!BT3","v":2},null,{"$f":"Werte!CA$3","v":2}]

{"sheet":"F-Druck WiVer","index":24,"n_rows":126,"n_cols":10,"rows_kept":126,"cut":false,"hidden":false,"merged":[[44,5,44,6],[48,5,48,6],[51,5,51,6],[53,4,53,6],[55,4,55,6],[49,5,49,6]]}
["Start","Kurz-druck"," Wirtschaftlichkeitsvergleich   -   Druckansicht"]
[null,1]
[null,1]
[null,1]
[null,1,{"$f":"C88","v":""},null,{"$f":"IF(D95>0,C95&\": \"&D95&\" \"&E95,\"\")","v":""}]
[null,1," Wirtschaftlichkeitsvergleich für Wohnungsumzug"]
[null,1]
[]
["Û",null,{"$f":"'Grundberechnung-Hk'!B6","v":"berücksichtigte Personenzahl / BG"},{"$f":"'Grundberechnung-Hk'!D6","v":0},{"$f":"'Grundberechnung-Hk'!E27","v":"Personen"}]
[]
["Û",null,"Angemessene Miete (für vorhandene Wohnung)"]
[]
[null,null,{"$f":"'Grundberechnung-Hk'!B25","v":"Angemessene Nettokaltmiete"}]
[null,null,"Wohnfläche",{"$f":"'Grundberechnung-Hk'!C28&\" m²\"","v":"0 m²"}]
["Û",null,{"$f":"'Grundberechnung-Hk'!B29","v":"weiterer Raumbedarf"},{"$f":"'Grundberechnung-Hk'!C29&\" m²\"","v":"0 m²"}]
[null,null,{"$f":"'Grundberechnung-Hk'!B30","v":"max. anerkannter Raumbedarf"},{"$f":"'Grundberechnung-Hk'!C30&\" m²\"","v":"0 m²"}]
[]
[null,null,"Nettokaltmiete/ m²",null,null,{"$f":"'Grundberechnung-Hk'!C40","v":0}]
[]
[null,null,{"$f":"'Grundberechnung-Hk'!B40","v":"Mietpreisgrenze nettokalt"},{"$f":"'Grundberechnung-Hk'!E40&\" m²\"","v":"0 m²"},"x",{"$f":"'Grundberechnung-Hk'!C40","v":0},null,{"$f":"'Grundberechnung-Hk'!G40","v":0}]
[]
[null,null,{"$f":"'Grundberechnung-Hk'!B43","v":"Angemessene Betriebskosten"}]
[]
[null,null,"Betriebskosten (kalt)/ m²",null,null,{"$f":"'Grundberechnung-Hk'!C49","v":0}]
[]
[null,null,"kalte Betriebskosten",{"$f":"'Grundberechnung-Hk'!E49&\" m²\"","v":"0 m²"},"x",{"$f":"'Grundberechnung-Hk'!C49","v":0},null,{"$f":"'Grundberechnung-Hk'!G49","v":0}]
[]
[null,null,{"$f":"'Grundberechnung-Hk'!B52","v":"Angemessene Bruttokaltmiete"},null,null,null,null,{"$f":"'Grundberechnung-Hk'!G53","v":0}]
[]
["Û",null,{"$f":"'Grundberechnung-Hk'!B56","v":"10% Zuschlag im soz. Wohnungsbau (1. Förderweg)"},null,null,{"$f":"\"(\"&FIXED('Grundberechnung-Hk'!G53,2)&\" x 10 %)\"","v":"(0,00 x 10 %)"},null,{"$f":"'Grundberechnung-Hk'!G57","v":0}]
[null,null,null,null,null,null,null,{"$f":"'Grundberechnung-Hk'!C58","v":0}]
[]
["Û",null,{"$f":"'Grundberechnung-Hk'!B60","v":"20% Zuschlag zur Vermeidung von Wohnungslosigkeit"},null,null,{"$f":"\"(\"&FIXED('Grundberechnung-Hk'!C60,2)&\" x \"&'Grundberechnung-Hk'!D60&\" %)\"","v":"(0,00 x 20 %)"},null,{"$f":"'Grundberechnung-Hk'!G61","v":0}]
[null,null,null,null,null,null,null,{"$f":"'Grundberechnung-Hk'!C62","v":0}]
[]
["Û",null,{"$f":"'Grundberechnung-Hk'!B65","v":"Klimabonus"},null,null,null,null,{"$f":"'Grundberechnung-Hk'!G65","v":0}]
[null,null,null,null,null,null,null,{"$f":"'Grundberechnung-Hk'!C66","v":0}]
[]
["Û",null,{"$f":"'Grundberechnung-Hk'!B68","v":"10% Zuschlag bei Härtefall (von Brutto-Kaltmiete)"},null,null,null,null,{"$f":"'Grundberechnung-Hk'!G69","v":0}]
[]
[null,null,null,null,null,{"$f":"'Grundberechnung-Hk'!B76","v":"angemessene Gesamt-Bruttokaltmiete "},null,{"$f":"'Grundberechnung-Hk'!G76","v":0}]
[]
["Û",null,{"$f":"'Grundberechnung-Hk'!B85","v":"Angemessene Heizkosten"}]
[]
[null,null,{"$f":"'Grundberechnung-Hk'!B100","v":"Heizmaterialart-Auswahl: ?"},{"$f":"'Grundberechnung-Hk'!B116","v":"Kosten einer 1 kWh"},null,{"$f":"'Grundberechnung-Hk'!C116","v":0}]
[]
[null,null,{"$f":"'Grundberechnung-Hk'!B117","v":"angemessene kWh der anerkannten Heizfläche/ Jahr"},{"$f":"'Grundberechnung-Hk'!C117","v":0},"kWh"]
[null,null,{"$f":"IF('Grundberechnung-Hk'!D92=1,'Grundberechnung-Hk'!B127,\"\")","v":""},{"$f":"IF('Grundberechnung-Hk'!D92=1,'Grundberechnung-Hk'!C128,\"\")","v":""},{"$f":"IF('Grundberechnung-Hk'!D92=1,\"kWh\",\"\")","v":""}]
[null,null,{"$f":"'Grundberechnung-Hk'!B125","v":"anzuerkendende angem. Heizkosten/ Monat:"},null,null,{"$f":"'Grundberechnung-Hk'!C125","v":0}]
[null,null,"in Anspruch genommener Klimabonus",null,null,{"$f":"'Grundberechnung-Hk'!C126","v":0}]
[]
[null,null,"Abzug b. dezentraler Warmwassererwärmung (pauschal)",null,null,{"$f":"'Grundberechnung-Hk'!C135","v":0}]
[]
[null,null,null,{"$f":"'Grundberechnung-Hk'!B117","v":"angemessene kWh der anerkannten Heizfläche/ Jahr"},{"$f":"'Grundberechnung-Hk'!C117","v":0}]
[]
[null,null,null,{"$f":"IF('Grundberechnung-Hk'!D147=1,'Grundberechnung-Hk'!B147,0)","v":0},{"$f":"IF('Grundberechnung-Hk'!D147=1,'Grundberechnung-Hk'!C148,\"\")","v":""}]
[]
[null,null,null,null,null,{"$f":"'Grundberechnung-Hk'!B149","v":"anerkannte Heizkosten:"},null,{"$f":"'Grundberechnung-Hk'!G149","v":0}]
[]
[]
[null,null,{"$f":"'Grundberechnung-Hk'!B153","v":"angemessene (Gesamt-) Miete mit Heizkosten"},null,null,null,null,{"$f":"'Grundberechnung-Hk'!G153","v":0}]
[]
[]
["Û",null,{"$f":"'Grundberechnung-Hk'!B164","v":"Wirtschaftlichkeitsvergleich der Gesamtaufwendungen "}]
[]
[null,null,{"$f":"'Grundberechnung-Hk'!B166","v":"Summe der Richtwerte f. Unterkunft und Heizung"}]
[null,null,null,{"$f":"'Grundberechnung-Hk'!F177","v":"(0,00 € gem. AV-Wohnen Anlage 3 gerundet)"}]
[null,null,{"$f":"'Grundberechnung-Hk'!B168","v":"Bruttokaltmiete (Richtwert)"},null,null,null,null,{"$f":"'Grundberechnung-Hk'!G168","v":0},null,{"$f":"IF(AND(H$77<H$75,H68>0),\"x\",\"\")","v":""}]
[null,null,{"$f":"'Grundberechnung-Hk'!B169","v":"10% Zuschlag im soz. Wohnungsbau (1. Förderweg)"},null,null,null,null,{"$f":"'Grundberechnung-Hk'!G169","v":0},null,""]
[null,null,{"$f":"'Grundberechnung-Hk'!B170","v":"20% Zuschlag zur Vermeidung von Wohnungslosigkeit"},null,null,null,null,{"$f":"'Grundberechnung-Hk'!G170","v":0},null,""]
[null,null,{"$f":"'Grundberechnung-Hk'!B171","v":"Klimabonus"},null,null,null,null,{"$f":"'Grundberechnung-Hk'!G171","v":0},null,""]
[null,null,{"$f":"'Grundberechnung-Hk'!B172","v":"10% Zuschlag bei Härtefall (von Brutto-Kaltmiete)"},null,null,null,null,{"$f":"'Grundberechnung-Hk'!G172","v":0},null,""]
[null,null,{"$f":"'Grundberechnung-Hk'!B173","v":"15 % Zuschlag zur Umzugsvermeidung  / 6.1.1 AV-Wohnen"},null,null,null,null,{"$f":"'Grundberechnung-Hk'!G173","v":0},null,""]
[null,null,{"$f":"'Grundberechnung-Hk'!B175","v":"abzurechnenden  Wirtschaftseinheit"},null,null,{"$f":"IF(F52>0,\"(\"&FIXED('Grundberechnung-Hk'!G106,2)&\" - \"&FIXED('Grundberechnung-Hk'!G116,2)&\"  W W-Pauschale)\",\"\")","v":""},null,{"$f":"'Grundberechnung-Hk'!G175","v":0},null,""]
[null,null,{"$f":"'Grundberechnung-Hk'!B176","v":"maximal zulässige Gesamtaufwendungen der Wohnung"},null,null,null,"(gerundet)",{"$f":"'Grundberechnung-Hk'!G176","v":0}]
[]
[null,null,{"$f":"'Grundberechnung-Hk'!B181","v":"maximale Gesamtaufwendungen für Wohnung bei Kostensenkung"},null,null,null,null,{"$f":"'Grundberechnung-Hk'!G181","v":0},null,{"$f":"IF(AND(H$77<H$75,H77>0),\"x\",\"\")","v":""}]
[]
[null,null,{"$f":"'Grundberechnung-Hk'!B183","v":"Gesamtaufwendungen f. Unterkunft und Heizung"},null,null,{"$f":"'Grundberechnung-Hk'!D183","v":"für bereits genutzen Wohnraum"}]
[]
["Û",null,{"$f":"'Grundberechnung-Hk'!B185","v":"tatsächliche Bruttokaltmiete"},null,null,null,null,{"$f":"'Grundberechnung-Hk'!G185","v":0}]
["Û",null,{"$f":"'Grundberechnung-Hk'!B186","v":"tatsächliche Heizkosten"},null,null,null,null,{"$f":"'Grundberechnung-Hk'!G186","v":0}]
["Û",null,{"$f":"'Grundberechnung-Hk'!B187","v":"tatsächliche zu zahlende Warmwasserkosten"},null,null,null,null,{"$f":"'Grundberechnung-Hk'!G187","v":0}]
[null,null,{"$f":"'Grundberechnung-Hk'!B188","v":"    (wenn nicht bereits in den tatsächlichen Heizkosten enthalten)"}]
[null,null,{"$f":"'Grundberechnung-Hk'!B189","v":"tatsächliche Gesamtaufwendungen für die bereits genutzte Wohnung"},null,null,null,null,{"$f":"'Grundberechnung-Hk'!G189","v":0}]
[null,null,{"$f":"'Grundberechnung-Hk'!B190","v":"    (= aktuelle Gesamtwarmmiete)"}]
[null,null,null,null,null,{"$f":"IF(H85>0,IF(H85>H75,\"Gesamtwarmiete liegt über der Prüfgrenze (\"&FIXED(H75,2)&\" €)\",\"maximale Gesamtaufwendungen (\"&FIXED(H75,2)&\" €) wird nicht überschritten\"),\"\")","v":""}]
[null,null,{"$f":"'Grundberechnung-Hk'!C192","v":""}]
[null,null,{"$f":"IF(H75>0,'Grundberechnung-Hk'!B178,\"\")","v":""}]
[null,null,{"$f":"IF(H75>0,'Grundberechnung-Hk'!B179,\"\")","v":""}]
[null,null,null,null,null,{"$f":"IF(H85>H75,'Grundberechnung-Hk'!C194&\" \"&FIXED('F-Druck WiVer'!H77,2)&\" €\",\"\")","v":""}]
[]
[null,null,{"$f":"'Grundberechnung-Hk'!B197","v":"Wirtschaftlichkeit bei Wohnungswechsel"}]
[]
["Û",null,"Betrachtungszeitraum",{"$f":"'Grundberechnung-Hk'!E202","v":0},"Monate"]
[]
[null,null,{"$f":"'Grundberechnung-Hk'!B204","v":"tatsächliche Miete der bewohnten Wohnung"},{"$f":"\"(\"&FIXED('Grundberechnung-Hk'!C204,2)&\" €  x  \"&'Grundberechnung-Hk'!E204&\")\"","v":"(0,00 €  x  0)"},null,null,null,{"$f":"'Grundberechnung-Hk'!G204","v":0}]
[null,null,{"$f":"'Grundberechnung-Hk'!B206","v":"angemessene Miete (nach Produktmethode)"},{"$f":"\"(\"&FIXED('Grundberechnung-Hk'!C206,2)&\" €  x  \"&'Grundberechnung-Hk'!E206&\")\"","v":"(0,00 €  x  0)"},null,null,null,{"$f":"'Grundberechnung-Hk'!G206","v":0}]
[null,null,{"$f":"'Grundberechnung-Hk'!B208&\":\"","v":"keine Mietkosteneinsparung zu erwarten:"},{"$f":"'Grundberechnung-Hk'!G208","v":0}]
[]
["Û",null,{"$f":"'Grundberechnung-Hk'!B211","v":"Kosten durch Umzug"}]
[]
[null,null,{"$f":"'Grundberechnung-Hk'!B213","v":"Doppelmieten"},{"$f":"'Grundberechnung-Hk'!C213","v":0},"x",{"$f":"'Grundberechnung-Hk'!E213&\" Mon.\"","v":"0 Mon."},null,{"$f":"'Grundberechnung-Hk'!G213","v":0}]
[null,null,{"$f":"'Grundberechnung-Hk'!B214","v":"Mietkaution (3 Nettokaltmieten)"},{"$f":"'Grundberechnung-Hk'!C214","v":0},"x",{"$f":"'Grundberechnung-Hk'!E214&\" Mon.\"","v":"0 Mon."},null,{"$f":"'Grundberechnung-Hk'!G214","v":0}]
[null,null,{"$f":"'Grundberechnung-Hk'!B215","v":"Genossenschaftsanteile (Orientierung: 3 x bruttowarm)"},null,null,null,null,{"$f":"'Grundberechnung-Hk'!G215","v":0}]
[null,null,{"$f":"'Grundberechnung-Hk'!B216","v":"Umzugskosten 1 (je mithelfende Person)"},{"$f":"'Grundberechnung-Hk'!C216","v":0},"x",{"$f":"'Grundberechnung-Hk'!E216&\" Pers.\"","v":"0 Pers."},null,{"$f":"'Grundberechnung-Hk'!G216","v":0}]
[null,null,{"$f":"'Grundberechnung-Hk'!B217","v":"Umzugskosten 2  nach m² (Renovierung)"},null,null,null,null,{"$f":"'Grundberechnung-Hk'!G217","v":0}]
[null,null,{"$f":"'Grundberechnung-Hk'!B218","v":"Umzugskosten 3 (Transporter/ Umzugsfirma)"},null,null,null,null,{"$f":"'Grundberechnung-Hk'!G218","v":0}]
[null,null,null,null,null,null,"Umzugsaufwand:",{"$f":"'Grundberechnung-Hk'!G219","v":0}]
[]
[null,null,{"$f":"'Grundberechnung-Hk'!B227","v":"Vergleich der alten Miete mit der [angemessenen neuen Miete + Umzugskosten]"}]
[]
[null,null,{"$f":"'Grundberechnung-Hk'!B228","v":"I. Unterkunftskosten in alter Wohnung"},null,null,null,null,{"$f":"'Grundberechnung-Hk'!G228","v":0}]
[]
[null,null,{"$f":"'Grundberechnung-Hk'!B230","v":"II. neue (abstrakt angemessene) Mietkosten"},{"$f":"'Grundberechnung-Hk'!C230","v":0}]
[null,null,{"$f":"'Grundberechnung-Hk'!B231","v":" + Umzugskosten"},{"$f":"'Grundberechnung-Hk'!C231","v":0}]
[null,null,null,{"$f":"'Grundberechnung-Hk'!C232","v":0},null,null,"abzüglich",{"$f":"'Grundberechnung-Hk'!G232","v":0}]
[null,null,null,null,null,null,{"$f":"'Grundberechnung-Hk'!F233","v":"Differenz:"},{"$f":"'Grundberechnung-Hk'!G233","v":0}]
[]
[null,null,{"$f":"'Grundberechnung-Hk'!B235","v":""}]
[null,null,{"$f":"'Grundberechnung-Hk'!B237","v":"Ab Aufforderung zur Kostensenkung wird die alte Miete noch längstens 6 Monate in voller Höhe gezahlt."}]
[null,null,{"$f":"'Grundberechnung-Hk'!B238","v":"In besonders begründeten Einzelfällen kann dieser Zeitraum um 6 Mo. erweitert werden (auf max. 12 Monate)."}]
[]
[]
[null,null,{"$f":"ErgebnisDruck!B98","v":"SoLei-B hilft in der Beratung"}]
[null,null,{"$f":"ErgebnisDruck!B99","v":"ALG II, Kinderzuschlag, Wohngeld, Pfändungsgrenzen, BAföG:     Rechnen Sie mit SoLei-B"}]

{"sheet":"ErgebnisDruck","index":25,"n_rows":99,"n_cols":17,"rows_kept":99,"cut":false,"hidden":false,"merged":[[56,8,56,9],[57,8,57,9],[63,8,63,9],[58,8,58,9],[59,8,59,9],[61,8,61,9],[62,8,62,9],[60,8,60,9],[56,1,57,1],[78,2,78,3],[78,5,78,6],[79,1,79,2],[80,2,80,3],[80,5,80,6],[82,2,82,3],[82,5,82,6],[83,2,83,3],[83,5,83,6],[84,1,84,2],[81,2,81,3],[81,5,81,6],[74,1,74,2],[75,2,75,3],[75,5,75,6],[76,2,76,3],[76,5,76,6],[77,2,77,3],[77,5,77,6],[67,10,68,10],[72,2,72,3],[72,5,72,6],[73,2,73,3],[73,5,73,6],[70,2,70,3],[70,5,70,6],[71,2,71,3],[71,5,71,6],[85,2,85,3],[85,5,85,6],[86,2,86,3],[86,5,86,6],[87,2,87,3],[87,5,87,6],[88,2,88,3],[88,5,88,6],[89,1,89,2],[97,5,97,6],[91,1,91,2],[90,2,90,3]]}
[]
["Start","Angemessene Unterkunftskosten",null,null,null,null,"Ergebnis & Druck"]
[]
[null,null,null,null,null,null,null,null,null,null,null,{"$f":"Grundeinstellungen!S12","v":0},null,null,null,{"$f":"Grundeinstellungen!AF10","v":1},{"$f":"Grundeinstellungen!AG10","v":" Rundung nach AV-Wohnen"}]
[null," Berechnung der angemessenen Miete",null,"für Berlin"]
[]
[null," nach Produktmethode",null,null,null,null,null,null,null,null,{"$f":"\"gem. AV-Wohnen vom \"&TEXT(Werte!E3,\"TT.MM.JJJJ\")&IF(Werte!F3>0,\", in geänderter Fassung vom \"&TEXT(Werte!F3,\"TT.MM.JJJJ\"),\"\")&\" (gültig ab \"&TEXT(Werte!G3,\"TT.MM.JJJJ\")&\")\"","v":"gem. AV-Wohnen vom 13.12.2022, in geänderter Fassung vom 04.09.2023 (gültig ab 01.10.2023)"}]
[]
[null,"1. In einem ersten Schritt wird die abstrakt angemessene Wohnungsgröße und der Wohnungsstandard bestimmt."]
[null,"2. In einem zweiten Schritt wird festgelegt, auf welchen räumlichen Vergleichsmaßstab die weiteren Prüfungsschritte abzustellen sind."]
[]
[null,{"$f":"\"zu 1.:    1 Person: \"&Werte!CC3&\" m², 2 Personen \"&Werte!CD3&\" m², 3 Personen \"&Werte!CF3&\" m², 4 Personen \"&Werte!CG3&\" m², 5 Personen \"&Werte!CH3&\" m², je weitere Person: \"&Werte!CI3&\" m²;  einfache + mittlere Wohnlage\"","v":"zu 1.:    1 Person: 50 m², 2 Personen 65 m², 3 Personen 80 m², 4 Personen 90 m², 5 Personen 102 m², je weitere Person: 12 m²;  einfache + mittlere Wohnlage"}]
[null,"zu 2.:    dieser Vergleichsmaßstab ist ganz Berlin"]
[]
[null,"Es wird das Produkt aus angemessener Wohnfläche  x  Nettokaltmiete/ m² ermittelt. Hinzu kommen die Betriebskosten/ m²  x  Wohnfläche."]
[null,"Zur Bruttokaltmiete kommen die tatsächlichen Heizkosten, die mit dem angem. Heizkostengrenzwert verglichen und ggf. darauf begrenzt werden."]
[null,{"$f":"\"Ist in den Heizkosten Warmwasser enthalten, wird davon abgezogen: 1 Pers. \"&FIXED(Einstellungen!D64,0)&\" €, 2 P. \"&FIXED(Einstellungen!D65,0)&IF(Einstellungen!D65=Einstellungen!D66,\"\",\" bzw. \"&FIXED(Einstellungen!D66,0))&\" €, 3 P. \"&FIXED(Einstellungen!D67,0)&\" €, 4 P. \"&FIXED(Einstellungen!D68,0)&\" €, 5 P. \"&FIXED(Einstellungen!D69,0)&\" €, je weitere \"&FIXED(Einstellungen!D70,0)&\" €).\"","v":"Ist in den Heizkosten Warmwasser enthalten, wird davon abgezogen: 1 Pers. 7 €, 2 P. 9 €, 3 P. 11 €, 4 P. 12 €, 5 P. 14 €, je weitere 2 €)."}]
[]
["Û","Personen der Bedarfsgemeinschaft (zzgl. Vollzeitpflegekinder) ",null,null,null,null,{"$f":"SUM('EF1'!K8)","v":0},{"$f":"IF(G19=1,\" Person\",\" Personen\")","v":" Personen"},null,{"$f":"Grundberechnung!E26","v":""},null,null,null,null,null,{"$f":"Grundberechnung!D26","v":0},{"$f":"Grundberechnung!E26","v":""}]
[null,"daraus ergibt sich eine maximale Wohnfläche  von",null,null,null,null,{"$f":"Grundberechnung!C28","v":0}," m²"]
[null,"weiterer Raumbedarf (z.B. durch Behinderung/ Umgangsrecht)",null,null,null,null,{"$f":"Grundberechnung!C29","v":0}," m²"]
[null,null,null,null,null,null,{"$f":"Grundberechnung!C30","v":0}," m²"]
[null,null,null,null,null,null,null,null,{"$f":"IF(Grundberechnung!$D57=1,\"kein sozialer\",\"\")","v":""},null,{"$f":"IF(Grundberechnung!$D57=1,\"im sozialen\",\"\")","v":""}]
["Û","Bruttokaltmiete",null,null,null,null,null,null,{"$f":"IF(Grundberechnung!$D57=1,\"Wohnungsbau\",\"\")","v":""},null,{"$f":"IF(Grundberechnung!$D57=1,\"Wohnungsbau\",\"\")","v":""}]
[]
[null,{"$f":"\"(Datengrundlage: Mietspiegel \"&Werte!N3&\") aus gewichtetem  arithm. Mittelwert aller berliner Wohnungen einfachen + mittl. Standards\"","v":"(Datengrundlage: Mietspiegel 2023) aus gewichtetem  arithm. Mittelwert aller berliner Wohnungen einfachen + mittl. Standards"}]
[null,"angemessene Nettokaltmiete",null,{"$f":"\"Nettokaltmiete \"&FIXED(Grundberechnung!C40,2)&\" / m²\"","v":"Nettokaltmiete 0,00 / m²"},null,null,{"$f":"FIXED(Grundberechnung!C40,2)&\" €   x   \"&IF(G20>0,Grundberechnung!C30,0)&\" m² =\"","v":"0,00 €   x   0 m² ="},null,{"$f":"IF(Grundberechnung!$D57=1,Grundberechnung!G40,\"\")","v":""},null,{"$f":"Grundberechnung!G40","v":0}]
[null,"angemessene Betriebskosten",null,{"$f":"\"Betriebskosten \"&FIXED(Grundberechnung!C49,2)&\" / m²\"","v":"Betriebskosten 0,00 / m²"},null,null,{"$f":"FIXED(Grundberechnung!C49,2)&\" €   x   \"&IF(G20>0,Grundberechnung!C30,0)&\" m² =\"","v":"0,00 €   x   0 m² ="},null,{"$f":"IF(Grundberechnung!$D57=1,Grundberechnung!G49,\"\")","v":""},null,{"$f":"Grundberechnung!G49","v":0}]
[]
[null,null,null,null,null,"Richtwert (bruttokalt)",null,"Summe:",{"$f":"IF(Grundberechnung!D57=1,K30,\"\")","v":""},null,{"$f":"Grundberechnung!G53","v":0},{"$f":"IF(SUM(K30)>0,\"Richtwert\",\"\")","v":""}]
[null,"Zuschläge, falls individuell angemessen:"]
["Û","zzgl. 10 % Zuschlag für Wohnungen, die im sozialen Wohnungsbau (1. Förderweg) errichtet wurden (3.2 AV-Wohnen)",null,null,null,null,null,null,null,null,{"$f":"Grundberechnung!G57","v":0},{"$f":"IF(SUM(K32)>0,\"10% von Richtwert \"&FIXED(K30,2),\"\")","v":""}]
["Û",{"$f":"\"zzgl. \"&Grundberechnung!D60&\" % bei bestehender/ drohender Wohnungslosigkeit, um hohe Unterbringungskosten\"","v":"zzgl. 20 % bei bestehender/ drohender Wohnungslosigkeit, um hohe Unterbringungskosten"},null,null,null,null,null,null,{"$f":"IF(AND(Grundberechnung!D$57=1,Grundberechnung!J61>0),Grundberechnung!J61,\"\")","v":""},null,{"$f":"IF(Grundberechnung!G61>0,Grundberechnung!G61,0)","v":0},{"$f":"IF(SUM(K33)>0,\"20% von Richtwert \"&FIXED(K30,2),\"\")","v":""}]
[null,"                 zu vermeiden",{"$f":"IF(Grundberechnung!D63=1,\"(hier Bestandsschutz aufgrund einer früheren Bewilligung)\",\"\")","v":""}]
["Û","zzgl.          Klimabonus",null,null,null,null,null,null,{"$f":"IF(Grundberechnung!$D57=1,Grundberechnung!G65,\"\")","v":""},null,{"$f":"Grundberechnung!G167","v":0},{"$f":"IF(SUM(K35)>0,\"Pauschalbetrag\",\"\")","v":""}]
[null,null,null,null,null,null,null,{"$f":"IF(SUM(I36,K36)>0,\"Zwischensumme:\",\"\")","v":""},{"$f":"IF(AND(Grundberechnung!$D57=1,SUM(I37)>0),Grundberechnung!I68,\"\")","v":""},null,{"$f":"IF(SUM(K37)>0,SUM(K30,K33,K32,K35),\"\")","v":""}]
["Û",{"$f":"\"zzgl. \"&Grundberechnung!D68&\" % bei bei Härtefällen (z.B. alleinerziehend, Wohndauer über 10 J. u.a.; 3.5.1 AV-Wohnen)\"","v":"zzgl. 10 % bei bei Härtefällen (z.B. alleinerziehend, Wohndauer über 10 J. u.a.; 3.5.1 AV-Wohnen)"},null,null,null,null,null,null,{"$f":"IF(AND(Grundberechnung!D$57=1,Grundberechnung!J69>0),Grundberechnung!J69,\"\")","v":""},null,{"$f":"IF(Grundberechnung!D69=1,Grundberechnung!G69,0)","v":0},{"$f":"IF(SUM(K37)>0,\"10% von Zwischensumme\",\"\")","v":""}]
[null,null,null,null,null,null,null,"angemessene Bruttokaltmiete ohne Heizkosten:",{"$f":"IF(Grundberechnung!D57=1,Grundberechnung!J76,\"\")","v":""},null,{"$f":"Grundberechnung!G76","v":0}]
["Û","Heizkosten"]
[null,{"$f":"IF('EF1'!AE30>0,\"Grenzwert für angemessene Heizkosten\"&IF(SUM('EF1'!K34)>0,\",     (geänderter m²-Preis !)\",\"\"),\"\")","v":""},null,{"$f":"IF('EF1'!F65=5,\"\",\"Heizkosten \"&FIXED(Grundberechnung!C103,2)&\" / m²\")","v":"Heizkosten 0,00 / m²"},null,null,{"$f":"IF('EF1'!F65=5,\"Grenzwert für Nachtspeicherheizung\",\"\")","v":""},null,null,null,"Heizkosten"]
[null,null,null,null,{"$f":"\"nach Auswahl (\"&'EF1'!AH48&IF('EF1'!F65<4,\", \"&'EF1'!AH28,\"\")&\")\"","v":"nach Auswahl (Heizart: ?, Gebäudefläche: ?)"},null,{"$f":"IF('EF1'!F65=5,\"pauschal\",FIXED(Grundberechnung!C103,2)&\" €   x   \"&Grundberechnung!E103&\" m² =\")","v":"0,00 €   x   0 m² ="},{"$f":"IF(SUM(G41)>0,\"=\",\"\")","v":""},null,null,{"$f":"Grundberechnung!G105","v":0}]
[null,{"$f":"Grundberechnung!B115&\" für \"&G19&\" \"&H19","v":"Abzug b. dezentraler Warmwassererwärmung (pauschal) für 0  Personen"},null,null,null,null,null,{"$f":"IF(K42<0,\"abzüglich:\",\"\")","v":""},null,null,{"$f":"Grundberechnung!G115","v":0}]
[null,"Abzug (vom Heizkostengrenzwert) des in Anspruch genommenen Klimabonus:",null,null,null,null,null,{"$f":"IF(K43<0,\"abzüglich:\",\"\")","v":""},null,null,{"$f":"Grundberechnung!G112*-1","v":0}]
[null,"   (Angemessene Miete incl. Klimabonus abzgl. tatsächl. Miete)",null,null,null,null,null,"Heizkostengrenzwert:",null,null,{"$f":"Grundberechnung!C116","v":0}]
[null,null,null,null,{"$f":"IF(SUM(G45)>0,\"tatsächliche Heizkosten:\",\"\")","v":""},null,{"$f":"IF(Grundberechnung!C140>0,Grundberechnung!C140,\"\")","v":""}]
[null,null,null,null,null,null,null,{"$f":"IF(AND(G45>0,K44>G45),\"(Begrenzung auf tatsächliche Heizkosten)\",\"\")","v":""}]
[null,null,null,null,null,null,null,{"$f":"IF(K47>0,\"anerkannte Heizkosten:\",\"Heizkosten:\")","v":"Heizkosten:"},{"$f":"IF(Grundberechnung!$D57=1,Grundberechnung!G145,\"\")","v":""},null,{"$f":"Grundberechnung!G145","v":0}]
[null,{"$f":"IF(K41>0,IF(K44=K47,\"Es wird mit dem Heizkostengrenzwert und nicht mit den tatsächl. Heizkosten gerechnet.\",IF(H46=K47,\"Es liegen individuelle Gründe vor, um mit den tatsächlichen Heizkosten und nicht mit dem Heizkostengrenzwert zu rechnen.\",\"\")),\"\")","v":""}]
[]
[null,null,null,null,null,null,null,{"$f":"IF(SUM(K47)>0,\"angemessene (Gesamt-) Miete mit Heizkosten\",\"angemessene Wohnungsmiete ohne Heizkosten\")&\":\"","v":"angemessene Wohnungsmiete ohne Heizkosten:"},{"$f":"IF(Grundberechnung!D57=1,Grundberechnung!J150,\"\")","v":""},null,{"$f":"Grundberechnung!G149","v":0}]
[]
[]
[null,{"$f":"\"zzgl. \"&Grundberechnung!D78&\" % zur Umzugsvermeidung (6.1.1 AV-Wohnen)\"","v":"zzgl. 15 % zur Umzugsvermeidung (6.1.1 AV-Wohnen)"},null,null,null,null,null,null,{"$f":"IF(AND(Grundberechnung!D$57=1,Grundberechnung!J80>0),Grundberechnung!J80,\"\")","v":""},null,{"$f":"IF(Grundberechnung!F79=1,Grundberechnung!C80,\"\")","v":""},{"$f":"IF(SUM(K53)>0,\"10% v. Richtwert\"&IF(SUM(K32)>0,\" (+ soz. WB\",\"\")&\")\",\"\")","v":""}]
[null,null,null,null,null,null,null,{"$f":"IF(SUM(I53,K53)>0,\"Prüfgrenze für Kostensenkungsverfahren (gerundet):\",\"\")","v":""},{"$f":"IF(SUM(I53)>0,Grundberechnung!J171,\"\")","v":""},null,{"$f":"IF(SUM(I53,K53)>0,Grundberechnung!G171,\"\")","v":""},{"$f":"IF(SUM(I54,K54)>0,\"gerundet\",\"\")","v":""}]
[]
[]
[null,"Personen in Bedarfsgemeinschaft","Wohnfläche ",null,"angem. Miet-",null,"Betriebskosten",null,"Bruttokaltmiete",null,"zuzüglich der ange-"]
[null,null,"in m²",null,"preis pro m²",null,"pro m²",null,"gesamt",null,"messenen Heizkosten"]
[null,"1 Person   ",{"$f":"Werte!CC3","v":50},"x",{"$f":"Werte!J3","v":7.21},"+",{"$f":"'BK Kosten'!D$26","v":1.66},{"$f":"IF(G19=1,\"Ø\",\"\")","v":""},{"$f":"SUM(C59*(E59+G59))","v":443.49999999999994},null,{"$f":"IF(AND(G$19=1,SUM(G$45)>0),K$47,\"?\")","v":"?"},{"$f":"IF(G$19=1,\"ß\",\"\")","v":""}]
[null,"2 Personen",{"$f":"Werte!CD3","v":65},"x",{"$f":"Werte!K3","v":7.21},"+",{"$f":"'BK Kosten'!D$26","v":1.66},{"$f":"IF(AND(P19=0,G19=2),\"Ø\",\"\")","v":""},576.54999999999995,null,{"$f":"IF(AND(P19=0,G$19=2,SUM(G$45)>0),K$47,\"?\")","v":"?"},{"$f":"IF(AND(P19=0,G$19=2),\"ß\",\"\")","v":""}]
[null,"Alleinerziehend mit 1 Kd.",{"$f":"Werte!CE3","v":65},"x",{"$f":"Werte!L3","v":6.59},"+",{"$f":"'BK Kosten'!D$26","v":1.66},{"$f":"IF(AND(P19=1,G19=2),\"Ø\",\"\")","v":""},{"$f":"SUM(C61*(E61+G61))","v":536.25},null,{"$f":"IF(AND(P19=1,G$19=2,SUM(G$45)>0),K$47,\"?\")","v":"?"}]
[null,"3 Personen",{"$f":"Werte!CF3","v":80},"x",{"$f":"Werte!L3","v":6.59},"+",{"$f":"'BK Kosten'!D$26","v":1.66},{"$f":"IF(G19=3,\"Ø\",\"\")","v":""},660,null,{"$f":"IF(AND(G$19=3,SUM(G$45)>0),K$47,\"?\")","v":"?"},{"$f":"IF(G$19=3,\"ß\",\"\")","v":""}]
[null,"4 Personen",{"$f":"Werte!CG3","v":90},"x",{"$f":"Werte!L3","v":6.59},"+",{"$f":"'BK Kosten'!D$26","v":1.66},{"$f":"IF(G19=4,\"Ø\",\"\")","v":""},742.5,null,{"$f":"IF(AND(G$19=4,SUM(G$45)>0),K$47,\"?\")","v":"?"},{"$f":"IF(G$19=4,\"ß\",\"\")","v":""}]
[null,"5 Personen",{"$f":"Werte!CH3","v":102},"x",{"$f":"Werte!$M$3","v":7.09},"+",{"$f":"'BK Kosten'!D$26","v":1.66},{"$f":"IF(G19>=5,\"Ø\",\"\")","v":""},892.5,null,{"$f":"IF(AND(G$19=5,SUM(G$45)>0),K$47,\"?\")","v":"?"},{"$f":"IF(G$19>=5,\"ß\",\"\")","v":""}]
[null,"jede weitere Person",{"$f":"Werte!CI3","v":12},"x",{"$f":"Werte!$M$3","v":7.09},"+",{"$f":"'BK Kosten'!D$26","v":1.66},{"$f":"IF(G19>5,\"Ø\",\"\")","v":""},105,{"$f":"IF(G19>5,G19-5,\"\")","v":""},"?",{"$f":"IF(G$19>5,\"ß\",\"\")","v":""}]
[null,null,null,null,null,null,null,null,{"$f":"IF(SUM(K33:K38)>0,\"ohne Zuschläge\",\"\")","v":""}]
[]
[null,"Heizungsarten im bundesweiten \nHeizkostenspiegel","Gebäudefläche",null,null,null,"Heizkosten",null,"Grenzwert Heizkosten",null," Gesamtaufwendungen: \n Bruttokaltmiete\n + Heizkosten (Grenzwert)\n (AV-Wohnen Anlage 3)",{"$f":"IF(SUM(K33:K38)>0,\"ohne Zuschläge\",\"\")","v":""},null,null,"Heizmaterial-auswahl","Gebäudeflächen-auswahl"]
[null,null,"in m²",null,null,null,"pro m²",null,{"$f":"IF(K42<0,\"abzgl. WW-Pausch.\",\"\")","v":""},null,null,null,null,null,{"$f":"'EF1'!F65","v":0},{"$f":"'EF1'!F67","v":0}]
[null,{"$f":"\"Datengrundlage: \"&Grundeinstellungen!AG8","v":"Datengrundlage: "},null,null,null,null,"zu hoch / Grenzwert",null,{"$f":"IF(SUM(K47)>0,\"\",\"ê\")","v":"ê"},null,"Bruttokaltm. + Grenzwert"]
[null,"Heizöl","100 - 250",null,">",null,null,{"$f":"IF(OR(AND(O$69=1,P$69=1),AND(O$69=6,O$71=F71)),\"Ø\",\"\")","v":""},{"$f":"F71*G$22+K42","v":0},{"$f":"IF(OR(AND(O$69=1,P$69=1),AND(O$69=6,O$71=F71)),\"Ø\",\"\")","v":""},{"$f":"IF(P$4=1,ROUNDUP(SUM(K$30,I71),0),SUM(K$30,I71))","v":0},{"$f":"IF(OR(AND(O$69=1,P$69=1),AND(O$69=6,O$71=F71)),\"ß\",\"\")","v":""},null,null,{"$f":"Einstellungen!D49","v":0},"höchster Heizkostengrenzwert"]
[null,null,"251 - 500",null,">",null,null,{"$f":"IF(OR(AND(O$69=1,P$69=2),AND(O$69=6,O$71=F72)),\"Ø\",\"\")","v":""},{"$f":"F72*G$22+K42","v":0},{"$f":"IF(OR(AND(O$69=1,P$69=2),AND(O$69=6,O$71=F72)),\"Ø\",\"\")","v":""},{"$f":"IF(P$4=1,ROUNDUP(SUM(K$30,I72),0),SUM(K$30,I72))","v":0},{"$f":"IF(OR(AND(O$69=1,P$69=2),AND(O$69=6,O$71=F72)),\"ß\",\"\")","v":""}]
[null,null,"501 - 1000",null,">",null,null,{"$f":"IF(OR(AND(O$69=1,P$69=3),AND(O$69=6,O$71=F73)),\"Ø\",\"\")","v":""},{"$f":"F73*G$22+K42","v":0},{"$f":"IF(OR(AND(O$69=1,P$69=3),AND(O$69=6,O$71=F73)),\"Ø\",\"\")","v":""},{"$f":"IF(P$4=1,ROUNDUP(SUM(K$30,I73),0),SUM(K$30,I73))","v":0},{"$f":"IF(OR(AND(O$69=1,P$69=2),AND(O$69=6,O$71=F73)),\"ß\",\"\")","v":""}]
[null,null,"> 1000",null,">",null,null,{"$f":"IF(OR(AND(O$69=1,P$69=4),AND(O$69=6,O$71=F74)),\"Ø\",\"\")","v":""},{"$f":"F74*G$22+K42","v":0},{"$f":"IF(OR(AND(O$69=1,P$69=4),AND(O$69=6,O$71=F74)),\"Ø\",\"\")","v":""},{"$f":"IF(P$4=1,ROUNDUP(SUM(K$30,I74),0),SUM(K$30,I74))","v":0},{"$f":"IF(OR(AND(O$69=1,P$69=2),AND(O$69=6,O$71=F74)),\"ß\",\"\")","v":""}]
[]
[null,"Erdgas","100 - 250",null,">",null,null,{"$f":"IF(OR(AND(O$69=2,P$69=1),AND(O$69=6,O$71=F76)),\"Ø\",\"\")","v":""},{"$f":"F76*G$22+K42","v":0},{"$f":"IF(OR(AND(O$69=2,P$69=1),AND(O$69=6,O$71=F76)),\"Ø\",\"\")","v":""},{"$f":"IF(P$4=1,ROUNDUP(SUM(K$30,I76),0),SUM(K$30,I76))","v":0},{"$f":"IF(OR(AND(O$69=2,P$69=1),AND(O$69=6,O$71=F76)),\"ß\",\"\")","v":""}]
[null,null,"251 - 500",null,">",null,null,{"$f":"IF(OR(AND(O$69=2,P$69=2),AND(O$69=6,O$71=F77)),\"Ø\",\"\")","v":""},{"$f":"F77*G$22+K42","v":0},{"$f":"IF(OR(AND(O$69=2,P$69=2),AND(O$69=6,O$71=F77)),\"Ø\",\"\")","v":""},{"$f":"IF(P$4=1,ROUNDUP(SUM(K$30,I77),0),SUM(K$30,I77))","v":0},{"$f":"IF(OR(AND(O$69=2,P$69=2),AND(O$69=6,O$71=F77)),\"ß\",\"\")","v":""}]
[null,null,"501 - 1000",null,">",null,null,{"$f":"IF(OR(AND(O$69=2,P$69=3),AND(O$69=6,O$71=F78)),\"Ø\",\"\")","v":""},{"$f":"F78*G$22+K42","v":0},{"$f":"IF(OR(AND(O$69=2,P$69=3),AND(O$69=6,O$71=F78)),\"Ø\",\"\")","v":""},{"$f":"IF(P$4=1,ROUNDUP(SUM(K$30,I78),0),SUM(K$30,I78))","v":0},{"$f":"IF(OR(AND(O$69=2,P$69=3),AND(O$69=6,O$71=F78)),\"ß\",\"\")","v":""}]
[null,null,"> 1000",null,">",null,null,{"$f":"IF(OR(AND(O$69=2,P$69=4),AND(O$69=6,O$71=F79)),\"Ø\",\"\")","v":""},{"$f":"F79*G$22+K42","v":0},{"$f":"IF(OR(AND(O$69=2,P$69=3),AND(O$69=6,O$71=F79)),\"Ø\",\"\")","v":""},{"$f":"IF(P$4=1,ROUNDUP(SUM(K$30,I79),0),SUM(K$30,I79))","v":0},{"$f":"IF(OR(AND(O$69=2,P$69=4),AND(O$69=6,O$71=F79)),\"ß\",\"\")","v":""}]
[]
[null,"Fernwärme","100 - 250",null,">",null,null,{"$f":"IF(OR(AND(O$69=3,P$69=1),AND(O$69=6,O$71=F81)),\"Ø\",\"\")","v":""},{"$f":"F81*G$22+K42","v":0},{"$f":"IF(OR(AND(O$69=3,P$69=1),AND(O$69=6,O$71=F81)),\"Ø\",\"\")","v":""},{"$f":"IF(P$4=1,ROUNDUP(SUM(K$30,I81),0),SUM(K$30,I81))","v":0},{"$f":"IF(OR(AND(O$69=3,P$69=1),AND(O$69=6,O$71=F81)),\"ß\",\"\")","v":""}]
[null,null,"251 - 500",null,">",null,null,{"$f":"IF(OR(AND(O$69=3,P$69=2),AND(O$69=6,O$71=F82)),\"Ø\",\"\")","v":""},{"$f":"F82*G$22+K42","v":0},{"$f":"IF(OR(AND(O$69=3,P$69=2),AND(O$69=6,O$71=F82)),\"Ø\",\"\")","v":""},{"$f":"IF(P$4=1,ROUNDUP(SUM(K$30,I82),0),SUM(K$30,I82))","v":0},{"$f":"IF(OR(AND(O$69=3,P$69=2),AND(O$69=6,O$71=F82)),\"ß\",\"\")","v":""}]
[null,null,"501 - 1000",null,">",null,null,{"$f":"IF(OR(AND(O$69=3,P$69=3),AND(O$69=6,O$71=F83)),\"Ø\",\"\")","v":""},{"$f":"F83*G$22+K42","v":0},{"$f":"IF(OR(AND(O$69=3,P$69=3),AND(O$69=6,O$71=F83)),\"Ø\",\"\")","v":""},{"$f":"IF(P$4=1,ROUNDUP(SUM(K$30,I83),0),SUM(K$30,I83))","v":0},{"$f":"IF(OR(AND(O$69=3,P$69=3),AND(O$69=6,O$71=F83)),\"ß\",\"\")","v":""}]
[null,null,"> 1000",null,">",null,null,{"$f":"IF(OR(AND(O$69=3,P$69=4),AND(O$69=6,O$71=F84)),\"Ø\",\"\")","v":""},{"$f":"F84*G$22+K42","v":0},{"$f":"IF(OR(AND(O$69=3,P$69=4),AND(O$69=6,O$71=F84)),\"Ø\",\"\")","v":""},{"$f":"IF(P$4=1,ROUNDUP(SUM(K$30,I84),0),SUM(K$30,I84))","v":0},{"$f":"IF(OR(AND(O$69=3,P$69=4),AND(O$69=6,O$71=F84)),\"ß\",\"\")","v":""}]
[]
[null,"Wärmepumpe","100 - 250",null,">",null,null,{"$f":"IF(OR(AND(O$69=4,P$69=1),AND(O$69=6,O$71=F86)),\"Ø\",\"\")","v":""},{"$f":"IF(F86>0,F86*G$22+K42,0)","v":0},{"$f":"IF(OR(AND(O$69=4,P$69=1),AND(O$69=6,O$71=F86)),\"Ø\",\"\")","v":""},{"$f":"IF(P$4=1,ROUNDUP(SUM(K$30,I86),0),SUM(K$30,I86))","v":0},{"$f":"IF(OR(AND(O$69=4,P$69=1),AND(O$69=6,O$71=F85)),\"ß\",\"\")","v":""},{"$f":"IF(F86=0,\"Wärmepumpe\",\"\")","v":"Wärmepumpe"}]
[null,null,"251 - 500",null,">",null,null,{"$f":"IF(OR(AND(O$69=4,P$69=2),AND(O$69=6,O$71=F87)),\"Ø\",\"\")","v":""},{"$f":"IF(F87>0,F87*G$22+K42,0)","v":0},{"$f":"IF(OR(AND(O$69=4,P$69=2),AND(O$69=6,O$71=F87)),\"Ø\",\"\")","v":""},{"$f":"IF(P$4=1,ROUNDUP(SUM(K$30,I87),0),SUM(K$30,I87))","v":0},{"$f":"IF(OR(AND(O$69=4,P$69=2),AND(O$69=6,O$71=F87)),\"ß\",\"\")","v":""},{"$f":"IF(F86=0,\"erst ab\",\"\")","v":"erst ab"}]
[null,null,"501 - 1000",null,">",null,null,{"$f":"IF(OR(AND(O$69=4,P$69=3),AND(O$69=6,O$71=F88)),\"Ø\",\"\")","v":""},{"$f":"IF(F88>0,F88*G$22+K42,0)","v":0},{"$f":"IF(OR(AND(O$69=4,P$69=3),AND(O$69=6,O$71=F88)),\"Ø\",\"\")","v":""},{"$f":"IF(P$4=1,ROUNDUP(SUM(K$30,I88),0),SUM(K$30,I88))","v":0},{"$f":"IF(OR(AND(O$69=4,P$69=3),AND(O$69=6,O$71=F88)),\"ß\",\"\")","v":""},{"$f":"IF(F86=0,\"Dez. 2019\",\"\")","v":"Dez. 2019"}]
[null,null,"> 1000",null,">",null,null,{"$f":"IF(OR(AND(O$69=4,P$69=4),AND(O$69=6,O$71=F89)),\"Ø\",\"\")","v":""},{"$f":"IF(F89>0,F89*G$22+K42,0)","v":0},{"$f":"IF(OR(AND(O$69=4,P$69=4),AND(O$69=6,O$71=F89)),\"Ø\",\"\")","v":""},{"$f":"IF(P$4=1,ROUNDUP(SUM(K$30,I89),0),SUM(K$30,I89))","v":0},{"$f":"IF(OR(AND(O$69=4,P$69=4),AND(O$69=6,O$71=F89)),\"ß\",\"\")","v":""}]
[]
[null,"Nachtspeicherheizung","(Nachtstrom)",null,{"$f":"IF(G19>0,\"für \"&G19&IF(G19=1,\" Person\",\" Personen\"),\"\")","v":""},null,null,{"$f":"IF(O$69=5,\"Ø\",\"\")","v":""},{"$f":"Einstellungen!L94","v":0},{"$f":"IF(O$69=5,\"Ø\",\"\")","v":""},{"$f":"IF(P$4=1,ROUNDUP(SUM(K$30,I91),0),SUM(K$30,I91))","v":0},{"$f":"IF(O$69=5,\"ß\",\"\")","v":""}]
[]
[]
[null,"Für Wohnungen mit anderen Heizarten nimmt Berlin als Grenzwert den Bezug auf den höchsten Grenzwert der erstgenannten 4 Heizungsarten "]
[null,"unter Berücksichtigung der Gebäudefläche."]
[]
[]
[null,"SoLei-B hilft in der Beratung",null,null,null,null,null,null,null,null,null,{"$f":"IF(OR(AND(O$69=3,P$69=4),AND(O$69=4,O$71=F98)),\"ß\",\"\")","v":""}]
[null,"ALG II, Kinderzuschlag, Wohngeld, Pfändungsgrenzen, BAföG:     Rechnen Sie mit SoLei-B"]

{"sheet":"ErgebnisDruck-Hk","index":26,"n_rows":151,"n_cols":18,"rows_kept":151,"cut":false,"hidden":false,"merged":[[62,1,63,1],[56,4,56,5],[57,4,57,5],[58,4,58,5],[59,4,59,5],[60,4,60,5],[75,2,75,3],[62,8,62,9],[63,8,63,9],[64,8,64,9],[65,8,65,9],[66,8,66,9],[67,8,67,9],[68,8,68,9],[72,1,73,1],[72,2,72,3],[73,2,73,3],[74,2,74,3],[87,1,87,2],[76,2,76,3],[77,2,77,3],[78,2,78,3],[79,2,79,3],[80,1,80,2],[81,2,81,3],[82,2,82,3],[83,2,83,3],[84,2,84,3],[85,2,85,3],[86,2,86,3],[94,1,94,2],[100,5,100,6],[88,2,88,3],[89,2,89,3],[90,2,90,3],[91,2,91,3],[92,2,92,3],[93,2,93,3]]}
[]
["Start","Angemessene Unterkunftskosten",null,null,null,null,"Ergebnis & Druck"]
[]
[null,null,null,null,null,null,null,null,null,null,null,null,null,null,null,"EF2","Steuerung für Rücksprung"]
[null," Berechnung der angemessenen Miete",null,"für Berlin"]
[]
[null," nach Produktmethode",null,null,null,null,null,null,null,null,{"$f":"\"gem. AV-Wohnen vom \"&TEXT(Werte!E3,\"TT.MM.JJJJ\")&\" (gültig ab \"&TEXT(Werte!G3,\"TT.MM.JJJJ\")&\")\"","v":"gem. AV-Wohnen vom 13.12.2022 (gültig ab 01.10.2023)"}]
[]
[null,"1. In einem ersten Schritt wird die abstrakt angemessene Wohnungsgröße und der Wohnungsstandard bestimmt."]
[null,"2. In einem zweiten Schritt wird festgelegt, auf welchen räumlichen Vergleichsmaßstab die weiteren Prüfungsschritte abzustellen sind."]
[]
[null,{"$f":"\"zu 1.:    1 Pers.: \"&Werte!CC3&\" m², 2 Pers. \"&Werte!CD3&\" m², 3 Pers. \"&Werte!CF3&\" m², 4 Pers. \"&Werte!CG3&\" m², 5 Pers. \"&Werte!CH3&\" m², je weitere Pers.: \"&Werte!CI3&\" m²;  einfache + mittlere Wohnlage\"","v":"zu 1.:    1 Pers.: 50 m², 2 Pers. 65 m², 3 Pers. 80 m², 4 Pers. 90 m², 5 Pers. 102 m², je weitere Pers.: 12 m²;  einfache + mittlere Wohnlage"}]
[null,"zu 2.:    dieser Vergleichsmaßstab ist ganz Berlin"]
[]
[null,"Es wird das Produkt aus angemessener Wohnfläche  x  Nettokaltmiete/ m² ermittelt. Hinzu kommen die Betriebskosten/ m²  x  Wohnfläche."]
[null,"Zur Bruttokaltmiete kommen die tatsächlichen Heizkosten, die mit dem angem. Heizkostengrenzwert verglichen und ggf. darauf begrenzt werden."]
[null,{"$f":"IF('Grundberechnung-Hk'!H99=0,\"Es erfolgt ein Abzug für Warmwasser entsprechend der Personenzahl der BG, sobald dieser Wert errechnet ist.\",\"Ist in den Heizkosten Warmwasser enthalten, wird davon abgezogen für \"&G19&\" Pers.: \"&'Grundberechnung-Hk'!C135&\" €\")","v":"Es erfolgt ein Abzug für Warmwasser entsprechend der Personenzahl der BG, sobald dieser Wert errechnet ist."}]
[]
["Û","Personen der Bedarfsgemeinschaft (zzgl. Vollzeitpflegekinder) ",null,null,null,null,{"$f":"SUM('EF1'!K8)","v":0},{"$f":"IF(G19=1,\" Person\",\" Personen\")","v":" Personen"}]
[null,"daraus ergibt sich eine maximale Wohnfläche  von",null,null,null,null,{"$f":"'Grundberechnung-Hk'!C28","v":0}," m²"]
[null,"Karenzzeit/ weiterer Raumbedarf (z.B. d. Behinderung/ Umgangsrecht)",null,null,null,null,{"$f":"'Grundberechnung-Hk'!C29","v":0}," m²"]
[null,null,null,null,null,null,{"$f":"'Grundberechnung-Hk'!C30","v":0}," m²"]
[null,null,null,null,null,null,null,null,{"$f":"IF('Grundberechnung-Hk'!$D57=1,\"kein sozialer\",\"\")","v":""},null,{"$f":"IF('Grundberechnung-Hk'!$D57=1,\"im sozialen\",\"\")","v":""}]
["Û","Bruttokaltmiete",null,null,null,null,null,null,{"$f":"IF('Grundberechnung-Hk'!$D57=1,\"Wohnungsbau\",\"\")","v":""},null,{"$f":"IF('Grundberechnung-Hk'!$D57=1,\"Wohnungsbau\",\"\")","v":""}]
[]
[null,{"$f":"\"(Datengrundlage: Mietspiegel \"&Werte!N3&\") aus gewichtetem  arithm. Mittelwert aller berliner Wohnungen einfachen + mittl. Standards\"","v":"(Datengrundlage: Mietspiegel 2023) aus gewichtetem  arithm. Mittelwert aller berliner Wohnungen einfachen + mittl. Standards"}]
[null,"angemessene Nettokaltmiete",null,{"$f":"\"Nettokaltmiete \"&FIXED('Grundberechnung-Hk'!C40,2)&\" / m²\"","v":"Nettokaltmiete 0,00 / m²"},null,null,{"$f":"FIXED('Grundberechnung-Hk'!C40,2)&\" €   x   \"&IF(G20>0,'Grundberechnung-Hk'!C30,0)&\" m² =\"","v":"0,00 €   x   0 m² ="},null,{"$f":"IF('Grundberechnung-Hk'!$D57=1,'Grundberechnung-Hk'!G40,\"\")","v":""},null,{"$f":"'Grundberechnung-Hk'!G40","v":0}]
[null,"angemessene Betriebskosten",null,{"$f":"\"Betriebskosten \"&FIXED('Grundberechnung-Hk'!C49,2)&\" / m²\"","v":"Betriebskosten 0,00 / m²"},null,null,{"$f":"FIXED('Grundberechnung-Hk'!C49,2)&\" €   x   \"&IF(G20>0,'Grundberechnung-Hk'!C30,0)&\" m² =\"","v":"0,00 €   x   0 m² ="},null,{"$f":"IF('Grundberechnung-Hk'!$D57=1,'Grundberechnung-Hk'!G49,\"\")","v":""},null,{"$f":"'Grundberechnung-Hk'!G49","v":0}]
[]
[null,null,null,null,null,"Richtwert (bruttokalt)",null,"Summe:",{"$f":"IF('Grundberechnung-Hk'!D57=1,K30,\"\")","v":""},null,{"$f":"'Grundberechnung-Hk'!G53","v":0},{"$f":"IF(SUM(K30)>0,\"Richtwert\",\"\")","v":""}]
[null,"Zuschläge, falls individuell angemessen:"]
["Û","zzgl. 10 % Zuschlag für Wohnungen, die im sozialen Wohnungsbau (1. Förderweg) errichtet wurden (3.2 AV-Wohnen)",null,null,null,null,null,null,null,null,{"$f":"'Grundberechnung-Hk'!G57","v":0},{"$f":"IF(SUM(K32)>0,\"10% von Richtwert \"&FIXED(K30,2),\"\")","v":""}]
["Û",{"$f":"\"zzgl. \"&'Grundberechnung-Hk'!D60&\" % bei bestehender/ drohender Wohnungslosigkeit, um hohe Unterbringungskosten\"","v":"zzgl. 20 % bei bestehender/ drohender Wohnungslosigkeit, um hohe Unterbringungskosten"},null,null,null,null,null,null,{"$f":"IF(AND('Grundberechnung-Hk'!D$57=1,'Grundberechnung-Hk'!J61>0),'Grundberechnung-Hk'!J61,\"\")","v":""},null,{"$f":"IF('Grundberechnung-Hk'!G61>0,'Grundberechnung-Hk'!G61,0)","v":0},{"$f":"IF(SUM(K33)>0,\"20% von Richtwert \"&FIXED(K30,2),\"\")","v":""}]
[null,"                 zu vermeiden",{"$f":"IF('Grundberechnung-Hk'!D63=1,\"(hier Bestandsschutz aufgrund einer früheren Bewilligung)\",\"\")","v":""}]
["Û","zzgl.          Klimabonus",null,null,null,null,null,null,{"$f":"IF('Grundberechnung-Hk'!$D57=1,'Grundberechnung-Hk'!G65,\"\")","v":""},null,{"$f":"'Grundberechnung-Hk'!G171","v":0},{"$f":"IF(SUM(K35)>0,\"Pauschalbetrag\",\"\")","v":""}]
[null,null,null,null,null,null,null,{"$f":"IF(SUM(I36,K36)>0,\"Zwischensumme:\",\"\")","v":""},{"$f":"IF(AND('Grundberechnung-Hk'!$D57=1,SUM(I37)>0),'Grundberechnung-Hk'!I68,\"\")","v":""},null,{"$f":"IF(SUM(K37)>0,SUM(K30,K33,K32,K35),\"\")","v":""}]
["Û",{"$f":"\"zzgl. \"&'Grundberechnung-Hk'!D68&\" % bei bei Härtefällen (z.B. alleinerziehend, Wohndauer über 10 J. u.a.; 3.5.1 AV-Wohnen)\"","v":"zzgl. 10 % bei bei Härtefällen (z.B. alleinerziehend, Wohndauer über 10 J. u.a.; 3.5.1 AV-Wohnen)"},null,null,null,null,null,null,{"$f":"IF(AND('Grundberechnung-Hk'!D$57=1,Grundberechnung!J69>0),'Grundberechnung-Hk'!J69,\"\")","v":""},null,{"$f":"IF('Grundberechnung-Hk'!D69=1,'Grundberechnung-Hk'!G69,0)","v":0},{"$f":"IF(SUM(K37)>0,\"10% von Zwischensumme\",\"\")","v":""}]
[null,null,null,null,null,null,null,"angemessene Bruttokaltmiete ohne Heizkosten:",{"$f":"IF('Grundberechnung-Hk'!D57=1,'Grundberechnung-Hk'!J76,\"\")","v":""},null,{"$f":"'Grundberechnung-Hk'!G76","v":0}]
["Û","Heizkosten"]
[null,null,null,{"$f":"IF('EF1'!F65=5,\"\",\"Heizkosten /kWh \"&FIXED('Grundberechnung-Hk'!C131,2)&\" € / kWh\")","v":"Heizkosten /kWh 0,00 € / kWh"},null,null,{"$f":"IF('EF1'!F65=5,\"Grenzwert für Nachtspeicherheizung\",\"\")","v":""},null,null,null,"Heizkosten"]
[null,{"$f":"\"nach Auswahl (\"&'EF1'!AH48&\")\"","v":"nach Auswahl (Heizart: ?)"},null,null,null,null,null,null,{"$f":"IF('EF1'!F65=5,\"pauschal\",FIXED('Grundberechnung-Hk'!H114,2)&\" kWh   x   \"&Grundberechnung!E103&\" m² Jahr  x  1 kWh in €/ Abrechnungszeitraum\")","v":"0,00 kWh   x   0 m² Jahr  x  1 kWh in €/ Abrechnungszeitraum"},null,{"$f":"'Grundberechnung-Hk'!C125","v":0}]
[null,{"$f":"'Grundberechnung-Hk'!H135&\" für \"&G19&\" \"&H19","v":"Abzug Warmwasser für 0  Personen"},null,null,null,null,null,{"$f":"IF(K42<0,\"abzüglich:\",\"\")","v":""},null,null,{"$f":"'Grundberechnung-Hk'!C135","v":0}]
[null,"Abzug (vom Heizkostengrenzwert) des Klimabonus:",null,null,null,null,null,{"$f":"IF(K43<0,\"abzüglich:\",\"\")","v":""},null,null,{"$f":"'Grundberechnung-Hk'!C126","v":0}]
[null,"   (Angemessene Miete incl. Klimabonus abzgl. tatsächl. Miete)",null,null,null,null,null,"Heizkostengrenzwert:",null,null,{"$f":"'Grundberechnung-Hk'!G149","v":0}]
[null,null,null,null,{"$f":"IF(SUM(G45)>0,\"tatsächliche Heizkosten:\",\"\")","v":""},null,{"$f":"IF('Grundberechnung-Hk'!C144>0,'Grundberechnung-Hk'!C144,\"\")","v":""}]
[null,null,null,null,null,null,null,{"$f":"IF(AND(G45>0,K44>G45),\"(Begrenzung auf tatsächliche Heizkosten)\",\"\")","v":""}]
[null,null,null,null,null,null,null,{"$f":"IF(K47>0,\"anerkannte Heizkosten:\",\"Heizkosten:\")","v":"Heizkosten:"},{"$f":"IF('Grundberechnung-Hk'!$D57=1,'Grundberechnung-Hk'!G149,\"\")","v":""},null,{"$f":"'Grundberechnung-Hk'!G149","v":0}]
[null,{"$f":"IF(K41>0,IF(K44=K47,\"Es wird mit dem Heizkostengrenzwert und nicht mit den tatsächl. Heizkosten gerechnet.\",IF(H46=K47,\"Es liegen individuelle Gründe vor, um mit den tatsächlichen Heizkosten und nicht mit dem Heizkostengrenzwert zu rechnen.\",\"\")),\"\")","v":""}]
[null,{"$f":"'Grundberechnung-Hk'!B134","v":"0 kWh x 0 m² = 0 kWh / Jahr  x  0,00 €"}]
[null,null,null,null,null,null,null,{"$f":"IF(SUM(K47)>0,\"angemessene (Gesamt-) Miete mit Heizkosten\",\"angemessene Wohnungsmiete ohne Heizkosten\")&\":\"","v":"angemessene Wohnungsmiete ohne Heizkosten:"},{"$f":"IF('Grundberechnung-Hk'!D57=1,'Grundberechnung-Hk'!J154,\"\")","v":""},null,{"$f":"'Grundberechnung-Hk'!G153","v":0}]
[]
[]
[null,{"$f":"\"zzgl. \"&'Grundberechnung-Hk'!D78&\" % zur Umzugsvermeidung (6.1.1 AV-Wohnen)\"","v":"zzgl. 15 % zur Umzugsvermeidung (6.1.1 AV-Wohnen)"},null,null,null,null,null,null,{"$f":"IF(AND('Grundberechnung-Hk'!D$57=1,'Grundberechnung-Hk'!J80>0),'Grundberechnung-Hk'!J80,\"\")","v":""},null,{"$f":"IF('Grundberechnung-Hk'!F79=1,'Grundberechnung-Hk'!C80,\"\")","v":""},{"$f":"IF(SUM(K53)>0,\"15% v. Richtwert\"&IF(SUM(K32)>0,\" (+ soz. WB\",\"\")&\")\",\"\")","v":""}]
[null,null,null,null,null,null,null,{"$f":"IF(SUM(I53,K53)>0,\"Prüfgrenze für Kostensenkungsverfahren (gerundet):\",\"\")","v":""},{"$f":"IF(SUM(I53)>0,'Grundberechnung-Hk'!J176,\"\")","v":""},null,{"$f":"IF(SUM(I53,K53)>0,'Grundberechnung-Hk'!G176,\"\")","v":""},{"$f":"IF(SUM(I54,K54)>0,\"gerundet\",\"\")","v":""}]
[]
[null,"Heizkosten- Ausgangswerte:",null,null,null,null,"pro Monat"]
[null,null,null,"tatsächlicher Verbrauch kwh/ Abrechnungszeitraum: ",{"$f":"'Grundberechnung-Hk'!C106","v":0},null,{"$f":"E57/12","v":0}]
[null,null,null,"indiv. / angemessene kWh / Jahr: ",{"$f":"'Grundberechnung-Hk'!C117","v":0},null,{"$f":"E58/12","v":0},null,"angem. ... m² x  …. max. Grenzwert d. Brennstoffart"]
[null,null,null,"kwH Abzug für Warmwasser/ Jahr: ",{"$f":"'Grundberechnung-Hk'!C128","v":0},null,{"$f":"E59/12","v":0},null,"angem. ... m² x  …. max. Grenzwert d. Brennstoffart WW"]
[null,null,null,"ggf. Abzug der Energiepauschale: ",null,null,{"$f":"'Grundberechnung-Hk'!C126","v":0},null,"pauschal n. Personenzahl d. Bedarfsgemeinschaft"]
[null,null,null,"Kosten einer kWh incl. Heiznebenkosten: ",{"$f":"'Grundberechnung-Hk'!C131","v":0},null,null,null,{"$f":"'Grundberechnung-Hk'!I119","v":"0,00 € / 0 kWh = 0,00 €/kWh (gerundet)"}]
[]
[null,"Personen in Bedarfsgemeinschaft","Wohnfläche ",null,"angem. Miet-",null,"Betriebskosten",null,"Bruttokaltmiete",null,"zuzüglich der ange-"]
[null,null,"in m²",null,"preis pro m²",null,"pro m²",null,"gesamt",null,"messenen Heizkosten"]
[null,"1 Person   ",{"$f":"Werte!CC3","v":50},"x",{"$f":"Werte!J3","v":7.21},"+",{"$f":"Werte!P$3","v":1.77},{"$f":"IF(G19=1,\"Ø\",\"\")","v":""},{"$f":"SUM(C65*(E65+G65))","v":449},null,{"$f":"IF(AND(G$19=1,SUM(G$45)>0),K$47,\"~\")","v":"~"},{"$f":"IF(G$19=1,\"ß\",\"\")","v":""}]
[null,"2 Personen",{"$f":"Werte!CD3","v":65},"x",{"$f":"Werte!K3","v":7.21},"+",{"$f":"Werte!P$3","v":1.77},{"$f":"IF(G19=2,\"Ø\",\"\")","v":""},583.70000000000005,null,{"$f":"IF(AND(G$19=2,SUM(G$45)>0),K$47,\"?\")","v":"?"},{"$f":"IF(G$19=2,\"ß\",\"\")","v":""}]
[null,"3 Personen",{"$f":"Werte!CF3","v":80},"x",{"$f":"Werte!L3","v":6.59},"+",{"$f":"Werte!P$3","v":1.77},{"$f":"IF(G19=3,\"Ø\",\"\")","v":""},668.8,null,{"$f":"IF(AND(G$19=3,SUM(G$45)>0),K$47,\"~\")","v":"~"},{"$f":"IF(G$19=3,\"ß\",\"\")","v":""}]
[null,"4 Personen",{"$f":"Werte!CG3","v":90},"x",{"$f":"Werte!L3","v":6.59},"+",{"$f":"Werte!P$3","v":1.77},{"$f":"IF(G19=4,\"Ø\",\"\")","v":""},752.4,null,{"$f":"IF(AND(G$19=4,SUM(G$45)>0),K$47,\"~\")","v":"~"},{"$f":"IF(G$19=4,\"ß\",\"\")","v":""}]
[null,"5 Personen",{"$f":"Werte!CH3","v":102},"x",{"$f":"Werte!$M$3","v":7.09},"+",{"$f":"Werte!P$3","v":1.77},{"$f":"IF(G19>=5,\"Ø\",\"\")","v":""},903.71999999999991,null,{"$f":"IF(AND(G$19=5,SUM(G$45)>0),K$47,\"~\")","v":"~"},{"$f":"IF(G$19>=5,\"ß\",\"\")","v":""}]
[null,"jede weitere Person",{"$f":"Werte!CI3","v":12},"x",{"$f":"Werte!$M$3","v":7.09},"+",{"$f":"Werte!P$3","v":1.77},{"$f":"IF(G19>5,\"Ø\",\"\")","v":""},106.32,{"$f":"IF(G19>5,G19-5,\"\")","v":""},"?",{"$f":"IF(G$19>5,\"ß\",\"\")","v":""}]
[null,null,null,null,null,null,null,null,{"$f":"IF(SUM(K33:K38)>0,\"ohne Zuschläge\",\"\")","v":""},null,null,null,null,null,"Heizmaterial-"]
[]
[null,"Brennstoffe","Personenanzahl ",null,"kWh ",null,"pro Jahr in kWh",null,"pro Monat",null,"Abschlag f. Warmwasser",null,null,null,"auswahl","Personenzahl"]
[null,null,"der Bedarfsgemeinschaft",null," m²  / Jahr",null,"m.WW",null,"m.WW",null,"pro Jahr",null,null,null,{"$f":"'EF1'!F65","v":0},{"$f":"'EF1'!K8","v":0}]
[null,null,"1 Person, 50 m²",">",{"$f":"Werte!EY3","v":238},null,{"$f":"Werte!EZ$3","v":11900},{"$f":"IF(OR(AND(O$74>0,O74<4,P$74=1),AND(O$74=6,P74=1)),\"Ø\",\"\")","v":""},{"$f":"G75/12","v":991.66666666666663},{"$f":"IF(OR(AND(O$74>0,O74<4,P$74=1),AND(O$74=6,P74=1)),\"Ø\",\"\")","v":""},{"$f":"Werte!FG$3","v":1200},{"$f":"IF(OR(AND(O$74>0,O$74<4,P$74=1),AND(O$74=6,P74=1)),\"ß\",\"\")","v":""},null,null,{"$f":"Einstellungen!D49","v":0},"höchster Heizkostengrenzwert",null,"< löschen?"]
[null,null,"2 Personen, 65 m²",">",{"$f":"Werte!EY3","v":238},null,{"$f":"Werte!FA$3","v":15500},{"$f":"IF(OR(AND(O$74>0,O74<4,P$74=2),AND(O$74=6,P74=2)),\"Ø\",\"\")","v":""},{"$f":"G76/12","v":1291.6666666666667},{"$f":"IF(OR(AND(O$74>0,O74<4,P$74=2),AND(O$74=6,P74=2)),\"Ø\",\"\")","v":""},{"$f":"Werte!FH$3","v":1560},{"$f":"IF(OR(AND(O$74>0,O$74<4,P$74=2),AND(O$74=6,P74=2)),\"ß\",\"\")","v":""}]
[null,"Heizöl","3 Personen, 80 m²",">",{"$f":"Werte!EY3","v":238},null,{"$f":"Werte!FB$3","v":19000},{"$f":"IF(OR(AND(O$74>0,O74<4,P$74=3),AND(O$74=6,P74=3)),\"Ø\",\"\")","v":""},1583.3333333333333,{"$f":"IF(OR(AND(O$74>0,O74<4,P$74=3),AND(O$74=6,P74=3)),\"Ø\",\"\")","v":""},{"$f":"Werte!FI$3","v":1920},{"$f":"IF(OR(AND(O$74>0,O$74<4,P$74=3),AND(O$74=6,P74=3)),\"ß\",\"\")","v":""}]
[null,"Erdgas","4 Personen, 90 m²",">",{"$f":"Werte!EY3","v":238},null,{"$f":"Werte!FC$3","v":21400},{"$f":"IF(OR(AND(O$74>0,O74<4,P$74=4),AND(O$74=6,P74=4)),\"Ø\",\"\")","v":""},1783.3333333333333,{"$f":"IF(OR(AND(O$74>0,O74<4,P$74=4),AND(O$74=6,P74=4)),\"Ø\",\"\")","v":""},{"$f":"Werte!FJ$3","v":2160},{"$f":"IF(OR(AND(O$74>0,O$74<4,P$74=4),AND(O$74=6,P74=4)),\"ß\",\"\")","v":""}]
[null,"Fernwärme","5 Personen, 102 m²",">",{"$f":"Werte!EY3","v":238},null,{"$f":"Werte!FD$3","v":24300},{"$f":"IF(OR(AND(O$74>0,O74<4,P$74>=5),AND(O$74=6,P74>=5)),\"Ø\",\"\")","v":""},2025,{"$f":"IF(OR(AND(O$74>0,O74<4,P$74>=5),AND(O$74=6,P74>=5)),\"Ø\",\"\")","v":""},{"$f":"Werte!FK$3","v":2448},{"$f":"IF(OR(AND(O$74>0,O$74<4,P$74>=5),AND(O$74=6,P74>=5)),\"ß\",\"\")","v":""},null,null,null,"Grenzwerte für \"andere Heizart\""]
[null,null,"jede weitere Person 12 m²",">",{"$f":"Werte!EY3","v":238},null,{"$f":"Werte!FE$3","v":2900},{"$f":"IF(OR(AND(O$74>0,O74<4,P$74>5),AND(O$74=6,P74>5)),\"Ø\",\"\")","v":""},241.66666666666666,{"$f":"IF(OR(AND(O$74>0,O74<4,P$74>5),AND(O$74=6,P74>5)),\"Ø\",\"\")","v":""},{"$f":"Werte!FL$3","v":288},{"$f":"IF(OR(AND(O$74>0,O$74<4,P$74>5),AND(O$74=6,P74>5)),\"ß\",\"\")","v":""},null,null,"kWh/m²/Jahr","max-Wert/Jahr","max-Wert/Monat","Abschlag WW/ Jahr"]
[]
[null,null,"1 Person, 50 m²",">",{"$f":"Werte!FN3","v":94},null,{"$f":"Werte!FO$3","v":4700},{"$f":"IF(OR(AND(O$74=4,P$74=1),AND(O$74=6,P74=1)),\"Ø\",\"\")","v":""},{"$f":"G82/12","v":391.66666666666669},{"$f":"IF(OR(AND(O$74=4,P$74=1),AND(O$74=6,P74=1)),\"Ø\",\"\")","v":""},{"$f":"Werte!FV$3","v":480},{"$f":"IF(OR(AND(O$74=4,P$74=1),AND(O$74=6,P74=1)),\"ß\",\"\")","v":""},null,null,{"$f":"IF(AND(P$74=1,O$74=6),MAX(E75,E82,E89),0)","v":0},{"$f":"IF(AND(P$74=1,O$74=6),MAX(G75,G82,G89),0)","v":0},{"$f":"IF(AND(P$74=1,O$74=6),MAX(I75,I82,I89),0)","v":0},{"$f":"IF(AND(P$74=1,O$74=6),MAX(K75,K82,K89),0)","v":0}]
[null,null,"2 Personen, 65 m²",">",{"$f":"Werte!FN3","v":94},null,{"$f":"Werte!FP$3","v":6100},{"$f":"IF(OR(AND(O$74=4,P$74=2),AND(O$74=6,P74=2)),\"Ø\",\"\")","v":""},508.33333333333331,{"$f":"IF(OR(AND(O$74=4,P$74=2),AND(O$74=6,P74=2)),\"Ø\",\"\")","v":""},{"$f":"Werte!FW$3","v":624},{"$f":"IF(OR(AND(O$74=4,P$74=2),AND(O$74=6,P74=2)),\"ß\",\"\")","v":""},null,null,{"$f":"IF(AND(P$74=2,O$74=6),MAX(E76,E83,E90),0)","v":0},{"$f":"IF(AND(P$74=2,O$74=6),MAX(G76,G83,G90),0)","v":0},{"$f":"IF(AND(P$74=2,O$74=6),MAX(I76,I83,I90),0)","v":0},{"$f":"IF(AND(P$74=2,O$74=6),MAX(K76,K83,K90),0)","v":0}]
[null,"Wärmepumpe","3 Personen, 80 m²",">",{"$f":"Werte!FN3","v":94},null,{"$f":"Werte!FQ$3","v":7500},{"$f":"IF(OR(AND(O$74=4,P$74=3),AND(O$74=6,P74=3)),\"Ø\",\"\")","v":""},625,{"$f":"IF(OR(AND(O$74=4,P$74=3),AND(O$74=6,P74=3)),\"Ø\",\"\")","v":""},{"$f":"Werte!FX$3","v":768},{"$f":"IF(OR(AND(O$74=4,P$74=3),AND(O$74=6,P74=3)),\"ß\",\"\")","v":""},null,null,{"$f":"IF(AND(P$74=3,O$74=6),MAX(E77,E84,E91),0)","v":0},{"$f":"IF(AND(P$74=3,O$74=6),MAX(G77,G84,G91),0)","v":0},{"$f":"IF(AND(P$74=3,O$74=6),MAX(I77,I84,I91),0)","v":0},{"$f":"IF(AND(P$74=3,O$74=6),MAX(K77,K84,K91),0)","v":0}]
[null,null,"4 Personen, 90 m²",">",{"$f":"Werte!FN3","v":94},null,{"$f":"Werte!FR$3","v":8500},{"$f":"IF(OR(AND(O$74=4,P$74=4),AND(O$74=6,P74=4)),\"Ø\",\"\")","v":""},708.33333333333337,{"$f":"IF(OR(AND(O$74=4,P$74=4),AND(O$74=6,P74=4)),\"Ø\",\"\")","v":""},{"$f":"Werte!FY$3","v":864},{"$f":"IF(OR(AND(O$74=4,P$74=4),AND(O$74=6,P74=4)),\"ß\",\"\")","v":""},null,null,{"$f":"IF(AND(P$74=4,O$74=6),MAX(E78,E85,E92),0)","v":0},{"$f":"IF(AND(P$74=4,O$74=6),MAX(G78,G85,G92),0)","v":0},{"$f":"IF(AND(P$74=4,O$74=6),MAX(I78,I85,I92),0)","v":0},{"$f":"IF(AND(P$74=4,O$74=6),MAX(K78,K85,K92),0)","v":0}]
[null,null,"5 Personen, 102 m²",">",{"$f":"Werte!FN3","v":94},null,{"$f":"Werte!FS$3","v":9600},{"$f":"IF(OR(AND(O$74=4,P$74>=5),AND(O$74=6,P74>=5)),\"Ø\",\"\")","v":""},800,{"$f":"IF(OR(AND(O$74=4,P$74>=5),AND(O$74=6,P74>=5)),\"Ø\",\"\")","v":""},{"$f":"Werte!FZ$3","v":979},{"$f":"IF(OR(AND(O$74=4,P$74>=5),AND(O$74=6,P74>5)),\"ß\",\"\")","v":""},null,null,{"$f":"IF(AND(P$74=5,O$74=6),MAX(E79,E86,E93),0)","v":0},{"$f":"IF(AND(P$74=5,O$74=6),MAX(G79,G86,G93),0)","v":0},{"$f":"IF(AND(P$74=5,O$74=6),MAX(I79,I86,I93),0)","v":0},{"$f":"IF(AND(P$74=5,O$74=6),MAX(K79,K86,K93),0)","v":0}]
[null,null,"jede weitere Person 12 m²",">",{"$f":"Werte!FN3","v":94},null,{"$f":"Werte!FT$3","v":1100},{"$f":"IF(OR(AND(O$74=4,P$74>5),AND(O$74=6,P74>5)),\"Ø\",\"\")","v":""},91.666666666666671,{"$f":"IF(OR(AND(O$74=4,P$74>5),AND(O$74=6,P74>5)),\"Ø\",\"\")","v":""},{"$f":"Werte!GA$3","v":115},{"$f":"IF(OR(AND(O$74=4,P$74>5),AND(O$74=6,P74>5)),\"ß\",\"\")","v":""},null,null,{"$f":"SUM(O82:O86)","v":0},{"$f":"SUM(P82:P86)","v":0},{"$f":"SUM(Q82:Q86)","v":0},{"$f":"SUM(R82:R86)","v":0}]
[]
[null,null,"1 Person, 50 m²",">",{"$f":"Werte!GC3","v":120},null,{"$f":"Werte!GD$3","v":6000},{"$f":"IF(OR(AND(O$74=5,P$74=1),AND(O$74=6,P74=1)),\"Ø\",\"\")","v":""},500,null,null,{"$f":"IF(OR(AND(O$74=5,P$74=1),AND(O$74=6,P74=1)),\"ß\",\"\")","v":""},null,null,null,"Grenzwertanzeige bis 5 Personen"]
[null,null,"2 Personen, 65 m²",">",{"$f":"Werte!GC3","v":120},null,{"$f":"Werte!GE$3","v":7800},{"$f":"IF(OR(AND(O$74=5,P$74=2),AND(O$74=6,P74=2)),\"Ø\",\"\")","v":""},650,null,"Keine",{"$f":"IF(OR(AND(O$74=5,P$74=2),AND(O$74=6,P74=2)),\"ß\",\"\")","v":""}]
[null,"Nachtspeicherheizung","3 Personen, 80 m²",">",{"$f":"Werte!GC3","v":120},null,{"$f":"Werte!GF$3","v":9600},{"$f":"IF(OR(AND(O$74=5,P$74=3),AND(O$74=6,P74=3)),\"Ø\",\"\")","v":""},800,null,"dezentrale",{"$f":"IF(OR(AND(O$74=5,P$74=3),AND(O$74=6,P74=3)),\"ß\",\"\")","v":""}]
[null,{"$f":"IF(AND('EF1'!AE6=1,'EF1'!F65=5),\" Kein Abzug der WW-Pau-\",\"\")","v":""},"4 Personen, 90 m²",">",{"$f":"Werte!GC3","v":120},null,{"$f":"Werte!GG$3","v":10800},{"$f":"IF(OR(AND(O$74=5,P$74=4),AND(O$74=6,P74=4)),\"Ø\",\"\")","v":""},900,null,"Warmwasser-",{"$f":"IF(OR(AND(O$74=5,P$74=4),AND(O$74=6,P74=4)),\"ß\",\"\")","v":""}]
[null,{"$f":"IF(AND('EF1'!AE6=1,'EF1'!F65=5),\" schale bei Nacht-\",\"\")","v":""},"5 Personen, 102 m²",">",{"$f":"Werte!GC3","v":120},null,{"$f":"Werte!GH$3","v":12240},{"$f":"IF(OR(AND(O$74=5,P$74>=5),AND(O$74=6,P74>=5)),\"Ø\",\"\")","v":""},1020,null,"versorgung",{"$f":"IF(OR(AND(O$74=5,P$74>=5),AND(O$74=6,P74>=5)),\"ß\",\"\")","v":""}]
[null,{"$f":"IF(AND('EF1'!AE6=1,'EF1'!F65=5),\" speicherheizung !\",\"\")","v":""},"jede weitere Person 12 m²",">",{"$f":"Werte!GC3","v":120},null,{"$f":"Werte!GI$3","v":1440},{"$f":"IF(OR(AND(O$74=5,P$74>5),AND(O$74=6,P74>5)),\"Ø\",\"\")","v":""},120,null,null,{"$f":"IF(OR(AND(O$74=5,P$74>5),AND(O$74=6,P74>5)),\"ß\",\"\")","v":""}]
[]
[]
[null,"Für Wohnungen mit anderen Heizarten nimmt Berlin als Grenzwert den Bezug auf den höchsten Grenzwert der erstgenannten 3 Heizungsarten."]
[null,{"$f":"IF(SUM(E98:I98)>0,\"Andere Heizart\",\"\")","v":""},null,null,{"$f":"IF(O74=6,O87,\"\")","v":""},null,{"$f":"IF(O74=6,P87,\"\")","v":""},null,{"$f":"IF(O74=6,Q87,\"\")","v":""},null,{"$f":"IF(AND(R87>0,O74=6),R87,\"\")","v":""}]
[]
[]
[null,"SoLei-B hilft in der Beratung",null,null,null,null,null,null,null,null,null,{"$f":"IF(OR(AND(O$74=3,P$74=4),AND(O$74=4,O$75=F101)),\"ß\",\"\")","v":""}]
[null,"Bürgergeld, Kinderzuschlag, Wohngeld, Pfändungsgrenzen, BAföG:     Rechnen Sie mit SoLei-B"]
[]
[]
[null,"Sonderregel ",null,null,"Mietgrenze nach Wohngeldtabelle"]
[]
[null,"zur Berechnung der angem. Miete ist möglicherweise anzuwenden, wenn nach d. Rechtsprechung des Bundessozialgerichtes in seinen Urteilen vom"]
[null,"vom 30.1.2019 - B14 AS 24/18 R",null,"vom 03.09.2020 - B14 AS 37/19 R",null,null,null,null,"vom 17.09.2020 - B4 AS 22/20 R"]
[null,"festgestellt wird, dass d. notwenige kommunale schlüssige Konzept nicht den Vorgaben des BSG dazu entspricht. Dieses muss:"]
[]
[null,"gewährleisten, dass die aktuellen Verhältnisse des Mietwohnungsmarkts im Vergleichsraum dem Angemessenheitswert zugrunde liegen"]
[null,"sowie eine realitätsgerechte Ermittlung stattgefunden hat.",null,null,null,null,"Trotz Methodenvielfalt, muss es Angaben enthalten zu:"]
[]
[null,"l Größe und Standard (Ausstattung, Lage, Bausubstanz entspricht einfachen und grundlegenden Bedürfnissen)"]
[null,"l Angaben über Art und Weise der Datenerhebung"]
[null,"l Angaben über Vergleichszeitraum der Datenerhebung (keine gesetzl. Vorgaben, i.d.R. 12 Monate)"]
[null,"l Repräsentativität  und Validität der Datenauswertung"]
[null,"l Vermeidung von sozialen Brennpunkten durch soziale Segregation"]
[null,"l Bergründung zur Ermittlung der Angemessenheitswerte aus den Daten"]
[]
[null,"Ist das Konzept nicht schlüssig, muss der Kommune eine Nachbesserungsmöglichkeit eingeräumt werden.  "]
[null,"Die Summe aus Kaltmiete und Betriebskosten kann nur dann einen zutreffend gebildeten abstrakten Angemessenheitswert darstellen, wenn "]
[null,"in Betracht kommender Wohnraum zu diesem Preis auch tatsächlich in nennenswerter Zahl auf dem Markt allgemein zugänglich angeboten wird "]
[null,null,"(Verfügbarkeitsmerkmal)"]
[null,"Die Beweislast dafür liegt nicht beim Leistungsberechtigten, sondern beim Jobcenter oder dem Gericht (Umkehr der Beweislast)."]
[null,"Prüfungsmaßstab für die generelle Verfügbarkeit von Wohnungen ist die Summe aus Nettokaltmiete + Betriebskosten"]
[]
[null,"Nur soweit es kein schlüssiges Konzept gibt, ist es Sache der Gerichte, selbst Angemessenheitswerte zu bestimmen."]
[null,"Sieht das Gericht selber aber keine Möglichkeit im Rahmen der einzelfallbezogenen Amtsermittlung abstrakte Angemessenheitswerte festzulegen,"]
[null,"bleibt d. Rückgriff auf die Beträge aus § 12 WoGG zzgl. eines Zuschlages von 10%."]
[]
[null,"Dann sieht die Berechnung der angemessenen Miete wie folgt aus:",null,null,null,null,null,null,null,null,null,null,null,null,null,{"$f":"'EF1'!AE58","v":0}," Berechnung mit Mietgrenze nach WoGG"]
[]
[null,null,"Personenzahl der BG:",null,{"$f":"G19","v":0},null,"Mietniveaustufe:",null,{"$f":"Einstellungen!D85","v":4}]
["EF1 <",null,"Bruttokaltmietenwert nach Wohngeldtabelle:",null,{"$f":"IF('EF1'!AE58=1,'Mietgrenze WoGG'!O1,0)","v":0},null,"für Berlin  (WoGG)",null,null,null,{"$f":"IF('Mietgrenze WoGG'!AD83=0,\"incl. Klimakomponente\",\"\")","v":"incl. Klimakomponente"}]
[null,null,"Zuschlag bis zu 10%:",null,{"$f":"IF('EF1'!AE60=1,'ErgebnisDruck-Hk'!E135/100*Werte!EB3,0)","v":0},null,{"$f":"'EF1'!D36","v":""}]
[null,null,"anerkannte Heizkosten:",null,{"$f":"IF(E135>0,K47,0)","v":0}]
[null,null,"Gesamtwert der angemessenen Miete:",null,{"$f":"SUM(E135:E137)","v":0},null,{"$f":"'EF1'!$D$34","v":""}]
[]
[]
[null,"Aus einem Artikel von Richter Dr. Stefan Schifferdecker am Sozialgericht Berlin in \"info also 6/21\" zum Thema 'Wohnraumverfügbarkeit' ergibt sich,"]
[null,"dass dieser (er hatte das vom BSG in seinen Urteilen von 2010 für richtig gehaltene schlüssige Konzept zur Produktmethode entwickelt), das aktuelle"]
[null,"schlüssige Konzept d. Landes Berlin hinsichtlich der Verfügbarkeit von Wohnungen als dafür ungeeignet ansieht."]
[]
[null,"Da es somit kein schlüssiges Konzept gibt, dass das neue Verfügbarkeitsmerkmal richtig umsetzt, müssen die Richter am Sozialgericht Berlin "]
[null,"selber im Rahmen Ihrer Amtsermittlung entscheiden."]
[null,"Kann im Rahmen der notwendigen individuellen Prüfung und auch aufgrund fehlender Nachbesserungen des Landes Berlin keine angemessene"]
[null,"Miete ermittelt werden, die eine Anmietung von Wohnungen des unteren Marktsegments ermöglicht,  kann nach einem gestuften Verfahren im  "]
[null,"Einzelfall auf die Werte der Wohngeldtabelle n. § 12 WGG zzgl. eines Zuschlages bis zu 10% zurückgegriffen werden."]
[]
[null,"Genau das berechnet SoLei-B an dieser Stelle."]

{"sheet":"Darstellung","index":27,"n_rows":45,"n_cols":23,"rows_kept":45,"cut":false,"hidden":false,"merged":[[5,4,5,5],[6,4,6,5],[11,1,12,1],[19,1,20,1]]}
[]
["Start"," Leistungskürzung bei Wohnkosten?"]
[]
[null,null,null,null,null,null,null,null,null,null,null,null,null,null,null,null,{"$f":"'EF1'!$AE$52","v":0},"[1] Wirtschaftlichkeitsvergleich aktiviert",null,null,null,"ErgebnisDruck-Hk","Steuerung für Rücksprung"]
[null,null,null,null,null,{"$f":"IF('Grundberechnung-Hk'!G57>0,'Grundberechnung-Hk'!G57,\"\")","v":""},{"$f":"IF('Grundberechnung-Hk'!G61>0,'Grundberechnung-Hk'!G61,\"\")","v":""},{"$f":"IF('Grundberechnung-Hk'!G65>0,'Grundberechnung-Hk'!G65,\"\")","v":""},{"$f":"IF('Grundberechnung-Hk'!G69>0,'Grundberechnung-Hk'!G69,\"\")","v":""}]
["Û",null,{"$f":"IF('Grundberechnung-Hk'!D6>0,'Grundberechnung-Hk'!D27&\" \"&'Grundberechnung-Hk'!E27,\"\")","v":""},"tatsächliche","Vergleichswerte",null,"Bestandsschutz","Klimabonus","individuelle bzw.","Umzugs-","Mietkosten","Anmerkungen"]
[null,null,null,"Kosten","(\"abstrakte Angemessenheit\")",null,"+ 20% wohnungslos","Pauschale","konkrete","vermeidungs-","angemessen","zum Verfahren"]
[null,null,null,null,null,null,"von Neuvermietung",null,"Angemessenheit","zuschlag","nach AV-Wohnen"]
[null,null,null,null,"Tabellenwerte","Sozialer Wohnungsbau",null,null,"Härtefall"]
[null,null,null,null," Nr. 3.3: Richtwert nach"," Nr. 3.3 Abs. 3: Aufschlag",null,null," - Nr. 3.5.1: Anhebung"," Nr. 6.4.1: Zuschlag zur"]
[null,null,null,null," Tabelle aus Anlage 1"," bei sozialem Wohnungs-",{"$f":"IF(AND(AND('Grundberechnung-Hk'!D61=1,'Grundberechnung-Hk'!D79=1),'Grundberechnung-Hk'!D63=0),\"Bestandsschutz?\",\"\")","v":""},null,"    Richtwert bei Härtefall"," Umzugsvermeidung",null," näheres s. Nr. 7.1 -"]
["Û",{"$f":"IF(AND(Checkliste!E4>0,Q4=1,D14=0),\"?\",\"\")","v":""},"Bruttokaltmiete",null,null," bau",null,{"$f":"IF('Grundberechnung-Hk'!G65>0,'Grundberechnung-Hk'!C126,\"\")","v":""}," - ggf. greift 3.5.2 oder 3.5.3",null,{"$f":"IF(K14>0,\"max. tatsächliche Kosten\",\"\")","v":""}," ggf. Absenkung,",null,null,null,null,"Obergrenze"]
[null,null,"(\"Kosten der",null,null,null,null,null,null,null,null," i.d.R. nach "]
[null,null,"Unterkunft\")",{"$f":"'Grundberechnung-Hk'!G185","v":0},{"$f":"SUM('Grundberechnung-Hk'!G53)","v":0},{"$f":"IF('Grundberechnung-Hk'!D57=1,'Grundberechnung-Hk'!C58,\"\")","v":""},{"$f":"IF(OR('Grundberechnung-Hk'!D61=1,'Grundberechnung-Hk'!D63=1),'Grundberechnung-Hk'!C62,\"\")","v":""},{"$f":"IF('Grundberechnung-Hk'!D65=1,'Grundberechnung-Hk'!C66,\"\")","v":""},{"$f":"IF('Grundberechnung-Hk'!D69=1,'Grundberechnung-Hk'!C70,\"\")","v":""},{"$f":"IF('Grundberechnung-Hk'!F79=1,'Grundberechnung-Hk'!C81,\"\")","v":""},{"$f":"IF(D14<Q14,D14,Q14)","v":0}," 6 Monaten",null,null,null,null,{"$f":"MAX(E14:I14)","v":0}]
[null,null,null,null,null,{"$f":"IF(SUM(F14)>0,\"( + \"&Werte!GR3&\" % )\",\"\")","v":""},{"$f":"IF(SUM(G14)>0,\"( + \"&Werte!GS3&\" % )\",\"\")","v":""},null,{"$f":"IF(SUM(I14)>0,\"( + \"&Werte!GT3&\" % )\",\"\")","v":""},{"$f":"IF(SUM(J14)>0,\"( + \"&Werte!GU3&\" % )\",\"\")","v":""},{"$f":"IF(AND(Checkliste!E4>0,Q4=1,D14=0),\"Bruttokaltmiete?\",\"\")","v":""}]
[]
[null,null,null,null," Nr. 5.2 Abs. 3: Grenzwert "," Nr. 5.2 Abs. 3: Grenzwert ",null,{"$f":"IF('Grundberechnung-Hk'!E126=1,\"In Anspruch\",\"\")","v":""}," ggf. mit Anhebung aus"]
[null,null,null,null," ggf. m. Abschlag wegen "," ggf. m. Abschlag wegen ",null,{"$f":"IF('Grundberechnung-Hk'!E126=1,\"genommen\",\"\")","v":""}," individuellen Gründen nach",null,null," näheres s. Nr. 7.1.2 -"]
[null,null,null,null," dezentraler Warmwasser-"," dezentraler Warmwasser-",null,{"$f":"IF('Grundberechnung-Hk'!G65>0,'Grundberechnung-Hk'!C126*-1,\"\")","v":""}," Nr. 5.2.1",null,{"$f":"IF(K21>0,\"max. tatsächliche Kosten\",\"\")","v":""}," ggf. auch zum"]
["Û",{"$f":"IF(AND(Checkliste!E4>0,Q4=1,D21=0),\"?\",\"\")","v":""},"Heizkosten",null," versorgung (Anlage 2)"," versorgung (Anlage 2)",null,null,null,null,null," Zeitpunkt einer Ab-"]
[null,null,{"$f":"IF('Grundberechnung-Hk'!G187>0,\"(incl. WW)\",\"\")","v":""},{"$f":"SUM('Grundberechnung-Hk'!C144)","v":0},{"$f":"'Grundberechnung-Hk'!C125-'Grundberechnung-Hk'!C135","v":0},{"$f":"IF(SUM(F14)>0,E21,\"\")","v":""},{"$f":"IF(SUM(G14)>0,E21,\"\")","v":""},{"$f":"IF('Grundberechnung-Hk'!D65=1,'Grundberechnung-Hk'!C146,\"\")","v":""},{"$f":"IF('Grundberechnung-Hk'!D65=1,'Grundberechnung-Hk'!G149,\"\")","v":""},{"$f":"IF(SUM(J14)>0,'Grundberechnung-Hk'!G149,\"\")","v":""},{"$f":"IF('Grundberechnung-Hk'!D147=1,D21,Q21)","v":0}," senkung",null,null,null,null,{"$f":"MIN(E21:J21)","v":0}]
[null,null,null,null," Grenzwert nach Nr. 5  /",null,null,null,null,null,{"$f":"IF(AND(Checkliste!E4>0,Q4=1,D21=0),\"Heizkosten?\",\"\")","v":""}]
[null,null,null,null," Anlage 2"]
[null,null,null,"Bruttowarmmiete"," Gesamtaufwendungen 1:"," Gesamtaufwendungen 2",null,null," Gesamtaufwendungen 3"," Gesamtaufwendungen 4"," Summe angemessener"," Vergleich der Brutto-"]
[null,null,null,null," Wert in Tabelle der"," incl. Auf- und Abschläge",null,null," incl. individueller","incl. Umzugsvermeidungs-"," Werte im Falle einer"," warmmiete mit Ge-"]
[null,null,null,null," Anlage 3",null,null,null," Bestandteile","zuschlag"," Kürzung"," samtaufwendungen"]
[null,null,null,null,null,null,null,null,null,null,{"$f":"'Grundberechnung-Hk'!C194","v":""}," gemäß Nr. 6.4.1 und"]
[null,null,"Summen",{"$f":"IF(SUM(D14,D21)>0,SUM(D14,D21),\"\")","v":""},{"$f":"IF(SUM(E14,E21)>0,ROUNDUP(SUM(E14,E21),0),\"\")","v":""},{"$f":"IF(SUM(F14,F21)>0,SUM(F14,F21),\"\")","v":""},"","","",{"$f":"IF(SUM(J14,J21)>0,ROUND(SUM(J14,J21),0),\"\")","v":""},{"$f":"IF(SUM(K14,K21)>0,ROUND(SUM(K14,K21),2),\"\")","v":""}," Nr. 6.4.2 - ggf.",null,null,null,null,{"$f":"MAX(E28:J28)","v":0}]
[null,null,null,{"$f":"'Grundberechnung-Hk'!C193","v":""},{"$f":"IF(SUM(E28)>0,\"(aufgerundet)\",\"\")","v":""},null,null,null,null,{"$f":"IF(SUM(J28)>0,\"(gerundet)\",\"\")","v":""},null," Bestandsschutz"]
[]
[null,null,"Gesamtaufwendungen",{"$f":"IF('Grundberechnung-Hk'!D8=1,ROUND(Q28,0),Q28)","v":0},{"$f":"\"(Grenzwert \"&IF('Grundberechnung-Hk'!D8=1,\"gerundet)\",\"\")&\"\"","v":"(Grenzwert gerundet)"},null,null,null,{"$f":"IF(SUM(J14)>0,\"incl. Umzugsvermeidungszuschlag\",\"\")","v":""}]
[null,null,null,{"$f":"'Grundberechnung-Hk'!C192","v":""},null,null,null,null,null,{"$f":"IF(SUM(K32)>0,\"aus eigenen Mitteln selbst zu tragender Mietanteil:\",\"\")","v":""},{"$f":"IF('Grundberechnung-Hk'!C191=1,D28-K28,\"\")","v":""}]
[]
[null,null,"Neuanmietung: kein Vergleich der Bruttowarmmiete mit Gesamtaufwendungen; bei (erforderlichem) Umzug dürfen weder Bruttokaltmiete noch Heizkosten die jeweilige "]
[null,null,"Angemessenheitsgrenze überschreiten, aber: Erhöhung des Richtwertes für Bruttokaltmiete um 10 % bei Härtefall und/oder bei Sozialem Wohnungsbau (1. Förderweg) "]
[null,null,"auch hier! - weitere Sonderregelungen s. 3.5.2"]
[]
[null,null,"Wenn Kostensenkungsmaßnahmen trotz Umzugsvermeidungszuschlag nicht zu vermeiden sind, führt der Umzugsvermeidungszuschlag nicht zur Erhöhung der Angemessenheitsgrenze."]
[]
[]
[null,null,"Ggf. Einzelfallprüfung oder keine Leistungskürzung bei Anwendung von AV-Wohnen Nr. 7.1 Abs. 3:"]
[null,null,"Alleinerziehende mit mind. 2 Kindern; schwer erkrankte, die nicht umziehen können; über 60-jährige mit Wohndauer über 10 Jahre (voraussichtlich keine Grundsicherung); "]
[null,null,"einmalige oder kurzfristige Hilfen"]
[]
[null,null,null,null,null,null,null,null,null,null,null,"Tabelle mit freundl. Genehmigung von Thomas Rosumek-Mathes"]

{"sheet":"EF Muster 1","index":28,"n_rows":32,"n_cols":32,"rows_kept":32,"cut":false,"hidden":false,"merged":[[9,1,9,2],[0,3,1,14],[0,19,1,22],[3,1,3,2],[5,1,5,2],[7,1,7,2],[39,20,39,22],[11,1,11,2],[13,1,13,2],[15,1,15,2],[17,1,17,2],[19,1,19,2],[21,1,21,2],[23,1,23,2],[25,1,25,2],[27,1,27,2],[29,1,29,2],[31,1,31,2]]}
[null,null,null,"Kosten der Unterkunft",null,null,null,null,null,null,null,null,null,null,null,null,null,null,null,"Eingabefeld 3"]
["Start"]
[]
[1,"Personen",null,null,"Wirtschaftlichkeitsvergleich",null,null,null,null,null,null,null,null,null,null,null,null,null,null,null,null,null,null,null,null,null,null,null,null,null,{"$f":"IF(SUM(AE6:AE8)>0,1,0)","v":0},"Aufrufen-Prüffeld"]
[]
[2,"HeizKost",null,null,null,null,null,null,null,null,null,null,null,null,null,null,null,null,null,null,null,null,null,null,null,null,null,null,null,null,{"$f":"'EF1'!AE52","v":0},"Option Wirtschaftlichkeitsbetrachtung"]
[]
[3,"WirtschV",null,null,null,null,null,null,null,null,null,null,null,null,null,null,null,null,null,null,null,null,null,null,null,null,null,null,null,null,{"$f":"Checkliste!D37","v":0},"Daten in EF 2 eingetragen"]
[]
[4,"BSG RS"]
[]
[5,"MietS Bln"]
[]
[6,"WhgBest"]
[]
[7,"Konzept"]
[]
[8,"BetriebsK"]
[]
[9,"HeizK"]
[]
[10,"WarmwA"]
[]
[]
[]
[11,"Ergebnis"]
[]
["D","Druck aM"]
[]
["D","Wi-Vergl"]
[]
["T","Tabelle"]

{"sheet":"EF Muster 2","index":29,"n_rows":32,"n_cols":32,"rows_kept":32,"cut":false,"hidden":false,"merged":[[39,20,39,22],[11,1,11,2],[13,1,13,2],[15,1,15,2],[17,1,17,2],[19,1,19,2],[21,1,21,2],[23,1,23,2],[25,1,25,2],[27,1,27,2],[29,1,29,2],[31,1,31,2],[9,1,9,2],[0,3,1,14],[0,19,1,22],[3,1,3,2],[5,1,5,2],[7,1,7,2]]}
[null,null,null,"Kosten der Unterkunft",null,null,null,null,null,null,null,null,null,null,null,null,null,null,null,"Eingabefeld 2"]
["Start"]
[]
[1,"Personen",null,null,"Wirtschaftlichkeitsvergleich",null,null,null,null,null,null,null,null,null,null,null,null,null,null,null,null,null,null,null,null,null,null,null,null,null,{"$f":"IF(SUM(AE6:AE8)>0,1,0)","v":0},"Aufrufen-Prüffeld"]
[]
[2,"HeizKost",null,null,null,null,null,null,null,null,null,null,null,null,null,null,null,null,null,null,null,null,null,null,null,null,null,null,null,null,{"$f":"'EF1'!AE52","v":0},"Option Wirtschaftlichkeitsbetrachtung"]
[]
[3,"WirtschV",null,null,null,null,null,null,null,null,null,null,null,null,null,null,null,null,null,null,null,null,null,null,null,null,null,null,null,null,{"$f":"Checkliste!D37","v":0},"Daten in EF 2 eingetragen"]
[]
[4,"BSG RS"]
[]
[5,"MietS Bln"]
[]
[6,"WhgBest"]
[]
[7,"Konzept"]
[]
[8,"BetriebsK"]
[]
[9,"HeizK"]
[]
[10,"WarmwA"]
[]
[]
[]
[11,"Ergebnis"]
[]
["D","Druck aM"]
[]
["D","Wi-Vergl"]
[]
["T","Tabelle"]

{"sheet":"FF Muster 3","index":30,"n_rows":4,"n_cols":4,"rows_kept":4,"cut":false,"hidden":false,"merged":[]}
["<--"]
["Start",null,null,"Thema"]
[]
[null,null,null,"Beschreibung"]